Workbook

Sheet LDC Info
AA3: Algoma Power Inc.
AA4: Atikokan Hydro Inc.
AA5: Attawapiskat Power Corporation
AA6: Bluewater Power Distribution Corp.
AA7: Brant County Power
AA8: Brantford Power Inc.
AA9: Burlington Hydro Inc.
AA10: Cambridge and North Dumfries Hydro
AA11: Canadian Niagara Power Inc. – Eastern Ontario Power/Fort Erie/Port Colborne
AA12: Centre Wellington Hydro Ltd.
N13: Version 1.1 | AA13: Chapleau Public Utilities Corporation
D14: Utility Name | E14: Thunder Bay Hydro Electricity Distribution | AA14: COLLUS Power Corp.
AA15: Cooperative Hydro Embrun Inc.
D16: Service Territory | E16: Thunder Bay | AA16: E.L.K. Energy Inc.
AA17: Enersource Hydro Mississauga Inc.
D18: Assigned EB Number | E18: EB-2012-0167 | AA18: Entegrus Powerlines Inc.
AA19: ENWIN Utilities Ltd.
D20: Name of Contact and Title | E20: Jenni Pajala, Supervisor of Regulatory Affairs | AA20: Erie Thames Powerlines Corp.
AA21: Espanola Regional Hydro Distribution Corporation
D22: Phone Number | E22: 807-343-1016 | AA22: Essex Powerlines Corporation
AA23: Festival Hydro Inc.
D24: Email Address | E24: jpajala@tbhydo.on.ca | AA24: Fort Albany Power Corporation
AA25: Fort Frances Power Corporation
D26: Bridge Year | E26: 2012 | AA26: Greater Sudbury Hydro Inc.
AA27: Grimsby Power Inc.
D28: Test Year | E28: 2013 | AA28: Guelph Hydro Electric Systems Inc.
AA29: Haldimand County Hydro Inc.
D30: Last Rebasing Year | E30: 2009 | AA30: Guelph Hydro Electric Systems Inc.
AA31: Halton Hills Hydro Inc.
B32: Notes | AA32: Hearst Power Distribution Co. Ltd.
AA33: Horizon Utilities Corporation
C34: Pale green cells represent input cells. | AA34: Hydro 2000 Inc.
AA35: Hydro Hawkesbury Inc.
C36: Pale blue cells represent drop-down lists. The applicant should select the appropriate item from the drop-down list. | AA36: Hydro One Brampton Networks Inc.
AA37: Hydro One Networks Inc.
C38: White cells contain fixed values, automatically generated values or formulae. | AA38: Hydro One Remote Communities Inc.
AA39: Hydro Ottawa Limited
AA40: Innisfil Hydro Dist. Systems Limited
AA41: Kashechewan Power Corporation
AA42: Kenora Hydro Electric Corporation Ltd.
AA43: Kingston Hydro Corporation
AA44: Kitchener-Wilmot Hydro Inc.
AA45: Lakefront Utilities Inc.
AA46: Lakeland Power Distribution Ltd.
AA47: London Hydro Inc.
AA48: Midland Power Utility Corporation
AA49: Milton Hydro Distribution Inc.
AA50: Newmarket – Tay Power Distribution Ltd.
AA51: Niagara Peninsula Energy Inc.
AA52: Niagara-on-the-Lake Hydro Inc.
AA53: Norfolk Power Distribution Ltd.
AA54: North Bay Hydro Distribution Limited
AA55: Northern Ontario Wires Inc.
AA56: Oakville Hydro Distribution Inc.
AA57: Orangeville Hydro Limited
AA58: Orillia Power Distribution Corp.
AA59: Oshawa PUC Networks Inc.
AA60: Ottawa River Power Corporation
AA61: Parry Sound Power Corporation
AA62: Peterborough Distribution Inc.
AA63: PowerStream Inc.
AA64: PUC Distribution Inc.
AA65: Renfrew Hydro Inc.
AA66: Rideau St. Lawrence Distribution Inc.
AA67: St. Thomas Energy Inc.
AA68: Sioux Lookout Hydro Inc.
AA69: Thunder Bay Hydro Electricity Distribution
AA70: Tillsonburg Hydro Inc.
AA71: Toronto Hydro-Electric System Limited
AA72: Veridian Connections Inc.
AA73: Wasaga Distribution Inc.
AA74: Waterloo North Hydro Inc.
AA75: Welland Hydro Electric System Corp.
AA76: Wellington North Power Inc.
AA77: West Coast Huron Energy Inc.
AA78: Westario Power Inc.
AA79: Whitby Hydro Electric Corporation
AA80: Woodstock Hydro Services Inc.

Sheet Index
A15: 1 | B15: LDC Information Sheet | E15: 19 | F15: Appendix 2-H OM&A Detailed Analysis
A16: 2 | B16: Index | E16: 20 | F16: Appendix 2-I OM&A Summary Analysis
A17: 3 | B17: Appendix 2-A Capital Projects | E17: 21 | F17: Appendix 2-J OM&A Cost Drivers
A18: 4 | B18: Appendix 2-B Fixed Asset Continuity | E18: 22 | F18: Appendix 2-K Employee Costs
A19: 5 | B19: Appendix 2-CA CGAAP Depreciation Expense 2011 | E19: 23 | F19: Appendix 2-L OM&A per Cust FTEE
A20: 6 | B20: Appendix 2-CB MIFRS Depreciation Expense 2011 | E20: 24 | F20: Appendix 2-M Regulatory Costs
A21: 7 | B21: Appendix 2-CC MIFRS Depreciation Expense 2012 | E21: 25 | F21: Appendix 2-N Corp Cost Allocation
A22: 8 | B22: Appendix 2-CD MIFRS Depreciation Expense 2013 | E22: 26 | F22: Appendix 2-OA Capital Structure and Cost of Capital
A23: 9 | B23: Appendix 2-CE CGAAP Depreciation Expense 2011 | E23: 27 | F23: Appendix 2-OB Debt Instruments
A24: 10 | B24: Appendix 2-CF CGAAP Depreciation Expense 2012 | E24: 28 | F24: Appendix 2-P Cost Allocation
A25: 11 | B25: Appendix 2-CG MIFRS Depreciation Expense 2012 | E25: 29 | F25: Appendix 2-Q Cost of Service Embedded Distributor
A26: 12 | B26: Appendix 2-CH MIFRS Depreciation Expense 2013 | E26: 30 | F26: Appendix 2-R Loss Factors
A27: 13 | B27: Appendix 2-CI Alternative Accounting Standards Depreciation Expense | E27: 31 | F27: Appendix 2-S Stranded Meters
A28: 14 | B28: Appendix 2-D Overhead | E28: 32 | F28: Appendix 2-T 1592 Tax Variance
A29: 15 | B29: Appendix 2-EA PP&E Deferral Account - 2012 IFRS Adopters | E29: 33 | F29: Appendix 2-U IFRS Transition Costs
A30: 16 | B30: Appendix 2-EB PP&E Deferral Account - 2013 IFRS Adopters | E30: 34 | F30: Appendix 2-V Rev Reconciliation
A31: 17 | B31: Appendix 2-F Other Operating Revenue | E31: 35 | F31: Appendix 2-W Bill Impacts
A32: 18 | B32: Appendix 2-G Detailed OM&A Expenses | E32: 36 | F32: Appendix 2-X CoS Flowchart

Sheet App.2-A_Capital Projects
G1: File Number: | H1: ='LDC Info'!$E$18 -> EB-2012-0167
G2: Exhibit:
G3: Tab:
G4: Schedule:
G5: Page:
G7: Date: | H7: 2012-11-08
A9: Appendix 2-A
A10: Capital Projects Table
A13: Projects | B13: =IF(ISBLANK('LDC Info'!E26), "Year 1", 'LDC Info'!E26-5) -> 2007 | C13: =IF(ISBLANK('LDC Info'!E26), "Year 2", 'LDC Info'!E26-4) -> 2008 | D13: =IF(ISBLANK('LDC Info'!E26), "Year 3", 'LDC Info'!E26-3) -> 2009 | E13: =IF(ISBLANK('LDC Info'!E26), "Year 4", 'LDC Info'!E26-2) -> 2010 | F13: =IF(ISBLANK('LDC Info'!E26), "Year 5", 'LDC Info'!E26-1) -> 2011 | G13: ='LDC Info'!E26 & " Bridge Year" -> 2012 Bridge Year | H13: ='LDC Info'!E28 & " Test Year" -> 2013 Test Year
A14: Reporting Basis | B14: CGAAP | C14: CGAAP | D14: CGAAP | E14: CGAAP | F14: CGAAP | G14: CGAAP | H14: MCGAAP
A15: Line Replacements
A16: Project 1: Frankwood Ave. Area Rebuild | B16: 680799.55
A17: Project 6: Ridgecrest Rd. 11 Pole Rebuild | B17: 115475.43
A18: Project 8: MNTCE - 600 Syndicate St. | B18: 86917.27
A19: Project 25: 10M6 Kam River Crossing | D19: 430837
A20: Project 27: Mary Ford Area Conversion/Rebuild | D20: 202409.17 | E20: 253999.09
A21: Project 29: 2M2 & 2M3 Line Rebuild | D21: 140289.77
A22: Project 30: Hyde-Murray Area Rebuild | D22: 138713.44 | E22: 1067482.33
A23: Project 38: Centre-Francis Area Rebuild | E23: 616840.13 | F23: 1284819.83
A24: Sub-Total | B24: =SUM(B16:B23) -> 883192.25 | C24: 0 | D24: 912249.38 | E24: 1938321.55 | F24: 1284819.83 | G24: 0 | H24: 0
A25: Line Voltage Conversions
A26: Project 2: Tarbutt Street Area Rebuild | B26: 495242 | C26: 1062485.24
A27: Project 3: 4FS Conversion to 10M1 | B27: 473335.2
A28: Project 4: Joint Use Pole Grey Cr | B28: 170884.69
A29: Project 5: Hardisty St. Feeder Rebuild | B29: 166651.44
A30: Project 10: Hill Street Rebuild | C30: 1008692.24
A31: Project 11: Ray Boulevard Rebuild | C31: 595561.27
A32: Project 14: Winnipeg Ave Area Rebuild | C32: 429271.06 | D32: 1121305.69
A33: Project 15: Summit-Cornwall Area Rebuild | C33: 224262.05 | D33: 657884.41
A34: Project 16: County Fair Plaza Rebuild | C34: 168779.95
A35: Project 23: Ontario Banning Conversion | D35: 1254942.59
A36: Project 26: Mary Mountdale Area Rebuild | D36: 306061.49 | E36: 353764.53
A37: Project 36: Lily-Donald Area Conversion/Rebuild | E37: 940594.76
A38: Project 44: Montreal-Mountdale Area Rebuild | E38: 149495.39 | F38: 547092.05 | G38: 86907
A39: Project 45; Brock Syndicate Area Conversion | E39: 117544.45 | F39: 1284458.56
A40: Project 47: Brown-Isabella Conversion Rebuild | E40: 85158.35 | F40: 927305.25 | G40: 1616456
A41: Project 51: Brock-Ford area Rebuild | F41: 796268.12 | G41: 1440500
A42: Project 62: Ogden-McMurray Area Conversion Rebuild | G42: 817776 | H42: 1721369
A43: Project 63: Georgina-Francis Area Rebuild | G43: 1096922
A44: Project 69: Durban-Brodie Rebuild | H44: 803871
A45: Project 70: Mary-Heath | H45: 1374452
A46: Proejct 71: Brunswick-Legion | H46: 724206
A47: Project 72: Huron-Otto Pole Set Only | H47: 518443
A48: Project 73: Elliot/Leslie | H48: 960532
A49: Project 75: Black Bay/ Dewe - Design Contract | H49: 89342
A50: Sub-Total | B50: =SUM(B26:B47) -> 1306113.33 | C50: 3489051.81 | D50: 3340194.18 | E50: 1646557.48 | F50: 3555123.98 | G50: 5058561 | H50: =SUM(H26:H49) -> 6192215
A51: System Improvements
A52: Project 7: Harbourview Terrace Vault Improvements | B52: 93059.01
A53: Project 24: County Park U/G Cable Trunck | D53: 695014.9
A54: Project 37: County Fair Park U/G Line Rebuild-Phase 2 | E54: 675097.34
A55: Project 52: College Park U/G Rebuild Phase 1 | F55: 687438.76
A56: Proejct 74: 10M3 to 17M1 Connection @ Main St. | H56: 141119
A57: Sub-Total | B57: =SUM(B52:B56) -> 93059.01 | C57: 0 | D57: 695014.9 | E57: 675097.34 | F57: 687438.76 | G57: 0 | H57: 141119
A58: Customer Driven - Expansion
A59: Project 17: Wayne Toyota - New Pole & U/G Cable | C59: 119323.19
A60: Project 19: Burwood Rd. Pole Relocation | C60: 86714.28
A61: Project 31: Landfill Gas Utlization Plant - Pole Line | D61: 126830.49
A62: Project 32: Hutton Park Drive Line Extension & Service | D62: 121468.38
A63: Project 42: Skypower 7MV Airport Solar Project | E63: 172601.26 | F63: 290761.84 | G63: 87007
A64: Project 43: Skypower8.9MW Fort William First Nation Solar Project | E64: 172499.04 | G64: 148680
A65: Project 46: 777 Memorial Ave - Walmart | E65: 97873.93
A66: Project 66: New Courthouse - Miles @ Brodie | G66: 183079
A67: Sub-Total | B67: =SUM(B59:B66) -> 0 | C67: 206037.47 | D67: 248298.87 | E67: 442974.23 | F67: 290761.84 | G67: 418766 | H67: 0
A68: Relocations
A69: Project 18: Belrose Rd. Bridge Rebuild | C69: 102216.68
A70: Project 39:Miles Street Between Archibald and Brodie | E70: 190979.53
A71: Project 40: Arthur Street between may And Brodie | E71: 188057.59
A72: Project 65: Golf Links RD Widening - City of Thunder Bay | F72: 423338.13 | G72: 321846
A73: Project 55: Hwy 11-17 @ Balsam - Pole Relocations | F73: 254204.61
A74: Project 56: HWY 11-17 @ Balsam Pole Relocations | F74: 207428.67
A75: Project 57: P.A. Landing Developments New Cable to V1 | F75: 104800.01
A76: Sub-Total | B76: =SUM(B69:B75) -> 0 | C76: 102216.68 | D76: 0 | E76: 379037.12 | F76: 989771.42 | G76: 321846 | H76: 0
A77: Services - General
A78: Project 28: John St. Landfill Co- Generator Connection | D78: 149949.87 | E78: 269790.7
A79: Sub-Total | B79: =SUM(B78:B78) -> 0 | C79: 0 | D79: 149949.87 | E79: 269790.7 | F79: 0 | G79: 0 | H79: 0
A80: Small Unplanned Replacements
A81: Project 33: Veradale St. Between 25th SD RD Gordonvale | D81: 92329.11
A82: Project 41: Phase 2 - 2M2/2M3 Line Rebuild | E82: 173033.12
A83: Project 58: Fort William TS Feeder Cable Replacement | F83: 104744.3 | G83: 225602
A84: Project 59: Mayflower Drive & SunflowerStreet Conversion | F84: 102436.17
A85: Sub-Total | B85: =SUM(B81:B84) -> 0 | C85: 0 | D85: 92329.11 | E85: 173033.12 | F85: 207180.47 | G85: 225602 | H85: 0
A86: Subdivision
A87: Project 54: Prince Arthur's Landing | F87: 297421.35
A88: Sub-Total | B88: =SUM(B87:B87) -> 0 | C88: 0 | D88: 0 | E88: 0 | F88: 297421.35 | G88: 0 | H88: 0
A89: U/G Installations/Replacements
A90: Project 64: Partial Discharge Cable Testing | G90: 206061
A91: Sub-Total | B91: =SUM(B90:B90) -> 0 | C91: 0 | D91: 0 | E91: 0 | F91: 0 | G91: 206061 | H91: 0
A92: IT
A93: Project 22: i5 Upgrade | C93: 114032.1
A94: Project 68: Power 7 Upgrade | G94: 117269.02
A95: Sub-Total | B95: =SUM(B93:B94) -> 0 | C95: 114032.1 | D95: 0 | E95: 0 | F95: 0 | G95: 117269.02 | H95: 0
A96: Vehicles
A97: Project 9: Replace Vehicle #44 - Vehicle #53 - 2007 International | B97: 357294.24
A98: Project 20: Replace Vehicle #46 - Vehicle #76 2008 F/Liner Cube Van | C98: 130176.72
A99: Project 21: Vehicle #77 2008 Inter Single Bucket | C99: 214704
A100: Project 34: Replace Vehicle #14 - Vehicle #54 2009Int Derrick Digger | D100: 250244.64
A101: Project 35: Replace Vehicle #47 - Vehicle#87 2009 Int Single Bucket | D101: 207371.88
A102: Project 48: Vehicle #60 2010 Inter Double Bucket | E102: 358990.92
A103: Project 49: Replace Vehicle 52 - Vehicle #61 2010 Inter Double Bucket | E103: 337205.49
A104: Project 50: Vehicle #97 2010 Ford F550XL Single Bucket | E104: 101810.9
A105: Project 60: Replace Vehicle 911 - Vehicle #942 Backhoe/Loader | F105: 132159
A106: Project 61: Vehicle #82 2012 Inter 40S Altec | F106: 139681
A107: Project 67: Replace Vehicle # 9 - Single Bucket Truck | G107: 120000
A108: Project 76; RBD Truck Purchase | H108: 220345
A109: Project 77: Replace Vehicle #87 - Single Bucket Truck Purchase | H109: 230000
A110: Project 78: Replace Vehicle #10 - Double Bucket Truck Purchase | H110: 375000
A111: Sub-Total | B111: =SUM(B97:B110) -> 357294.24 | C111: 344880.72 | D111: 457616.52 | E111: 798007.31 | F111: 271840 | G111: 120000 | H111: 825345
A112: Buildings
A113: Project 79: Garage | H113: 3303500
A114: Sub-Total | B114: =SUM(B113:B113) -> 0 | C114: 0 | D114: 0 | E114: 0 | F114: 0 | G114: 0 | H114: 3303500
A115: Reclosers
A116: Project 80: GEA Plan - FIT Renewable Generation - Reclosers | G116: 207587 | H116: 187893
A117: Sub-Total | B117: =SUM(B116:B116) -> 0 | C117: 0 | D117: 0 | E117: 0 | F117: 0 | G117: 207587 | H117: 187893
A118: Miscellaneous | B118: 2549447 | C118: 2701258.93 | D118: 1772656.67 | E118: 1254373.15 | F118: 648157.62 | G118: 2160921.94 | H118: 1482119.682
A119: Total | B119: =SUMPRODUCT(--($A15:$A118="Sub-Total"), B$15:B$118)+B118 -> 5189105.83 | C119: 6957477.71 | D119: 7668309.5 | E119: 7577192 | F119: 8232515.27 | G119: 8836613.96 | H119: 12132191.68
A122: Notes:
A124: 1 Please provide a breakdown of the major components of each capital project. Please ensure that all projects below the materiality threshold are included in the miscellaneous line. Add more projects as required.
A126: 2 Amounts should be reported on a MIFRS basis for the adoption year and any subsequent years, only.

Sheet App.2-B_FA Continuity_2009_OEB
M1: File Number: | N1: ='LDC Info'!$E$18 -> EB-2012-0167
M2: Exhibit:
M3: Tab:
M4: Schedule:
M5: Page:
M7: Date: | N7: 2012-11-08
A9: Appendix 2-B
A10: Fixed Asset Continuity Schedule
F12: Year | G12: 2009 OEB Approved
E14: Cost | K14: Accumulated Depreciation
A15: CCA Class | B15: OEB | C15: Description | D15: Depreciation Rate | E15: Opening Balance | F15: Additions | G15: Disposals | H15: Closing Balance | J15: Opening Balance | K15: Additions | L15: Disposals | M15: Closing Balance | N15: Net Book Value
A16: 12 | B16: 1611 | C16: Computer Software (Formally known as Account 1925) | E16: 737646.38 | F16: 37850 | G16: 0 | H16: =E16+F16+G16 -> 775496.38 | J16: -618198.26 | K16: -107068.66 | L16: 0 | M16: =J16+K16+L16 -> -725266.92 | N16: =H16+M16 -> 50229.46
A17: CEC | B17: 1612 | C17: Land Rights (Formally known as Account 1906) | H17: =E17+F17+G17 -> 0 | M17: =J17+K17+L17 -> 0 | N17: =H17+M17 -> 0
A18: N/A | B18: 1805 | C18: Land | E18: 133037.5 | H18: =E18+F18+G18 -> 133037.5 | M18: =J18+K18+L18 -> 0 | N18: =H18+M18 -> 133037.5
A19: 47 | B19: 1808 | C19: Buildings | E19: 3934354.5 | F19: 95000 | H19: =E19+F19+G19 -> 4029354.5 | J19: -1581888.53 | K19: -80294 | M19: =J19+K19+L19 -> -1662182.53 | N19: =H19+M19 -> 2367171.97
A20: 13 | B20: 1810 | C20: Leasehold Improvements | H20: 0 | M20: 0 | N20: 0
A21: 47 | B21: 1815 | C21: Transformer Station Equipment >50 kV | H21: 0 | M21: 0 | N21: 0
A22: 47 | B22: 1820 | C22: Distribution Station Equipment <50 kV | E22: 8099698.35 | H22: 8099698.35 | J22: -5532710.86 | K22: -311252.86 | M22: -5843963.72 | N22: 2255734.63
A23: 47 | B23: 1825 | C23: Storage Battery Equipment | H23: 0 | M23: 0 | N23: 0
A24: 47 | B24: 1830 | C24: Poles, Towers & Fixtures | E24: 21332647.5 | F24: 1265612.93 | H24: 22598260.43 | J24: -9614315.45 | K24: -732604.79 | M24: -10346920.24 | N24: 12251340.19
A25: 47 | B25: 1835 | C25: Overhead Conductors & Devices | E25: 24417046.11 | F25: 1668887.1 | H25: =E25+F25+G25 -> 26085933.21 | J25: -11477975.79 | K25: -845365.19 | M25: -12323340.98 | N25: 13762592.23
A26: 47 | B26: 1840 | C26: Underground Conduit | E26: 11847751.16 | F26: 329607 | H26: 12177358.16 | J26: -6189113.34 | K26: -395163.48 | M26: -6584276.82 | N26: 5593081.34
A27: 47 | B27: 1845 | C27: Underground Conductors & Devices | E27: 15119656.8 | F27: 1066480.99 | H27: =E27+F27+G27 -> 16186137.79 | J27: -7704691.58 | K27: -525809.03 | M27: -8230500.61 | N27: 7955637.18
A28: 47 | B28: 1850 | C28: Line Transformers | E28: 23945047.51 | F28: 1144752.81 | H28: 25089800.32 | J28: -13552586.77 | K28: -917848.26 | M28: -14470435.03 | N28: 10619365.29
A29: 47 | B29: 1855 | C29: Services (Overhead & Underground) | E29: 17790622.31 | F29: 820880.15 | H29: 18611502.46 | J29: -9097432.33 | K29: -603550.35 | M29: -9700982.68 | N29: 8910519.78
A30: 47 | B30: 1860 | C30: Meters | E30: 5980066.67 | F30: 47194 | H30: 6027260.67 | J30: -3071462.07 | K30: -222750.47 | M30: -3294212.54 | N30: 2733048.13
A31: 47 | B31: 1860 | C31: Meters (Smart Meters) | H31: 0 | M31: 0 | N31: 0
A32: N/A | B32: 1905 | C32: Land | H32: 0 | M32: 0 | N32: 0
A33: 47 | B33: 1908 | C33: Buildings & Fixtures | H33: 0 | M33: 0 | N33: 0
A34: 13 | B34: 1910 | C34: Leasehold Improvements | H34: 0 | M34: 0 | N34: 0
A35: 8 | B35: 1915 | C35: Office Furniture & Equipment (10 years) | E35: 1296737.89 | F35: 55050 | H35: 1351787.89 | J35: -1078594.18 | K35: -42680 | M35: -1121274.18 | N35: 230513.71
A36: 8 | B36: 1915 | C36: Office Furniture & Equipment (5 years) | H36: 0 | M36: 0 | N36: 0
A37: 10 | B37: 1920 | C37: Computer Equipment - Hardware | E37: 2734852.95 | F37: 77310 | H37: 2812162.95 | J37: -2607616.15 | K37: -73658.34 | M37: -2681274.49 | N37: 130888.46
A38: 45 | B38: 1920 | C38: Computer Equip.-Hardware(Post Mar. 22/04) | H38: 0 | M38: 0 | N38: 0
A39: 45.1 | B39: 1920 | C39: Computer Equip.-Hardware(Post Mar. 19/07) | G39: 0 | H39: 0 | L39: 0 | M39: 0 | N39: 0
A40: 10 | B40: 1930 | C40: Transportation Equipment | E40: 5166733.82 | F40: 693500 | G40: -164269.52 | H40: 5695964.3 | J40: -3956060.53 | K40: -340800 | L40: 164269.52 | M40: -4132591.01 | N40: 1563373.29
A41: 8 | B41: 1935 | C41: Stores Equipment | E41: 63417.16 | H41: 63417.16 | J41: -62835.45 | K41: -581.71 | M41: -63417.16 | N41: 0
A42: 8 | B42: 1940 | C42: Tools, Shop & Garage Equipment | E42: 2288349.28 | F42: 44300 | H42: 2332649.28 | J42: -2025970.01 | K42: -52984.8 | M42: -2078954.81 | N42: 253694.47
A43: 8 | B43: 1945 | C43: Measurement & Testing Equipment | E43: 215524.16 | F43: 6200 | H43: 221724.16 | J43: -52284.4 | K43: -26590.84 | M43: -78875.24 | N43: 142848.92
A44: 8 | B44: 1950 | C44: Power Operated Equipment | E44: 13583.39 | F44: 120000 | H44: 133583.39 | J44: -2550.36 | K44: -8830.8 | M44: -11381.16 | N44: 122202.23
A45: 8 | B45: 1955 | C45: Communications Equipment | E45: 163391.53 | H45: 163391.53 | J45: -161228.68 | K45: -2162.85 | M45: -163391.53 | N45: 0
A46: 8 | B46: 1955 | C46: Communication Equipment (Smart Meters) | H46: 0 | M46: 0 | N46: 0
A47: 8 | B47: 1960 | C47: Miscellaneous Equipment | H47: 0 | M47: 0 | N47: 0
A48: 47 | B48: 1975 | C48: Load Management Controls Utility Premises | H48: 0 | M48: 0 | N48: 0
A49: 47 | B49: 1980 | C49: System Supervisor Equipment | E49: 515151.7 | H49: 515151.7 | J49: -51613.37 | K49: -19038.35 | M49: -70651.72 | N49: 444499.98
A50: 47 | B50: 1985 | C50: Miscellaneous Fixed Assets | H50: 0 | M50: 0 | N50: 0
A51: 47 | B51: 1995 | C51: Contributions & Grants | E51: -8276024.46 | F51: -650000 | H51: -8926024.46 | J51: 1561900 | K51: 360000 | M51: 1921900 | N51: -7004124.46
A52: 47 | B52: 1996 | C52: Hydro One Current & Voltage Transformer | E52: 580665.31 | F52: 775207.52 | H52: =E52+F52+G52 -> 1355872.83 | J52: 0 | K52: -28475.71 | M52: =J52+K52+L52 -> -28475.71 | N52: 1327397.12
A53: WIP | C53: Work in Process | E53: 494000 | F53: 0 | H53: 494000 | J53: 0 | K53: 0 | M53: 0 | N53: =H53+M53 -> 494000
C55: Total | E55: =SUM(E16:E54) -> 138593957.5 | F55: =SUM(F16:F54) -> 7597832.5 | G55: -164269.52 | H55: 146027520.5 | J55: =SUM(J16:J54) -> -76877228.11 | K55: =SUM(K16:K54) -> -4977510.49 | L55: 164269.52 | M55: -81690469.08 | N55: 64337051.42
F57: Amortization allocation to other trial balance accounts & overheads | K57: 533765.79
K58: =+K55+K57 -> -4443744.7
H59: Less: Fully Allocated Depreciation
A60: 10 | C60: Transportation | H60: Transportation
A61: 8 | C61: Stores Equipment | H61: Stores Equipment
H62: Net Depreciation | K62: =K58-K60-K61 -> -4443744.7
J63: Stores Equipment
A64: Notes: | J64: Net Depreciation
A66: 1 | B66: Tables in the format outlined above covering all fixed asset accounts should be submitted for the Test Year, Bridge Year and all relevant historical years. At a minimum , the applicant must provide data for the earlier of: 1) all historical years back to its last rebasing; or 2) at least three years of historical actuals, in addition to Bridge Year and Test Year forecasts.
A69: 2 | B69: The "CCA Class" for fixed assets should agree with the CCA Class used for tax purposes in Tax Returns. Fixed Assets sub-components may be used where the underlying asset components are classified under multiple CCA Classes for tax purposes. If an applicant uses any different classes from those shown in the table, an explanation should be provided. (also see note 3 below).
A72: 3 | B72: The table may need to be customized for a utility's asset categories or for any new asset accounts announced or authorized by the Board.
A74: 4 | B74: The depreciation column (D) is not required as the relevant information will be provided in the following 2-C series of appendices.

Sheet App.2-B_FA Continuity_2009_Act
M1: File Number: | N1: ='LDC Info'!$E$18 -> EB-2012-0167
M2: Exhibit: | N2: 2
M3: Tab: | N3: 2
M4: Schedule: | N4: 1
M5: Page: | N5: 1
M7: Date: | N7: 2012-11-08
A9: Appendix 2-B
A10: Fixed Asset Continuity Schedule
A12: Table 2-2.1 - Fixed Asset Continuity Schedule | F12: Year | G12: 2009 Actual
E14: Cost | K14: Accumulated Depreciation
A15: CCA Class | B15: OEB | C15: Description | D15: Depreciation Rate | E15: Opening Balance | F15: Additions | G15: Disposals | H15: Closing Balance | J15: Opening Balance | K15: Additions | L15: Disposals | M15: Closing Balance | N15: Net Book Value
A16: 12 | B16: 1611 | C16: Computer Software (Formally known as Account 1925) | E16: 765366.46 | F16: 0 | G16: 0 | H16: =E16+F16+G16 -> 765366.46 | J16: -643150.57 | K16: -65006.07 | L16: 0 | M16: =J16+K16+L16 -> -708156.64 | N16: =H16+M16 -> 57209.82
A17: CEC | B17: 1612 | C17: Land Rights (Formally known as Account 1906) | H17: =E17+F17+G17 -> 0 | M17: =J17+K17+L17 -> 0 | N17: =H17+M17 -> 0
A18: N/A | B18: 1805 | C18: Land | E18: 133037.5 | H18: =E18+F18+G18 -> 133037.5 | M18: =J18+K18+L18 -> 0 | N18: =H18+M18 -> 133037.5
A19: 47 | B19: 1808 | C19: Buildings | E19: 3895054.5 | F19: 37793 | H19: =E19+F19+G19 -> 3932847.5 | J19: -1574491.37 | K19: -71842.31 | M19: =J19+K19+L19 -> -1646333.68 | N19: =H19+M19 -> 2286513.82
A20: 13 | B20: 1810 | C20: Leasehold Improvements | F20: 33.45 | H20: 33.45 | K20: -5.56 | M20: -5.56 | N20: =H20+M20 -> 27.89
A21: 47 | B21: 1815 | C21: Transformer Station Equipment >50 kV | H21: 0 | M21: 0 | N21: =H21+M21 -> 0
A22: 47 | B22: 1820 | C22: Distribution Station Equipment <50 kV | E22: 8099698.35 | H22: =E22+F22+G22 -> 8099698.35 | J22: -5199686.46 | K22: -168640.6 | L22: 0 | M22: -5368327.06 | N22: =H22+M22 -> 2731371.29
A23: 47 | B23: 1825 | C23: Storage Battery Equipment | H23: 0 | M23: 0 | N23: 0
A24: 47 | B24: 1830 | C24: Poles, Towers & Fixtures | E24: 22328416.98 | F24: 1861435.1 | H24: 24189852.08 | J24: -7775196.92 | K24: -742565.34 | L24: 8020.29 | M24: -8509741.97 | N24: =H24+M24 -> 15680110.11
A25: 47 | B25: 1835 | C25: Overhead Conductors & Devices | E25: 24469680.07 | F25: 1515689.03 | H25: 25985369.1 | J25: -11408993.84 | K25: -1085345.36 | L25: 11457 | M25: -12482882.2 | N25: 13502486.9
A26: 47 | B26: 1840 | C26: Underground Conduit | E26: 11697672.22 | F26: 615523.07 | H26: 12313195.29 | J26: -6473956.77 | K26: -370587.4 | M26: -6844544.17 | N26: 5468651.12
A27: 47 | B27: 1845 | C27: Underground Conductors & Devices | E27: 15121377.3 | F27: 838571.37 | H27: 15959948.67 | J27: -7633145.9 | K27: -441440.65 | M27: -8074586.55 | N27: 7885362.12
A28: 47 | B28: 1850 | C28: Line Transformers | E28: 23792356.2 | F28: 667916.32 | H28: 24460272.52 | J28: -13340345.56 | K28: -797793.64 | L28: 460588.59 | M28: -13677550.61 | N28: 10782721.91
A29: 47 | B29: 2320 | C29: ARO | E29: 512186 | G29: 0 | H29: 512186 | J29: -10833.3 | K29: -36124.86 | M29: -46958.16 | N29: 465227.84
A30: 47 | B30: 1855 | C30: Services (Overhead & Underground) | E30: 17652429.31 | F30: 1037325.62 | H30: 18689754.93 | J30: -11145591.05 | K30: -767043.75 | L30: 3437 | M30: -11909197.8 | N30: 6780557.13
A31: 47 | B31: 1860 | C31: Meters | E31: 5836494.51 | F31: 109210.64 | G31: -4936079.76 | H31: 1009625.39 | J31: -3029787.14 | K31: -437219.62 | L31: 2972778.74 | M31: -494228.02 | N31: 515397.37
A32: 47 | B32: 1860 | C32: Meters (Smart Meters) | H32: 0 | M32: 0 | N32: 0
A33: N/A | B33: 1905 | C33: Land | H33: 0 | M33: 0 | N33: 0
A34: 47 | B34: 1908 | C34: Buildings & Fixtures | H34: 0 | M34: 0 | N34: 0
A35: 13 | B35: 1910 | C35: Leasehold Improvements | H35: 0 | M35: 0 | N35: 0
A36: 8 | B36: 1915 | C36: Office Furniture & Equipment (10 years) | E36: 1248799.76 | F36: 30037.54 | H36: 1278837.3 | J36: -1073095.24 | K36: -36748.16 | M36: -1109843.4 | N36: 168993.9
A37: 8 | B37: 1915 | C37: Office Furniture & Equipment (5 years) | H37: 0 | M37: 0 | N37: 0
A38: 10 | B38: 1920 | C38: Computer Equipment - Hardware | E38: 2596573.47 | F38: 78725.14 | H38: 2675298.61 | J38: -2446383.52 | K38: -82797.63 | M38: -2529181.15 | N38: 146117.46
A39: 45 | B39: 1920 | C39: Computer Equip.-Hardware(Post Mar. 22/04) | H39: 0 | M39: 0 | N39: 0
A40: 45.1 | B40: 1920 | C40: Computer Equip.-Hardware(Post Mar. 19/07) | F40: 0 | G40: 0 | H40: =E40+F40+G40 -> 0 | L40: 0 | M40: 0 | N40: 0
A41: 10 | B41: 1930 | C41: Transportation Equipment | E41: 5205580.75 | F41: 654591.56 | G41: -403228.92 | H41: =E41+F41+G41 -> 5456943.39 | J41: -3895934.13 | K41: -319448.28 | L41: 403228.92 | M41: -3812153.49 | N41: 1644789.9
A42: 8 | B42: 1935 | C42: Stores Equipment | E42: 63417.16 | H42: 63417.16 | J42: -62835.45 | M42: -62835.45 | N42: 581.71
A43: 8 | B43: 1940 | C43: Tools, Shop & Garage Equipment | E43: 2335062.41 | F43: 83471.36 | H43: 2418533.77 | J43: -2009400.2 | K43: -70171.26 | M43: -2079571.46 | N43: 338962.31
A44: 8 | B44: 1945 | C44: Measurement & Testing Equipment | E44: 221991.36 | H44: 221991.36 | J44: -66540.49 | K44: -22199.2 | M44: -88739.69 | N44: 133251.67
A45: 8 | B45: 1950 | C45: Power Operated Equipment | E45: 3583.39 | F45: 124233.57 | H45: 127816.96 | J45: -2908.68 | K45: -2428.92 | M45: -5337.6 | N45: 122479.36
A46: 8 | B46: 1955 | C46: Communications Equipment | E46: 163391.53 | H46: 163391.53 | J46: -160610.87 | K46: -796.45 | M46: -161407.32 | N46: 1984.21
A47: 8 | B47: 1955 | C47: Communication Equipment (Smart Meters) | H47: 0 | M47: 0 | N47: 0
A48: 8 | B48: 1960 | C48: Miscellaneous Equipment | H48: 0 | M48: 0 | N48: 0
A49: 47 | B49: 1975 | C49: Load Management Controls Utility Premises | H49: 0 | M49: 0 | N49: 0
A50: 47 | B50: 1980 | C50: System Supervisor Equipment | E50: 515151.7 | H50: 515151.7 | J50: -241522.8 | K50: -34343.4 | M50: -275866.2 | N50: 239285.5
A51: 47 | B51: 1985 | C51: Miscellaneous Fixed Assets | H51: 0 | M51: 0 | N51: 0
A52: 47 | B52: 1995 | C52: Contributions & Grants | E52: -9055928.29 | F52: -1188774.86 | H52: -10244703.15 | J52: 1561900 | K52: 367800 | M52: 1929700 | N52: -8315003.15
A53: 47 | B53: 1996 | C53: Hydro One Current & Voltage Transformer | E53: 548576 | F53: 345595 | H53: 894171 | M53: 0 | N53: 894171
A54: WIP | C54: Work in Process | E54: 962145 | F54: 314551 | H54: 1276696 | N54: 1276696
C56: Total | E56: =SUM(E16:E54) -> 139112113.6 | F56: =SUM(F16:F54) -> 7125927.91 | G56: -5339308.68 | H56: 140898732.9 | J56: =SUM(J16:J54) -> -76632510.26 | K56: =SUM(K16:K54) -> -5184748.46 | L56: 3859510.54 | M56: -77957748.18 | N56: =SUM(N16:N54) -> 62940984.69
A58: P:\Admin\Ontario Energy Board\Rate Design\2013\Cost Allocation 2013 from BB 07082012\[Revenue Requirement Model - 2013_TBHEDI v3.xls]FA Continuity 2009 | E58: ='[4]FA Continuity 2009'!$D$50 -> 139112113.6 | F58: ='[4]FA Continuity 2009'!$E$50 -> 7125927.91 | G58: ='[4]FA Continuity 2009'!$F$50*-1 -> -5339308.68 | H58: ='[4]FA Continuity 2009'!$G$50 -> 140898732.9 | J58: ='[4]FA Continuity 2009'!$I$50*-1 -> -76632510.26 | K58: ='[4]FA Continuity 2009'!$J$50*-1 -> -5184748.6 | L58: ='[4]FA Continuity 2009'!$K$50 -> 3859510.54 | M58: ='[4]FA Continuity 2009'!$L$50*-1 -> -77957748.32 | N58: ='[4]FA Continuity 2009'!$M$50 -> 62940984.55
C59: Number must be zero | E59: =SUM(E56-E58) -> -2.980232239e-08 | F59: =SUM(F56-F58) -> 0 | G59: =SUM(G56-G58) -> 0 | H59: =SUM(H56-H58) -> 0 | J59: =SUM(J56-J58) -> 0 | K59: =SUM(K56-K58) -> 0.1399999997 | L59: =SUM(L56-L58) -> 0 | M59: =SUM(M56-M58) -> 0.1400000006 | N59: =SUM(N56-N58) -> 0.1399999857
F61: Amortization allocation to other trial balance accounts & overheads | K61: =-'[4]FA Continuity 2009'!$J$52*-1 -> 474810.93
K62: =+K56+K61 -> -4709937.53
A63: 10 | C63: Transportation | H63: Less: Fully Allocated Depreciation
A64: 8 | C64: Stores Equipment | H64: Transportation
H65: Stores Equipment
H66: Net Depreciation | K66: =K62-K64-K65 -> -4709937.53
A67: Notes:
A69: 1 | B69: Tables in the format outlined above covering all fixed asset accounts should be submitted for the Test Year, Bridge Year and all relevant historical years. At a minimum , the applicant must provide data for the earlier of: 1) all historical years back to its last rebasing; or 2) at least three years of historical actuals, in addition to Bridge Year and Test Year forecasts.
A72: 2 | B72: The "CCA Class" for fixed assets should agree with the CCA Class used for tax purposes in Tax Returns. Fixed Assets sub-components may be used where the underlying asset components are classified under multiple CCA Classes for tax purposes. If an applicant uses any different classes from those shown in the table, an explanation should be provided. (also see note 3 below).
A75: 3 | B75: The table may need to be customized for a utility's asset categories or for any new asset accounts announced or authorized by the Board.
A77: 4 | B77: The depreciation column (D) is not required as the relevant information will be provided in the following 2-C series of appendices.

Sheet App.2-B_FA Continuity_2010
M1: File Number: | N1: ='LDC Info'!$E$18 -> EB-2012-0167
M2: Exhibit: | N2: 2
M3: Tab: | N3: 2
M4: Schedule: | N4: 1
M5: Page: | N5: 2
M7: Date: | N7: 2012-11-08
A9: Appendix 2-B
A10: Fixed Asset Continuity Schedule
A12: Table 2-2.2 - Fixed Asset Continuity Schedule | F12: Year | G12: 2010 Actual
E14: Cost | K14: Accumulated Depreciation
A15: CCA Class | B15: OEB | C15: Description | D15: Depreciation Rate | E15: Opening Balance | F15: Additions | G15: Disposals | H15: Closing Balance | J15: Opening Balance | K15: Additions | L15: Disposals | M15: Closing Balance | N15: Net Book Value
A16: 12 | B16: 1611 | C16: Computer Software (Formally known as Account 1925) | E16: 765366.46 | F16: 14145.71 | H16: =E16+F16+G16 -> 779512.17 | J16: -708156.64 | K16: -30321.02 | M16: =J16+K16+L16 -> -738477.66 | N16: =H16+M16 -> 41034.51
A17: CEC | B17: 1612 | C17: Land Rights (Formally known as Account 1906) | E17: 0 | H17: =E17+F17+G17 -> 0 | J17: 0 | M17: =J17+K17+L17 -> 0 | N17: =H17+M17 -> 0
A18: N/A | B18: 1805 | C18: Land | E18: 133037.5 | H18: =E18+F18+G18 -> 133037.5 | J18: 0 | M18: =J18+K18+L18 -> 0 | N18: =H18+M18 -> 133037.5
A19: 47 | B19: 1808 | C19: Buildings | E19: 3932847.5 | H19: =E19+F19+G19 -> 3932847.5 | J19: -1646333.68 | K19: -72044.22 | M19: =J19+K19+L19 -> -1718377.9 | N19: =H19+M19 -> 2214469.6
A20: 13 | B20: 1810 | C20: Leasehold Improvements | E20: 33.45 | H20: 33.45 | J20: -5.56 | K20: -16.73 | M20: -22.29 | N20: 11.16
A21: 47 | B21: 1815 | C21: Transformer Station Equipment >50 kV | E21: 0 | H21: 0 | J21: 0 | M21: 0 | N21: 0
A22: 47 | B22: 1820 | C22: Distribution Station Equipment <50 kV | E22: 8099698.35 | F22: 24343.2 | H22: 8124041.55 | J22: -5368327.06 | K22: -168820.39 | M22: -5537147.45 | N22: 2586894.1
A23: 47 | B23: 1825 | C23: Storage Battery Equipment | E23: 0 | H23: 0 | J23: 0 | M23: 0 | N23: 0
A24: 47 | B24: 1830 | C24: Poles, Towers & Fixtures | E24: 24189852.08 | F24: 2273733.48 | H24: 26463585.56 | J24: -8509741.97 | K24: -929376.2 | L24: 62095.41 | M24: -9377022.76 | N24: 17086562.8
A25: 47 | B25: 1835 | C25: Overhead Conductors & Devices | E25: 25985369.1 | F25: 1712841 | H25: 27698210.1 | J25: -12482882.2 | K25: -1143954.01 | L25: 88709 | M25: -13538127.21 | N25: 14160082.89
A26: 47 | B26: 1840 | C26: Underground Conduit | E26: 12313195.29 | F26: 374897.92 | H26: 12688093.21 | J26: -6844544.17 | K26: -370422.57 | M26: -7214966.74 | N26: 5473126.47
A27: 47 | B27: 1845 | C27: Underground Conductors & Devices | E27: 15959948.67 | F27: 1034322.18 | H27: 16994270.85 | J27: -8074586.55 | K27: -467616.47 | M27: -8542203.02 | N27: 8452067.83
A28: 47 | B28: 1850 | C28: Line Transformers | E28: 24460272.52 | F28: 1406560.34 | H28: 25866832.86 | J28: -13677550.61 | K28: -991351.1 | L28: 244206.53 | M28: -14424695.18 | N28: 11442137.68
A29: 47 | B29: 2320 | C29: ARO | E29: 512186 | G29: -350443 | H29: 161743 | J29: -46958.16 | K29: -40749.84 | M29: -87708 | N29: 74035
A30: 47 | B30: 1855 | C30: Services (Overhead & Underground) | E30: 18689754.93 | F30: 829683.03 | H30: 19519437.96 | J30: -11909197.8 | K30: -810802.86 | L30: 26613 | M30: -12693387.66 | N30: 6826050.3
A31: 47 | B31: 1860 | C31: Meters | E31: 1009625.39 | F31: 67771.01 | H31: 1077396.4 | J31: -494228.02 | K31: -50588.08 | L31: -198254.03 | M31: -743070.13 | N31: 334326.27
A32: 47 | B32: 1860 | C32: Meters (Smart Meters) | H32: 0 | J32: 0 | M32: 0 | N32: 0
A33: N/A | B33: 1905 | C33: Land | H33: 0 | J33: 0 | M33: 0 | N33: 0
A34: 47 | B34: 1908 | C34: Buildings & Fixtures | H34: 0 | J34: 0 | M34: 0 | N34: 0
A35: 13 | B35: 1910 | C35: Leasehold Improvements | H35: 0 | J35: 0 | M35: 0 | N35: 0
A36: 8 | B36: 1915 | C36: Office Furniture & Equipment (10 years) | E36: 1278837.3 | F36: 65653.16 | H36: 1344490.46 | J36: -1109843.4 | K36: -35480.58 | M36: -1145323.98 | N36: 199166.48
A37: 8 | B37: 1915 | C37: Office Furniture & Equipment (5 years) | E37: 0 | H37: 0 | J37: 0 | M37: 0 | N37: 0
A38: 10 | B38: 1920 | C38: Computer Equipment - Hardware | E38: 2675298.61 | F38: 58136.78 | G38: -35110.67 | H38: 2698324.72 | J38: -2529181.15 | K38: -61322.19 | L38: 35110.66 | M38: -2555392.68 | N38: 142932.04
A39: 45 | B39: 1920 | C39: Computer Equip.-Hardware(Post Mar. 22/04) | E39: 0 | H39: 0 | J39: 0 | M39: 0 | N39: 0
A40: 45.1 | B40: 1920 | C40: Computer Equip.-Hardware(Post Mar. 19/07) | E40: 0 | H40: 0 | J40: 0 | M40: 0 | N40: 0
A41: 10 | B41: 1930 | C41: Transportation Equipment | E41: 5456943.39 | F41: 762485.31 | H41: 6219428.7 | J41: -3812153.49 | K41: -379198.07 | M41: -4191351.56 | N41: 2028077.14
A42: 8 | B42: 1935 | C42: Stores Equipment | E42: 63417.16 | H42: 63417.16 | J42: -62835.45 | M42: -62835.45 | N42: 581.71
A43: 8 | B43: 1940 | C43: Tools, Shop & Garage Equipment | E43: 2418533.77 | F43: 23204.09 | H43: 2441737.86 | J43: -2079571.46 | K43: -67189.85 | M43: -2146761.31 | N43: 294976.55
A44: 8 | B44: 1945 | C44: Measurement & Testing Equipment | E44: 221991.36 | F44: 34833.42 | H44: 256824.78 | J44: -88739.69 | K44: -21965.03 | M44: -110704.72 | N44: 146120.06
A45: 8 | B45: 1950 | C45: Power Operated Equipment | E45: 127816.96 | F45: 66805 | H45: 194621.96 | J45: -5337.6 | K45: -16007.54 | M45: -21345.14 | N45: 173276.82
A46: 8 | B46: 1955 | C46: Communications Equipment | E46: 163391.53 | F46: 23141.29 | H46: 186532.82 | J46: -161407.32 | K46: -1548.77 | M46: -162956.09 | N46: 23576.73
A47: 8 | B47: 1955 | C47: Communication Equipment (Smart Meters) | E47: 0 | H47: 0 | J47: 0 | M47: 0 | N47: 0
A48: 8 | B48: 1960 | C48: Miscellaneous Equipment | E48: 0 | H48: 0 | J48: 0 | M48: 0 | N48: 0
A49: 47 | B49: 1975 | C49: Load Management Controls Utility Premises | E49: 0 | H49: 0 | J49: 0 | M49: 0 | N49: 0
A50: 47 | B50: 1980 | C50: System Supervisor Equipment | E50: 515151.7 | H50: 515151.7 | J50: -275866.2 | K50: -34343.4 | M50: -310209.6 | N50: 204942.1
A51: 47 | B51: 1985 | C51: Miscellaneous Fixed Assets | E51: 0 | H51: 0 | J51: 0 | M51: 0 | N51: 0
A52: 47 | B52: 1995 | C52: Contributions & Grants | E52: -10244703.15 | F52: -2499648.62 | H52: -12744351.77 | J52: 1929700 | K52: 509632 | M52: 2439332 | N52: -10305019.77
A53: 47 | B53: 1996 | C53: Hydro One Current & Voltage Transformer | E53: 894171 | F53: 378150 | H53: 1272321 | J53: 0 | K53: -35240 | M53: -35240 | N53: 1237081
A54: WIP | C54: Work in Process | E54: 1276696 | F54: 481362 | H54: 1758058 | J54: 0 | K54: 0 | N54: 1758058
J55: 0
C56: Total | E56: =SUM(E16:E54) -> 140898732.9 | F56: =SUM(F16:F54) -> 7132420.3 | G56: -385553.67 | H56: 147645599.5 | J56: =SUM(J16:J54) -> -77957748.18 | K56: =SUM(K16:K54) -> -5218726.92 | L56: 258480.57 | M56: -82917994.53 | N56: 64727604.97
A58: P:\Admin\Ontario Energy Board\Rate Design\2013\Cost Allocation 2013 from BB 07082012\[Revenue Requirement Model - 2013_TBHEDI v3.xls]FA Continuity 2010 | E58: ='[4]FA Continuity 2010'!$D$50 -> 140898732.9 | F58: ='[4]FA Continuity 2010'!$E$50 -> 7132420.3 | G58: ='[4]FA Continuity 2010'!$F$50*-1 -> -385553.68 | H58: ='[4]FA Continuity 2010'!$G$50 -> 147645599.5 | J58: ='[4]FA Continuity 2010'!$I$50*-1 -> -77957748.32 | K58: ='[4]FA Continuity 2010'!$J$50*-1 -> -5218726.92 | L58: ='[4]FA Continuity 2010'!$K$50 -> 258480.57 | M58: ='[4]FA Continuity 2010'!$L$50*-1 -> -82917994.67 | N58: ='[4]FA Continuity 2010'!$M$50 -> 64727604.82
C59: Number must be zero | E59: =SUM(E56-E58) -> 0 | F59: =SUM(F56-F58) -> 0 | G59: =SUM(G56-G58) -> 0.01000000001 | H59: =SUM(H56-H58) -> 0.01000002027 | J59: =SUM(J56-J58) -> 0.1400000006 | K59: =SUM(K56-K58) -> -1.862645149e-09 | L59: =SUM(L56-L58) -> 0 | M59: =SUM(M56-M58) -> 0.1400000155 | N59: =SUM(N56-N58) -> 0.150000006
F60: Amortization allocation to other trial balance accounts & overheads | K60: 535492
K61: =+K56+K60 -> -4683234.92
A63: 10 | C63: Transportation | I63: Less: Fully Allocated Depreciation
A64: 8 | C64: Stores Equipment | I64: Transportation
I65: Stores Equipment
I66: Net Depreciation | K66: =K61-K64-K65 -> -4683234.92
A67: Notes:
A69: 1 | B69: Tables in the format outlined above covering all fixed asset accounts should be submitted for the Test Year, Bridge Year and all relevant historical years. At a minimum , the applicant must provide data for the earlier of: 1) all historical years back to its last rebasing; or 2) at least three years of historical actuals, in addition to Bridge Year and Test Year forecasts.
A72: 2 | B72: The "CCA Class" for fixed assets should agree with the CCA Class used for tax purposes in Tax Returns. Fixed Assets sub-components may be used where the underlying asset components are classified under multiple CCA Classes for tax purposes. If an applicant uses any different classes from those shown in the table, an explanation should be provided. (also see note 3 below).
A75: 3 | B75: The table may need to be customized for a utility's asset categories or for any new asset accounts announced or authorized by the Board.
A77: 4 | B77: The depreciation column (D) is not required as the relevant information will be provided in the following 2-C series of appendices.

Sheet App.2-B_FA Continuity_2011
M1: File Number: | N1: ='LDC Info'!$E$18 -> EB-2012-0167
M2: Exhibit: | N2: 2
M3: Tab: | N3: 2
M4: Schedule: | N4: 1
M5: Page: | N5: 3
M7: Date: | N7: 2012-11-08
A9: Appendix 2-B
A10: Fixed Asset Continuity Schedule
A12: Table 2-2.3 - Fixed Asset Continuity Schedule | F12: Year | G12: 2011 Actual
E14: Cost | K14: Accumulated Depreciation
A15: CCA Class | B15: OEB | C15: Description | D15: Depreciation Rate | E15: Opening Balance | F15: Additions | G15: Disposals | H15: Closing Balance | J15: Opening Balance | K15: Additions | L15: Disposals | M15: Closing Balance | N15: Net Book Value
A16: 12 | B16: 1611 | C16: Computer Software (Formally known as Account 1925) | E16: 779512.17 | F16: 40316.33 | H16: =E16+F16+G16 -> 819828.5 | J16: -738477.66 | K16: -20824.42 | M16: =J16+K16+L16 -> -759302.08 | N16: =H16+M16 -> 60526.42
A17: CEC | B17: 1612 | C17: Land Rights (Formally known as Account 1906) | E17: 0 | H17: =E17+F17+G17 -> 0 | J17: 0 | M17: =J17+K17+L17 -> 0 | N17: =H17+M17 -> 0
A18: N/A | B18: 1805 | C18: Land | E18: 133037.5 | H18: =E18+F18+G18 -> 133037.5 | J18: 0 | M18: =J18+K18+L18 -> 0 | N18: =H18+M18 -> 133037.5
A19: 47 | B19: 1808 | C19: Buildings | E19: 3932847.5 | H19: =E19+F19+G19 -> 3932847.5 | J19: -1718377.9 | K19: -72044.18 | M19: =J19+K19+L19 -> -1790422.08 | N19: =H19+M19 -> 2142425.42
A20: 13 | B20: 1810 | C20: Leasehold Improvements | E20: 33.45 | F20: 2473.1 | H20: 2506.55 | J20: -22.29 | K20: -423.36 | M20: -445.65 | N20: 2060.9
A21: 47 | B21: 1815 | C21: Transformer Station Equipment >50 kV | E21: 0 | H21: 0 | J21: 0 | M21: 0 | N21: 0
A22: 47 | B22: 1820 | C22: Distribution Station Equipment <50 kV | E22: 8124041.55 | H22: 8124041.55 | J22: -5537147.45 | K22: -169361.1 | M22: -5706508.55 | N22: 2417533
A23: 47 | B23: 1825 | C23: Storage Battery Equipment | E23: 0 | H23: 0 | J23: 0 | M23: 0 | N23: 0
A24: 47 | B24: 1830 | C24: Poles, Towers & Fixtures | E24: 26463585.56 | F24: 2682500.13 | H24: 29146085.69 | J24: -9377022.76 | K24: -995307.87 | L24: 49393.15 | M24: -10322937.48 | N24: 18823148.21
A25: 47 | B25: 1835 | C25: Overhead Conductors & Devices | E25: 27698210.1 | F25: 2137303.69 | H25: 29835513.79 | J25: -13538127.21 | K25: -1203745.98 | L25: 70561 | M25: -14671312.19 | N25: 15164201.6
A26: 47 | B26: 1840 | C26: Underground Conduit | E26: 12688093.21 | F26: 926861.65 | H26: 13614954.86 | J26: -7214966.74 | K26: -410767.8 | M26: -7625734.54 | N26: 5989220.32
A27: 47 | B27: 1845 | C27: Underground Conductors & Devices | E27: 16994270.85 | F27: 925863.56 | H27: 17920134.41 | J27: -8542203.02 | K27: -464959.01 | M27: -9007162.03 | N27: 8912972.38
A28: 47 | B28: 1850 | C28: Line Transformers | E28: 25866832.86 | F28: 1063799.19 | H28: 26930632.05 | J28: -14424695.18 | K28: -1031084.08 | L28: 517554.46 | M28: -14938224.8 | N28: 11992407.25
A29: 47 | B29: 2320 | C29: ARO | E29: 161743 | H29: 161743 | J29: -87708 | K29: 17794.56 | M29: -69913.44 | N29: 91829.56
A30: 47 | B30: 1855 | C30: Services (Overhead & Underground) | E30: 19519437.96 | F30: 705597.21 | H30: 20225035.17 | J30: -12693387.66 | K30: -826083.28 | L30: 21168 | M30: -13498302.94 | N30: 6726732.23
A31: 47 | B31: 1860 | C31: Meters | E31: 1077396.4 | F31: 100419.73 | H31: 1177816.13 | J31: -743070.13 | K31: -86525.85 | L31: 28121.07 | M31: -801474.91 | N31: 376341.22
A32: 47 | B32: 1860 | C32: Meters (Smart Meters) | H32: 0 | M32: 0 | N32: 0
A33: N/A | B33: 1905 | C33: Land | H33: 0 | M33: 0 | N33: 0
A34: 47 | B34: 1908 | C34: Buildings & Fixtures | H34: 0 | M34: 0 | N34: 0
A35: 13 | B35: 1910 | C35: Leasehold Improvements | H35: 0 | M35: 0 | N35: 0
A36: 8 | B36: 1915 | C36: Office Furniture & Equipment (10 years) | E36: 1344490.46 | F36: 84764.28 | H36: 1429254.74 | J36: -1145323.98 | K36: -38918.14 | M36: -1184242.12 | N36: 245012.62
A37: 8 | B37: 1915 | C37: Office Furniture & Equipment (5 years) | H37: 0 | M37: 0 | N37: 0
A38: 10 | B38: 1920 | C38: Computer Equipment - Hardware | E38: 2698324.72 | F38: 97600.37 | H38: 2795925.09 | J38: -2555392.68 | K38: -61074.86 | M38: -2616467.54 | N38: 179457.55
A39: 45 | B39: 1920 | C39: Computer Equip.-Hardware(Post Mar. 22/04) | H39: 0 | M39: 0 | N39: 0
A40: 45.1 | B40: 1920 | C40: Computer Equip.-Hardware(Post Mar. 19/07) | H40: 0 | M40: 0 | N40: 0
A41: 10 | B41: 1930 | C41: Transportation Equipment | E41: 6219428.7 | F41: 399566.24 | G41: -82000 | H41: 6536994.94 | J41: -4191351.56 | K41: -422263.35 | L41: 82000 | M41: -4531614.91 | N41: 2005380.03
A42: 8 | B42: 1935 | C42: Stores Equipment | E42: 63417.16 | H42: 63417.16 | J42: -62835.45 | M42: -62835.45 | N42: 581.71
A43: 8 | B43: 1940 | C43: Tools, Shop & Garage Equipment | E43: 2441737.86 | F43: 29425 | G43: -6291 | H43: 2464871.86 | J43: -2146761.31 | K43: -64280.8 | L43: 4694.4 | M43: -2206347.71 | N43: 258524.15
A44: 8 | B44: 1945 | C44: Measurement & Testing Equipment | E44: 256824.78 | F44: 13636.65 | H44: 270461.43 | J44: -110704.72 | K44: -23528.2 | M44: -134232.92 | N44: 136228.51
A45: 8 | B45: 1950 | C45: Power Operated Equipment | E45: 194621.96 | H45: 194621.96 | J45: -21345.14 | K45: -19176.28 | M45: -40521.42 | N45: 154100.54
A46: 8 | B46: 1955 | C46: Communications Equipment | E46: 186532.82 | F46: 48777.19 | G46: -22833.24 | H46: 212476.77 | J46: -162956.09 | K46: -7293.82 | L46: 22806.06 | M46: -147443.85 | N46: 65032.92
A47: 8 | B47: 1955 | C47: Communication Equipment (Smart Meters) | H47: 0 | M47: 0 | N47: 0
A48: 8 | B48: 1960 | C48: Miscellaneous Equipment | H48: 0 | M48: 0 | N48: 0
A49: 47 | B49: 1975 | C49: Load Management Controls Utility Premises | H49: 0 | M49: 0 | N49: 0
A50: 47 | B50: 1980 | C50: System Supervisor Equipment | E50: 515151.7 | H50: 515151.7 | J50: -310209.6 | K50: -34343.4 | M50: -344553 | N50: 170598.7
A51: 47 | B51: 1985 | C51: Miscellaneous Fixed Assets | H51: 0 | M51: 0 | N51: 0
A52: 47 | B52: 1995 | C52: Contributions & Grants | E52: -12744351.77 | F52: -2958053.06 | H52: -15702404.83 | J52: 2439332 | K52: 628096 | M52: 3067428 | N52: -12634976.83
A53: 47 | B53: 1996 | C53: Hydro One Current & Voltage Transformer | E53: 1272321 | F53: 0 | H53: 1272321 | J53: -35240 | K53: -50893 | M53: -86133 | N53: 1186188
A54: WIP | C54: Work in Process | E54: 1758058 | F54: 1192201 | H54: 2950259 | J54: 0 | K54: 0 | N54: 2950259
C56: Total | E56: =SUM(E16:E54) -> 147645599.5 | F56: =SUM(F16:F54) -> 7493052.26 | G56: -111124.24 | H56: 155027527.5 | J56: =SUM(J16:J54) -> -82917994.53 | K56: =SUM(K16:K54) -> -5357008.22 | L56: 796298.14 | M56: -87478704.61 | N56: 67548822.91
A58: P:\Admin\Ontario Energy Board\Rate Design\2013\Cost Allocation 2013 from BB 07082012\[Revenue Requirement Model - 2013_TBHEDI v3.xls]FA Continuity 2011 | E58: ='[4]FA Continuity 2011'!$D$50 -> 147645599.5 | F58: ='[4]FA Continuity 2011'!$E$50 -> 7493052.26 | G58: ='[4]FA Continuity 2011'!$F$50*-1 -> -111124.24 | H58: ='[4]FA Continuity 2011'!$G$50 -> 155027527.5 | J58: ='[4]FA Continuity 2011'!$I$50*-1 -> -82917994.67 | K58: ='[4]FA Continuity 2011'!$J$50*-1 -> -5357008.22 | L58: ='[4]FA Continuity 2011'!$K$50 -> 796298.14 | M58: ='[4]FA Continuity 2011'!$L$50*-1 -> -87478704.75 | N58: ='[4]FA Continuity 2011'!$M$50 -> 67548822.76
C59: Number must be zero | E59: =SUM(E56-E58) -> 0.01000002027 | F59: =SUM(F56-F58) -> 0 | G59: =SUM(G56-G58) -> 0 | H59: =SUM(H56-H58) -> 0.009999990463 | J59: =SUM(J56-J58) -> 0.1400000155 | K59: =SUM(K56-K58) -> 0 | L59: =SUM(L56-L58) -> 0 | M59: =SUM(M56-M58) -> 0.1400000006 | N59: =SUM(N56-N58) -> 0.150000006
F60: Amortization allocation to other trial balance accounts & overheads | K60: 583422
K61: =+K56+K60 -> -4773586.22
A63: 10 | C63: Transportation | I63: Less: Fully Allocated Depreciation
A64: 8 | C64: Stores Equipment | I64: Transportation
I65: Stores Equipment
I66: Net Depreciation | K66: =K61-K64-K65 -> -4773586.22
A67: Notes:
A69: 1 | B69: Tables in the format outlined above covering all fixed asset accounts should be submitted for the Test Year, Bridge Year and all relevant historical years. At a minimum , the applicant must provide data for the earlier of: 1) all historical years back to its last rebasing; or 2) at least three years of historical actuals, in addition to Bridge Year and Test Year forecasts.
A72: 2 | B72: The "CCA Class" for fixed assets should agree with the CCA Class used for tax purposes in Tax Returns. Fixed Assets sub-components may be used where the underlying asset components are classified under multiple CCA Classes for tax purposes. If an applicant uses any different classes from those shown in the table, an explanation should be provided. (also see note 3 below).
A75: 3 | B75: The table may need to be customized for a utility's asset categories or for any new asset accounts announced or authorized by the Board.
A77: 4 | B77: The depreciation column (D) is not required as the relevant information will be provided in the following 2-C series of appendices.

Sheet App.2-B_FA Continuity_2012CGAAP
M1: File Number: | N1: ='LDC Info'!$E$18 -> EB-2012-0167
M2: Exhibit: | N2: 2
M3: Tab: | N3: 2
M4: Schedule: | N4: 1
M5: Page: | N5: 4
M7: Date: | N7: 2012-11-08
A9: Appendix 2-B
A10: Fixed Asset Continuity Schedule
A12: Table 2-2.4 - Fixed Asset Continuity Schedule | F12: Year | G12: 2012 CGAAP
E14: Cost | K14: Accumulated Depreciation
A15: CCA Class | B15: OEB | C15: Description | D15: Depreciation Rate | E15: Opening Balance | F15: Additions | G15: Disposals | H15: Closing Balance | J15: Opening Balance | K15: Additions | L15: Disposals | M15: Closing Balance | N15: Net Book Value
A16: 12 | B16: 1611 | C16: Computer Software (Formally known as Account 1925) | E16: 819828.5 | F16: 43501 | G16: 316203 | H16: =E16+F16+G16 -> 1179532.5 | J16: -759302.08 | K16: -93245.16 | L16: -134052 | M16: =J16+K16+L16 -> -986599.24 | N16: =H16+M16 -> 192933.26
A17: CEC | B17: 1612 | C17: Land Rights (Formally known as Account 1906) | H17: 0 | J17: 0 | M17: 0 | N17: 0
A18: N/A | B18: 1805 | C18: Land | E18: 133037.5 | H18: 133037.5 | J18: 0 | M18: 0 | N18: 133037.5
A19: 47 | B19: 1808 | C19: Buildings | E19: 3932847.5 | H19: 3932847.5 | J19: -1790422.08 | K19: -72044 | M19: -1862466.08 | N19: 2070381.42
A20: 13 | B20: 1810 | C20: Leasehold Improvements | E20: 2506.55 | F20: 73000 | H20: 75506.55 | J20: -445.65 | K20: -4004 | M20: -4449.65 | N20: 71056.9
A21: 47 | B21: 1815 | C21: Transformer Station Equipment >50 kV | E21: 0 | H21: 0 | J21: 0 | M21: 0 | N21: 0
A22: 47 | B22: 1820 | C22: Distribution Station Equipment <50 kV | E22: 8124041.55 | G22: 0 | H22: 8124041.55 | J22: -5706508.55 | K22: -169361.4 | M22: -5875869.95 | N22: 2248171.6
A23: 47 | B23: 1825 | C23: Storage Battery Equipment | E23: 0 | H23: 0 | J23: 0 | M23: 0 | N23: =H23+M23 -> 0
A24: 47 | B24: 1830 | C24: Poles, Towers & Fixtures | E24: 29146085.69 | F24: 4076236.58 | H24: 33222322.27 | J24: -10322937.48 | K24: -1050123 | M24: -11373060.48 | N24: =H24+M24 -> 21849261.79
A25: 47 | B25: 1835 | C25: Overhead Conductors & Devices | E25: 29835513.79 | F25: 3582044.92 | H25: 33417558.71 | J25: -14671312.19 | K25: -1236676 | M25: -15907988.19 | N25: 17509570.52
A26: 47 | B26: 1840 | C26: Underground Conduit | E26: 13614954.86 | F26: 288024.67 | H26: 13902979.53 | J26: -7625734.54 | K26: -406911 | M26: -8032645.54 | N26: 5870333.99
A27: 47 | B27: 1845 | C27: Underground Conductors & Devices | E27: 17920134.41 | F27: 1263181.51 | H27: 19183315.92 | J27: -9007162.03 | K27: -480425 | M27: -9487587.03 | N27: 9695728.89
A28: 47 | B28: 1850 | C28: Line Transformers | E28: 26930632.05 | F28: 1409099.82 | H28: 28339731.87 | J28: -14938224.8 | K28: -1008025.2 | M28: -15946250 | N28: 12393481.87
A29: 47 | B29: 2320 | C29: ARO | E29: 161743 | H29: 161743 | J29: -69913.44 | K29: -9751.8 | M29: -79665.24 | N29: 82077.76
A30: 47 | B30: 1855 | C30: Services (Overhead & Underground) | E30: 20225035.17 | F30: 644876.93 | H30: 20869912.1 | J30: -13498302.94 | K30: -818041 | M30: -14316343.94 | N30: 6553568.16
A31: 47 | B31: 1860 | C31: Meters | E31: 1177816.13 | F31: 14856.7272 | H31: =E31+F31+G31 -> 1192672.857 | J31: -801474.91 | K31: -36767.64 | M31: -838242.55 | N31: 354430.3072
A32: 47 | B32: 1860 | C32: Meters (Smart Meters) | E32: 0 | F32: 232755.3928 | G32: 7786915 | H32: =E32+F32+G32 -> 8019670.393 | J32: 0 | K32: -576026.36 | L32: -1245627 | M32: -1821653.36 | N32: 6198017.033
A33: N/A | B33: 1905 | C33: Land | E33: 0 | H33: 0 | J33: 0 | M33: 0 | N33: 0
A34: 47 | B34: 1908 | C34: Buildings & Fixtures | E34: 0 | H34: 0 | J34: 0 | M34: 0 | N34: 0
A35: 13 | B35: 1910 | C35: Leasehold Improvements | E35: 0 | H35: 0 | J35: 0 | M35: 0 | N35: 0
A36: 8 | B36: 1915 | C36: Office Furniture & Equipment (10 years) | E36: 1429254.74 | F36: 71352 | G36: -80568.03 | H36: 1420038.71 | J36: -1184242.12 | K36: -43707 | L36: 57802 | M36: -1170147.12 | N36: 249891.59
A37: 8 | B37: 1915 | C37: Office Furniture & Equipment (5 years) | E37: 0 | H37: 0 | J37: 0 | M37: 0 | N37: 0
A38: 10 | B38: 1920 | C38: Computer Equipment - Hardware | E38: 2795925.09 | F38: 222408 | G38: -62771 | H38: 2955562.09 | J38: -2616467.54 | K38: -95718.48 | L38: 68836 | M38: -2643350.02 | N38: 312212.07
A39: 45 | B39: 1920 | C39: Computer Equip.-Hardware(Post Mar. 22/04) | E39: 0 | H39: 0 | J39: 0 | M39: 0 | N39: 0
A40: 45.1 | B40: 1920 | C40: Computer Equip.-Hardware(Post Mar. 19/07) | E40: 0 | H40: 0 | J40: 0 | M40: 0 | N40: 0
A41: 10 | B41: 1930 | C41: Transportation Equipment | E41: 6536994.94 | F41: 464723 | G41: -457868.98 | H41: 6543848.96 | J41: -4531614.91 | K41: -451286 | L41: 457868.98 | M41: -4525031.93 | N41: 2018817.03
A42: 8 | B42: 1935 | C42: Stores Equipment | E42: 63417.16 | H42: 63417.16 | J42: -62835.45 | K42: -582 | M42: -63417.45 | N42: -0.29
A43: 8 | B43: 1940 | C43: Tools, Shop & Garage Equipment | E43: 2464871.86 | F43: 51585 | H43: 2516456.86 | J43: -2206347.71 | K43: -63211.8 | M43: -2269559.51 | N43: 246897.35
A44: 8 | B44: 1945 | C44: Measurement & Testing Equipment | E44: 270461.43 | F44: 23873 | H44: 294334.43 | J44: -134232.92 | K44: -23177.66 | M44: -157410.58 | N44: 136923.85
A45: 8 | B45: 1950 | C45: Power Operated Equipment | E45: 194621.96 | H45: 194621.96 | J45: -40521.42 | K45: -18963.54 | M45: -59484.96 | N45: 135137
A46: 8 | B46: 1955 | C46: Communications Equipment | E46: 212476.77 | F46: 28012 | H46: 240488.77 | J46: -147443.85 | K46: -15012 | M46: -162455.85 | N46: 78032.92
A47: 8 | B47: 1955 | C47: Communication Equipment (Smart Meters) | E47: 0 | H47: 0 | J47: 0 | M47: 0 | N47: 0
A48: 8 | B48: 1960 | C48: Miscellaneous Equipment | E48: 0 | H48: 0 | J48: 0 | M48: 0 | N48: 0
A49: 47 | B49: 1975 | C49: Load Management Controls Utility Premises | E49: 0 | H49: 0 | J49: 0 | M49: 0 | N49: 0
A50: 47 | B50: 1980 | C50: System Supervisor Equipment | E50: 515151.7 | F50: 51474 | G50: 0 | H50: 566625.7 | J50: -344553 | K50: -34343 | M50: -378896 | N50: 187729.7
A51: 47 | B51: 1985 | C51: Miscellaneous Fixed Assets | E51: 0 | H51: 0 | J51: 0 | M51: 0 | N51: 0
A52: 47 | B52: 1995 | C52: Contributions & Grants | E52: -15702404.83 | F52: -2022925 | H52: -17725329.83 | J52: 3067428 | K52: 668555 | M52: 3735983 | N52: -13989346.83
A53: 47 | B53: 1996 | C53: Hydro One Current & Voltage Transformer | E53: 1272321 | F53: 0 | H53: 1272321 | J53: -86133 | K53: -50893 | M53: -137026 | N53: 1135295
A54: WIP | C54: Work in Process | E54: 2950259 | F54: -1681465 | H54: 1268794 | J54: 0 | K54: 0 | M54: 0 | N54: 1268794
J55: 0
C56: Total | E56: =SUM(E16:E54) -> 155027527.5 | F56: =SUM(F16:F54) -> 8836614.55 | G56: 7501909.99 | H56: 171366052.1 | J56: =SUM(J16:J54) -> -87478704.61 | K56: =SUM(K16:K54) -> -6089741.04 | L56: -795172.02 | M56: -94363617.67 | N56: 77002434.39
A58: P:\Admin\Ontario Energy Board\Rate Design\2013\COS_Models\[RRM_MCGAAP.xlsx]FA Continuity 2012 | E58: ='[4]FA Continuity 2012'!$D$50 -> 155027527.5 | F58: ='[4]FA Continuity 2012'!$E$50 -> 8836614.55 | G58: ='[4]FA Continuity 2012'!$F$50*-1 -> 7501909.99 | H58: ='[4]FA Continuity 2012'!$G$50 -> 171366052.1 | J58: ='[4]FA Continuity 2012'!$I$50*-1 -> -87478704.75 | K58: ='[4]FA Continuity 2012'!$J$50*-1 -> -6089741.04 | L58: ='[4]FA Continuity 2012'!$K$50 -> -795172.02 | M58: ='[4]FA Continuity 2012'!$L$50*-1 -> -94363617.81 | N58: ='[4]FA Continuity 2012'!$M$50 -> 77002434.24
C59: Number must be zero | E59: =SUM('App.2-B_FA Continuity_2012CGAAP'!E56-E58) -> 0.009999990463 | F59: =SUM('App.2-B_FA Continuity_2012CGAAP'!F56-F58) -> 0 | G59: =SUM('App.2-B_FA Continuity_2012CGAAP'!G56-G58) -> 0 | H59: =SUM('App.2-B_FA Continuity_2012CGAAP'!H56-H58) -> 0.009999990463 | J59: =SUM('App.2-B_FA Continuity_2012CGAAP'!J56-J58) -> 0.1400000006 | K59: =SUM('App.2-B_FA Continuity_2012CGAAP'!K56-K58) -> 9.313225746e-10 | L59: =SUM('App.2-B_FA Continuity_2012CGAAP'!L56-L58) -> 0 | M59: =SUM('App.2-B_FA Continuity_2012CGAAP'!M56-M58) -> 0.1399999857 | N59: =SUM('App.2-B_FA Continuity_2012CGAAP'!N56-N58) -> 0.1499999911
F60: Smart Meter LTD Adjustment to be included in Dep | K60: -1393943
E61: Sentinal Lighting Depreciation
F62: Amortization allocation to other t/b accounts and o/h | K62: 623145
F63: Hydro One Current & Voltage Transformer posted to separate account | K63: 50893
K65: =SUM(K58:K64) -> -6809646.04
A67: 10 | C67: Transportation | I67: Less: Fully Allocated Depreciation
A68: 8 | C68: Stores Equipment | I68: Transportation
I69: Stores Equipment
I70: Net Depreciation | K70: =K65-K68-K69 -> -6809646.04
A71: Notes:
A73: 1 | B73: Tables in the format outlined above covering all fixed asset accounts should be submitted for the Test Year, Bridge Year and all relevant historical years. At a minimum , the applicant must provide data for the earlier of: 1) all historical years back to its last rebasing; or 2) at least three years of historical actuals, in addition to Bridge Year and Test Year forecasts.
A76: 2 | B76: The "CCA Class" for fixed assets should agree with the CCA Class used for tax purposes in Tax Returns. Fixed Assets sub-components may be used where the underlying asset components are classified under multiple CCA Classes for tax purposes. If an applicant uses any different classes from those shown in the table, an explanation should be provided. (also see note 3 below).
A79: 3 | B79: The table may need to be customized for a utility's asset categories or for any new asset accounts announced or authorized by the Board.
A81: 4 | B81: The depreciation column (D) is not required as the relevant information will be provided in the following 2-C series of appendices.

Sheet App.2-B_FA Continuity_2013CGAAP
M1: File Number: | N1: ='LDC Info'!$E$18 -> EB-2012-0167
M2: Exhibit: | N2: 2
M3: Tab: | N3: 2
M4: Schedule: | N4: 1
M5: Page: | N5: 5
M7: Date: | N7: 2012-11-08
A9: Appendix 2-B
A10: Fixed Asset Continuity Schedule
F13: Year | G13: 2013 CGAAP
E15: Cost | K15: Accumulated Depreciation
A16: CCA Class | B16: OEB | C16: Description | D16: Depreciation Rate | E16: Opening Balance | F16: Additions | G16: Disposals | H16: Closing Balance | J16: Opening Balance | K16: Additions | L16: Disposals | M16: Closing Balance | N16: Net Book Value
A17: 12 | B17: 1611 | C17: Computer Software (Formally known as Account 1925) | E17: 1179532.5 | F17: 77200 | G17: 0 | H17: =E17+F17+G17 -> 1256732.5 | J17: -986599.24 | K17: -97864.82 | L17: 0 | M17: =J17+K17+L17 -> -1084464.06 | N17: =H17+M17 -> 172268.44
A18: CEC | B18: 1612 | C18: Land Rights (Formally known as Account 1906) | E18: 0 | H18: 0 | J18: 0 | M18: 0 | N18: 0
A19: N/A | B19: 1805 | C19: Land | E19: 133037.5 | F19: 0 | H19: 133037.5 | J19: 0 | K19: 0 | M19: 0 | N19: 133037.5
A20: 47 | B20: 1808 | C20: Buildings | E20: 3932847.5 | F20: 3303500 | G20: -123959 | H20: 7112388.5 | J20: -1862466.08 | K20: -97294 | L20: 58640 | M20: -1901120.08 | N20: 5211268.42
A21: 47 | B21: 1808 | C21: Garage | F21: 0 | H21: 0 | J21: 0 | M21: 0 | N21: 0
A22: 13 | B22: 1810 | C22: Leasehold Improvements | E22: 75506.55 | F22: 0 | H22: 75506.55 | J22: -4449.65 | K22: -8399 | M22: =J22+K22+L22 -> -12848.65 | N22: 62657.9
A23: 47 | B23: 1820 | C23: Distribution Equipment - ARO | E23: 0 | F23: 0 | H23: 0 | J23: 0 | M23: =J23+K23+L23 -> 0 | N23: 0
A24: 47 | B24: 1820 | C24: Distribution Equpment Normally Primary below 50 kV | E24: 8124041.55 | F24: 0 | H24: 8124041.55 | J24: -5875869.95 | K24: -169361.1 | M24: -6045231.05 | N24: 2078810.5
A25: 47 | B25: 1825 | C25: Storage Battery Equipment | H25: 0 | J25: 0 | M25: 0 | N25: 0
A26: 47 | B26: 1830 | C26: Poles, Towers & Fixtures | E26: 33222320.27 | F26: 3355911 | G26: 0 | H26: 36578231.27 | J26: -11373060.48 | K26: -1115044.129 | L26: 0 | M26: -12488104.61 | N26: 24090126.66
A27: 47 | B27: 1835 | C27: Overhead Conductors & Devices | E27: 33417558.71 | F27: 3395046 | G27: 0 | H27: 36812604.71 | J27: -15907987.19 | K27: -1302012.464 | L27: 0 | M27: -17209999.65 | N27: =H27+M27 -> 19602605.06
A28: 47 | B28: 1840 | C28: Underground Conduit | E28: 13902979.53 | F28: 246571 | G28: 0 | H28: 14149550.53 | J28: -8032645.54 | K28: -411032.3041 | M28: =J28+K28+L28 -> -8443677.844 | N28: 5705872.686
A29: 47 | B29: 1845 | C29: Underground Conductors & Devices | E29: 19183315.92 | F29: 604296 | G29: 0 | H29: 19787611.92 | J29: -9487587.03 | K29: -504693.9753 | M29: -9992281.005 | N29: 9795330.915
A30: 47 | B30: 1850 | C30: Line Transformers | E30: 28339731.87 | F30: 1240223 | G30: 0 | H30: 29579954.87 | J30: -15946250 | K30: -1030779.813 | L30: 0 | M30: -16977029.81 | N30: 12602925.06
A31: 47 | B31: 2320 | C31: ARO | E31: 161743 | G31: 0 | H31: 161743 | J31: -79665.24 | K31: -9751.8 | M31: -89417.04 | N31: 72325.96
A32: 47 | B32: 1855 | C32: Services (Overhead & Underground) | E32: 20869912.1 | F32: 924514 | G32: 0 | H32: 21794426.1 | J32: -14316343.94 | K32: -834886.0996 | L32: 0 | M32: -15151230.04 | N32: 6643196.06
A33: 47 | B33: 1860 | C33: Meters | E33: 1192672.857 | F33: 10989.06 | H33: 1203661.917 | J33: -838242.55 | K33: -37122.17907 | M33: -875364.7291 | N33: 328297.1881
A34: 47 | B34: 1860 | C34: Meters (Smart Meters) | E34: 8019670.393 | F34: 172161.94 | H34: 8191832.333 | J34: -1821653.36 | K34: -575984.8054 | M34: -2397638.165 | N34: 5794194.167
A35: N/A | B35: 1905 | C35: Land | E35: 0 | H35: 0 | J35: 0 | M35: =J35+K35+L35 -> 0 | N35: =H35+M35 -> 0
A36: 47 | B36: 1908 | C36: Buildings & Fixtures | E36: 0 | H36: 0 | J36: 0 | M36: 0 | N36: 0
A37: 13 | B37: 1910 | C37: Leasehold Improvements | E37: 0 | H37: 0 | J37: 0 | M37: 0 | N37: 0
A38: 8 | B38: 1915 | C38: Office Furniture & Equipment (10 years) | E38: 1420038.71 | F38: 36050 | H38: 1456088.71 | J38: -1170147.12 | K38: -42182 | M38: -1212329.12 | N38: 243759.59
A39: 8 | B39: 1915 | C39: Office Furniture & Equipment (5 years) | E39: 0 | F39: 0 | H39: 0 | J39: 0 | K39: 0 | M39: =J39+K39+L39 -> 0 | N39: =H39+M39 -> 0
A40: 10 | B40: 1920 | C40: Computer Equipment - Hardware | E40: 2955562.09 | F40: 81600 | G40: -44200 | H40: 2992962.09 | J40: -2643350.02 | K40: -117338.23 | L40: 37880 | M40: =J40+K40+L40 -> -2722808.25 | N40: =H40+M40 -> 270153.84
A41: 45 | B41: 1920 | C41: Computer Equip.-Hardware(Post Mar. 22/04) | E41: 0 | H41: 0 | J41: 0 | M41: 0 | N41: 0
A42: 45.1 | B42: 1920 | C42: Computer Equip.-Hardware(Post Mar. 19/07) | E42: 0 | H42: 0 | J42: 0 | K42: 0 | M42: 0 | N42: 0
A43: 10 | B43: 1930 | C43: Transportation Equipment | E43: 6543848.96 | F43: 960345 | G43: -363510.89 | H43: 7140683.07 | J43: -4525031.93 | K43: -517947 | L43: 363510.89 | M43: =J43+K43+L43 -> -4679468.04 | N43: 2461215.03
A44: 8 | B44: 1935 | C44: Stores Equipment | E44: 63417.16 | F44: 0 | H44: 63417.16 | J44: -63417.45 | K44: 0 | M44: =J44+K44+L44 -> -63417.45 | N44: -0.29
A45: 8 | B45: 1940 | C45: Tools, Shop & Garage Equipment | E45: 2516456.86 | F45: 73700 | H45: 2590156.86 | J45: -2269559.51 | K45: -115323 | M45: =J45+K45+L45 -> -2384882.51 | N45: 205274.35
A46: 8 | B46: 1945 | C46: Measurement & Testing Equipment | E46: 294334.43 | F46: 22940 | H46: 317274.43 | J46: -157410.58 | K46: 0 | M46: =J46+K46+L46 -> -157410.58 | N46: 159863.85
A47: 8 | B47: 1950 | C47: Power Operated Equipment | E47: 194621.96 | F47: 13400 | H47: 208021.96 | J47: -59484.96 | K47: 0 | M47: -59484.96 | N47: 148537
A48: 8 | B48: 1955 | C48: Communications Equipment | E48: 240488.77 | F48: 104756 | H48: 345244.77 | J48: -162455.85 | K48: -19622 | M48: =J48+K48+L48 -> -182077.85 | N48: 163166.92
A49: 8 | B49: 1955 | C49: Communication Equipment (Smart Meters) | E49: 0 | H49: 0 | J49: 0 | M49: 0 | N49: 0
A50: 8 | B50: 1960 | C50: Miscellaneous Equipment | E50: 0 | H50: 0 | J50: 0 | M50: 0 | N50: 0
A51: 47 | B51: 1975 | C51: Load Management Controls Utility Premises | E51: 0 | H51: 0 | J51: 0 | M51: 0 | N51: 0
A52: 47 | B52: 1980 | C52: System Supervisor Equipment | E52: 566625.7 | F52: 2077 | H52: 568702.7 | J52: -378896 | K52: -34343.4 | M52: =J52+K52+L52 -> -413239.4 | N52: =H52+M52 -> 155463.3
A53: 47 | B53: 1985 | C53: Miscellaneous Fixed Assets | E53: 0 | H53: 0 | J53: 0 | M53: 0 | N53: 0
B54: 2440 | C54: Deferred Revenue | E54: 0 | H54: 0 | J54: 0 | M54: =J54+K54+L54 -> 0 | N54: 0
A55: 47 | B55: 1995 | C55: Contributions & Grants | E55: -17725329.83 | F55: -1044834 | H55: -18770163.83 | J55: 3735983 | K55: 729900 | M55: 4465883 | N55: -14304280.83
A56: 47 | B56: 1996 | C56: Hydro One Current & Voltage Transformer | E56: 1272321 | F56: 0 | H56: 1272321 | J56: -137026 | K56: -50893 | M56: =J56+K56+L56 -> -187919 | N56: 1084402
A57: WIP | C57: Work in Process | E57: 1268794 | F57: -190812 | H57: 1077982 | J57: 0 | K57: 0 | M57: =J57+K57+L57 -> 0 | N57: 1077982
H58: 0
C59: Total | E59: =SUM(E17:E57) -> 171366050.1 | F59: =SUM(F17:F57) -> 13389634 | G59: -531669.89 | H59: 184224014.2 | J59: =SUM(J17:J57) -> -94363616.67 | K59: =SUM(K17:K57) -> -6361975.12 | L59: 460030.89 | M59: -100265560.9 | N59: 83958453.27
A61: P:\Admin\Ontario Energy Board\Rate Design\2013\Cost Allocation 2013 from BB 07082012\[Revenue Requirement Model - 2013_TBHEDI v3.xls]FA Continuity 2013 | E61: ='[5]FA Continuity 2013'!$D$50 -> 171366050.1 | F61: ='[5]FA Continuity 2013'!$E$50 -> 13389634 | G61: ='[5]FA Continuity 2013'!$F$50*-1 -> -531669.89 | H61: ='[5]FA Continuity 2013'!$G$50 -> 184224014.2 | J61: ='[5]FA Continuity 2013'!$I$50*-1 -> -94363616.77 | K61: ='[5]FA Continuity 2013'!$J$50*-1 -> -6361975.12 | L61: ='[5]FA Continuity 2013'!$K$50 -> 460030.89 | M61: ='[5]FA Continuity 2013'!$L$50*-1 -> -100265561 | N61: ='[5]FA Continuity 2013'!$M$50 -> 83958453.16
C62: Number must be zero | E62: =+E59-E61 -> 0.009999990463 | F62: =+F59-F61 -> 0 | G62: =+G59-G61 -> 0 | H62: =+H59-H61 -> 0.009999990463 | J62: =+J59-J61 -> 0.09999999404 | K62: =+K59-K61 -> 0 | L62: =+L59-L61 -> 0 | M62: =+M59-M61 -> 0.09999997914 | N62: =+N59-N61 -> 0.1099999845
C65: rounding differences plugged to OHPTF | K65: 0
F66: Amortization allocation to other t/b accounts and o/h | K66: 717050
F67: Hydro One Current & Voltage Transformer posted to separate account | K67: 50583
K68: 0
K69: =SUM(K61:K68) -> -5594342.12
A71: 10 | C71: Transportation | I71: Less: Fully Allocated Depreciation
A72: 8 | C72: Stores Equipment | I72: Transportation
I73: Stores Equipment
I74: Net Depreciation | K74: =K69-K72-K73 -> -5594342.12
A76: Notes:
A78: 1 | B78: Tables in the format outlined above covering all fixed asset accounts should be submitted for the Test Year, Bridge Year and all relevant historical years. At a minimum , the applicant must provide data for the earlier of: 1) all historical years back to its last rebasing; or 2) at least three years of historical actuals, in addition to Bridge Year and Test Year forecasts.
A81: 2 | B81: The "CCA Class" for fixed assets should agree with the CCA Class used for tax purposes in Tax Returns. Fixed Assets sub-components may be used where the underlying asset components are classified under multiple CCA Classes for tax purposes. If an applicant uses any different classes from those shown in the table, an explanation should be provided. (also see note 3 below).
A84: 3 | B84: The table may need to be customized for a utility's asset categories or for any new asset accounts announced or authorized by the Board.
A86: 4 | B86: The depreciation column (D) is not required as the relevant information will be provided in the following 2-C series of appendices.

Sheet App.2-B_FA Continuity_2013MCGAA
M1: File Number: | N1: ='LDC Info'!$E$18 -> EB-2012-0167
M2: Exhibit: | N2: 2
M3: Tab: | N3: 2
M4: Schedule: | N4: 1
M5: Page: | N5: 5
M7: Date: | N7: 2012-11-08
A9: Appendix 2-B
A10: Fixed Asset Continuity Schedule
F13: Year | G13: 2013MCGAAP
E15: Cost | K15: Accumulated Depreciation
A16: CCA Class | B16: OEB | C16: Description | D16: Depreciation Rate | E16: Opening Balance | F16: Additions | G16: Disposals | H16: Closing Balance | J16: Opening Balance | K16: Additions | L16: Disposals | M16: Closing Balance | N16: Net Book Value
A17: 12 | B17: 1611 | C17: Computer Software (Formally known as Account 1925) | E17: 1179532.5 | F17: 77200 | G17: 0 | H17: =E17+F17+G17 -> 1256732.5 | J17: -986599.24 | K17: -51925.75 | L17: 0 | M17: =J17+K17+L17 -> -1038524.99 | N17: =H17+M17 -> 218207.51
A18: CEC | B18: 1612 | C18: Land Rights (Formally known as Account 1906) | H18: 0 | M18: 0 | N18: 0
A19: N/A | B19: 1805 | C19: Land | E19: 133037.5 | H19: 133037.5 | J19: 0 | M19: 0 | N19: 133037.5
A20: 47 | B20: 1808 | C20: Buildings | E20: 3932847.5 | F20: 3500 | G20: -123959 | H20: 3812388.5 | J20: -1862466.08 | K20: -72044 | L20: 58640 | M20: -1875870.08 | N20: 1936518.42
A21: 47 | B21: 1808 | C21: Garage | F21: 3300000 | H21: 3300000 | J21: 0 | K21: -25250 | M21: -25250 | N21: 3274750
A22: 13 | B22: 1810 | C22: Leasehold Improvements | E22: 75506.55 | H22: 75506.55 | J22: -4449.65 | K22: -8399 | M22: -12848.65 | N22: 62657.9
A23: 47 | B23: 1820 | C23: Distribution Equipment - ARO | E23: 0 | F23: 45124.53 | H23: 45124.53 | K23: -7386.47 | M23: -7386.47 | N23: 37738.06
A24: 47 | B24: 1820 | C24: Distribution Equpment Normally Primary below 50 kV | E24: 8124041.55 | F24: 1879 | H24: 8125920.55 | J24: -5875869.95 | K24: -319826.9634 | M24: -6195696.913 | N24: 1930223.637
A25: 47 | B25: 1825 | C25: Storage Battery Equipment | H25: 0 | M25: 0 | N25: 0
A26: 47 | B26: 1830 | C26: Poles, Towers & Fixtures | E26: 33096619.44 | F26: 3062513 | G26: -216435.4668 | H26: 35942696.97 | J26: -11352756.04 | K26: -725458.7126 | L26: 213932.5932 | M26: -11864282.16 | N26: 24078414.81
C27: Steel Cross Arms | E27: 114892.82 | F27: 6105 | G27: -1274.24 | H27: 119723.58 | J27: -19030 | K27: -1576.86 | L27: 421.67 | M27: -20185.19 | N27: 99538.39
C28: fibre Glass Cross Arms | E28: 10810.01 | F28: 1274 | H28: 12084.01 | J28: -1273.88 | K28: -137.85 | M28: -1411.73 | N28: 10672.28
A29: 47 | B29: 1835 | C29: O/H Conductors & Devices - Switches | E29: 2626249.47 | F29: 125032 | G29: -27096.9296 | H29: 2724184.54 | J29: -1574157.26 | K29: -57325.52375 | L29: 26024.16949 | M29: -1605458.614 | N29: 1118725.926
C30: O/H Conductors & Devices - Primary & Neutral Cables | E30: 26344346.84 | F30: 2018226 | G30: -328450.38 | H30: 28034122.46 | J30: -12740232.49 | K30: -325016.04 | L30: 305947.27 | M30: -12759301.26 | N30: 15274821.2
C31: O/H Conductors & Devices - Secondary Cables | E31: 3558642.14 | F31: 569243 | H31: 4127885.14 | J31: -1348472.77 | K31: -50952.49 | M31: -1399425.26 | N31: 2728459.88
C32: O/H Conductors & Devices - Reclosures | E32: 888320.26 | F32: 144678 | H32: 1032998.26 | J32: -245125.67 | K32: -22586.51 | M32: -267712.18 | N32: 765286.08
A33: 47 | B33: 1840 | C33: U/G Conduit - Trenches | E33: 1384431.37 | F33: 0 | H33: 1384431.37 | J33: -1246119.44 | K33: -14462.68642 | M33: -1260582.126 | N33: 123849.2436
C34: U/G Conduit - Conduits | E34: 11303081.1 | F34: 163913 | H34: 11466994.1 | J34: -6495923.61 | K34: -73319.12 | M34: -6569242.73 | N34: 4897751.37
C35: U/G Conduit - Foundations | E35: 1215467.06 | F35: 42221 | H35: 1257688.06 | J35: -290602.93 | K35: -20164.31 | M35: -310767.24 | N35: 946920.82
A36: 47 | B36: 1845 | C36: U/G Conductors & Devices - Primary Cables in Duct | E36: 11378807.38 | F36: 465825 | H36: 11844632.38 | J36: -3357578.85 | K36: -249042.3436 | M36: -3606621.194 | N36: 8238011.186
C37: U/G Conductors & Devices - Primary Cables Direct Buried | E37: 4878455.79 | H37: 4878455.79 | J37: -4361795.46 | K37: -58711.35 | M37: -4420506.81 | N37: 457948.98
C38: U/G Conductors & Devices - Secondary Cables in Duct | E38: 1076900.85 | H38: 1076900.85 | J38: -508961.72 | K38: -19440.89 | M38: -528402.61 | N38: 548498.24
C39: U/G Conductors & Devices - Secondary Cables Direct Buried | E39: 1161139.91 | H39: 1161139.91 | J39: -1067314.03 | K39: -7215.45 | M39: -1074529.48 | N39: 86610.43
C40: U/G Conductors & Devices - UG Switchgear | E40: 688011.99 | F40: 50000 | H40: 738011.99 | J40: -191936.97 | K40: -20771.91 | M40: -212708.88 | N40: 525303.11
A41: 47 | B41: 1850 | C41: Line Transformers - Vault Combined | E41: 914193.84 | F41: 0 | G41: -17023.87889 | H41: 897169.9611 | J41: -850678.32 | K41: -11081.54144 | L41: 16127.66429 | M41: -845632.1972 | N41: 51537.76396
C42: Line Transformers - Enclosure Combined | E42: 397325.81 | G42: -21895.89 | H42: 375429.92 | J42: -338715.08 | K42: -5522.25 | L42: 20745.41 | M42: -323491.92 | N42: 51938
C43: Line Transformers - Pole Top Combined | E43: 16253445.58 | F43: 1132505 | G43: -243541.02 | H43: 17142409.56 | J43: -8526769.39 | K43: -332129.79 | L43: 167193.91 | M43: -8691705.27 | N43: 8450704.29
C44: Line Transformers - Pad MountTransformer Single Phase | E44: 5530617.56 | G44: -5459.8 | H44: 5525157.76 | J44: -3208301.4 | K44: -105095.86 | L44: 5178.69 | M44: -3308218.57 | N44: 2216939.19
C45: Line Transformers - Pad Mount Transformer 3 Phase | E45: 5244149.53 | G45: -85722.44 | H45: 5158427.09 | J45: -3021785.95 | K45: -94509.59 | L45: 54556.27 | M45: -3061739.27 | N45: 2096687.82
A46: 47 | B46: 2320 | C46: ARO | E46: 161742.55 | H46: 161742.55 | J46: -79665.24 | K46: -9751.8 | M46: -89417.04 | N46: 72325.51
A47: 47 | B47: 1855 | C47: Services (O/H & U/G) - O/H Conductors | E47: 8713316.63 | F47: 508923 | G47: -112593.1125 | H47: 9109646.517 | J47: -4844202.96 | K47: -100687.7141 | L47: 139045.054 | M47: -4805845.62 | N47: 4303800.897
C48: Services (O/H & U/G) - U/G in Duct | E48: 7442413.28 | F48: 253088 | G48: -31895.4 | H48: 7663605.88 | J48: -5035981.49 | K48: -104355.88 | M48: -5140337.37 | N48: 2523268.51
C49: Services (O/H & U/G) -U/G Direct Buried | E49: 4714182.19 | H49: 4714182.19 | J49: -4436159.88 | K49: -34772.21 | M49: -4470932.09 | N49: 243250.1
A50: 47 | B50: 1860 | C50: Meters - Industrial/Commercial Energy Meters | E50: 98013.3772 | F50: 0 | H50: 98013.3772 | J50: -68515.7 | K50: -2254.47 | M50: -70770.17 | N50: 27243.2072
C51: Meters - CT & PT | E51: 367615.36 | H51: 367615.36 | J51: -260486.44 | K51: -4313.52 | M51: -264799.96 | N51: 102815.4
C52: Meters - Primary | E52: 727044.12 | F52: 25000 | H52: 752044.12 | J52: -509240.41 | K52: -8368.96 | M52: -517609.37 | N52: 234434.75
M53: 0 | N53: 0
A54: 47 | B54: 1860 | C54: Meters (Smart Meters) - Phase 1 | E54: 5829830.873 | F54: 118374 | H54: 5948204.873 | J54: -1345677.81 | K54: -391533.42 | M54: -1737211.23 | N54: 4210993.643
C55: Meters (Smart Meters) - Phase 2 | E55: 560165.29 | H55: 560165.29 | J55: -136029.31 | K55: -37319.19 | M55: -173348.5 | N55: 386816.79
C56: Meters (Smart Meters) - Phase 3 | E56: 1227479.33 | H56: 1227479.33 | J56: -249822.53 | K56: -81630.4 | M56: -331452.93 | N56: 896026.4
C57: Meters (Smart Meters) - Repeaters Data Coll | E57: 402194.9 | H57: 402194.9 | J57: -90123.71 | K57: -26755.69 | M57: -116879.4 | N57: 285315.5
A58: N/A | B58: 1905 | C58: Land | H58: 0 | M58: 0 | N58: 0
A59: 47 | B59: 1908 | C59: Buildings & Fixtures | H59: 0 | M59: 0 | N59: 0
A60: 13 | B60: 1910 | C60: Leasehold Improvements | H60: 0 | M60: 0 | N60: 0
A61: 8 | B61: 1915 | C61: Office Furniture & Equipment (10 years) | E61: 1420038.71 | F61: 36050 | H61: 1456088.71 | J61: -1170147.12 | K61: -42182 | M61: -1212329.12 | N61: 243759.59
A62: 8 | B62: 1915 | C62: Office Furniture & Equipment (5 years) | E62: 0 | F62: 0 | H62: 0 | J62: 0 | K62: 0 | M62: 0 | N62: =H62+M62 -> 0
A63: 10 | B63: 1920 | C63: Computer Equipment - Hardware | E63: 2955562.09 | F63: 81600 | G63: -44200 | H63: 2992962.09 | J63: -2643350.02 | K63: -182002.31 | L63: 37880 | M63: -2787472.33 | N63: =H63+M63 -> 205489.76
A64: 45 | B64: 1920 | C64: Computer Equip.-Hardware(Post Mar. 22/04) | H64: 0 | M64: 0 | N64: 0
A65: 45.1 | B65: 1920 | C65: Computer Equip.-Hardware(Post Mar. 19/07) | E65: 0 | H65: 0 | M65: 0 | N65: 0
A66: 10 | B66: 1930 | C66: Transportation Equipment - Trailers | E66: 473519.41 | F66: 0 | G66: 0 | H66: 473519.41 | J66: -473519.41 | K66: 0.005276138538 | L66: 0 | M66: =J66+K66+L66 -> -473519.4047 | N66: 0.005276140175
A67: 10 | B67: 1930 | C67: Transportation Equipment - Buckets and Heavy Equipment | E67: 4837014.06 | F67: 825345 | G67: -181812.49 | H67: 5480546.57 | J67: -3200024.83 | K67: -191875.16 | L67: 181812.49 | M67: =J67+K67+L67 -> -3210087.5 | N67: 2270459.07
A68: 10 | B68: 1930 | C68: Transportation Equipment - Light Vehicles | E68: 1233315.49 | F68: 135000 | G68: -181698.4 | H68: 1186617.09 | J68: -851487.69 | K68: -37358.1 | L68: 181698.4 | M68: -707147.39 | N68: 479469.7
A69: 8 | B69: 1935 | C69: Stores Equipment | E69: 63417.16 | H69: 63417.16 | J69: -63417.45 | K69: 0 | M69: =J69+K69+L69 -> -63417.45 | N69: -0.29
A70: 8 | B70: 1940 | C70: Tools, Shop & Garage Equipment | E70: 2516456.86 | F70: 73700 | H70: 2590156.86 | J70: -2269559.51 | K70: -69193.8 | M70: =J70+K70+L70 -> -2338753.31 | N70: 251403.55
A71: 8 | B71: 1945 | C71: Measurement & Testing Equipment | E71: 294334.43 | F71: 22940 | H71: 317274.43 | J71: -157410.58 | K71: -25371.06 | M71: =J71+K71+L71 -> -182781.64 | N71: 134492.79
A72: 8 | B72: 1950 | C72: Power Operated Equipment | E72: 194621.96 | F72: 13400 | H72: 208021.96 | J72: -59484.96 | K72: -20758.14 | M72: -80243.1 | N72: 127778.86
A73: 8 | B73: 1955 | C73: Communications Equipment | E73: 240488.77 | F73: 104756 | H73: 345244.77 | J73: -162455.85 | K73: -9446 | M73: =J73+K73+L73 -> -171901.85 | N73: 173342.92
A74: 8 | B74: 1955 | C74: Communication Equipment (Smart Meters) | H74: 0 | M74: 0 | N74: 0
A75: 8 | B75: 1960 | C75: Miscellaneous Equipment | H75: 0 | M75: 0 | N75: 0
A76: 47 | B76: 1975 | C76: Load Management Controls Utility Premises | H76: 0 | M76: 0 | N76: 0
A77: 47 | B77: 1980 | C77: System Supervisor Equipment | E77: 566625.7 | F77: 0 | H77: 566625.7 | J77: -378896 | K77: -34343 | M77: =J77+K77+L77 -> -413239 | N77: 153386.7
A78: 47 | B78: 1985 | C78: Miscellaneous Fixed Assets | H78: 0 | M78: 0 | N78: 0
B79: 2440 | C79: Deferred Revenue | F79: -989984.66 | H79: -989984.66 | K79: 12712.22 | M79: =J79+K79+L79 -> 12712.22 | N79: -977272.44
A80: 47 | B80: 1995 | C80: Contributions & Grants | E80: -17725329.83 | F80: 0 | H80: -17725329.83 | J80: 3735983 | K80: 456958.57 | M80: 4192941.57 | N80: -13532388.26
A81: 47 | B81: 1996 | C81: Hydro One Current & Voltage Transformer | E81: 1272321 | F81: 0 | H81: 1272321 | J81: -137026 | K81: -42411 | M81: =J81+K81+L81 -> -179437 | N81: 1092884
A82: WIP | C82: Work in Process | E82: 1268794 | F82: -285238 | H82: 983556 | J82: 0 | K82: 0 | M82: =J82+K82+L82 -> 0 | N82: 983556
C84: Total | E84: =SUM(E17:E82) -> 171366052.1 | F84: =SUM(F17:F82) -> 12132191.87 | G84: =SUM(G17:G82) -> -1623058.448 | H84: =SUM(H17:H82) -> 181875185.5 | J84: =SUM(J17:J82) -> -94363618.08 | K84: =SUM(K17:K82) -> -3666366.29 | L84: 1409203.591 | M84: -96620780.78 | N84: 85254404.7
A86: P:\Admin\Ontario Energy Board\Rate Design\2013\COS_Models\[RRM_MCGAAP.xlsx]FA Continuity 2013 | E86: ='[4]FA Continuity 2013'!$D$51 -> 171366052.1 | F86: ='[4]FA Continuity 2013'!$E$51 -> 12132191.87 | G86: ='[4]FA Continuity 2013'!$F$51*-1 -> -1623058.448 | H86: ='[4]FA Continuity 2013'!$G$51 -> 181875185.5 | J86: ='[4]FA Continuity 2013'!$I$51*-1 -> -94363617.81 | K86: ='[4]FA Continuity 2013'!$J$51*-1 -> -3666366.547 | L86: ='[4]FA Continuity 2013'!$K$51 -> 1409203.591 | M86: ='[4]FA Continuity 2013'!$L$51*-1 -> -96620780.77 | N86: ='[4]FA Continuity 2013'!$M$51 -> 85254404.71
C87: Number must be zero | E87: =+E84-E86 -> 0.009999990463 | F87: =+F84-F86 -> 0 | G87: =+G84-G86 -> 0 | H87: =+H84-H86 -> 0.009999990463 | J87: =+J84-J86 -> -0.2699999809 | K87: =+K84-K86 -> 0.256794638 | L87: =+L84-L86 -> 0 | M87: =+M84-M86 -> -0.01320539415 | N87: =+N84-N86 -> -0.003205358982
F91: Amortization allocation to other t/b accounts and o/h | K91: 431835.25
F92: Hydro One Current & Voltage Transformer posted to separate account | K92: 42411
F93: Gov't assistance directly credited to income 4245 | K93: -12712.22
K94: =SUM(K86:K93) -> -3204832.26
A96: 10 | C96: Transportation | I96: Less: Fully Allocated Depreciation
A97: 8 | C97: Stores Equipment | I97: Transportation
I98: Stores Equipment
I99: Net Depreciation | K99: =K94-K97-K98 -> -3204832.26
A101: Notes:
A103: 1 | B103: Tables in the format outlined above covering all fixed asset accounts should be submitted for the Test Year, Bridge Year and all relevant historical years. At a minimum , the applicant must provide data for the earlier of: 1) all historical years back to its last rebasing; or 2) at least three years of historical actuals, in addition to Bridge Year and Test Year forecasts.
A106: 2 | B106: The "CCA Class" for fixed assets should agree with the CCA Class used for tax purposes in Tax Returns. Fixed Assets sub-components may be used where the underlying asset components are classified under multiple CCA Classes for tax purposes. If an applicant uses any different classes from those shown in the table, an explanation should be provided. (also see note 3 below).
A109: 3 | B109: The table may need to be customized for a utility's asset categories or for any new asset accounts announced or authorized by the Board.
A111: 4 | B111: The depreciation column (D) is not required as the relevant information will be provided in the following 2-C series of appendices.

Sheet App.2-B_Gross Assets_Summary
L1: File Number: | N1: File Number: | O1: ='LDC Info'!$E$18 -> EB-2012-0167
L2: Exhibit: | N2: Exhibit: | O2: 2
L3: Tab: | N3: Tab: | O3: 2
L4: Schedule: | N4: Schedule: | O4: 2
L5: Page: | N5: Page: | O5: 1
L7: Date: | N7: Date: | O7: 2012-11-08
A9: Appendix 2-B
A10: Gross Asset Continuity Schedule Summary
A12: Table 2-2.7-Gross Asset Continuity Schedule Summary | E12: Year | F12: 2009-2013 CGAAP 2013 MCGAAP
A15: CCA Class | B15: OEB | C15: Description | D15: 2009 Board Approved | E15: 2009 Actual | F15: Variance from 2009 OEB Approved | G15: 2010 Actual | H15: Variance from 2009 Actual | I15: 2011 Actual | J15: Variance from 2010 Actual | K15: 2012 Bridge CGAAP | L15: Variance from 2011 Actual | M15: 2013 Test CGAAP | N15: Variance from 2012 Bridge | O15: 2013 Test MCGAAP | P15: Variance from 2012 Bridge | Q15: Variance from 2013 CGAAP
A16: 12 | B16: 1611 | C16: Computer Software (Formally known as Account 1925) | D16: ='App.2-B_FA Continuity_2009_OEB'!H16 -> 775496.38 | E16: ='App.2-B_FA Continuity_2009_Act'!H16 -> 765366.46 | F16: =E16-D16 -> -10129.92 | G16: ='App.2-B_FA Continuity_2010'!H16 -> 779512.17 | H16: =G16-E16 -> 14145.71 | I16: ='App.2-B_FA Continuity_2011'!H16 -> 819828.5 | J16: =I16-G16 -> 40316.33 | K16: ='App.2-B_FA Continuity_2012CGAAP'!H16 -> 1179532.5 | L16: =K16-I16 -> 359704 | M16: ='App.2-B_FA Continuity_2013CGAAP'!H17 -> 1256732.5 | N16: =M16-K16 -> 77200 | O16: ='App.2-B_FA Continuity_2013MCGAA'!H17 -> 1256732.5 | P16: =O16-K16 -> 77200 | Q16: =O16-M16 -> 0
A17: CEC | B17: 1612 | C17: Land Rights (Formally known as Account 1906) | D17: ='App.2-B_FA Continuity_2009_OEB'!H17 -> 0 | E17: ='App.2-B_FA Continuity_2009_Act'!H17 -> 0 | F17: =E17-D17 -> 0 | G17: ='App.2-B_FA Continuity_2010'!H17 -> 0 | H17: =G17-E17 -> 0 | I17: ='App.2-B_FA Continuity_2011'!H17 -> 0 | J17: =I17-G17 -> 0 | K17: ='App.2-B_FA Continuity_2012CGAAP'!H17 -> 0 | L17: =K17-I17 -> 0 | M17: ='App.2-B_FA Continuity_2013CGAAP'!H18 -> 0 | N17: 0 | O17: ='App.2-B_FA Continuity_2013MCGAA'!H18 -> 0 | P17: =O17-K17 -> 0 | Q17: =O17-M17 -> 0
A18: Land and Buildings | N18: 0 | Q18: 0
A19: N/A | B19: 1805 | C19: Land | D19: ='App.2-B_FA Continuity_2009_OEB'!H18 -> 133037.5 | E19: ='App.2-B_FA Continuity_2009_Act'!H18 -> 133037.5 | F19: =E19-D19 -> 0 | G19: ='App.2-B_FA Continuity_2010'!H18 -> 133037.5 | H19: =G19-E19 -> 0 | I19: ='App.2-B_FA Continuity_2011'!H18 -> 133037.5 | J19: 0 | K19: ='App.2-B_FA Continuity_2012CGAAP'!H18 -> 133037.5 | L19: 0 | M19: ='App.2-B_FA Continuity_2013CGAAP'!H19 -> 133037.5 | N19: 0 | O19: ='App.2-B_FA Continuity_2013MCGAA'!H19 -> 133037.5 | P19: 0 | Q19: 0
A20: 47 | B20: 1808 | C20: Buildings | D20: ='App.2-B_FA Continuity_2009_OEB'!H19 -> 4029354.5 | E20: ='App.2-B_FA Continuity_2009_Act'!H19 -> 3932847.5 | F20: =E20-D20 -> -96507 | G20: ='App.2-B_FA Continuity_2010'!H19 -> 3932847.5 | H20: =G20-E20 -> 0 | I20: ='App.2-B_FA Continuity_2011'!H19 -> 3932847.5 | J20: 0 | K20: ='App.2-B_FA Continuity_2012CGAAP'!H19 -> 3932847.5 | L20: 0 | M20: ='App.2-B_FA Continuity_2013CGAAP'!H20-M21 -> 3812388.5 | N20: -120459 | O20: ='App.2-B_FA Continuity_2013MCGAA'!H20 -> 3812388.5 | P20: -120459 | Q20: 0
A21: 47 | B21: 1808 | C21: Garage | M21: 3300000 | N21: 3300000 | O21: ='App.2-B_FA Continuity_2013MCGAA'!H21 -> 3300000 | P21: 3300000 | Q21: 0
A22: 13 | B22: 1810 | C22: Leasehold Improvements | D22: ='App.2-B_FA Continuity_2009_OEB'!H20 -> 0 | E22: ='App.2-B_FA Continuity_2009_Act'!H20 -> 33.45 | F22: =E22-D22 -> 33.45 | G22: ='App.2-B_FA Continuity_2010'!H20 -> 33.45 | H22: =G22-E22 -> 0 | I22: ='App.2-B_FA Continuity_2011'!H20 -> 2506.55 | J22: 2473.1 | K22: ='App.2-B_FA Continuity_2012CGAAP'!H20 -> 75506.55 | L22: 73000 | M22: ='App.2-B_FA Continuity_2013CGAAP'!H22 -> 75506.55 | N22: 0 | O22: ='App.2-B_FA Continuity_2013MCGAA'!H22 -> 75506.55 | P22: 0 | Q22: 0
A23: Sub-Total Land and Buildings | D23: =SUM(D18:D22) -> 4162392 | E23: 4065918.45 | F23: -96473.55 | G23: 4065918.45 | H23: 0 | I23: 4068391.55 | J23: 2473.1 | K23: 4141391.55 | L23: 73000 | M23: =SUM(M18:M22) -> 7320932.55 | N23: 3179541 | O23: 7320932.55 | P23: 3179541 | Q23: 0
A24: 47 | B24: 1815 | C24: Transformer Station Equipment >50 kV | D24: ='App.2-B_FA Continuity_2009_OEB'!H21 -> 0 | E24: ='App.2-B_FA Continuity_2009_Act'!H21 -> 0 | F24: =E24-D24 -> 0 | G24: ='App.2-B_FA Continuity_2010'!H21 -> 0 | H24: =G24-E24 -> 0 | I24: ='App.2-B_FA Continuity_2011'!H21 -> 0 | J24: 0 | K24: ='App.2-B_FA Continuity_2012CGAAP'!H21 -> 0 | L24: 0 | M24: ='App.2-B_FA Continuity_2012CGAAP'!J21 -> 0 | N24: 0 | O24: =L24-J24 -> 0 | P24: 0 | Q24: =O24-M24 -> 0
A25: DS
A26: 47 | B26: 1820 | C26: Distribution Station Equipment <50 kV | D26: ='App.2-B_FA Continuity_2009_OEB'!H22 -> 8099698.35 | E26: ='App.2-B_FA Continuity_2009_Act'!H22 -> 8099698.35 | F26: =E26-D26 -> 0 | G26: ='App.2-B_FA Continuity_2010'!H22 -> 8124041.55 | H26: =G26-E26 -> 24343.2 | I26: ='App.2-B_FA Continuity_2011'!H22 -> 8124041.55 | J26: 0 | K26: ='App.2-B_FA Continuity_2012CGAAP'!H22 -> 8124041.55 | L26: 0 | M26: ='App.2-B_FA Continuity_2013CGAAP'!H24 -> 8124041.55 | N26: 0 | O26: ='App.2-B_FA Continuity_2013MCGAA'!H24 -> 8125920.55 | P26: 1879 | Q26: =O26-M26 -> 1879
A27: 47 | B27: 1820 | C27: Distribution Station Equipment ARO | O27: ='App.2-B_FA Continuity_2013MCGAA'!H23 -> 45124.53 | Q27: =O27-M27 -> 45124.53
A28: Sub-Total DS
A29: 47 | B29: 1825 | C29: Storage Battery Equipment | D29: ='App.2-B_FA Continuity_2009_OEB'!H23 -> 0 | E29: ='App.2-B_FA Continuity_2009_Act'!H23 -> 0 | F29: =E29-D29 -> 0 | G29: ='App.2-B_FA Continuity_2010'!H23 -> 0 | H29: =G29-E29 -> 0 | I29: ='App.2-B_FA Continuity_2011'!H23 -> 0 | J29: 0 | K29: ='App.2-B_FA Continuity_2012CGAAP'!H23 -> 0 | L29: 0 | M29: ='App.2-B_FA Continuity_2013CGAAP'!H25 -> 0 | N29: 0 | O29: ='App.2-B_FA Continuity_2013MCGAA'!H25 -> 0 | P29: 0 | Q29: =O29-M29 -> 0
A30: Poles and Wires
A31: 47 | B31: 1830 | C31: Poles, Towers & Fixtures | D31: ='App.2-B_FA Continuity_2009_OEB'!H24 -> 22598260.43 | E31: ='App.2-B_FA Continuity_2009_Act'!H24 -> 24189852.08 | F31: =E31-D31 -> 1591591.65 | G31: ='App.2-B_FA Continuity_2010'!H24 -> 26463585.56 | H31: =G31-E31 -> 2273733.48 | I31: ='App.2-B_FA Continuity_2011'!H24 -> 29146085.69 | J31: 2682500.13 | K31: ='App.2-B_FA Continuity_2012CGAAP'!H24 -> 33222322.27 | L31: 4076236.58 | M31: ='App.2-B_FA Continuity_2013CGAAP'!H26 -> 36578231.27 | N31: 3355909 | O31: ='App.2-B_FA Continuity_2013MCGAA'!H26+119724+12084 -> 36074504.97 | P31: 2852182.703 | Q31: =O31-M31 -> -503726.2968
A32: 47 | B32: 1835 | C32: Overhead Conductors & Devices | D32: ='App.2-B_FA Continuity_2009_OEB'!H25 -> 26085933.21 | E32: ='App.2-B_FA Continuity_2009_Act'!H25 -> 25985369.1 | F32: =E32-D32 -> -100564.11 | G32: ='App.2-B_FA Continuity_2010'!H25 -> 27698210.1 | H32: =G32-E32 -> 1712841 | I32: ='App.2-B_FA Continuity_2011'!H25 -> 29835513.79 | J32: 2137303.69 | K32: ='App.2-B_FA Continuity_2012CGAAP'!H25 -> 33417558.71 | L32: 3582044.92 | M32: ='App.2-B_FA Continuity_2013CGAAP'!H27 -> 36812604.71 | N32: 3395046 | O32: ='App.2-B_FA Continuity_2013MCGAA'!H29+28034122+4127885+1032998 -> 35919189.54 | P32: 2501630.83 | Q32: =O32-M32 -> -893415.1696
A33: 47 | B33: 1840 | C33: Underground Conduit | D33: ='App.2-B_FA Continuity_2009_OEB'!H26 -> 12177358.16 | E33: ='App.2-B_FA Continuity_2009_Act'!H26 -> 12313195.29 | F33: =E33-D33 -> 135837.13 | G33: ='App.2-B_FA Continuity_2010'!H26 -> 12688093.21 | H33: =G33-E33 -> 374897.92 | I33: ='App.2-B_FA Continuity_2011'!H26 -> 13614954.86 | J33: 926861.65 | K33: ='App.2-B_FA Continuity_2012CGAAP'!H26 -> 13902979.53 | L33: 288024.67 | M33: ='App.2-B_FA Continuity_2013CGAAP'!H28 -> 14149550.53 | N33: 246571 | O33: ='App.2-B_FA Continuity_2013MCGAA'!H33+11466994+1257688 -> 14109113.37 | P33: 206133.84 | Q33: -40437.16
A34: 47 | B34: 1845 | C34: Underground Conductors & Devices | D34: ='App.2-B_FA Continuity_2009_OEB'!H27 -> 16186137.79 | E34: ='App.2-B_FA Continuity_2009_Act'!H27 -> 15959948.67 | F34: =E34-D34 -> -226189.12 | G34: ='App.2-B_FA Continuity_2010'!H27 -> 16994270.85 | H34: =G34-E34 -> 1034322.18 | I34: ='App.2-B_FA Continuity_2011'!H27 -> 17920134.41 | J34: 925863.56 | K34: ='App.2-B_FA Continuity_2012CGAAP'!H27 -> 19183315.92 | L34: 1263181.51 | M34: ='App.2-B_FA Continuity_2013CGAAP'!H29 -> 19787611.92 | N34: 604296 | O34: ='App.2-B_FA Continuity_2013MCGAA'!H36+4878456+1076901+1161140+738012 -> 19699141.38 | P34: 515825.46 | Q34: -88470.54
A35: Sub-Total Poles and Wires
A36: Line Transformers
A37: 47 | B37: 1850 | C37: Line Transformers | D37: ='App.2-B_FA Continuity_2009_OEB'!H28 -> 25089800.32 | E37: ='App.2-B_FA Continuity_2009_Act'!H28 -> 24460272.52 | F37: =E37-D37 -> -629527.8 | G37: ='App.2-B_FA Continuity_2010'!H28 -> 25866832.86 | H37: =G37-E37 -> 1406560.34 | I37: ='App.2-B_FA Continuity_2011'!H28 -> 26930632.05 | J37: 1063799.19 | K37: ='App.2-B_FA Continuity_2012CGAAP'!H28 -> 28339731.87 | L37: 1409099.82 | M37: ='App.2-B_FA Continuity_2013CGAAP'!H30 -> 29579954.87 | N37: 1240223 | O37: ='App.2-B_FA Continuity_2013MCGAA'!H41+375430+17142410+5525158+5158427 -> 29098594.96 | P37: 758863.0911 | Q37: =O37-M37 -> -481359.9089
A38: 47 | B38: 2320 | C38: ARO | D38: 0 | E38: ='App.2-B_FA Continuity_2009_Act'!H29 -> 512186 | F38: =E38-D38 -> 512186 | G38: ='App.2-B_FA Continuity_2010'!H29 -> 161743 | H38: =G38-E38 -> -350443 | I38: ='App.2-B_FA Continuity_2011'!H29 -> 161743 | J38: =I38-G38 -> 0 | K38: ='App.2-B_FA Continuity_2012CGAAP'!H29 -> 161743 | L38: =K38-I38 -> 0 | M38: ='App.2-B_FA Continuity_2013CGAAP'!H31 -> 161743 | N38: 0 | O38: ='App.2-B_FA Continuity_2013MCGAA'!H46 -> 161742.55 | P38: =O38-K38 -> -0.45 | Q38: =O38-M38 -> -0.45
A39: Sub-Total Line Transformers
A40: Serv
A41: 47 | B41: 1855 | C41: Services (Overhead & Underground) | D41: ='App.2-B_FA Continuity_2009_OEB'!H29 -> 18611502.46 | E41: ='App.2-B_FA Continuity_2009_Act'!H30 -> 18689754.93 | F41: =E41-D41 -> 78252.47 | G41: ='App.2-B_FA Continuity_2010'!H30 -> 19519437.96 | H41: =G41-E41 -> 829683.03 | I41: ='App.2-B_FA Continuity_2011'!H30 -> 20225035.17 | J41: 705597.21 | K41: ='App.2-B_FA Continuity_2012CGAAP'!H30 -> 20869912.1 | L41: 644876.93 | M41: ='App.2-B_FA Continuity_2013CGAAP'!H32 -> 21794426.1 | N41: 924514 | O41: ='App.2-B_FA Continuity_2013MCGAA'!H47+7663606+4714182 -> 21487434.52 | P41: 617522.4175 | Q41: =O41-M41 -> -306991.5825
A42: 47 | B42: 1860 | C42: Meters | D42: ='App.2-B_FA Continuity_2009_OEB'!H30 -> 6027260.67 | E42: ='App.2-B_FA Continuity_2009_Act'!H31 -> 1009625.39 | F42: -5017635.28 | G42: ='App.2-B_FA Continuity_2010'!H31 -> 1077396.4 | H42: 67771.01 | I42: ='App.2-B_FA Continuity_2011'!H31 -> 1177816.13 | J42: 100419.73 | K42: ='App.2-B_FA Continuity_2012CGAAP'!H31 -> 1192672.857 | L42: 14856.7272 | M42: ='App.2-B_FA Continuity_2013CGAAP'!H33 -> 1203661.917 | N42: 10989.06 | O42: ='App.2-B_FA Continuity_2013MCGAA'!H50+'App.2-B_FA Continuity_2013MCGAA'!H51+'App.2-B_FA Continuity_2013MCGAA'!H52 -> 1217672.857 | P42: 25000 | Q42: =O42-M42 -> 14010.94
A43: 47 | B43: 1860 | C43: Meters (Smart Meters) | D43: ='App.2-B_FA Continuity_2009_OEB'!H31 -> 0 | E43: ='App.2-B_FA Continuity_2009_Act'!H32 -> 0 | F43: 0 | G43: ='App.2-B_FA Continuity_2010'!H32 -> 0 | H43: 0 | I43: ='App.2-B_FA Continuity_2011'!H32 -> 0 | J43: 0 | K43: ='App.2-B_FA Continuity_2012CGAAP'!H32 -> 8019670.393 | L43: 8019670.393 | M43: ='App.2-B_FA Continuity_2013CGAAP'!H34 -> 8191832.333 | N43: 172161.94 | O43: ='App.2-B_FA Continuity_2013MCGAA'!H54+'App.2-B_FA Continuity_2013MCGAA'!H55+'App.2-B_FA Continuity_2013MCGAA'!H56+'App.2-B_FA Continuity_2013MCGAA'!H57 -> 8138044.393 | P43: 118374 | Q43: -53787.94
A44: N/A | B44: 1905 | C44: Land | D44: ='App.2-B_FA Continuity_2009_OEB'!H32 -> 0 | E44: ='App.2-B_FA Continuity_2009_Act'!H33 -> 0 | F44: 0 | G44: ='App.2-B_FA Continuity_2010'!H33 -> 0 | H44: 0 | I44: ='App.2-B_FA Continuity_2011'!H33 -> 0 | J44: 0 | K44: ='App.2-B_FA Continuity_2012CGAAP'!H33 -> 0 | L44: 0 | M44: ='App.2-B_FA Continuity_2013CGAAP'!H35 -> 0 | N44: 0 | O44: ='App.2-B_FA Continuity_2013CGAAP'!H35 -> 0 | P44: 0 | Q44: 0
A45: 47 | B45: 1908 | C45: Buildings & Fixtures | D45: ='App.2-B_FA Continuity_2009_OEB'!H33 -> 0 | E45: ='App.2-B_FA Continuity_2009_Act'!H34 -> 0 | F45: 0 | G45: ='App.2-B_FA Continuity_2010'!H34 -> 0 | H45: 0 | I45: ='App.2-B_FA Continuity_2011'!H34 -> 0 | J45: 0 | K45: ='App.2-B_FA Continuity_2012CGAAP'!H34 -> 0 | L45: 0 | M45: ='App.2-B_FA Continuity_2013CGAAP'!H36 -> 0 | N45: 0 | O45: ='App.2-B_FA Continuity_2013CGAAP'!H36 -> 0 | P45: 0 | Q45: 0
A46: 13 | B46: 1910 | C46: Leasehold Improvements | D46: ='App.2-B_FA Continuity_2009_OEB'!H34 -> 0 | E46: ='App.2-B_FA Continuity_2009_Act'!H35 -> 0 | F46: 0 | G46: ='App.2-B_FA Continuity_2010'!H35 -> 0 | H46: 0 | I46: ='App.2-B_FA Continuity_2011'!H35 -> 0 | J46: 0 | K46: ='App.2-B_FA Continuity_2012CGAAP'!H35 -> 0 | L46: 0 | M46: ='App.2-B_FA Continuity_2013CGAAP'!H37 -> 0 | N46: 0 | O46: ='App.2-B_FA Continuity_2013CGAAP'!H37 -> 0 | P46: 0 | Q46: 0
A47: 8 | B47: 1915 | C47: Office Furniture & Equipment (10 years) | D47: ='App.2-B_FA Continuity_2009_OEB'!H35 -> 1351787.89 | E47: ='App.2-B_FA Continuity_2009_Act'!H36 -> 1278837.3 | F47: -72950.59 | G47: ='App.2-B_FA Continuity_2010'!H36 -> 1344490.46 | H47: 65653.16 | I47: ='App.2-B_FA Continuity_2011'!H36 -> 1429254.74 | J47: 84764.28 | K47: ='App.2-B_FA Continuity_2012CGAAP'!H36 -> 1420038.71 | L47: -9216.03 | M47: ='App.2-B_FA Continuity_2013CGAAP'!H38 -> 1456088.71 | N47: 36050 | O47: ='App.2-B_FA Continuity_2013MCGAA'!H61 -> 1456088.71 | P47: 36050 | Q47: 0
A48: 8 | B48: 1915 | C48: Office Furniture & Equipment (5 years) | D48: ='App.2-B_FA Continuity_2009_OEB'!H36 -> 0 | E48: ='App.2-B_FA Continuity_2009_Act'!H37 -> 0 | F48: 0 | G48: ='App.2-B_FA Continuity_2010'!H37 -> 0 | H48: 0 | I48: ='App.2-B_FA Continuity_2011'!H37 -> 0 | J48: 0 | K48: ='App.2-B_FA Continuity_2012CGAAP'!H37 -> 0 | L48: 0 | M48: ='App.2-B_FA Continuity_2013CGAAP'!H39 -> 0 | N48: 0 | O48: ='App.2-B_FA Continuity_2013CGAAP'!H39 -> 0 | P48: 0 | Q48: 0
A49: 10 | B49: 1920 | C49: Computer Equipment - Hardware | D49: ='App.2-B_FA Continuity_2009_OEB'!H37 -> 2812162.95 | E49: ='App.2-B_FA Continuity_2009_Act'!H38 -> 2675298.61 | F49: -136864.34 | G49: ='App.2-B_FA Continuity_2010'!H38 -> 2698324.72 | H49: 23026.11 | I49: ='App.2-B_FA Continuity_2011'!H38 -> 2795925.09 | J49: 97600.37 | K49: ='App.2-B_FA Continuity_2012CGAAP'!H38 -> 2955562.09 | L49: 159637 | M49: ='App.2-B_FA Continuity_2013CGAAP'!H40 -> 2992962.09 | N49: 37400 | O49: ='App.2-B_FA Continuity_2013MCGAA'!H63 -> 2992962.09 | P49: 37400 | Q49: 0
A50: 45 | B50: 1920 | C50: Computer Equip.-Hardware(Post Mar. 22/04) | D50: ='App.2-B_FA Continuity_2009_OEB'!H38 -> 0 | E50: ='App.2-B_FA Continuity_2009_Act'!H39 -> 0 | F50: 0 | G50: ='App.2-B_FA Continuity_2010'!H39 -> 0 | H50: 0 | I50: ='App.2-B_FA Continuity_2011'!H39 -> 0 | J50: 0 | K50: ='App.2-B_FA Continuity_2012CGAAP'!H39 -> 0 | L50: 0 | M50: ='App.2-B_FA Continuity_2013CGAAP'!H41 -> 0 | N50: 0 | O50: ='App.2-B_FA Continuity_2013CGAAP'!H41 -> 0 | P50: 0 | Q50: 0
A51: 45.1 | B51: 1920 | C51: Computer Equip.-Hardware(Post Mar. 19/07) | D51: ='App.2-B_FA Continuity_2009_OEB'!H39 -> 0 | E51: ='App.2-B_FA Continuity_2009_Act'!H40 -> 0 | F51: 0 | G51: ='App.2-B_FA Continuity_2010'!H40 -> 0 | H51: 0 | I51: ='App.2-B_FA Continuity_2011'!H40 -> 0 | J51: 0 | K51: ='App.2-B_FA Continuity_2012CGAAP'!H40 -> 0 | L51: 0 | M51: ='App.2-B_FA Continuity_2012CGAAP'!J40 -> 0 | N51: 0 | O51: ='App.2-B_FA Continuity_2013CGAAP'!H42 -> 0 | P51: 0 | Q51: 0
A52: 10 | B52: 1930 | C52: Transportation Equipment | D52: ='App.2-B_FA Continuity_2009_OEB'!H40 -> 5695964.3 | E52: ='App.2-B_FA Continuity_2009_Act'!H41 -> 5456943.39 | F52: -239020.91 | G52: ='App.2-B_FA Continuity_2010'!H41 -> 6219428.7 | H52: 762485.31 | I52: ='App.2-B_FA Continuity_2011'!H41 -> 6536994.94 | J52: 317566.24 | K52: ='App.2-B_FA Continuity_2012CGAAP'!H41 -> 6543848.96 | L52: 6854.02 | M52: ='App.2-B_FA Continuity_2013CGAAP'!H43 -> 7140683.07 | N52: 596834.11 | O52: ='App.2-B_FA Continuity_2013MCGAA'!H66+'App.2-B_FA Continuity_2013MCGAA'!H67+'App.2-B_FA Continuity_2013MCGAA'!H68 -> 7140683.07 | P52: 596834.11 | Q52: 0
A53: 8 | B53: 1935 | C53: Stores Equipment | D53: ='App.2-B_FA Continuity_2009_OEB'!H41 -> 63417.16 | E53: ='App.2-B_FA Continuity_2009_Act'!H42 -> 63417.16 | F53: 0 | G53: ='App.2-B_FA Continuity_2010'!H42 -> 63417.16 | H53: 0 | I53: ='App.2-B_FA Continuity_2011'!H42 -> 63417.16 | J53: 0 | K53: ='App.2-B_FA Continuity_2012CGAAP'!H42 -> 63417.16 | L53: 0 | M53: ='App.2-B_FA Continuity_2013CGAAP'!H44 -> 63417.16 | N53: 0 | O53: ='App.2-B_FA Continuity_2013MCGAA'!H69 -> 63417.16 | P53: 0 | Q53: 0
A54: 8 | B54: 1940 | C54: Tools, Shop & Garage Equipment | D54: ='App.2-B_FA Continuity_2009_OEB'!H42 -> 2332649.28 | E54: ='App.2-B_FA Continuity_2009_Act'!H43 -> 2418533.77 | F54: 85884.49 | G54: ='App.2-B_FA Continuity_2010'!H43 -> 2441737.86 | H54: 23204.09 | I54: ='App.2-B_FA Continuity_2011'!H43 -> 2464871.86 | J54: 23134 | K54: ='App.2-B_FA Continuity_2012CGAAP'!H43 -> 2516456.86 | L54: 51585 | M54: ='App.2-B_FA Continuity_2013CGAAP'!H45 -> 2590156.86 | N54: 73700 | O54: ='App.2-B_FA Continuity_2013MCGAA'!H70 -> 2590156.86 | P54: 73700 | Q54: 0
A55: 8 | B55: 1945 | C55: Measurement & Testing Equipment | D55: ='App.2-B_FA Continuity_2009_OEB'!H43 -> 221724.16 | E55: ='App.2-B_FA Continuity_2009_Act'!H44 -> 221991.36 | F55: 267.2 | G55: ='App.2-B_FA Continuity_2010'!H44 -> 256824.78 | H55: 34833.42 | I55: ='App.2-B_FA Continuity_2011'!H44 -> 270461.43 | J55: 13636.65 | K55: ='App.2-B_FA Continuity_2012CGAAP'!H44 -> 294334.43 | L55: 23873 | M55: ='App.2-B_FA Continuity_2013CGAAP'!H46 -> 317274.43 | N55: 22940 | O55: ='App.2-B_FA Continuity_2013MCGAA'!H71 -> 317274.43 | P55: 22940 | Q55: 0
A56: 8 | B56: 1950 | C56: Power Operated Equipment | D56: ='App.2-B_FA Continuity_2009_OEB'!H44 -> 133583.39 | E56: ='App.2-B_FA Continuity_2009_Act'!H45 -> 127816.96 | F56: -5766.43 | G56: ='App.2-B_FA Continuity_2010'!H45 -> 194621.96 | H56: 66805 | I56: ='App.2-B_FA Continuity_2011'!H45 -> 194621.96 | J56: 0 | K56: ='App.2-B_FA Continuity_2012CGAAP'!H45 -> 194621.96 | L56: 0 | M56: ='App.2-B_FA Continuity_2013CGAAP'!H47 -> 208021.96 | N56: 13400 | O56: ='App.2-B_FA Continuity_2013MCGAA'!H72 -> 208021.96 | P56: 13400 | Q56: 0
A57: 8 | B57: 1955 | C57: Communications Equipment | D57: ='App.2-B_FA Continuity_2009_OEB'!H45 -> 163391.53 | E57: ='App.2-B_FA Continuity_2009_Act'!H46 -> 163391.53 | F57: 0 | G57: ='App.2-B_FA Continuity_2010'!H46 -> 186532.82 | H57: 23141.29 | I57: ='App.2-B_FA Continuity_2011'!H46 -> 212476.77 | J57: 25943.95 | K57: ='App.2-B_FA Continuity_2012CGAAP'!H46 -> 240488.77 | L57: 28012 | M57: ='App.2-B_FA Continuity_2013CGAAP'!H48 -> 345244.77 | N57: 104756 | O57: ='App.2-B_FA Continuity_2013MCGAA'!H73 -> 345244.77 | P57: 104756 | Q57: 0
A58: 8 | B58: 1955 | C58: Communication Equipment (Smart Meters) | D58: ='App.2-B_FA Continuity_2009_OEB'!H46 -> 0 | E58: ='App.2-B_FA Continuity_2009_Act'!H47 -> 0 | F58: 0 | G58: ='App.2-B_FA Continuity_2010'!H47 -> 0 | H58: 0 | I58: ='App.2-B_FA Continuity_2011'!H47 -> 0 | J58: 0 | K58: ='App.2-B_FA Continuity_2012CGAAP'!H47 -> 0 | L58: 0 | M58: ='App.2-B_FA Continuity_2013CGAAP'!H49 -> 0 | N58: 0 | O58: ='App.2-B_FA Continuity_2013CGAAP'!H49 -> 0 | P58: 0 | Q58: 0
A59: 8 | B59: 1960 | C59: Miscellaneous Equipment | D59: ='App.2-B_FA Continuity_2009_OEB'!H47 -> 0 | E59: ='App.2-B_FA Continuity_2009_Act'!H48 -> 0 | F59: 0 | G59: ='App.2-B_FA Continuity_2010'!H48 -> 0 | H59: 0 | I59: ='App.2-B_FA Continuity_2011'!H48 -> 0 | J59: 0 | K59: ='App.2-B_FA Continuity_2012CGAAP'!H48 -> 0 | L59: 0 | M59: ='App.2-B_FA Continuity_2013CGAAP'!H50 -> 0 | N59: 0 | O59: ='App.2-B_FA Continuity_2013CGAAP'!H50 -> 0 | P59: 0 | Q59: 0
A60: 47 | B60: 1975 | C60: Load Management Controls Utility Premises | D60: ='App.2-B_FA Continuity_2009_OEB'!H48 -> 0 | E60: ='App.2-B_FA Continuity_2009_Act'!H49 -> 0 | F60: 0 | G60: ='App.2-B_FA Continuity_2010'!H49 -> 0 | H60: 0 | I60: ='App.2-B_FA Continuity_2011'!H49 -> 0 | J60: 0 | K60: ='App.2-B_FA Continuity_2012CGAAP'!H49 -> 0 | L60: 0 | M60: ='App.2-B_FA Continuity_2013CGAAP'!H51 -> 0 | N60: 0 | O60: ='App.2-B_FA Continuity_2013CGAAP'!H51 -> 0 | P60: 0 | Q60: 0
A61: 47 | B61: 1980 | C61: System Supervisor Equipment | D61: ='App.2-B_FA Continuity_2009_OEB'!H49 -> 515151.7 | E61: ='App.2-B_FA Continuity_2009_Act'!H50 -> 515151.7 | F61: 0 | G61: ='App.2-B_FA Continuity_2010'!H50 -> 515151.7 | H61: 0 | I61: ='App.2-B_FA Continuity_2011'!H50 -> 515151.7 | J61: 0 | K61: ='App.2-B_FA Continuity_2012CGAAP'!H50 -> 566625.7 | L61: 51474 | M61: ='App.2-B_FA Continuity_2013CGAAP'!H52 -> 568702.7 | N61: 2077 | O61: ='App.2-B_FA Continuity_2013MCGAA'!H77 -> 566625.7 | P61: 0 | Q61: =O61-M61 -> -2077
A62: 47 | B62: 1985 | C62: Miscellaneous Fixed Assets | D62: ='App.2-B_FA Continuity_2009_OEB'!H50 -> 0 | E62: ='App.2-B_FA Continuity_2009_Act'!H51 -> 0 | F62: 0 | G62: ='App.2-B_FA Continuity_2010'!H51 -> 0 | H62: 0 | I62: ='App.2-B_FA Continuity_2011'!H51 -> 0 | J62: 0 | K62: ='App.2-B_FA Continuity_2012CGAAP'!H51 -> 0 | L62: 0 | M62: ='App.2-B_FA Continuity_2013CGAAP'!H53 -> 0 | N62: 0 | O62: ='App.2-B_FA Continuity_2013CGAAP'!H53 -> 0 | P62: 0 | Q62: 0
B63: 2440 | C63: Deferred Revenue | M63: ='App.2-B_FA Continuity_2013CGAAP'!H54 -> 0 | O63: ='App.2-B_FA Continuity_2013MCGAA'!H79 -> -989984.66 | P63: -989984.66 | Q63: -989984.66
A64: 47 | B64: 1995 | C64: Contributions & Grants | D64: ='App.2-B_FA Continuity_2009_OEB'!H51 -> -8926024.46 | E64: ='App.2-B_FA Continuity_2009_Act'!H52 -> -10244703.15 | F64: -1318678.69 | G64: ='App.2-B_FA Continuity_2010'!H52 -> -12744351.77 | H64: -2499648.62 | I64: ='App.2-B_FA Continuity_2011'!H52 -> -15702404.83 | J64: -2958053.06 | K64: ='App.2-B_FA Continuity_2012CGAAP'!H52 -> -17725329.83 | L64: -2022925 | M64: ='App.2-B_FA Continuity_2013CGAAP'!H55 -> -18770163.83 | N64: -1044834 | O64: ='App.2-B_FA Continuity_2013MCGAA'!H80 -> -17725329.83 | P64: 0 | Q64: 1044834
A65: 47 | B65: 1996 | C65: Hydro One Current & Voltage Transformer | D65: ='App.2-B_FA Continuity_2009_OEB'!H52 -> 1355872.83 | E65: ='App.2-B_FA Continuity_2009_Act'!H53 -> 894171 | F65: -461701.83 | G65: ='App.2-B_FA Continuity_2010'!H53 -> 1272321 | H65: 378150 | I65: ='App.2-B_FA Continuity_2011'!H53 -> 1272321 | J65: 0 | K65: ='App.2-B_FA Continuity_2012CGAAP'!H53 -> 1272321 | L65: =K65-I65 -> 0 | M65: ='App.2-B_FA Continuity_2013CGAAP'!H56 -> 1272321 | N65: 0 | O65: ='App.2-B_FA Continuity_2013MCGAA'!H81 -> 1272321 | P65: =O65-K65 -> 0 | Q65: 0
A66: WIP | C66: Work in Process | D66: ='App.2-B_FA Continuity_2009_OEB'!H53 -> 494000 | E66: ='App.2-B_FA Continuity_2009_Act'!H54 -> 1276696 | F66: 782696 | G66: ='App.2-B_FA Continuity_2010'!H54 -> 1758058 | H66: 481362 | I66: ='App.2-B_FA Continuity_2011'!H54 -> 2950259 | J66: 1192201 | K66: ='App.2-B_FA Continuity_2012CGAAP'!H54 -> 1268794 | L66: -1681465 | M66: ='App.2-B_FA Continuity_2013CGAAP'!H57 -> 1077982 | N66: -190812 | O66: ='App.2-B_FA Continuity_2013MCGAA'!H82 -> 983556 | P66: -285238 | Q66: -94426
K67: ='App.2-B_FA Continuity_2012CGAAP'!H55 -> 0 | L67: 0 | N67: 0 | O67: ='App.2-B_FA Continuity_2013CGAAP'!H58 -> 0 | P67: 0 | Q67: 0
C68: Total | D68: =SUM(D16:D66)-D23 -> 146027520.5 | E68: 140898732.9 | F68: -5128787.63 | G68: 147645599.5 | H68: 6746866.63 | I68: 155027527.5 | J68: 7381928.02 | K68: 171366052.1 | L68: 16338524.54 | M68: =SUM(M16:M66)-M23 -> 184224014.2 | N68: 12857962.11 | O68: 181875185.9 | P68: 10464009.34 | Q68: =SUM(Q16:Q66)-Q23 -> -2348828.238
A70: Notes:
A72: 1 | B72: Tables in the format outlined above covering all fixed asset accounts should be submitted for the Test Year, Bridge Year and all relevant historical years. At a minimum , the applicant must provide data for the earlier of: 1) all historical years back to its last rebasing; or 2) at least three years of historical actuals, in addition to Bridge Year and Test Year forecasts.
A75: 2 | B75: The "CCA Class" for fixed assets should agree with the CCA Class used for tax purposes in Tax Returns. Fixed Assets sub-components may be used where the underlying asset components are classified under multiple CCA Classes for tax purposes. If an applicant uses any different classes from those shown in the table, an explanation should be provided. (also see note 3 below).
A78: 3 | B78: The table may need to be customized for a utility's asset categories or for any new asset accounts announced or authorized by the Board.
A80: 4 | B80: The depreciation column (D) is not required as the relevant information will be provided in the following 2-C series of appendices.

Sheet App.2-CA_CGAAP_DepExp_2011 (hidden)
K1: File Number: | L1: ='LDC Info'!$E$18 -> EB-2012-0167
K2: Exhibit:
K3: Tab:
K4: Schedule:
K5: Page:
K7: Date:
A9: Appendix 2-CA
A10: Depreciation and Amortization Expense
A11: Assumes the applicant adopted IFRS for financial reporting purposes January 1, 2012
C12: Year | D12: 2011 | E12: CGAAP
A14: Account | B14: Description | C14: Opening Regulatory Gross PP&E as at Jan 1, 2011 | D14: Less Fully Depreciated | E14: Net for Depreciation | F14: Additions | G14: Total for Depreciation | H14: Years | I14: Depreciation Rate | J14: Depreciation Expense | K14: 2011 Depreciation Expense per Appendix 2-B Fixed Assets, Column K (l) | L14: Variance 2
C15: (a) | D15: (b) | E15: (c) | F15: (d) | G15: (e) = (c) + ½ x (d) 1 | H15: (f) | I15: (g) = 1 / (f) | J15: (h) = (e) / (f) | L15: (m) = (h) - (l)
A16: 1611 | B16: Computer Software (Formally known as Account 1925) | E16: =C16-D16 -> 0 | G16: =E16+0.5*F16 -> 0 | I16: =IF(H16=0,0,1/H16) -> 0 | J16: =IF(H16=0,0,G16/H16) -> 0 | L16: =IF(ISERROR(+J16-K16), 0, +J16-K16) -> 0
A17: 1612 | B17: Land Rights (Formally known as Account 1906) | E17: =C17-D17 -> 0 | G17: =E17+0.5*F17 -> 0 | I17: 0 | J17: 0 | L17: 0
A18: 1805 | B18: Land | E18: 0 | G18: 0 | I18: 0 | J18: 0 | L18: 0
A19: 1808 | B19: Buildings | E19: 0 | G19: 0 | I19: 0 | J19: 0 | L19: 0
A20: 1810 | B20: Leasehold Improvements | E20: 0 | G20: 0 | I20: 0 | J20: 0 | L20: 0
A21: 1815 | B21: Transformer Station Equipment >50 kV | E21: 0 | G21: 0 | I21: 0 | J21: 0 | L21: 0
A22: 1820 | B22: Distribution Station Equipment <50 kV | E22: 0 | G22: 0 | I22: 0 | J22: 0 | L22: 0
A23: 1825 | B23: Storage Battery Equipment | E23: 0 | G23: 0 | I23: 0 | J23: 0 | L23: 0
A24: 1830 | B24: Poles, Towers & Fixtures | E24: 0 | G24: 0 | I24: 0 | J24: 0 | L24: 0
A25: 1835 | B25: Overhead Conductors & Devices | E25: 0 | G25: 0 | I25: 0 | J25: 0 | L25: 0
A26: 1840 | B26: Underground Conduit | E26: 0 | G26: 0 | I26: 0 | J26: 0 | L26: 0
A27: 1845 | B27: Underground Conductors & Devices | E27: 0 | G27: 0 | I27: 0 | J27: 0 | L27: 0
A28: 1850 | B28: Line Transformers | E28: 0 | G28: 0 | I28: 0 | J28: 0 | L28: 0
A29: 1855 | B29: Services (Overhead & Underground) | E29: 0 | G29: 0 | I29: 0 | J29: 0 | L29: 0
A30: 1860 | B30: Meters | E30: 0 | G30: 0 | I30: 0 | J30: 0 | L30: 0
A31: 1860 | B31: Meters (Smart Meters) | E31: 0 | G31: 0 | I31: 0 | J31: 0 | L31: 0
A32: 1905 | B32: Land | E32: 0 | G32: 0 | I32: 0 | J32: 0 | L32: 0
A33: 1908 | B33: Buildings & Fixtures | E33: 0 | G33: 0 | I33: 0 | J33: 0 | L33: 0
A34: 1910 | B34: Leasehold Improvements | E34: 0 | G34: 0 | I34: 0 | J34: 0 | L34: 0
A35: 1915 | B35: Office Furniture & Equipment (10 years) | E35: 0 | G35: 0 | I35: 0 | J35: 0 | L35: 0
A36: 1915 | B36: Office Furniture & Equipment (5 years) | E36: 0 | G36: 0 | I36: 0 | J36: 0 | L36: 0
A37: 1920 | B37: Computer Equipment - Hardware | E37: 0 | G37: 0 | I37: 0 | J37: 0 | L37: 0
A38: 1920 | B38: Computer Equip.-Hardware(Post Mar. 22/04) | E38: 0 | G38: 0 | I38: 0 | J38: 0 | L38: 0
A39: 1920 | B39: Computer Equip.-Hardware(Post Mar. 19/07) | E39: 0 | G39: 0 | I39: 0 | J39: 0 | L39: 0
A40: 1930 | B40: Transportation Equipment | E40: 0 | G40: 0 | I40: 0 | J40: 0 | L40: 0
A41: 1935 | B41: Stores Equipment | E41: 0 | G41: 0 | I41: 0 | J41: 0 | L41: 0
A42: 1940 | B42: Tools, Shop & Garage Equipment | E42: 0 | G42: 0 | I42: 0 | J42: 0 | L42: 0
A43: 1945 | B43: Measurement & Testing Equipment | E43: 0 | G43: 0 | I43: 0 | J43: 0 | L43: 0
A44: 1950 | B44: Power Operated Equipment | E44: 0 | G44: 0 | I44: 0 | J44: 0 | L44: 0
A45: 1955 | B45: Communications Equipment | E45: 0 | G45: 0 | I45: 0 | J45: 0 | L45: 0
A46: 1955 | B46: Communication Equipment (Smart Meters) | E46: 0 | G46: 0 | I46: 0 | J46: 0 | L46: 0
A47: 1960 | B47: Miscellaneous Equipment | E47: 0 | G47: 0 | I47: 0 | J47: 0 | L47: 0
A48: 1975 | B48: Load Management Controls Utility Premises | E48: 0 | G48: 0 | I48: 0 | J48: 0 | L48: 0
A49: 1980 | B49: System Supervisor Equipment | E49: 0 | G49: 0 | I49: 0 | J49: 0 | L49: 0
A50: 1985 | B50: Miscellaneous Fixed Assets | E50: 0 | G50: 0 | I50: 0 | J50: 0 | L50: 0
A51: 1995 | B51: Contributions & Grants | E51: 0 | G51: 0 | I51: 0 | J51: 0 | L51: 0
A52: etc. | E52: 0 | G52: 0 | I52: 0 | J52: 0 | L52: 0
E53: 0 | G53: 0 | I53: 0 | J53: 0 | L53: 0
B54: Total | C54: =SUM(C16:C53) -> 0 | D54: =SUM(D16:D53) -> 0 | E54: =SUM(E16:E53) -> 0 | F54: =SUM(F16:F53) -> 0 | G54: =SUM(G16:G53) -> 0 | J54: =SUM(J16:J53) -> 0 | K54: =SUM(K16:K53) -> 0 | L54: =SUM(L16:L53) -> 0
A56: Notes:
A58: 1 | B58: Board policy of the "half-year" rule - the applicant must ensure that additions in the year attract a half-year depreciation expense in the first year. Deviations from this standard practice must be supported in the application.
A59: 2 | B59: The applicant must provide an explanation of material variances in evidence
A61: General | B61: Applicants must provide a breakdown of depreciation and amortization expense in the above format for all relevant accounts. Asset Retirement Obligations (AROs), depreciation and accretion expense should be disclosed separately consistent with the Notes of historical Audited Financial Statements.

Sheet App.2-CB_MIFRS_DepExp_2011 (hidden)
N1: File Number: | O1: ='LDC Info'!$E$18 -> EB-2012-0167
N2: Exhibit:
N3: Tab:
N4: Schedule:
N5: Page:
N7: Date:
A9: Appendix 2-CB
A10: Depreciation and Amortization Expense
A11: Assumes the applicant adopted IFRS for financial reporting purposes January 1, 2012
C12: Year | D12: 2011 | E12: MIFRS
A14: Account | B14: Description | C14: Opening NBV as at Jan 1, 2011 5 | D14: Additions | E14: Average Remaining Life of Opening NBV 4 | F14: Years (new additions only) 3 | G14: Depreciation Rate on New Additions | H14: Depreciation Expense on Opening NBV | I14: Depreciation Expense on Additions 1 | J14: 2011 Depreciation Expense | K14: 2011 Depreciation Expense per Appendix 2-B Fixed Assets, Column K (l) | L14: Variance 2 | M14: Depreciation Expense on 2011 Full Year Additions | N14: Less Depreciation Expense on Assets Fully Depreciated during the year (o) | O14: 2011 Full Year Depreciation 6
C15: (a) | D15: (d) | E15: (i) | F15: (f) | G15: (g) = 1 / (f) | H15: (j) = (a) / (i) | I15: (h)=((d)*0.5)/(f) | J15: (k) = (j) + (h) | L15: (m) = (k) - (l) | M15: (n) = (d)/(f) | O15: (p) = (j) + (n) - (o)
A16: 1611 | B16: Computer Software (Formally known as Account 1925) | G16: =IF(F16=0,0,1/F16) -> 0 | H16: =IF(E16=0,0,+C16/E16) -> 0 | I16: =IF(F16=0,0,+(D16*0.5)/F16) -> 0 | J16: =IF(ISERROR(+H16+I16), 0, +H16+I16) -> 0 | L16: =IF(ISERROR(+J16-K16), 0, +J16-K16) -> 0 | M16: =IF(F16=0,0,+(D16)/F16) -> 0 | O16: =IF(ISERROR(+M16+H16-N16), 0, +M16+H16-N16) -> 0
A17: 1612 | B17: Land Rights (Formally known as Account 1906) | G17: 0 | H17: 0 | I17: 0 | J17: 0 | L17: 0 | M17: 0 | O17: =IF(ISERROR(+M17+H17-N17), 0, +M17+H17-N17) -> 0
A18: 1805 | B18: Land | G18: 0 | H18: 0 | I18: 0 | J18: 0 | L18: 0 | M18: 0 | O18: 0
A19: 1808 | B19: Buildings | G19: 0 | H19: 0 | I19: 0 | J19: 0 | L19: 0 | M19: 0 | O19: 0
A20: 1810 | B20: Leasehold Improvements | G20: 0 | H20: 0 | I20: 0 | J20: 0 | L20: 0 | M20: 0 | O20: 0
A21: 1815 | B21: Transformer Station Equipment >50 kV | G21: 0 | H21: 0 | I21: 0 | J21: 0 | L21: 0 | M21: 0 | O21: 0
A22: 1820 | B22: Distribution Station Equipment <50 kV | G22: 0 | H22: 0 | I22: 0 | J22: 0 | L22: 0 | M22: 0 | O22: 0
A23: 1825 | B23: Storage Battery Equipment | G23: 0 | H23: 0 | I23: 0 | J23: 0 | L23: 0 | M23: 0 | O23: 0
A24: 1830 | B24: Poles, Towers & Fixtures | G24: 0 | H24: 0 | I24: 0 | J24: 0 | L24: 0 | M24: 0 | O24: 0
A25: 1835 | B25: Overhead Conductors & Devices | G25: 0 | H25: 0 | I25: 0 | J25: 0 | L25: 0 | M25: 0 | O25: 0
A26: 1840 | B26: Underground Conduit | G26: 0 | H26: 0 | I26: 0 | J26: 0 | L26: 0 | M26: 0 | O26: 0
A27: 1845 | B27: Underground Conductors & Devices | G27: 0 | H27: 0 | I27: 0 | J27: 0 | L27: 0 | M27: 0 | O27: 0
A28: 1850 | B28: Line Transformers | G28: 0 | H28: 0 | I28: 0 | J28: 0 | L28: 0 | M28: 0 | O28: 0
A29: 1855 | B29: Services (Overhead & Underground) | G29: 0 | H29: 0 | I29: 0 | J29: 0 | L29: 0 | M29: 0 | O29: 0
A30: 1860 | B30: Meters | G30: 0 | H30: 0 | I30: 0 | J30: 0 | L30: 0 | M30: 0 | O30: 0
A31: 1860 | B31: Meters (Smart Meters) | G31: 0 | H31: 0 | I31: 0 | J31: 0 | L31: 0 | M31: 0 | O31: 0
A32: 1905 | B32: Land | G32: 0 | H32: 0 | I32: 0 | J32: 0 | L32: 0 | M32: 0 | O32: 0
A33: 1908 | B33: Buildings & Fixtures | G33: 0 | H33: 0 | I33: 0 | J33: 0 | L33: 0 | M33: 0 | O33: 0
A34: 1910 | B34: Leasehold Improvements | G34: 0 | H34: 0 | I34: 0 | J34: 0 | L34: 0 | M34: 0 | O34: 0
A35: 1915 | B35: Office Furniture & Equipment (10 years) | G35: 0 | H35: 0 | I35: 0 | J35: 0 | L35: 0 | M35: 0 | O35: 0
A36: 1915 | B36: Office Furniture & Equipment (5 years) | G36: 0 | H36: 0 | I36: 0 | J36: 0 | L36: 0 | M36: 0 | O36: 0
A37: 1920 | B37: Computer Equipment - Hardware | G37: 0 | H37: 0 | I37: 0 | J37: 0 | L37: 0 | M37: 0 | O37: 0
A38: 1920 | B38: Computer Equip.-Hardware(Post Mar. 22/04) | G38: 0 | H38: 0 | I38: 0 | J38: 0 | L38: 0 | M38: 0 | O38: 0
A39: 1920 | B39: Computer Equip.-Hardware(Post Mar. 19/07) | G39: 0 | H39: 0 | I39: 0 | J39: 0 | L39: 0 | M39: 0 | O39: 0
A40: 1930 | B40: Transportation Equipment | G40: 0 | H40: 0 | I40: 0 | J40: 0 | L40: 0 | M40: 0 | O40: 0
A41: 1935 | B41: Stores Equipment | G41: 0 | H41: 0 | I41: 0 | J41: 0 | L41: 0 | M41: 0 | O41: 0
A42: 1940 | B42: Tools, Shop & Garage Equipment | G42: 0 | H42: 0 | I42: 0 | J42: 0 | L42: 0 | M42: 0 | O42: 0
A43: 1945 | B43: Measurement & Testing Equipment | G43: 0 | H43: 0 | I43: 0 | J43: 0 | L43: 0 | M43: 0 | O43: 0
A44: 1950 | B44: Power Operated Equipment | G44: 0 | H44: 0 | I44: 0 | J44: 0 | L44: 0 | M44: 0 | O44: 0
A45: 1955 | B45: Communications Equipment | G45: 0 | H45: 0 | I45: 0 | J45: 0 | L45: 0 | M45: 0 | O45: 0
A46: 1955 | B46: Communication Equipment (Smart Meters) | G46: 0 | H46: 0 | I46: 0 | J46: 0 | L46: 0 | M46: 0 | O46: 0
A47: 1960 | B47: Miscellaneous Equipment | G47: 0 | H47: 0 | I47: 0 | J47: 0 | L47: 0 | M47: 0 | O47: 0
A48: 1975 | B48: Load Management Controls Utility Premises | G48: 0 | H48: 0 | I48: 0 | J48: 0 | L48: 0 | M48: 0 | O48: 0
A49: 1980 | B49: System Supervisor Equipment | G49: 0 | H49: 0 | I49: 0 | J49: 0 | L49: 0 | M49: 0 | O49: 0
A50: 1985 | B50: Miscellaneous Fixed Assets | G50: 0 | H50: 0 | I50: 0 | J50: 0 | L50: 0 | M50: 0 | O50: 0
A51: 1995 | B51: Contributions & Grants | G51: 0 | H51: 0 | I51: 0 | J51: 0 | L51: 0 | M51: 0 | O51: 0
A52: etc. | G52: 0 | H52: 0 | I52: 0 | J52: 0 | L52: 0 | M52: 0 | O52: 0
G53: 0 | H53: 0 | I53: 0 | J53: 0 | L53: 0 | M53: 0 | O53: 0
B54: Total | C54: =SUM(C16:C53) -> 0 | D54: =SUM(D16:D53) -> 0 | H54: =SUM(H16:H53) -> 0 | I54: 0 | J54: 0 | K54: 0 | L54: 0 | M54: 0 | N54: =SUM(N16:N53) -> 0 | O54: 0
A56: Notes:
A58: 1 | B58: Board policy of the "half-year" rule - the applicant must ensure that additions in the year attract a half-year depreciation expense in the first year. Deviations from this standard practice must be supported in the application.
A59: 2 | B59: The applicant must provide an explanation of material variances in evidence
A60: 3 | B60: The applicant should ensure that the years for new additions of assets are the asset useful lives determined by management in accordance with IFRS.
A61: 4 | B61: A recalculation should be performed to determine the average remaining life of opening balance of assets (i.e. excluding 2011 additions) under IFRS. For example, Asset A had a useful life of 20 years under CGAAP. On January 1, 2011, the date of transition, Asset A was 3 years depreciated. As a result, Asset A would have a remaining service life of 17 years (20 years less 3 years) under CGAAP as of January 1, 2011. Due to the transition to IFRS, management re-assessed the asset useful lives under IFRS principles and concluded that the revised useful life of Asset A is now 30 years. Therefore, the average remaining useful life of opening balance of Asset A is determined to be 27 years (30 years less 3 years) under IFRS as of January 1, 2011.
A62: 5 | B62: NBV must exclude assets still on the books but which have been fully amortized or depreciated.
A63: 6 | B63: This column refers to the calculated full year depreciation but excludes the depreciation expense on assets fully depreciated during the year. This column is used for the purpose of calculating depreciation expense in the following year on the next worksheet.
A65: General: | B65: Applicants must provide a breakdown of depreciation and amortization expense in the above format for all relevant accounts. Asset Retirement Obligations (AROs), depreciation and accretion expense should be disclosed separately consistent with the Notes of historical Audited Financial Statements.

Sheet App.2-CC_MIFRS_DepExp_2012 (hidden)
J1: File Number: | K1: ='LDC Info'!$E$18 -> EB-2012-0167
J2: Exhibit:
J3: Tab:
J4: Schedule:
J5: Page:
J7: Date:
A9: Appendix 2-CC
A10: Depreciation and Amortization Expense
A11: Assumes the applicant adopted IFRS for financial reporting purposes January 1, 2012
C12: 2012 | D12: MIFRS
A14: Account | B14: Description | C14: Additions | D14: Years (new additions only) | E14: Depreciation Rate on New Additions | F14: 2012 Depreciation Expense 1 | G14: 2012 Depreciation Expense per Apppendix 2-B Fixed Assets, Column K (l) | H14: Variance 2 | I14: Depreciation Expense on 2012 Full Year Additions | J14: Less Depreciation Expense on Assets Fully Depreciated during the year (o) | K14: 2012 Full Year Depreciation 3
C15: (d) | D15: (f) | E15: (g) = 1 / (f) | F15: (h)=2011 Full Year Deprecation + ((d)*0.5)/(f) | H15: (m) = (h) - (l) | I15: (n)=((d))/(f) | K15: (o) = 2011 Full Year Depreciation + (n) - (o)
A16: 1611 | B16: Computer Software (Formally known as Account 1925) | C16: =SUM(#REF!) ->  | D16: 2 | E16: =IF(D16=0,0,1/D16) -> 0.5 | F16: =IF(D16=0,+'App.2-CB_MIFRS_DepExp_2011'!O16,+'App.2-CB_MIFRS_DepExp_2011'!O16+((C16*0.5)/D16)) ->  | G16: =SUM(#REF!)*-1 ->  | H16: =IF(ISERROR(+F16-G16), 0, +F16-G16) -> 0 | I16: =IF(D16=0,0,+(C16)/D16) ->  | J16: 0 | K16: =IF(ISERROR(+I16+'App.2-CB_MIFRS_DepExp_2011'!O16-J16), 0, +I16+'App.2-CB_MIFRS_DepExp_2011'!O16-J16) -> 0
A17: 1612 | B17: Land Rights (Formally known as Account 1906) | C17: =SUM(#REF!) ->  | D17: 0 | E17: 0 | F17: =IF(D17=0,+'App.2-CB_MIFRS_DepExp_2011'!O17,+'App.2-CB_MIFRS_DepExp_2011'!O17+((C17*0.5)/D17)) -> 0 | G17: =SUM(#REF!) ->  | H17: 0 | I17: 0 | K17: =IF(ISERROR(+I17+'App.2-CB_MIFRS_DepExp_2011'!O17-J17), 0, +I17+'App.2-CB_MIFRS_DepExp_2011'!O17-J17) -> 0
A18: 1805 | B18: Land | C18: =SUM(#REF!) ->  | D18: 0 | E18: 0 | F18: =IF(D18=0,+'App.2-CB_MIFRS_DepExp_2011'!O18,+'App.2-CB_MIFRS_DepExp_2011'!O18+((C18*0.5)/D18)) -> 0 | G18: =SUM(#REF!) ->  | H18: 0 | I18: 0 | K18: =IF(ISERROR(+I18+'App.2-CB_MIFRS_DepExp_2011'!O18-J18), 0, +I18+'App.2-CB_MIFRS_DepExp_2011'!O18-J18) -> 0
A19: 1808 | B19: Buildings | C19: =SUM(#REF!) ->  | D19: 0 | E19: 0 | F19: =IF(D19=0,+'App.2-CB_MIFRS_DepExp_2011'!O19,+'App.2-CB_MIFRS_DepExp_2011'!O19+((C19*0.5)/D19)) -> 0 | G19: =SUM(#REF!)*-1 ->  | H19: 0 | I19: 0 | K19: =IF(ISERROR(+I19+'App.2-CB_MIFRS_DepExp_2011'!O19-J19), 0, +I19+'App.2-CB_MIFRS_DepExp_2011'!O19-J19) -> 0
A20: 1810 | B20: Leasehold Improvements | C20: =SUM(#REF!) ->  | D20: 20 | E20: 0.05 | F20: =IF(D20=0,+'App.2-CB_MIFRS_DepExp_2011'!O20,+'App.2-CB_MIFRS_DepExp_2011'!O20+((C20*0.5)/D20)) ->  | G20: =SUM(#REF!)*-1 ->  | H20: 0 | K20: =IF(ISERROR(+I20+'App.2-CB_MIFRS_DepExp_2011'!O20-J20), 0, +I20+'App.2-CB_MIFRS_DepExp_2011'!O20-J20) -> 0
A21: 1815 | B21: Transformer Station Equipment >50 kV | C21: =SUM(#REF!) ->  | D21: 0 | E21: 0 | F21: =IF(D21=0,+'App.2-CB_MIFRS_DepExp_2011'!O21,+'App.2-CB_MIFRS_DepExp_2011'!O21+((C21*0.5)/D21)) -> 0 | G21: =SUM(#REF!) ->  | H21: 0 | I21: 0 | K21: =IF(ISERROR(+I21+'App.2-CB_MIFRS_DepExp_2011'!O21-J21), 0, +I21+'App.2-CB_MIFRS_DepExp_2011'!O21-J21) -> 0
A22: 1820 | B22: Distribution Station Equipment <50 kV | C22: 0 | D22: 0 | E22: 0 | F22: =IF(D22=0,+'App.2-CB_MIFRS_DepExp_2011'!O22,+'App.2-CB_MIFRS_DepExp_2011'!O22+((C22*0.5)/D22)) -> 0 | G22: =SUM(#REF!)*-1 ->  | H22: 0 | I22: 0 | K22: =IF(ISERROR(+I22+'App.2-CB_MIFRS_DepExp_2011'!O22-J22), 0, +I22+'App.2-CB_MIFRS_DepExp_2011'!O22-J22) -> 0
B23: Power Transformers (INDIV) | F23: =IF(D23=0,+'App.2-CB_MIFRS_DepExp_2011'!O23,+'App.2-CB_MIFRS_DepExp_2011'!O23+((C23*0.5)/D23)) -> 0 | G23: =SUM(#REF!) ->  | K23: =IF(ISERROR(+I23+'App.2-CB_MIFRS_DepExp_2011'!O23-J23), 0, +I23+'App.2-CB_MIFRS_DepExp_2011'!O23-J23) -> 0
B24: Power Transformers Bushings (Set) | F24: =IF(D24=0,+'App.2-CB_MIFRS_DepExp_2011'!O24,+'App.2-CB_MIFRS_DepExp_2011'!O24+((C24*0.5)/D24)) -> 0 | G24: =SUM(#REF!) ->  | K24: =IF(ISERROR(+I24+'App.2-CB_MIFRS_DepExp_2011'!O24-J24), 0, +I24+'App.2-CB_MIFRS_DepExp_2011'!O24-J24) -> 0
B25: Station Service Transformer (Each) | F25: =IF(D25=0,+'App.2-CB_MIFRS_DepExp_2011'!O25,+'App.2-CB_MIFRS_DepExp_2011'!O25+((C25*0.5)/D25)) -> 0 | G25: =SUM(#REF!) ->  | K25: =IF(ISERROR(+I25+'App.2-CB_MIFRS_DepExp_2011'!O25-J25), 0, +I25+'App.2-CB_MIFRS_DepExp_2011'!O25-J25) -> 0
B26: Station DC Systemm (Each) | F26: =IF(D26=0,+'App.2-CB_MIFRS_DepExp_2011'!O26,+'App.2-CB_MIFRS_DepExp_2011'!O26+((C26*0.5)/D26)) -> 0 | G26: =SUM(#REF!) ->  | K26: =IF(ISERROR(+I26+'App.2-CB_MIFRS_DepExp_2011'!O26-J26), 0, +I26+'App.2-CB_MIFRS_DepExp_2011'!O26-J26) -> 0
B27: Station Battery Bank (Each) | F27: =IF(D27=0,+'App.2-CB_MIFRS_DepExp_2011'!O27,+'App.2-CB_MIFRS_DepExp_2011'!O27+((C27*0.5)/D27)) -> 0 | G27: =SUM(#REF!) ->  | K27: =IF(ISERROR(+I27+'App.2-CB_MIFRS_DepExp_2011'!O27-J27), 0, +I27+'App.2-CB_MIFRS_DepExp_2011'!O27-J27) -> 0
B28: Station Battery Charger (Each) | F28: =IF(D28=0,+'App.2-CB_MIFRS_DepExp_2011'!O28,+'App.2-CB_MIFRS_DepExp_2011'!O28+((C28*0.5)/D28)) -> 0 | G28: =SUM(#REF!) ->  | K28: =IF(ISERROR(+I28+'App.2-CB_MIFRS_DepExp_2011'!O28-J28), 0, +I28+'App.2-CB_MIFRS_DepExp_2011'!O28-J28) -> 0
B29: Station Metal Clad Switchgear | F29: =IF(D29=0,+'App.2-CB_MIFRS_DepExp_2011'!O29,+'App.2-CB_MIFRS_DepExp_2011'!O29+((C29*0.5)/D29)) -> 0 | G29: =SUM(#REF!) ->  | K29: =IF(ISERROR(+I29+'App.2-CB_MIFRS_DepExp_2011'!O29-J29), 0, +I29+'App.2-CB_MIFRS_DepExp_2011'!O29-J29) -> 0
B30: Station Independent Breakers | F30: =IF(D30=0,+'App.2-CB_MIFRS_DepExp_2011'!O30,+'App.2-CB_MIFRS_DepExp_2011'!O30+((C30*0.5)/D30)) -> 0 | G30: =SUM(#REF!) ->  | K30: =IF(ISERROR(+I30+'App.2-CB_MIFRS_DepExp_2011'!O30-J30), 0, +I30+'App.2-CB_MIFRS_DepExp_2011'!O30-J30) -> 0
B31: Station Switch (Each) | F31: =IF(D31=0,+'App.2-CB_MIFRS_DepExp_2011'!O31,+'App.2-CB_MIFRS_DepExp_2011'!O31+((C31*0.5)/D31)) -> 0 | G31: =SUM(#REF!) ->  | K31: =IF(ISERROR(+I31+'App.2-CB_MIFRS_DepExp_2011'!O31-J31), 0, +I31+'App.2-CB_MIFRS_DepExp_2011'!O31-J31) -> 0
B32: Reclosers (Each) | F32: =IF(D32=0,+'App.2-CB_MIFRS_DepExp_2011'!O32,+'App.2-CB_MIFRS_DepExp_2011'!O32+((C32*0.5)/D32)) -> 0 | G32: =SUM(#REF!) ->  | K32: =IF(ISERROR(+I32+'App.2-CB_MIFRS_DepExp_2011'!O32-J32), 0, +I32+'App.2-CB_MIFRS_DepExp_2011'!O32-J32) -> 0
B33: SCADA Switches (Each) | F33: =IF(D33=0,+'App.2-CB_MIFRS_DepExp_2011'!O33,+'App.2-CB_MIFRS_DepExp_2011'!O33+((C33*0.5)/D33)) -> 0 | G33: =SUM(#REF!) ->  | K33: =IF(ISERROR(+I33+'App.2-CB_MIFRS_DepExp_2011'!O33-J33), 0, +I33+'App.2-CB_MIFRS_DepExp_2011'!O33-J33) -> 0
B34: System Reclosers | F34: =IF(D34=0,+'App.2-CB_MIFRS_DepExp_2011'!O34,+'App.2-CB_MIFRS_DepExp_2011'!O34+((C34*0.5)/D34)) -> 0 | G34: =SUM(#REF!) ->  | K34: =IF(ISERROR(+I34+'App.2-CB_MIFRS_DepExp_2011'!O34-J34), 0, +I34+'App.2-CB_MIFRS_DepExp_2011'!O34-J34) -> 0
A35: 1825 | B35: Storage Battery Equipment | C35: =SUM(#REF!) ->  | D35: 0 | E35: 0 | F35: =IF(D35=0,+'App.2-CB_MIFRS_DepExp_2011'!O35,+'App.2-CB_MIFRS_DepExp_2011'!O35+((C35*0.5)/D35)) -> 0 | G35: =SUM(#REF!) ->  | H35: 0 | I35: 0 | K35: =IF(ISERROR(+I35+'App.2-CB_MIFRS_DepExp_2011'!O35-J35), 0, +I35+'App.2-CB_MIFRS_DepExp_2011'!O35-J35) -> 0
A36: 1830 | B36: Poles, Towers & Fixtures | E36: 0 | F36: =IF(D36=0,+'App.2-CB_MIFRS_DepExp_2011'!O36,+'App.2-CB_MIFRS_DepExp_2011'!O36+((C36*0.5)/D36)) -> 0 | G36: =SUM(#REF!) ->  | H36: 0 | I36: 0 | K36: =IF(ISERROR(+I36+'App.2-CB_MIFRS_DepExp_2011'!O36-J36), 0, +I36+'App.2-CB_MIFRS_DepExp_2011'!O36-J36) -> 0
B37: Wood Poles | C37: 3775022.48 | D37: 40 | E37: 0.025 | F37: =IF(D37=0,+'App.2-CB_MIFRS_DepExp_2011'!O37,+'App.2-CB_MIFRS_DepExp_2011'!O37+((C37*0.5)/D37)) -> 47187.781 | G37: =SUM(#REF!)*-1 ->  | H37: 0 | I37: 94375.562 | K37: =IF(ISERROR(+I37+'App.2-CB_MIFRS_DepExp_2011'!O37-J37), 0, +I37+'App.2-CB_MIFRS_DepExp_2011'!O37-J37) -> 94375.562
B38: Steel Cross Arms | C38: 6104.58 | D38: 70 | E38: 0.01428571429 | F38: =IF(D38=0,+'App.2-CB_MIFRS_DepExp_2011'!O38,+'App.2-CB_MIFRS_DepExp_2011'!O38+((C38*0.5)/D38)) -> 43.60414286 | G38: =SUM(#REF!)*-1 ->  | H38: 0 | I38: 87.20828571 | K38: =IF(ISERROR(+I38+'App.2-CB_MIFRS_DepExp_2011'!O38-J38), 0, +I38+'App.2-CB_MIFRS_DepExp_2011'!O38-J38) -> 87.20828571
B39: Febre Glass Cross Arms | C39: 1274.01 | D39: 80 | E39: 0.0125 | F39: =IF(D39=0,+'App.2-CB_MIFRS_DepExp_2011'!O39,+'App.2-CB_MIFRS_DepExp_2011'!O39+((C39*0.5)/D39)) -> 7.9625625 | G39: =SUM(#REF!)*-1 ->  | H39: 0 | I39: 15.925125 | K39: =IF(ISERROR(+I39+'App.2-CB_MIFRS_DepExp_2011'!O39-J39), 0, +I39+'App.2-CB_MIFRS_DepExp_2011'!O39-J39) -> 15.925125
A40: 1835 | B40: Overhead Conductors & Devices | E40: 0 | F40: =IF(D40=0,+'App.2-CB_MIFRS_DepExp_2011'!O40,+'App.2-CB_MIFRS_DepExp_2011'!O40+((C40*0.5)/D40)) -> 0 | G40: =SUM(#REF!) ->  | H40: 0 | I40: 0 | K40: =IF(ISERROR(+I40+'App.2-CB_MIFRS_DepExp_2011'!O40-J40), 0, +I40+'App.2-CB_MIFRS_DepExp_2011'!O40-J40) -> 0
B41: Insulators | F41: =IF(D41=0,+'App.2-CB_MIFRS_DepExp_2011'!O41,+'App.2-CB_MIFRS_DepExp_2011'!O41+((C41*0.5)/D41)) -> 0 | G41: =SUM(#REF!) ->  | K41: =IF(ISERROR(+I41+'App.2-CB_MIFRS_DepExp_2011'!O41-J41), 0, +I41+'App.2-CB_MIFRS_DepExp_2011'!O41-J41) -> 0
B42: Manual Overhead Switches | C42: 124000 | D42: 40 | F42: =IF(D42=0,+'App.2-CB_MIFRS_DepExp_2011'!O42,+'App.2-CB_MIFRS_DepExp_2011'!O42+((C42*0.5)/D42)) -> 1550 | G42: =SUM(#REF!) ->  | H42: 0 | I42: 3100 | K42: =IF(ISERROR(+I42+'App.2-CB_MIFRS_DepExp_2011'!O42-J42), 0, +I42+'App.2-CB_MIFRS_DepExp_2011'!O42-J42) -> 3100
B43: Remote Automated OH Switches | F43: =IF(D43=0,+'App.2-CB_MIFRS_DepExp_2011'!O43,+'App.2-CB_MIFRS_DepExp_2011'!O43+((C43*0.5)/D43)) -> 0 | G43: =SUM(#REF!) ->  | K43: =IF(ISERROR(+I43+'App.2-CB_MIFRS_DepExp_2011'!O43-J43), 0, +I43+'App.2-CB_MIFRS_DepExp_2011'!O43-J43) -> 0
B44: Remote Automated Switch Motors | F44: =IF(D44=0,+'App.2-CB_MIFRS_DepExp_2011'!O44,+'App.2-CB_MIFRS_DepExp_2011'!O44+((C44*0.5)/D44)) -> 0 | G44: =SUM(#REF!) ->  | K44: =IF(ISERROR(+I44+'App.2-CB_MIFRS_DepExp_2011'!O44-J44), 0, +I44+'App.2-CB_MIFRS_DepExp_2011'!O44-J44) -> 0
B45: RTU Switches | F45: =IF(D45=0,+'App.2-CB_MIFRS_DepExp_2011'!O45,+'App.2-CB_MIFRS_DepExp_2011'!O45+((C45*0.5)/D45)) -> 0 | G45: =SUM(#REF!) ->  | K45: =IF(ISERROR(+I45+'App.2-CB_MIFRS_DepExp_2011'!O45-J45), 0, +I45+'App.2-CB_MIFRS_DepExp_2011'!O45-J45) -> 0
B46: Conductors - Primary and Neutral | C46: 1994864.45 | D46: 60 | F46: =IF(D46=0,+'App.2-CB_MIFRS_DepExp_2011'!O46,+'App.2-CB_MIFRS_DepExp_2011'!O46+((C46*0.5)/D46)) -> 16623.87042 | G46: =SUM(#REF!)*-1 ->  | H46: 0 | I46: 33247.74083 | K46: =IF(ISERROR(+I46+'App.2-CB_MIFRS_DepExp_2011'!O46-J46), 0, +I46+'App.2-CB_MIFRS_DepExp_2011'!O46-J46) -> 33247.74083
B47: Conductors - Service | C47: 578351.84 | D47: 60 | F47: =IF(D47=0,+'App.2-CB_MIFRS_DepExp_2011'!O47,+'App.2-CB_MIFRS_DepExp_2011'!O47+((C47*0.5)/D47)) -> 4819.598667 | G47: =SUM(#REF!) ->  | H47: 0 | I47: 9639.197333 | K47: =IF(ISERROR(+I47+'App.2-CB_MIFRS_DepExp_2011'!O47-J47), 0, +I47+'App.2-CB_MIFRS_DepExp_2011'!O47-J47) -> 9639.197333
B48: Conductors - Reclosers | C48: 322353 | D48: 40 | F48: =IF(D48=0,+'App.2-CB_MIFRS_DepExp_2011'!O48,+'App.2-CB_MIFRS_DepExp_2011'!O48+((C48*0.5)/D48)) -> 4029.4125 | G48: =SUM(#REF!) ->  | H48: 0 | I48: 8058.825 | K48: =IF(ISERROR(+I48+'App.2-CB_MIFRS_DepExp_2011'!O48-J48), 0, +I48+'App.2-CB_MIFRS_DepExp_2011'!O48-J48) -> 8058.825
A49: 1840 | B49: Underground Conduit | C49: 224920.18 | D49: 80 | E49: 0.0125 | F49: =IF(D49=0,+'App.2-CB_MIFRS_DepExp_2011'!O49,+'App.2-CB_MIFRS_DepExp_2011'!O49+((C49*0.5)/D49)) -> 1405.751125 | G49: =SUM(#REF!)*-1 ->  | H49: 0 | I49: 2811.50225 | K49: =IF(ISERROR(+I49+'App.2-CB_MIFRS_DepExp_2011'!O49-J49), 0, +I49+'App.2-CB_MIFRS_DepExp_2011'!O49-J49) -> 2811.50225
B50: Trenches (per meter) | F50: =IF(D50=0,+'App.2-CB_MIFRS_DepExp_2011'!O50,+'App.2-CB_MIFRS_DepExp_2011'!O50+((C50*0.5)/D50)) -> 0 | G50: =SUM(#REF!) ->  | H50: 0 | K50: =IF(ISERROR(+I50+'App.2-CB_MIFRS_DepExp_2011'!O50-J50), 0, +I50+'App.2-CB_MIFRS_DepExp_2011'!O50-J50) -> 0
B51: Ducts (per foot) | F51: =IF(D51=0,+'App.2-CB_MIFRS_DepExp_2011'!O51,+'App.2-CB_MIFRS_DepExp_2011'!O51+((C51*0.5)/D51)) -> 0 | G51: 0 | H51: 0 | K51: =IF(ISERROR(+I51+'App.2-CB_MIFRS_DepExp_2011'!O51-J51), 0, +I51+'App.2-CB_MIFRS_DepExp_2011'!O51-J51) -> 0
B52: Foundations (Each) | C52: 31690 | D52: 55 | F52: =IF(D52=0,+'App.2-CB_MIFRS_DepExp_2011'!O52,+'App.2-CB_MIFRS_DepExp_2011'!O52+((C52*0.5)/D52)) -> 288.0909091 | G52: =SUM(#REF!) ->  | H52: 0 | I52: 576.1818182 | K52: =IF(ISERROR(+I52+'App.2-CB_MIFRS_DepExp_2011'!O52-J52), 0, +I52+'App.2-CB_MIFRS_DepExp_2011'!O52-J52) -> 576.1818182
B53: Vaults | F53: =IF(D53=0,+'App.2-CB_MIFRS_DepExp_2011'!O53,+'App.2-CB_MIFRS_DepExp_2011'!O53+((C53*0.5)/D53)) -> 0 | G53: =SUM(#REF!) ->  | H53: 0 | K53: =IF(ISERROR(+I53+'App.2-CB_MIFRS_DepExp_2011'!O53-J53), 0, +I53+'App.2-CB_MIFRS_DepExp_2011'!O53-J53) -> 0
A54: 1845 | B54: Underground Conductors & Devices | E54: 0 | F54: =IF(D54=0,+'App.2-CB_MIFRS_DepExp_2011'!O54,+'App.2-CB_MIFRS_DepExp_2011'!O54+((C54*0.5)/D54)) -> 0 | G54: 0 | H54: 0 | I54: 0 | K54: =IF(ISERROR(+I54+'App.2-CB_MIFRS_DepExp_2011'!O54-J54), 0, +I54+'App.2-CB_MIFRS_DepExp_2011'!O54-J54) -> 0
B55: Primary Cables in Duct | C55: 1101371.53 | D55: 40 | F55: =IF(D55=0,+'App.2-CB_MIFRS_DepExp_2011'!O55,+'App.2-CB_MIFRS_DepExp_2011'!O55+((C55*0.5)/D55)) -> 13767.14413 | G55: =SUM(#REF!)*-1 ->  | H55: 0 | I55: 27534.28825 | K55: =IF(ISERROR(+I55+'App.2-CB_MIFRS_DepExp_2011'!O55-J55), 0, +I55+'App.2-CB_MIFRS_DepExp_2011'!O55-J55) -> 27534.28825
B56: Primary Cables Direct Buried | F56: =IF(D56=0,+'App.2-CB_MIFRS_DepExp_2011'!O56,+'App.2-CB_MIFRS_DepExp_2011'!O56+((C56*0.5)/D56)) -> 0 | G56: =SUM(#REF!) ->  | H56: 0 | K56: =IF(ISERROR(+I56+'App.2-CB_MIFRS_DepExp_2011'!O56-J56), 0, +I56+'App.2-CB_MIFRS_DepExp_2011'!O56-J56) -> 0
B57: Secondary Cables in Duct TBH | F57: =IF(D57=0,+'App.2-CB_MIFRS_DepExp_2011'!O57,+'App.2-CB_MIFRS_DepExp_2011'!O57+((C57*0.5)/D57)) -> 0 | G57: =SUM(#REF!) ->  | H57: 0 | K57: =IF(ISERROR(+I57+'App.2-CB_MIFRS_DepExp_2011'!O57-J57), 0, +I57+'App.2-CB_MIFRS_DepExp_2011'!O57-J57) -> 0
B58: Secondary Cables Direct Buried TBH | F58: =IF(D58=0,+'App.2-CB_MIFRS_DepExp_2011'!O58,+'App.2-CB_MIFRS_DepExp_2011'!O58+((C58*0.5)/D58)) -> 0 | G58: =SUM(#REF!) ->  | H58: 0 | K58: =IF(ISERROR(+I58+'App.2-CB_MIFRS_DepExp_2011'!O58-J58), 0, +I58+'App.2-CB_MIFRS_DepExp_2011'!O58-J58) -> 0
B59: UG Switchgear | C59: 50000 | D59: 30 | F59: =IF(D59=0,+'App.2-CB_MIFRS_DepExp_2011'!O59,+'App.2-CB_MIFRS_DepExp_2011'!O59+((C59*0.5)/D59)) -> 833.3333333 | G59: =SUM(#REF!) ->  | H59: 0 | I59: 1666.666667 | K59: =IF(ISERROR(+I59+'App.2-CB_MIFRS_DepExp_2011'!O59-J59), 0, +I59+'App.2-CB_MIFRS_DepExp_2011'!O59-J59) -> 1666.666667
A60: 1850 | B60: Line Transformers | E60: 0 | F60: =IF(D60=0,+'App.2-CB_MIFRS_DepExp_2011'!O60,+'App.2-CB_MIFRS_DepExp_2011'!O60+((C60*0.5)/D60)) -> 0 | G60: =SUM(#REF!) ->  | H60: 0 | I60: =IF(D60=0,0,+(C61)/D60) -> 0 | K60: =IF(ISERROR(+I60+'App.2-CB_MIFRS_DepExp_2011'!O60-J60), 0, +I60+'App.2-CB_MIFRS_DepExp_2011'!O60-J60) -> 0
B61: Pole Top Transformer Single Phase | C61: =SUM(#REF!) ->  | D61: 40 | F61: =IF(D61=0,+'App.2-CB_MIFRS_DepExp_2011'!O61,+'App.2-CB_MIFRS_DepExp_2011'!O61+((C61*0.5)/D61)) ->  | G61: =SUM(#REF!)*-1 ->  | H61: 0 | K61: =IF(ISERROR(+I61+'App.2-CB_MIFRS_DepExp_2011'!O61-J61), 0, +I61+'App.2-CB_MIFRS_DepExp_2011'!O61-J61) -> 0
B62: Pole Top Transformer Three Phase | F62: =IF(D62=0,+'App.2-CB_MIFRS_DepExp_2011'!O62,+'App.2-CB_MIFRS_DepExp_2011'!O62+((C62*0.5)/D62)) -> 0 | H62: 0 | K62: =IF(ISERROR(+I62+'App.2-CB_MIFRS_DepExp_2011'!O62-J62), 0, +I62+'App.2-CB_MIFRS_DepExp_2011'!O62-J62) -> 0
B63: Pad Mount Transformer Single Phase | F63: =IF(D63=0,+'App.2-CB_MIFRS_DepExp_2011'!O63,+'App.2-CB_MIFRS_DepExp_2011'!O63+((C63*0.5)/D63)) -> 0 | H63: 0 | K63: =IF(ISERROR(+I63+'App.2-CB_MIFRS_DepExp_2011'!O63-J63), 0, +I63+'App.2-CB_MIFRS_DepExp_2011'!O63-J63) -> 0
B64: Pad Mount Transformer Three Phase | F64: =IF(D64=0,+'App.2-CB_MIFRS_DepExp_2011'!O64,+'App.2-CB_MIFRS_DepExp_2011'!O64+((C64*0.5)/D64)) -> 0 | H64: 0 | K64: =IF(ISERROR(+I64+'App.2-CB_MIFRS_DepExp_2011'!O64-J64), 0, +I64+'App.2-CB_MIFRS_DepExp_2011'!O64-J64) -> 0
A65: 1855 | B65: Services (Overhead & Underground) | E65: 0 | F65: =IF(D65=0,+'App.2-CB_MIFRS_DepExp_2011'!O65,+'App.2-CB_MIFRS_DepExp_2011'!O65+((C65*0.5)/D65)) -> 0 | G65: =SUM(#REF!) ->  | H65: 0 | I65: 0 | K65: =IF(ISERROR(+I65+'App.2-CB_MIFRS_DepExp_2011'!O65-J65), 0, +I65+'App.2-CB_MIFRS_DepExp_2011'!O65-J65) -> 0
B66: OH Conductors | C66: 108726 | D66: 60 | F66: =IF(D66=0,+'App.2-CB_MIFRS_DepExp_2011'!O66,+'App.2-CB_MIFRS_DepExp_2011'!O66+((C66*0.5)/D66)) -> 906.05 | H66: 906.05 | I66: 1812.1 | K66: =IF(ISERROR(+I66+'App.2-CB_MIFRS_DepExp_2011'!O66-J66), 0, +I66+'App.2-CB_MIFRS_DepExp_2011'!O66-J66) -> 1812.1
B67: UG in Duct | C67: 414614 | D67: 40 | F67: =IF(D67=0,+'App.2-CB_MIFRS_DepExp_2011'!O67,+'App.2-CB_MIFRS_DepExp_2011'!O67+((C67*0.5)/D67)) -> 5182.675 | G67: =SUM(#REF!)*-1 ->  | H67: 0 | I67: 10365.35 | K67: =IF(ISERROR(+I67+'App.2-CB_MIFRS_DepExp_2011'!O67-J67), 0, +I67+'App.2-CB_MIFRS_DepExp_2011'!O67-J67) -> 10365.35
B68: UG Direct Buried | F68: =IF(D68=0,+'App.2-CB_MIFRS_DepExp_2011'!O68,+'App.2-CB_MIFRS_DepExp_2011'!O68+((C68*0.5)/D68)) -> 0 | H68: 0 | K68: =IF(ISERROR(+I68+'App.2-CB_MIFRS_DepExp_2011'!O68-J68), 0, +I68+'App.2-CB_MIFRS_DepExp_2011'!O68-J68) -> 0
A69: 1860 | B69: Meters | E69: 0 | F69: =IF(D69=0,+'App.2-CB_MIFRS_DepExp_2011'!O69,+'App.2-CB_MIFRS_DepExp_2011'!O69+((C69*0.5)/D69)) -> 0 | G69: =SUM(#REF!) ->  | H69: 0 | I69: 0 | K69: =IF(ISERROR(+I69+'App.2-CB_MIFRS_DepExp_2011'!O69-J69), 0, +I69+'App.2-CB_MIFRS_DepExp_2011'!O69-J69) -> 0
B70: CT & PT | F70: =IF(D70=0,+'App.2-CB_MIFRS_DepExp_2011'!O70,+'App.2-CB_MIFRS_DepExp_2011'!O70+((C70*0.5)/D70)) -> 0 | H70: 0 | K70: =IF(ISERROR(+I70+'App.2-CB_MIFRS_DepExp_2011'!O70-J70), 0, +I70+'App.2-CB_MIFRS_DepExp_2011'!O70-J70) -> 0
B71: Primary | C71: 25000 | D71: 50 | F71: =IF(D71=0,+'App.2-CB_MIFRS_DepExp_2011'!O71,+'App.2-CB_MIFRS_DepExp_2011'!O71+((C71*0.5)/D71)) -> 250 | H71: 250 | I71: 500 | K71: =IF(ISERROR(+I71+'App.2-CB_MIFRS_DepExp_2011'!O71-J71), 0, +I71+'App.2-CB_MIFRS_DepExp_2011'!O71-J71) -> 500
A72: 1860 | B72: Meters (Smart Meters) | E72: 0 | F72: =IF(D72=0,+'App.2-CB_MIFRS_DepExp_2011'!O72,+'App.2-CB_MIFRS_DepExp_2011'!O72+((C72*0.5)/D72)) -> 0 | G72: =SUM(#REF!) ->  | H72: 0 | I72: 0 | K72: =IF(ISERROR(+I72+'App.2-CB_MIFRS_DepExp_2011'!O72-J72), 0, +I72+'App.2-CB_MIFRS_DepExp_2011'!O72-J72) -> 0
B73: Smart Meter 1 Phase | C73: 203835.9 | D73: 15 | F73: =IF(D73=0,+'App.2-CB_MIFRS_DepExp_2011'!O73,+'App.2-CB_MIFRS_DepExp_2011'!O73+((C73*0.5)/D73)) -> 6794.53 | G73: =SUM(#REF!)*-1 ->  | H73: 0 | I73: 13589.06 | K73: =IF(ISERROR(+I73+'App.2-CB_MIFRS_DepExp_2011'!O73-J73), 0, +I73+'App.2-CB_MIFRS_DepExp_2011'!O73-J73) -> 13589.06
B74: Smart Meter 3 Phase | C74: 0 | F74: =IF(D74=0,+'App.2-CB_MIFRS_DepExp_2011'!O74,+'App.2-CB_MIFRS_DepExp_2011'!O74+((C74*0.5)/D74)) -> 0 | H74: 0 | K74: =IF(ISERROR(+I74+'App.2-CB_MIFRS_DepExp_2011'!O74-J74), 0, +I74+'App.2-CB_MIFRS_DepExp_2011'!O74-J74) -> 0
B75: Repeaters and Data Collectors | C75: 0 | F75: =IF(D75=0,+'App.2-CB_MIFRS_DepExp_2011'!O75,+'App.2-CB_MIFRS_DepExp_2011'!O75+((C75*0.5)/D75)) -> 0 | H75: 0 | K75: =IF(ISERROR(+I75+'App.2-CB_MIFRS_DepExp_2011'!O75-J75), 0, +I75+'App.2-CB_MIFRS_DepExp_2011'!O75-J75) -> 0
A76: 1905 | B76: Land | C76: =SUM(#REF!) ->  | E76: 0 | F76: =IF(D76=0,+'App.2-CB_MIFRS_DepExp_2011'!O76,+'App.2-CB_MIFRS_DepExp_2011'!O76+((C76*0.5)/D76)) -> 0 | G76: =SUM(#REF!) ->  | H76: 0 | I76: 0 | K76: =IF(ISERROR(+I76+'App.2-CB_MIFRS_DepExp_2011'!O76-J76), 0, +I76+'App.2-CB_MIFRS_DepExp_2011'!O76-J76) -> 0
A77: 1908 | B77: Buildings & Fixtures | C77: =SUM(#REF!) ->  | E77: 0 | F77: =IF(D77=0,+'App.2-CB_MIFRS_DepExp_2011'!O77,+'App.2-CB_MIFRS_DepExp_2011'!O77+((C77*0.5)/D77)) -> 0 | G77: =SUM(#REF!) ->  | H77: 0 | I77: 0 | K77: =IF(ISERROR(+I77+'App.2-CB_MIFRS_DepExp_2011'!O77-J77), 0, +I77+'App.2-CB_MIFRS_DepExp_2011'!O77-J77) -> 0
A78: 1910 | B78: Leasehold Improvements | C78: =SUM(#REF!) ->  | E78: 0 | F78: =IF(D78=0,+'App.2-CB_MIFRS_DepExp_2011'!O78,+'App.2-CB_MIFRS_DepExp_2011'!O78+((C78*0.5)/D78)) -> 0 | G78: =SUM(#REF!) ->  | H78: 0 | I78: 0 | K78: =IF(ISERROR(+I78+'App.2-CB_MIFRS_DepExp_2011'!O78-J78), 0, +I78+'App.2-CB_MIFRS_DepExp_2011'!O78-J78) -> 0
A79: 1915 | B79: Office Furniture & Equipment (10 years) | C79: =SUM(#REF!) ->  | D79: 10 | E79: 0.1 | F79: =IF(D79=0,+'App.2-CB_MIFRS_DepExp_2011'!O79,+'App.2-CB_MIFRS_DepExp_2011'!O79+((C79*0.5)/D79)) ->  | G79: =SUM(#REF!)*-1 ->  | H79: 0 | K79: =IF(ISERROR(+I79+'App.2-CB_MIFRS_DepExp_2011'!O79-J79), 0, +I79+'App.2-CB_MIFRS_DepExp_2011'!O79-J79) -> 0
A80: 1915 | B80: Office Furniture & Equipment (5 years) | C80: =SUM(#REF!) ->  | E80: 0 | F80: =IF(D80=0,+'App.2-CB_MIFRS_DepExp_2011'!O80,+'App.2-CB_MIFRS_DepExp_2011'!O80+((C80*0.5)/D80)) -> 0 | G80: =SUM(#REF!) ->  | H80: 0 | I80: 0 | K80: =IF(ISERROR(+I80+'App.2-CB_MIFRS_DepExp_2011'!O80-J80), 0, +I80+'App.2-CB_MIFRS_DepExp_2011'!O80-J80) -> 0
A81: 1920 | B81: Computer Equipment - Hardware | C81: =SUM(#REF!) ->  | D81: 3 | E81: 0.3333333333 | F81: =IF(D81=0,+'App.2-CB_MIFRS_DepExp_2011'!O81,+'App.2-CB_MIFRS_DepExp_2011'!O81+((C81*0.5)/D81)) ->  | G81: =SUM(#REF!)*-1 ->  | H81: 0 | K81: =IF(ISERROR(+I81+'App.2-CB_MIFRS_DepExp_2011'!O81-J81), 0, +I81+'App.2-CB_MIFRS_DepExp_2011'!O81-J81) -> 0
A82: 1920 | B82: Computer Equip.-Hardware(Post Mar. 22/04) | C82: =SUM(#REF!) ->  | E82: 0 | F82: =IF(D82=0,+'App.2-CB_MIFRS_DepExp_2011'!O82,+'App.2-CB_MIFRS_DepExp_2011'!O82+((C82*0.5)/D82)) -> 0 | G82: =SUM(#REF!) ->  | H82: 0 | I82: 0 | K82: =IF(ISERROR(+I82+'App.2-CB_MIFRS_DepExp_2011'!O82-J82), 0, +I82+'App.2-CB_MIFRS_DepExp_2011'!O82-J82) -> 0
A83: 1920 | B83: Computer Equip.-Hardware(Post Mar. 19/07) | C83: =SUM(#REF!) ->  | E83: 0 | F83: =IF(D83=0,+'App.2-CB_MIFRS_DepExp_2011'!O83,+'App.2-CB_MIFRS_DepExp_2011'!O83+((C83*0.5)/D83)) -> 0 | G83: =SUM(#REF!) ->  | H83: 0 | I83: 0 | K83: =IF(ISERROR(+I83+'App.2-CB_MIFRS_DepExp_2011'!O83-J83), 0, +I83+'App.2-CB_MIFRS_DepExp_2011'!O83-J83) -> 0
A84: 1930 | B84: Transportation Equipment | E84: 0 | F84: =IF(D84=0,+'App.2-CB_MIFRS_DepExp_2011'!O84,+'App.2-CB_MIFRS_DepExp_2011'!O84+((C84*0.5)/D84)) -> 0 | G84: =SUM(#REF!) ->  | H84: 0 | I84: 0 | K84: =IF(ISERROR(+I84+'App.2-CB_MIFRS_DepExp_2011'!O84-J84), 0, +I84+'App.2-CB_MIFRS_DepExp_2011'!O84-J84) -> 0
B85: Trailers | C85: 0 | F85: =IF(D85=0,+'App.2-CB_MIFRS_DepExp_2011'!O85,+'App.2-CB_MIFRS_DepExp_2011'!O85+((C85*0.5)/D85)) -> 0 | G85: =SUM(#REF!) ->  | H85: 0 | K85: =IF(ISERROR(+I85+'App.2-CB_MIFRS_DepExp_2011'!O85-J85), 0, +I85+'App.2-CB_MIFRS_DepExp_2011'!O85-J85) -> 0
B86: Buckets and Heavy Equipment | C86: 299135 | D86: 15 | F86: =IF(D86=0,+'App.2-CB_MIFRS_DepExp_2011'!O86,+'App.2-CB_MIFRS_DepExp_2011'!O86+((C86*0.5)/D86)) -> 9971.166667 | G86: =SUM(#REF!)*-1 ->  | H86: 0 | I86: 19942.33333 | K86: =IF(ISERROR(+I86+'App.2-CB_MIFRS_DepExp_2011'!O86-J86), 0, +I86+'App.2-CB_MIFRS_DepExp_2011'!O86-J86) -> 19942.33333
B87: Light Vehicles | C87: 165588 | D87: 12 | F87: =IF(D87=0,+'App.2-CB_MIFRS_DepExp_2011'!O87,+'App.2-CB_MIFRS_DepExp_2011'!O87+((C87*0.5)/D87)) -> 6899.5 | G87: =SUM(#REF!)*-1 ->  | H87: 0 | I87: 13799 | K87: =IF(ISERROR(+I87+'App.2-CB_MIFRS_DepExp_2011'!O87-J87), 0, +I87+'App.2-CB_MIFRS_DepExp_2011'!O87-J87) -> 13799
A88: 1935 | B88: Stores Equipment | C88: =SUM(#REF!) ->  | E88: 0 | F88: =IF(D88=0,+'App.2-CB_MIFRS_DepExp_2011'!O88,+'App.2-CB_MIFRS_DepExp_2011'!O88+((C88*0.5)/D88)) -> 0 | G88: =SUM(#REF!) ->  | H88: 0 | I88: 0 | K88: =IF(ISERROR(+I88+'App.2-CB_MIFRS_DepExp_2011'!O88-J88), 0, +I88+'App.2-CB_MIFRS_DepExp_2011'!O88-J88) -> 0
A89: 1940 | B89: Tools, Shop & Garage Equipment | C89: =SUM(#REF!) ->  | D89: 10 | E89: 0.1 | F89: =IF(D89=0,+'App.2-CB_MIFRS_DepExp_2011'!O89,+'App.2-CB_MIFRS_DepExp_2011'!O89+((C89*0.5)/D89)) ->  | G89: =SUM(#REF!)*-1 ->  | H89: 0 | K89: =IF(ISERROR(+I89+'App.2-CB_MIFRS_DepExp_2011'!O89-J89), 0, +I89+'App.2-CB_MIFRS_DepExp_2011'!O89-J89) -> 0
A90: 1945 | B90: Measurement & Testing Equipment | C90: =SUM(#REF!) ->  | D90: 10 | E90: 0.1 | F90: =IF(D90=0,+'App.2-CB_MIFRS_DepExp_2011'!O90,+'App.2-CB_MIFRS_DepExp_2011'!O90+((C90*0.5)/D90)) ->  | G90: =SUM(#REF!) ->  | H90: 0 | K90: =IF(ISERROR(+I90+'App.2-CB_MIFRS_DepExp_2011'!O90-J90), 0, +I90+'App.2-CB_MIFRS_DepExp_2011'!O90-J90) -> 0
A91: 1950 | B91: Power Operated Equipment | C91: =SUM(#REF!) ->  | E91: 0 | F91: =IF(D91=0,+'App.2-CB_MIFRS_DepExp_2011'!O91,+'App.2-CB_MIFRS_DepExp_2011'!O91+((C91*0.5)/D91)) -> 0 | G91: =SUM(#REF!) ->  | H91: 0 | I91: 0 | K91: =IF(ISERROR(+I91+'App.2-CB_MIFRS_DepExp_2011'!O91-J91), 0, +I91+'App.2-CB_MIFRS_DepExp_2011'!O91-J91) -> 0
A92: 1955 | B92: Communications Equipment | C92: =SUM(#REF!) ->  | D92: 5 | E92: 0.2 | F92: =IF(D92=0,+'App.2-CB_MIFRS_DepExp_2011'!O92,+'App.2-CB_MIFRS_DepExp_2011'!O92+((C92*0.5)/D92)) ->  | G92: =SUM(#REF!)*-1 ->  | H92: 0 | K92: =IF(ISERROR(+I92+'App.2-CB_MIFRS_DepExp_2011'!O92-J92), 0, +I92+'App.2-CB_MIFRS_DepExp_2011'!O92-J92) -> 0
A93: 1955 | B93: Communication Equipment (Smart Meters) | C93: =SUM(#REF!) ->  | E93: 0 | F93: =IF(D93=0,+'App.2-CB_MIFRS_DepExp_2011'!O93,+'App.2-CB_MIFRS_DepExp_2011'!O93+((C93*0.5)/D93)) -> 0 | G93: =SUM(#REF!) ->  | H93: 0 | I93: 0 | K93: =IF(ISERROR(+I93+'App.2-CB_MIFRS_DepExp_2011'!O93-J93), 0, +I93+'App.2-CB_MIFRS_DepExp_2011'!O93-J93) -> 0
A94: 1960 | B94: Miscellaneous Equipment | C94: =SUM(#REF!) ->  | E94: 0 | F94: =IF(D94=0,+'App.2-CB_MIFRS_DepExp_2011'!O94,+'App.2-CB_MIFRS_DepExp_2011'!O94+((C94*0.5)/D94)) -> 0 | G94: =SUM(#REF!) ->  | H94: 0 | I94: 0 | K94: =IF(ISERROR(+I94+'App.2-CB_MIFRS_DepExp_2011'!O94-J94), 0, +I94+'App.2-CB_MIFRS_DepExp_2011'!O94-J94) -> 0
A95: 1975 | B95: Load Management Controls Utility Premises | C95: =SUM(#REF!) ->  | E95: 0 | F95: =IF(D95=0,+'App.2-CB_MIFRS_DepExp_2011'!O95,+'App.2-CB_MIFRS_DepExp_2011'!O95+((C95*0.5)/D95)) -> 0 | G95: =SUM(#REF!) ->  | H95: 0 | I95: 0 | K95: =IF(ISERROR(+I95+'App.2-CB_MIFRS_DepExp_2011'!O95-J95), 0, +I95+'App.2-CB_MIFRS_DepExp_2011'!O95-J95) -> 0
A96: 1980 | B96: System Supervisor Equipment | C96: =SUM(#REF!) ->  | D96: 50 | E96: 0.02 | F96: =IF(D96=0,+'App.2-CB_MIFRS_DepExp_2011'!O96,+'App.2-CB_MIFRS_DepExp_2011'!O96+((C96*0.5)/D96)) ->  | G96: =SUM(#REF!) ->  | H96: 0 | K96: =IF(ISERROR(+I96+'App.2-CB_MIFRS_DepExp_2011'!O96-J96), 0, +I96+'App.2-CB_MIFRS_DepExp_2011'!O96-J96) -> 0
B97: RTU Switches (Each) | F97: =IF(D97=0,+'App.2-CB_MIFRS_DepExp_2011'!O97,+'App.2-CB_MIFRS_DepExp_2011'!O97+((C97*0.5)/D97)) -> 0 | K97: =IF(ISERROR(+I97+'App.2-CB_MIFRS_DepExp_2011'!O97-J97), 0, +I97+'App.2-CB_MIFRS_DepExp_2011'!O97-J97) -> 0
A98: 1985 | B98: Miscellaneous Fixed Assets | C98: =SUM(#REF!) ->  | E98: 0 | F98: =IF(D98=0,+'App.2-CB_MIFRS_DepExp_2011'!O98,+'App.2-CB_MIFRS_DepExp_2011'!O98+((C98*0.5)/D98)) -> 0 | G98: =SUM(#REF!) ->  | H98: 0 | I98: 0 | K98: =IF(ISERROR(+I98+'App.2-CB_MIFRS_DepExp_2011'!O98-J98), 0, +I98+'App.2-CB_MIFRS_DepExp_2011'!O98-J98) -> 0
B99: Sentinel Lights (Each) | F99: =IF(D99=0,+'App.2-CB_MIFRS_DepExp_2011'!O99,+'App.2-CB_MIFRS_DepExp_2011'!O99+((C99*0.5)/D99)) -> 0 | K99: =IF(ISERROR(+I99+'App.2-CB_MIFRS_DepExp_2011'!O99-J99), 0, +I99+'App.2-CB_MIFRS_DepExp_2011'!O99-J99) -> 0
A100: 1995 | B100: Contributions & Grants | C100: =SUM(#REF!) ->  | D100: 50 | E100: 0.02 | F100: =IF(D100=0,+'App.2-CB_MIFRS_DepExp_2011'!O100,+'App.2-CB_MIFRS_DepExp_2011'!O100+((C100*0.5)/D100)) ->  | G100: =SUM(#REF!)*-1 ->  | H100: 0 | K100: =IF(ISERROR(+I100+'App.2-CB_MIFRS_DepExp_2011'!O100-J100), 0, +I100+'App.2-CB_MIFRS_DepExp_2011'!O100-J100) -> 0
A101: etc. | E101: 0 | F101: =IF(D101=0,+'App.2-CB_MIFRS_DepExp_2011'!O101,+'App.2-CB_MIFRS_DepExp_2011'!O101+((C101*0.5)/D101)) -> 0 | G101: =SUM(#REF!) ->  | H101: 0 | I101: 0 | K101: =IF(ISERROR(+I101+'App.2-CB_MIFRS_DepExp_2011'!O101-J101), 0, +I101+'App.2-CB_MIFRS_DepExp_2011'!O101-J101) -> 0
E102: 0 | F102: =IF(D102=0,+'App.2-CB_MIFRS_DepExp_2011'!O102,+'App.2-CB_MIFRS_DepExp_2011'!O102+((C102*0.5)/D102)) -> 0 | G102: =SUM(#REF!) ->  | H102: 0 | I102: 0 | K102: =IF(ISERROR(+I102+'App.2-CB_MIFRS_DepExp_2011'!O102-J102), 0, +I102+'App.2-CB_MIFRS_DepExp_2011'!O102-J102) -> 0
B103: Total | C103: =SUM(C16:C102) ->  | F103: =SUM(F16:F102) ->  | H103: 1156.05 | J103: 0 | K103: 241120.9409
A105: Notes:
A106: 1 | B106: Board policy of the "half-year" rule - the applicant must ensure that additions in the year attract a half-year depreciation expense in the first year. Deviations from this standard practice must be supported in the application.
A107: 2 | B107: The applicant must provide an explanation of material variances in evidence
A108: 3 | B108: This column refers to the calculated full year depreciation but excludes the depreciation expense on assets fully depreciated during the year. This column is used for the purpose of calculating depreciation expense in the following year on the next worksheet.
A110: General: | B110: Applicants must provide a breakdown of depreciation and amortization expense in the above format for all relevant accounts. Asset Retirement Obligations (AROs), depreciation and accretion expense should be disclosed separately consistent with the Notes of historical Audited Financial Statements.

Sheet App.2-CD_MIFRS_DepExp_2013 (hidden)
G1: File Number: | H1: ='LDC Info'!$E$18 -> EB-2012-0167
G2: Exhibit:
G3: Tab:
G4: Schedule:
G5: Page:
G7: Date:
A9: Appendix 2-CD
A10: Depreciation and Amortization Expense
A11: Assumes the applicant adopted IFRS for financial reporting purposes January 1, 2012
C12: 2013 | D12: MIFRS
A14: Account | B14: Description | C14: Additions | D14: Years (new additions only) | E14: Depreciation Rate on New Additions | F14: 2013 Depreciation Expense 1 | G14: 2013 Depreciation Expense per Appendix 2-B Fixed Assets, Column K (l) | H14: Variance 2
C15: (d) | D15: (f) | E15: (g) = 1 / (f) | F15: (h)=2012 Full Year Depreciation + ((d)*0.5)/(f) | H15: (m) = (h) - (l)
A16: 1611 | B16: Computer Software (Formally known as Account 1925) | E16: =IF(D16=0,0,1/D16) -> 0 | F16: =IF(D16=0,'App.2-CC_MIFRS_DepExp_2012'!K16,+'App.2-CC_MIFRS_DepExp_2012'!K16+((C16*0.5)/D16)) -> 0 | H16: =IF(ISERROR(+F16-G16), 0, +F16-G16) -> 0
A17: 1612 | B17: Land Rights (Formally known as Account 1906) | E17: 0 | F17: =IF(D17=0,'App.2-CC_MIFRS_DepExp_2012'!K17,+'App.2-CC_MIFRS_DepExp_2012'!K17+((C17*0.5)/D17)) -> 0 | H17: 0
A18: 1805 | B18: Land | E18: 0 | F18: =IF(D18=0,'App.2-CC_MIFRS_DepExp_2012'!K18,+'App.2-CC_MIFRS_DepExp_2012'!K18+((C18*0.5)/D18)) -> 0 | H18: 0
A19: 1808 | B19: Buildings | E19: 0 | F19: =IF(D19=0,'App.2-CC_MIFRS_DepExp_2012'!K19,+'App.2-CC_MIFRS_DepExp_2012'!K19+((C19*0.5)/D19)) -> 0 | H19: 0
A20: 1810 | B20: Leasehold Improvements | E20: 0 | F20: =IF(D20=0,'App.2-CC_MIFRS_DepExp_2012'!K20,+'App.2-CC_MIFRS_DepExp_2012'!K20+((C20*0.5)/D20)) -> 0 | H20: 0
A21: 1815 | B21: Transformer Station Equipment >50 kV | E21: 0 | F21: =IF(D21=0,'App.2-CC_MIFRS_DepExp_2012'!K21,+'App.2-CC_MIFRS_DepExp_2012'!K21+((C21*0.5)/D21)) -> 0 | H21: 0
A22: 1820 | B22: Distribution Station Equipment <50 kV | E22: 0 | F22: =IF(D22=0,'App.2-CC_MIFRS_DepExp_2012'!K22,+'App.2-CC_MIFRS_DepExp_2012'!K22+((C22*0.5)/D22)) -> 0 | H22: 0
A23: 1825 | B23: Storage Battery Equipment | E23: 0 | F23: =IF(D23=0,'App.2-CC_MIFRS_DepExp_2012'!K35,+'App.2-CC_MIFRS_DepExp_2012'!K35+((C23*0.5)/D23)) -> 0 | H23: 0
A24: 1830 | B24: Poles, Towers & Fixtures | E24: 0 | F24: =IF(D24=0,'App.2-CC_MIFRS_DepExp_2012'!K36,+'App.2-CC_MIFRS_DepExp_2012'!K36+((C24*0.5)/D24)) -> 0 | H24: 0
A25: 1835 | B25: Overhead Conductors & Devices | E25: 0 | F25: =IF(D25=0,'App.2-CC_MIFRS_DepExp_2012'!K40,+'App.2-CC_MIFRS_DepExp_2012'!K40+((C25*0.5)/D25)) -> 0 | H25: 0
A26: 1840 | B26: Underground Conduit | E26: 0 | F26: =IF(D26=0,'App.2-CC_MIFRS_DepExp_2012'!K49,+'App.2-CC_MIFRS_DepExp_2012'!K49+((C26*0.5)/D26)) -> 2811.50225 | H26: 2811.50225
A27: 1845 | B27: Underground Conductors & Devices | E27: 0 | F27: =IF(D27=0,'App.2-CC_MIFRS_DepExp_2012'!K54,+'App.2-CC_MIFRS_DepExp_2012'!K54+((C27*0.5)/D27)) -> 0 | H27: 0
A28: 1850 | B28: Line Transformers | E28: 0 | F28: =IF(D28=0,'App.2-CC_MIFRS_DepExp_2012'!K60,+'App.2-CC_MIFRS_DepExp_2012'!K60+((C28*0.5)/D28)) -> 0 | H28: 0
A29: 1855 | B29: Services (Overhead & Underground) | E29: 0 | F29: =IF(D29=0,'App.2-CC_MIFRS_DepExp_2012'!K65,+'App.2-CC_MIFRS_DepExp_2012'!K65+((C29*0.5)/D29)) -> 0 | H29: 0
A30: 1860 | B30: Meters | E30: 0 | F30: =IF(D30=0,'App.2-CC_MIFRS_DepExp_2012'!K69,+'App.2-CC_MIFRS_DepExp_2012'!K69+((C30*0.5)/D30)) -> 0 | H30: 0
A31: 1860 | B31: Meters (Smart Meters) | E31: 0 | F31: =IF(D31=0,'App.2-CC_MIFRS_DepExp_2012'!K72,+'App.2-CC_MIFRS_DepExp_2012'!K72+((C31*0.5)/D31)) -> 0 | H31: 0
A32: 1905 | B32: Land | E32: 0 | F32: =IF(D32=0,'App.2-CC_MIFRS_DepExp_2012'!K76,+'App.2-CC_MIFRS_DepExp_2012'!K76+((C32*0.5)/D32)) -> 0 | H32: 0
A33: 1908 | B33: Buildings & Fixtures | E33: 0 | F33: =IF(D33=0,'App.2-CC_MIFRS_DepExp_2012'!K77,+'App.2-CC_MIFRS_DepExp_2012'!K77+((C33*0.5)/D33)) -> 0 | H33: 0
A34: 1910 | B34: Leasehold Improvements | E34: 0 | F34: =IF(D34=0,'App.2-CC_MIFRS_DepExp_2012'!K78,+'App.2-CC_MIFRS_DepExp_2012'!K78+((C34*0.5)/D34)) -> 0 | H34: 0
A35: 1915 | B35: Office Furniture & Equipment (10 years) | E35: 0 | F35: =IF(D35=0,'App.2-CC_MIFRS_DepExp_2012'!K79,+'App.2-CC_MIFRS_DepExp_2012'!K79+((C35*0.5)/D35)) -> 0 | H35: 0
A36: 1915 | B36: Office Furniture & Equipment (5 years) | E36: 0 | F36: =IF(D36=0,'App.2-CC_MIFRS_DepExp_2012'!K80,+'App.2-CC_MIFRS_DepExp_2012'!K80+((C36*0.5)/D36)) -> 0 | H36: 0
A37: 1920 | B37: Computer Equipment - Hardware | E37: 0 | F37: =IF(D37=0,'App.2-CC_MIFRS_DepExp_2012'!K81,+'App.2-CC_MIFRS_DepExp_2012'!K81+((C37*0.5)/D37)) -> 0 | H37: 0
A38: 1920 | B38: Computer Equip.-Hardware(Post Mar. 22/04) | E38: 0 | F38: =IF(D38=0,'App.2-CC_MIFRS_DepExp_2012'!K82,+'App.2-CC_MIFRS_DepExp_2012'!K82+((C38*0.5)/D38)) -> 0 | H38: 0
A39: 1920 | B39: Computer Equip.-Hardware(Post Mar. 19/07) | E39: 0 | F39: =IF(D39=0,'App.2-CC_MIFRS_DepExp_2012'!K83,+'App.2-CC_MIFRS_DepExp_2012'!K83+((C39*0.5)/D39)) -> 0 | H39: 0
A40: 1930 | B40: Transportation Equipment | E40: 0 | F40: =IF(D40=0,'App.2-CC_MIFRS_DepExp_2012'!K84,+'App.2-CC_MIFRS_DepExp_2012'!K84+((C40*0.5)/D40)) -> 0 | H40: 0
A41: 1935 | B41: Stores Equipment | E41: 0 | F41: =IF(D41=0,'App.2-CC_MIFRS_DepExp_2012'!K88,+'App.2-CC_MIFRS_DepExp_2012'!K88+((C41*0.5)/D41)) -> 0 | H41: 0
A42: 1940 | B42: Tools, Shop & Garage Equipment | E42: 0 | F42: =IF(D42=0,'App.2-CC_MIFRS_DepExp_2012'!K89,+'App.2-CC_MIFRS_DepExp_2012'!K89+((C42*0.5)/D42)) -> 0 | H42: 0
A43: 1945 | B43: Measurement & Testing Equipment | E43: 0 | F43: =IF(D43=0,'App.2-CC_MIFRS_DepExp_2012'!K90,+'App.2-CC_MIFRS_DepExp_2012'!K90+((C43*0.5)/D43)) -> 0 | H43: 0
A44: 1950 | B44: Power Operated Equipment | E44: 0 | F44: =IF(D44=0,'App.2-CC_MIFRS_DepExp_2012'!K91,+'App.2-CC_MIFRS_DepExp_2012'!K91+((C44*0.5)/D44)) -> 0 | H44: 0
A45: 1955 | B45: Communications Equipment | E45: 0 | F45: =IF(D45=0,'App.2-CC_MIFRS_DepExp_2012'!K92,+'App.2-CC_MIFRS_DepExp_2012'!K92+((C45*0.5)/D45)) -> 0 | H45: 0
A46: 1955 | B46: Communication Equipment (Smart Meters) | E46: 0 | F46: =IF(D46=0,'App.2-CC_MIFRS_DepExp_2012'!K93,+'App.2-CC_MIFRS_DepExp_2012'!K93+((C46*0.5)/D46)) -> 0 | H46: 0
A47: 1960 | B47: Miscellaneous Equipment | E47: 0 | F47: =IF(D47=0,'App.2-CC_MIFRS_DepExp_2012'!K94,+'App.2-CC_MIFRS_DepExp_2012'!K94+((C47*0.5)/D47)) -> 0 | H47: 0
A48: 1975 | B48: Load Management Controls Utility Premises | E48: 0 | F48: =IF(D48=0,'App.2-CC_MIFRS_DepExp_2012'!K95,+'App.2-CC_MIFRS_DepExp_2012'!K95+((C48*0.5)/D48)) -> 0 | H48: 0
A49: 1980 | B49: System Supervisor Equipment | E49: 0 | F49: =IF(D49=0,'App.2-CC_MIFRS_DepExp_2012'!K96,+'App.2-CC_MIFRS_DepExp_2012'!K96+((C49*0.5)/D49)) -> 0 | H49: 0
A50: 1985 | B50: Miscellaneous Fixed Assets | E50: 0 | F50: =IF(D50=0,'App.2-CC_MIFRS_DepExp_2012'!K98,+'App.2-CC_MIFRS_DepExp_2012'!K98+((C50*0.5)/D50)) -> 0 | H50: 0
A51: 1995 | B51: Contributions & Grants | E51: 0 | F51: =IF(D51=0,'App.2-CC_MIFRS_DepExp_2012'!K100,+'App.2-CC_MIFRS_DepExp_2012'!K100+((C51*0.5)/D51)) -> 0 | H51: 0
A52: etc. | E52: 0 | F52: =IF(D52=0,'App.2-CC_MIFRS_DepExp_2012'!K101,+'App.2-CC_MIFRS_DepExp_2012'!K101+((C52*0.5)/D52)) -> 0 | H52: 0
E53: 0 | F53: =IF(D53=0,'App.2-CC_MIFRS_DepExp_2012'!K102,+'App.2-CC_MIFRS_DepExp_2012'!K102+((C53*0.5)/D53)) -> 0 | H53: 0
B54: Total | C54: =SUM(C16:C53) -> 0 | F54: =SUM(F16:F53) -> 2811.50225 | G54: =SUM(G16:G53) -> 0 | H54: =SUM(H16:H53) -> 2811.50225
B55: Depreciation expense adjustment resulting from amortization of Account 1575 | F55: 0
B56: Total Depreciation expense to be included in the test year revenue requirement | F56: =+F54+F55 -> 2811.50225
A57: Notes:
A58: 1 | B58: Board policy of the "half-year" rule - the applicant must ensure that additions in the year attract a half-year depreciation expense in the first year. Deviations from this standard practice must be supported in the application.
A59: 2 | B59: The applicant must provide an explanation of material variances in evidence
A61: General: | B61: Applicants must provide a breakdown of depreciation and amortization expense in the above format for all relevant accounts. Asset Retirement Obligations (AROs), depreciation and accretion expense should be disclosed separately consistent with the Notes of historical Audited Financial Statements.

Sheet App.2-B_AD_Summary
L1: File Number: | N1: File Number: | O1: ='LDC Info'!$E$18 -> EB-2012-0167
L2: Exhibit: | N2: Exhibit: | O2: 2
L3: Tab: | N3: Tab: | O3: 2
L4: Schedule: | N4: Schedule: | O4: 4
L5: Page: | N5: Page: | O5: 1
L7: Date: | N7: Date: | O7: 2012-11-08
A9: Appendix 2-B
A10: Accumulated Depreciation Continuity Schedule Summary
A12: Table 2-2.9 - Accumulated Depreciation Continuity Schedule Summary | E12: Year | F12: 2009-2013 CGAAP 2013 MCGAAP
A15: CCA Class | B15: OEB | C15: Description | D15: 2009 Board Approved | E15: 2009 Actual | F15: Variance from 2009 OEB Approved | G15: 2010 Actual | H15: Variance from 2009 Actual | I15: 2011 Actual | J15: Variance from 2010 Actual | K15: 2012 Bridge CGAAP | L15: Variance from 2011 Actual | M15: 2013 Test CGAAP | N15: Variance from 2012 Bridge | O15: 2013 Test MCGAAP | P15: Variance from 2012 Bridge | Q15: Variance from 2013 CGAAP
A16: 12 | B16: 1611 | C16: Computer Software (Formally known as Account 1925) | D16: ='App.2-B_FA Continuity_2009_OEB'!M16 -> -725266.92 | E16: ='App.2-B_FA Continuity_2009_Act'!M16 -> -708156.64 | F16: =E16-D16 -> 17110.28 | G16: ='App.2-B_FA Continuity_2010'!M16 -> -738477.66 | H16: =G16-E16 -> -30321.02 | I16: ='App.2-B_FA Continuity_2011'!M16 -> -759302.08 | J16: =I16-G16 -> -20824.42 | K16: ='App.2-B_FA Continuity_2012CGAAP'!M16 -> -986599.24 | L16: =K16-I16 -> -227297.16 | M16: ='App.2-B_FA Continuity_2013CGAAP'!M17 -> -1084464.06 | N16: =M16-K16 -> -97864.82 | O16: ='App.2-B_FA Continuity_2013MCGAA'!M17 -> -1038524.99 | P16: =O16-K16 -> -51925.75 | Q16: =O16-M16 -> 45939.07
A17: CEC | B17: 1612 | C17: Land Rights (Formally known as Account 1906) | D17: ='App.2-B_FA Continuity_2009_OEB'!M17 -> 0 | E17: ='App.2-B_FA Continuity_2009_Act'!M17 -> 0 | F17: =E17-D17 -> 0 | G17: ='App.2-B_FA Continuity_2010'!M17 -> 0 | H17: =G17-E17 -> 0 | I17: ='App.2-B_FA Continuity_2011'!M17 -> 0 | J17: =I17-G17 -> 0 | K17: ='App.2-B_FA Continuity_2012CGAAP'!M17 -> 0 | L17: =K17-I17 -> 0 | M17: ='App.2-B_FA Continuity_2013CGAAP'!M18 -> 0 | N17: 0 | O17: ='App.2-B_FA Continuity_2013MCGAA'!H18 -> 0 | P17: =O17-K17 -> 0 | Q17: =O17-M17 -> 0
A18: Land and Buildings
A19: N/A | B19: 1805 | C19: Land | D19: ='App.2-B_FA Continuity_2009_OEB'!M18 -> 0 | E19: ='App.2-B_FA Continuity_2009_Act'!M18 -> 0 | F19: 0 | G19: ='App.2-B_FA Continuity_2010'!M18 -> 0 | H19: 0 | I19: ='App.2-B_FA Continuity_2011'!M18 -> 0 | J19: 0 | K19: ='App.2-B_FA Continuity_2012CGAAP'!M18 -> 0 | L19: 0 | M19: ='App.2-B_FA Continuity_2013CGAAP'!M19 -> 0 | N19: 0 | O19: ='App.2-B_FA Continuity_2013MCGAA'!M19 -> 0 | P19: =O19-K19 -> 0 | Q19: =O19-M19 -> 0
A20: 47 | B20: 1808 | C20: Buildings | D20: ='App.2-B_FA Continuity_2009_OEB'!M19 -> -1662182.53 | E20: ='App.2-B_FA Continuity_2009_Act'!M19 -> -1646333.68 | F20: 15848.85 | G20: ='App.2-B_FA Continuity_2010'!M19 -> -1718377.9 | H20: -72044.22 | I20: ='App.2-B_FA Continuity_2011'!M19 -> -1790422.08 | J20: -72044.18 | K20: ='App.2-B_FA Continuity_2012CGAAP'!M19 -> -1862466.08 | L20: -72044 | M20: ='App.2-B_FA Continuity_2013CGAAP'!M20-M21 -> -1875870.08 | N20: -13404 | O20: ='App.2-B_FA Continuity_2013MCGAA'!M20 -> -1875870.08 | P20: =O20-K20 -> -13404 | Q20: =O20-M20 -> 0
A21: 47 | B21: 1808 | C21: Garage | M21: -25250 | O21: ='App.2-B_FA Continuity_2013MCGAA'!M21 -> -25250 | P21: =O21-K21 -> -25250 | Q21: =O21-M21 -> 0
A22: 13 | B22: 1810 | C22: Leasehold Improvements | D22: ='App.2-B_FA Continuity_2009_OEB'!M20 -> 0 | E22: ='App.2-B_FA Continuity_2009_Act'!M20 -> -5.56 | F22: -5.56 | G22: ='App.2-B_FA Continuity_2010'!M20 -> -22.29 | H22: -16.73 | I22: ='App.2-B_FA Continuity_2011'!M20 -> -445.65 | J22: -423.36 | K22: ='App.2-B_FA Continuity_2012CGAAP'!M20 -> -4449.65 | L22: -4004 | M22: ='App.2-B_FA Continuity_2013CGAAP'!M22 -> -12848.65 | N22: -8399 | O22: ='App.2-B_FA Continuity_2013MCGAA'!M22 -> -12848.65 | P22: =O22-K22 -> -8399 | Q22: =O22-M22 -> 0
A23: Sub-Total Land and Buildings
A24: 47 | B24: 1815 | C24: Transformer Station Equipment >50 kV | D24: ='App.2-B_FA Continuity_2009_OEB'!M21 -> 0 | E24: ='App.2-B_FA Continuity_2009_Act'!M21 -> 0 | F24: 0 | G24: ='App.2-B_FA Continuity_2010'!M21 -> 0 | H24: 0 | I24: ='App.2-B_FA Continuity_2011'!M21 -> 0 | J24: 0 | K24: ='App.2-B_FA Continuity_2012CGAAP'!M21 -> 0 | L24: 0 | N24: 0 | P24: =O24-K24 -> 0 | Q24: =O24-M24 -> 0
A25: 47 | B25: 1820 | C25: Distribution Station Equipment <50 kV | D25: ='App.2-B_FA Continuity_2009_OEB'!M22 -> -5843963.72 | E25: ='App.2-B_FA Continuity_2009_Act'!M22 -> -5368327.06 | F25: 475636.66 | G25: ='App.2-B_FA Continuity_2010'!M22 -> -5537147.45 | H25: -168820.39 | I25: ='App.2-B_FA Continuity_2011'!M22 -> -5706508.55 | J25: -169361.1 | K25: ='App.2-B_FA Continuity_2012CGAAP'!M22 -> -5875869.95 | L25: -169361.4 | M25: ='App.2-B_FA Continuity_2013CGAAP'!M24 -> -6045231.05 | N25: -169361.1 | O25: ='App.2-B_FA Continuity_2013MCGAA'!M24 -> -6195696.913 | P25: -319826.9634 | Q25: -150465.8634
A26: 47 | B26: 1820 | C26: Distribution Station Equipment - ARO | M26: ='App.2-B_FA Continuity_2013CGAAP'!M23 -> 0 | O26: ='App.2-B_FA Continuity_2013MCGAA'!M23 -> -7386.47 | P26: -7386.47 | Q26: -7386.47
A27: 47 | B27: 1825 | C27: Storage Battery Equipment | D27: ='App.2-B_FA Continuity_2009_OEB'!M23 -> 0 | E27: ='App.2-B_FA Continuity_2009_Act'!M23 -> 0 | F27: 0 | G27: ='App.2-B_FA Continuity_2010'!M23 -> 0 | H27: 0 | I27: ='App.2-B_FA Continuity_2011'!M23 -> 0 | J27: 0 | K27: ='App.2-B_FA Continuity_2012CGAAP'!M23 -> 0 | L27: 0 | M27: ='App.2-B_FA Continuity_2013CGAAP'!M25 -> 0 | N27: 0 | O27: ='App.2-B_FA Continuity_2013MCGAA'!M25 -> 0 | P27: 0 | Q27: 0
A28: 47 | B28: 1830 | C28: Poles, Towers & Fixtures | D28: ='App.2-B_FA Continuity_2009_OEB'!M24 -> -10346920.24 | E28: ='App.2-B_FA Continuity_2009_Act'!M24 -> -8509741.97 | F28: 1837178.27 | G28: ='App.2-B_FA Continuity_2010'!M24 -> -9377022.76 | H28: -867280.79 | I28: ='App.2-B_FA Continuity_2011'!M24 -> -10322937.48 | J28: -945914.72 | K28: ='App.2-B_FA Continuity_2012CGAAP'!M24 -> -11373060.48 | L28: -1050123 | M28: ='App.2-B_FA Continuity_2013CGAAP'!M26 -> -12488104.61 | N28: -1115044.129 | O28: ='App.2-B_FA Continuity_2013MCGAA'!M26+-20185+-1412 -> -11885879.16 | P28: -512818.6794 | Q28: 602225.45
A29: 47 | B29: 1835 | C29: Overhead Conductors & Devices | D29: ='App.2-B_FA Continuity_2009_OEB'!M25 -> -12323340.98 | E29: ='App.2-B_FA Continuity_2009_Act'!M25 -> -12482882.2 | F29: -159541.22 | G29: ='App.2-B_FA Continuity_2010'!M25 -> -13538127.21 | H29: -1055245.01 | I29: ='App.2-B_FA Continuity_2011'!M25 -> -14671312.19 | J29: -1133184.98 | K29: ='App.2-B_FA Continuity_2012CGAAP'!M25 -> -15907988.19 | L29: -1236676 | M29: ='App.2-B_FA Continuity_2013CGAAP'!M27 -> -17209999.65 | N29: -1302011.464 | O29: ='App.2-B_FA Continuity_2013MCGAA'!M29+-12759301+-1399425+-267712 -> -16031896.61 | P29: -123908.4243 | Q29: 1178103.04
A30: 47 | B30: 1840 | C30: Underground Conduit | D30: ='App.2-B_FA Continuity_2009_OEB'!M26 -> -6584276.82 | E30: ='App.2-B_FA Continuity_2009_Act'!M26 -> -6844544.17 | F30: -260267.35 | G30: ='App.2-B_FA Continuity_2010'!M26 -> -7214966.74 | H30: -370422.57 | I30: ='App.2-B_FA Continuity_2011'!M26 -> -7625734.54 | J30: -410767.8 | K30: ='App.2-B_FA Continuity_2012CGAAP'!M26 -> -8032645.54 | L30: -406911 | M30: ='App.2-B_FA Continuity_2013CGAAP'!M28 -> -8443677.844 | N30: -411032.3041 | O30: ='App.2-B_FA Continuity_2013MCGAA'!M33+-6569243+-310767 -> -8140592.126 | P30: -107946.5864 | Q30: 303085.7177
A31: 47 | B31: 1845 | C31: Underground Conductors & Devices | D31: ='App.2-B_FA Continuity_2009_OEB'!M27 -> -8230500.61 | E31: ='App.2-B_FA Continuity_2009_Act'!M27 -> -8074586.55 | F31: 155914.06 | G31: ='App.2-B_FA Continuity_2010'!M27 -> -8542203.02 | H31: -467616.47 | I31: ='App.2-B_FA Continuity_2011'!M27 -> -9007162.03 | J31: -464959.01 | K31: ='App.2-B_FA Continuity_2012CGAAP'!M27 -> -9487587.03 | L31: -480425 | M31: ='App.2-B_FA Continuity_2013CGAAP'!M29 -> -9992281.005 | N31: -504693.9753 | O31: ='App.2-B_FA Continuity_2013MCGAA'!M36+-4420507+-528403+-1074529+-212709 -> -9842769.194 | P31: -355182.1636 | Q31: 149511.8116
A32: 47 | B32: 1850 | C32: Line Transformers | D32: ='App.2-B_FA Continuity_2009_OEB'!M28 -> -14470435.03 | E32: ='App.2-B_FA Continuity_2009_Act'!M28 -> -13677550.61 | F32: 792884.42 | G32: ='App.2-B_FA Continuity_2010'!M28 -> -14424695.18 | H32: -747144.57 | I32: ='App.2-B_FA Continuity_2011'!M28 -> -14938224.8 | J32: -513529.62 | K32: ='App.2-B_FA Continuity_2012CGAAP'!M28 -> -15946250 | L32: -1008025.2 | M32: ='App.2-B_FA Continuity_2013CGAAP'!M30 -> -16977029.81 | N32: -1030779.813 | O32: ='App.2-B_FA Continuity_2013MCGAA'!M41+-323492+-8691705+-3308219+-3095564+33825 -> -16230787.2 | P32: -284537.1972 | Q32: 746242.6158
A33: 47 | B33: 2320 | C33: ARO | E33: ='App.2-B_FA Continuity_2009_Act'!M29 -> -46958.16 | F33: -46958.16 | G33: ='App.2-B_FA Continuity_2010'!M29 -> -87708 | H33: -40749.84 | I33: ='App.2-B_FA Continuity_2011'!M29 -> -69913.44 | J33: 17794.56 | K33: ='App.2-B_FA Continuity_2012CGAAP'!M29 -> -79665.24 | L33: -9751.8 | M33: ='App.2-B_FA Continuity_2013CGAAP'!M31 -> -89417.04 | N33: -9751.8 | O33: ='App.2-B_FA Continuity_2013MCGAA'!M46 -> -89417.04 | P33: -9751.8 | Q33: 0
A34: 47 | B34: 1855 | C34: Services (Overhead & Underground) | D34: ='App.2-B_FA Continuity_2009_OEB'!M29 -> -9700982.68 | E34: ='App.2-B_FA Continuity_2009_Act'!M30 -> -11909197.8 | F34: -2208215.12 | G34: ='App.2-B_FA Continuity_2010'!M30 -> -12693387.66 | H34: -784189.86 | I34: ='App.2-B_FA Continuity_2011'!M30 -> -13498302.94 | J34: -804915.28 | K34: ='App.2-B_FA Continuity_2012CGAAP'!M30 -> -14316343.94 | L34: -818041 | M34: ='App.2-B_FA Continuity_2013CGAAP'!M32 -> -15151230.04 | N34: -834886.0996 | O34: ='App.2-B_FA Continuity_2013MCGAA'!M47+-5140337+-4470932 -> -14417114.62 | P34: -100770.6801 | Q34: 734115.4195
A35: 47 | B35: 1860 | C35: Meters | D35: ='App.2-B_FA Continuity_2009_OEB'!M30 -> -3294212.54 | E35: ='App.2-B_FA Continuity_2009_Act'!M31 -> -494228.02 | F35: 2799984.52 | G35: ='App.2-B_FA Continuity_2010'!M31 -> -743070.13 | H35: -248842.11 | I35: ='App.2-B_FA Continuity_2011'!M31 -> -801474.91 | J35: -58404.78 | K35: ='App.2-B_FA Continuity_2012CGAAP'!M31 -> -838242.55 | L35: -36767.64 | M35: ='App.2-B_FA Continuity_2013CGAAP'!M33 -> -875364.7291 | N35: -37122.17907 | O35: ='App.2-B_FA Continuity_2013MCGAA'!M50+'App.2-B_FA Continuity_2013MCGAA'!M51+'App.2-B_FA Continuity_2013MCGAA'!M52 -> -853179.5 | P35: -14936.95 | Q35: 22185.22907
A36: 47 | B36: 1860 | C36: Meters (Smart Meters) | D36: ='App.2-B_FA Continuity_2009_OEB'!M31 -> 0 | E36: ='App.2-B_FA Continuity_2009_Act'!M32 -> 0 | F36: 0 | G36: ='App.2-B_FA Continuity_2010'!M32 -> 0 | H36: 0 | I36: ='App.2-B_FA Continuity_2011'!M32 -> 0 | J36: 0 | K36: ='App.2-B_FA Continuity_2012CGAAP'!M32 -> -1821653.36 | L36: -1821653.36 | M36: ='App.2-B_FA Continuity_2013CGAAP'!M34 -> -2397638.165 | N36: -575984.8054 | O36: ='App.2-B_FA Continuity_2013MCGAA'!M54+'App.2-B_FA Continuity_2013MCGAA'!M55+'App.2-B_FA Continuity_2013MCGAA'!M56+'App.2-B_FA Continuity_2013MCGAA'!M57 -> -2358892.06 | P36: -537238.7 | Q36: 38746.1054
A37: N/A | B37: 1905 | C37: Land | D37: ='App.2-B_FA Continuity_2009_OEB'!M32 -> 0 | E37: ='App.2-B_FA Continuity_2009_Act'!M33 -> 0 | F37: 0 | G37: ='App.2-B_FA Continuity_2010'!M33 -> 0 | H37: 0 | I37: ='App.2-B_FA Continuity_2011'!M33 -> 0 | J37: 0 | K37: ='App.2-B_FA Continuity_2012CGAAP'!M33 -> 0 | L37: 0 | M37: ='App.2-B_FA Continuity_2013CGAAP'!M35 -> 0 | N37: 0 | O37: ='App.2-B_FA Continuity_2013MCGAA'!M58 -> 0 | P37: 0 | Q37: 0
A38: 47 | B38: 1908 | C38: Buildings & Fixtures | D38: ='App.2-B_FA Continuity_2009_OEB'!M33 -> 0 | E38: ='App.2-B_FA Continuity_2009_Act'!M34 -> 0 | F38: 0 | G38: ='App.2-B_FA Continuity_2010'!M34 -> 0 | H38: 0 | I38: ='App.2-B_FA Continuity_2011'!M34 -> 0 | J38: 0 | K38: ='App.2-B_FA Continuity_2012CGAAP'!M34 -> 0 | L38: 0 | M38: ='App.2-B_FA Continuity_2013CGAAP'!M36 -> 0 | N38: 0 | O38: ='App.2-B_FA Continuity_2013MCGAA'!M59 -> 0 | P38: 0 | Q38: 0
A39: 13 | B39: 1910 | C39: Leasehold Improvements | D39: ='App.2-B_FA Continuity_2009_OEB'!M34 -> 0 | E39: ='App.2-B_FA Continuity_2009_Act'!M35 -> 0 | F39: 0 | G39: ='App.2-B_FA Continuity_2010'!M35 -> 0 | H39: 0 | I39: ='App.2-B_FA Continuity_2011'!M35 -> 0 | J39: 0 | K39: ='App.2-B_FA Continuity_2012CGAAP'!M35 -> 0 | L39: 0 | M39: ='App.2-B_FA Continuity_2013CGAAP'!M37 -> 0 | N39: 0 | O39: ='App.2-B_FA Continuity_2013MCGAA'!M60 -> 0 | P39: 0 | Q39: 0
A40: 8 | B40: 1915 | C40: Office Furniture & Equipment (10 years) | D40: ='App.2-B_FA Continuity_2009_OEB'!M35 -> -1121274.18 | E40: ='App.2-B_FA Continuity_2009_Act'!M36 -> -1109843.4 | F40: 11430.78 | G40: ='App.2-B_FA Continuity_2010'!M36 -> -1145323.98 | H40: -35480.58 | I40: ='App.2-B_FA Continuity_2011'!M36 -> -1184242.12 | J40: -38918.14 | K40: ='App.2-B_FA Continuity_2012CGAAP'!M36 -> -1170147.12 | L40: 14095 | M40: ='App.2-B_FA Continuity_2013CGAAP'!M38 -> -1212329.12 | N40: -42182 | O40: ='App.2-B_FA Continuity_2013MCGAA'!M61 -> -1212329.12 | P40: -42182 | Q40: 0
A41: 8 | B41: 1915 | C41: Office Furniture & Equipment (5 years) | D41: ='App.2-B_FA Continuity_2009_OEB'!M36 -> 0 | E41: ='App.2-B_FA Continuity_2009_Act'!M37 -> 0 | F41: 0 | G41: ='App.2-B_FA Continuity_2010'!M37 -> 0 | H41: 0 | I41: ='App.2-B_FA Continuity_2011'!M37 -> 0 | J41: 0 | K41: ='App.2-B_FA Continuity_2012CGAAP'!M37 -> 0 | L41: 0 | M41: ='App.2-B_FA Continuity_2013CGAAP'!M39 -> 0 | N41: 0 | O41: ='App.2-B_FA Continuity_2013MCGAA'!M62 -> 0 | P41: 0 | Q41: 0
A42: 10 | B42: 1920 | C42: Computer Equipment - Hardware | D42: ='App.2-B_FA Continuity_2009_OEB'!M37 -> -2681274.49 | E42: ='App.2-B_FA Continuity_2009_Act'!M38 -> -2529181.15 | F42: 152093.34 | G42: ='App.2-B_FA Continuity_2010'!M38 -> -2555392.68 | H42: -26211.53 | I42: ='App.2-B_FA Continuity_2011'!M38 -> -2616467.54 | J42: -61074.86 | K42: ='App.2-B_FA Continuity_2012CGAAP'!M38 -> -2643350.02 | L42: -26882.48 | M42: ='App.2-B_FA Continuity_2013CGAAP'!M40 -> -2722808.25 | N42: -79458.23 | O42: ='App.2-B_FA Continuity_2013MCGAA'!M63 -> -2787472.33 | P42: -144122.31 | Q42: -64664.08
A43: 45 | B43: 1920 | C43: Computer Equip.-Hardware(Post Mar. 22/04) | D43: ='App.2-B_FA Continuity_2009_OEB'!M38 -> 0 | E43: ='App.2-B_FA Continuity_2009_Act'!M39 -> 0 | F43: 0 | G43: ='App.2-B_FA Continuity_2010'!M39 -> 0 | H43: 0 | I43: ='App.2-B_FA Continuity_2011'!M39 -> 0 | J43: 0 | K43: ='App.2-B_FA Continuity_2012CGAAP'!M39 -> 0 | L43: 0 | M43: ='App.2-B_FA Continuity_2013CGAAP'!M41 -> 0 | N43: 0 | O43: ='App.2-B_FA Continuity_2013MCGAA'!M64 -> 0 | P43: 0 | Q43: 0
A44: 45.1 | B44: 1920 | C44: Computer Equip.-Hardware(Post Mar. 19/07) | D44: ='App.2-B_FA Continuity_2009_OEB'!M39 -> 0 | E44: ='App.2-B_FA Continuity_2009_Act'!M40 -> 0 | F44: 0 | G44: ='App.2-B_FA Continuity_2010'!M40 -> 0 | H44: 0 | I44: ='App.2-B_FA Continuity_2011'!M40 -> 0 | J44: 0 | K44: ='App.2-B_FA Continuity_2012CGAAP'!M40 -> 0 | L44: 0 | M44: ='App.2-B_FA Continuity_2013CGAAP'!M42 -> 0 | N44: 0 | O44: ='App.2-B_FA Continuity_2013MCGAA'!M65 -> 0 | P44: 0 | Q44: 0
A45: 10 | B45: 1930 | C45: Transportation Equipment | D45: ='App.2-B_FA Continuity_2009_OEB'!M40 -> -4132591.01 | E45: ='App.2-B_FA Continuity_2009_Act'!M41 -> -3812153.49 | F45: 320437.52 | G45: ='App.2-B_FA Continuity_2010'!M41 -> -4191351.56 | H45: -379198.07 | I45: ='App.2-B_FA Continuity_2011'!M41 -> -4531614.91 | J45: -340263.35 | K45: ='App.2-B_FA Continuity_2012CGAAP'!M41 -> -4525031.93 | L45: 6582.98 | M45: ='App.2-B_FA Continuity_2013CGAAP'!M43 -> -4679468.04 | N45: -154436.11 | O45: ='App.2-B_FA Continuity_2013MCGAA'!M66+'App.2-B_FA Continuity_2013MCGAA'!M67+'App.2-B_FA Continuity_2013MCGAA'!M68 -> -4390754.295 | P45: 134277.6353 | Q45: 288713.7453
A46: 8 | B46: 1935 | C46: Stores Equipment | D46: ='App.2-B_FA Continuity_2009_OEB'!M41 -> -63417.16 | E46: ='App.2-B_FA Continuity_2009_Act'!M42 -> -62835.45 | F46: 581.71 | G46: ='App.2-B_FA Continuity_2010'!M42 -> -62835.45 | H46: 0 | I46: ='App.2-B_FA Continuity_2011'!M42 -> -62835.45 | J46: 0 | K46: ='App.2-B_FA Continuity_2012CGAAP'!M42 -> -63417.45 | L46: -582 | M46: ='App.2-B_FA Continuity_2013CGAAP'!M44 -> -63417.45 | N46: 0 | O46: ='App.2-B_FA Continuity_2013MCGAA'!M69 -> -63417.45 | P46: 0 | Q46: 0
A47: 8 | B47: 1940 | C47: Tools, Shop & Garage Equipment | D47: ='App.2-B_FA Continuity_2009_OEB'!M42 -> -2078954.81 | E47: ='App.2-B_FA Continuity_2009_Act'!M43 -> -2079571.46 | F47: -616.65 | G47: ='App.2-B_FA Continuity_2010'!M43 -> -2146761.31 | H47: -67189.85 | I47: ='App.2-B_FA Continuity_2011'!M43 -> -2206347.71 | J47: -59586.4 | K47: ='App.2-B_FA Continuity_2012CGAAP'!M43 -> -2269559.51 | L47: -63211.8 | M47: ='App.2-B_FA Continuity_2013CGAAP'!M45 -> -2384882.51 | N47: -115323 | O47: ='App.2-B_FA Continuity_2013MCGAA'!M70 -> -2338753.31 | P47: -69193.8 | Q47: 46129.2
A48: 8 | B48: 1945 | C48: Measurement & Testing Equipment | D48: ='App.2-B_FA Continuity_2009_OEB'!M43 -> -78875.24 | E48: ='App.2-B_FA Continuity_2009_Act'!M44 -> -88739.69 | F48: -9864.45 | G48: ='App.2-B_FA Continuity_2010'!M44 -> -110704.72 | H48: -21965.03 | I48: ='App.2-B_FA Continuity_2011'!M44 -> -134232.92 | J48: -23528.2 | K48: ='App.2-B_FA Continuity_2012CGAAP'!M44 -> -157410.58 | L48: -23177.66 | M48: ='App.2-B_FA Continuity_2013CGAAP'!M46 -> -157410.58 | N48: 0 | O48: ='App.2-B_FA Continuity_2013MCGAA'!M71 -> -182781.64 | P48: -25371.06 | Q48: -25371.06
A49: 8 | B49: 1950 | C49: Power Operated Equipment | D49: ='App.2-B_FA Continuity_2009_OEB'!M44 -> -11381.16 | E49: ='App.2-B_FA Continuity_2009_Act'!M45 -> -5337.6 | F49: 6043.56 | G49: ='App.2-B_FA Continuity_2010'!M45 -> -21345.14 | H49: -16007.54 | I49: ='App.2-B_FA Continuity_2011'!M45 -> -40521.42 | J49: -19176.28 | K49: ='App.2-B_FA Continuity_2012CGAAP'!M45 -> -59484.96 | L49: -18963.54 | M49: ='App.2-B_FA Continuity_2013CGAAP'!M47 -> -59484.96 | N49: 0 | O49: ='App.2-B_FA Continuity_2013MCGAA'!M72 -> -80243.1 | P49: -20758.14 | Q49: -20758.14
A50: 8 | B50: 1955 | C50: Communications Equipment | D50: ='App.2-B_FA Continuity_2009_OEB'!M45 -> -163391.53 | E50: ='App.2-B_FA Continuity_2009_Act'!M46 -> -161407.32 | F50: 1984.21 | G50: ='App.2-B_FA Continuity_2010'!M46 -> -162956.09 | H50: -1548.77 | I50: ='App.2-B_FA Continuity_2011'!M46 -> -147443.85 | J50: 15512.24 | K50: ='App.2-B_FA Continuity_2012CGAAP'!M46 -> -162455.85 | L50: -15012 | M50: ='App.2-B_FA Continuity_2013CGAAP'!M48 -> -182077.85 | N50: -19622 | O50: ='App.2-B_FA Continuity_2013MCGAA'!M73 -> -171901.85 | P50: -9446 | Q50: 10176
A51: 8 | B51: 1955 | C51: Communication Equipment (Smart Meters) | D51: ='App.2-B_FA Continuity_2009_OEB'!M46 -> 0 | E51: ='App.2-B_FA Continuity_2009_Act'!M47 -> 0 | F51: 0 | G51: ='App.2-B_FA Continuity_2010'!M47 -> 0 | H51: 0 | I51: ='App.2-B_FA Continuity_2011'!M47 -> 0 | J51: 0 | K51: ='App.2-B_FA Continuity_2012CGAAP'!M47 -> 0 | L51: 0 | M51: ='App.2-B_FA Continuity_2013CGAAP'!M49 -> 0 | N51: 0 | O51: ='App.2-B_FA Continuity_2013MCGAA'!M74 -> 0 | P51: 0 | Q51: 0
A52: 8 | B52: 1960 | C52: Miscellaneous Equipment | D52: ='App.2-B_FA Continuity_2009_OEB'!M47 -> 0 | E52: ='App.2-B_FA Continuity_2009_Act'!M48 -> 0 | F52: 0 | G52: ='App.2-B_FA Continuity_2010'!M48 -> 0 | H52: 0 | I52: ='App.2-B_FA Continuity_2011'!M48 -> 0 | J52: 0 | K52: ='App.2-B_FA Continuity_2012CGAAP'!M48 -> 0 | L52: 0 | M52: ='App.2-B_FA Continuity_2013CGAAP'!M50 -> 0 | N52: 0 | O52: ='App.2-B_FA Continuity_2013MCGAA'!M75 -> 0 | P52: 0 | Q52: 0
A53: 47 | B53: 1975 | C53: Load Management Controls Utility Premises | D53: ='App.2-B_FA Continuity_2009_OEB'!M48 -> 0 | E53: ='App.2-B_FA Continuity_2009_Act'!M49 -> 0 | F53: 0 | G53: ='App.2-B_FA Continuity_2010'!M49 -> 0 | H53: 0 | I53: ='App.2-B_FA Continuity_2011'!M49 -> 0 | J53: 0 | K53: ='App.2-B_FA Continuity_2012CGAAP'!M49 -> 0 | L53: 0 | M53: ='App.2-B_FA Continuity_2013CGAAP'!M51 -> 0 | N53: 0 | O53: ='App.2-B_FA Continuity_2013MCGAA'!M76 -> 0 | P53: 0 | Q53: 0
A54: 47 | B54: 1980 | C54: System Supervisor Equipment | D54: ='App.2-B_FA Continuity_2009_OEB'!M49 -> -70651.72 | E54: ='App.2-B_FA Continuity_2009_Act'!M50 -> -275866.2 | F54: -205214.48 | G54: ='App.2-B_FA Continuity_2010'!M50 -> -310209.6 | H54: -34343.4 | I54: ='App.2-B_FA Continuity_2011'!M50 -> -344553 | J54: -34343.4 | K54: ='App.2-B_FA Continuity_2012CGAAP'!M50 -> -378896 | L54: -34343 | M54: ='App.2-B_FA Continuity_2013CGAAP'!M52 -> -413239.4 | N54: -34343.4 | O54: ='App.2-B_FA Continuity_2013MCGAA'!M77 -> -413239 | P54: -34343 | Q54: 0.4
A55: 47 | B55: 1985 | C55: Miscellaneous Fixed Assets | D55: ='App.2-B_FA Continuity_2009_OEB'!M50 -> 0 | E55: ='App.2-B_FA Continuity_2009_Act'!M51 -> 0 | F55: 0 | G55: ='App.2-B_FA Continuity_2010'!M51 -> 0 | H55: 0 | I55: ='App.2-B_FA Continuity_2011'!M51 -> 0 | J55: 0 | K55: ='App.2-B_FA Continuity_2012CGAAP'!M51 -> 0 | L55: 0 | M55: ='App.2-B_FA Continuity_2013CGAAP'!M53 -> 0 | N55: 0 | O55: ='App.2-B_FA Continuity_2013MCGAA'!M78 -> 0 | P55: 0 | Q55: 0
B56: 2440 | C56: Deferred revenue | M56: ='App.2-B_FA Continuity_2013CGAAP'!M54 -> 0 | O56: ='App.2-B_FA Continuity_2013MCGAA'!M79 -> 12712.22 | P56: 12712.22 | Q56: 12712.22
A57: 47 | B57: 1995 | C57: Contributions & Grants | D57: ='App.2-B_FA Continuity_2009_OEB'!M51 -> 1921900 | E57: ='App.2-B_FA Continuity_2009_Act'!M52 -> 1929700 | F57: 7800 | G57: ='App.2-B_FA Continuity_2010'!M52 -> 2439332 | H57: 509632 | I57: ='App.2-B_FA Continuity_2011'!M52 -> 3067428 | J57: 628096 | K57: ='App.2-B_FA Continuity_2012CGAAP'!M52 -> 3735983 | L57: 668555 | M57: ='App.2-B_FA Continuity_2013CGAAP'!M55 -> 4465883 | N57: 729900 | O57: ='App.2-B_FA Continuity_2013MCGAA'!M80 -> 4192941.57 | P57: 456958.57 | Q57: -272941.43
A58: 47 | B58: 1996 | C58: Hydro One Curren & Voltage Transformer | D58: ='App.2-B_FA Continuity_2009_OEB'!M52 -> -28475.71 | E58: ='App.2-B_FA Continuity_2009_Act'!M53 -> 0 | F58: 28475.71 | G58: ='App.2-B_FA Continuity_2010'!M53 -> -35240 | H58: -35240 | I58: ='App.2-B_FA Continuity_2011'!M53 -> -86133 | J58: -50893 | K58: ='App.2-B_FA Continuity_2012CGAAP'!M53 -> -137026 | L58: -50893 | M58: ='App.2-B_FA Continuity_2013CGAAP'!M56 -> -187919 | N58: -50893 | O58: ='App.2-B_FA Continuity_2013MCGAA'!M81 -> -179437 | P58: -42411 | Q58: 8482
A59: WIP | C59: Work in Progress | D59: ='App.2-B_FA Continuity_2009_OEB'!M53 -> 0 | E59: ='App.2-B_FA Continuity_2009_Act'!M54 -> 0 | F59: 0 | G59: ='App.2-B_FA Continuity_2010'!M54 -> 0 | H59: 0 | I59: ='App.2-B_FA Continuity_2011'!M54 -> 0 | J59: 0 | K59: ='App.2-B_FA Continuity_2012CGAAP'!M54 -> 0 | L59: 0 | M59: ='App.2-B_FA Continuity_2013CGAAP'!M57 -> 0 | N59: 0 | O59: ='App.2-B_FA Continuity_2013MCGAA'!M82 -> 0 | P59: 0 | Q59: 0
B60: etc. | O60: ='App.2-B_FA Continuity_2013CGAAP'!H50 -> 0 | P60: 0 | Q60: 0
C61: Total | D61: =SUM(D16:D60) -> -81690469.08 | E61: -77957748.18 | F61: 3732720.9 | G61: -82917994.53 | H61: -4960246.35 | I61: -87478704.61 | J61: -4560710.08 | K61: -94363617.67 | L61: -6884913.06 | M61: =SUM(M16:M60) -> -100265560.9 | N61: -5876693.23 | O61: -96620779.92 | P61: =SUM(P16:P60) -> -2257162.249 | Q61: =SUM(Q16:Q60) -> 3644780.981
A64: 1 | B64: Tables in the format outlined above covering all fixed asset accounts should be submitted for the Test Year, Bridge Year and all relevant historical years. At a minimum , the applicant must provide data for the earlier of: 1) all historical years back to its last rebasing; or 2) at least three years of historical actuals, in addition to Bridge Year and Test Year forecasts.
A67: 2 | B67: The "CCA Class" for fixed assets should agree with the CCA Class used for tax purposes in Tax Returns. Fixed Assets sub-components may be used where the underlying asset components are classified under multiple CCA Classes for tax purposes. If an applicant uses any different classes from those shown in the table, an explanation should be provided. (also see note 3 below).
A70: 3 | B70: The table may need to be customized for a utility's asset categories or for any new asset accounts announced or authorized by the Board.
A72: 4 | B72: The depreciation column (D) is not required as the relevant information will be provided in the following 2-C series of appendices.

Sheet App.2-CE_CGAAP_DepExp_2011
K1: File Number: | L1: ='LDC Info'!$E$18 -> EB-2012-0167
K2: Exhibit: | L2: 4
K3: Tab: | L3: 2
K4: Schedule: | L4: 7
K5: Page: | L5: 4
K7: Date: | L7: 2012-11-08
A9: Table 4-2.25 - Amortization Expense for 2011
A10: Appendix 2-CE
A11: Depreciation and Amortization Expense
A12: Assumes the applicant adopted IFRS for financial reporting purposes January 1, 2013 (Note Thunder Bay Hydro adopting IFRS effective January 1, 2014)
C13: Year | D13: 2011 | E13: CGAAP
A15: Account | B15: Description | C15: Opening Regulatory Gross PP&E as at Jan 1, 2011 | D15: Less Fully Depreciated | E15: Net for Depreciation | F15: Additions | G15: Total for Depreciation | H15: Years | I15: Depreciation Rate | J15: 2011 Depreciation Expense | K15: 2011 Depreciation Expense per Appendix 2-B Fixed Assets, Column K (l) | L15: Variance 2
C16: (a) | D16: (b) | E16: (c) | F16: (d) | G16: (e) = (c) + ½ x (d) 1 | H16: (f) | I16: (g) = 1 / (f) | J16: (h) = (e) / (f) | L16: (m) = (h) - (l)
A17: 1611 | B17: Computer Software (Formally known as Account 1925) | C17: 779512.17 | D17: 683529.7 | E17: =C17-D17 -> 95982.47 | F17: 40316.33 | G17: =E17+0.5*F17 -> 116140.635 | H17: 5 | I17: =IF(H17=0,"",1/H17) -> 0.2 | J17: =IF(H17=0,0,G17/H17) -> 23228.127 | K17: 20824.42 | L17: =IF(ISERROR(+J17-K17), "", +J17-K17) -> 2403.707
A18: 1612 | B18: Land Rights (Formally known as Account 1906) | C18: 0 | E18: =C18-D18 -> 0 | F18: 0 | G18: =E18+0.5*F18 -> 0 | J18: 0 | K18: 0 | L18: =IF(ISERROR(+J18-K18), "", +J18-K18) -> 0
A19: 1805 | B19: Land | C19: 133037.5 | E19: 133037.5 | F19: 0 | G19: 133037.5 | J19: 0 | K19: 0 | L19: 0
A20: 1808 | B20: Buildings | C20: 3932847.5 | D20: 121307.55 | E20: 3811539.95 | F20: 0 | G20: 3811539.95 | H20: 50 | I20: 0.02 | J20: 76230.799 | K20: 72044.18 | L20: 4186.619
A21: 1810 | B21: Leasehold Improvements | C21: 33.45 | D21: 0 | E21: 33.45 | F21: 2473.1 | G21: 1270 | H21: 10 | I21: 0.1 | J21: 127 | K21: 423.36 | L21: -296.36
A22: 1815 | B22: Transformer Station Equipment >50 kV | C22: 0 | D22: 0 | E22: 0 | F22: 0 | G22: 0 | J22: 0 | K22: 0 | L22: 0
A23: 1820 | B23: Distribution Station Equipment <50 kV | C23: 8124041.55 | D23: 2435797.98 | E23: 5688243.57 | F23: 0 | G23: 5688243.57 | H23: 30 | I23: 0.03333333333 | J23: 189608.119 | K23: 169361.1 | L23: 20247.019
A24: 1825 | B24: Storage Battery Equipment | C24: 0 | D24: 0 | E24: 0 | F24: 0 | G24: 0 | J24: 0 | K24: 0 | L24: 0
A25: 1830 | B25: Poles, Towers & Fixtures | C25: 26463585.56 | D25: 2664720 | E25: 23798865.56 | F25: 2682500.13 | G25: 25140115.63 | H25: 25 | I25: 0.04 | J25: 1005604.625 | K25: 995307.87 | L25: 10296.755
A26: 1835 | B26: Overhead Conductors & Devices | C26: 27698210.1 | D26: 0 | E26: 27698210.1 | F26: 2137303.69 | G26: 28766861.95 | H26: 25 | I26: 0.04 | J26: 1150674.478 | K26: 1203745.98 | L26: -53071.5022
A27: 1840 | B27: Underground Conduit | C27: 12688093.21 | D27: 1613271 | E27: 11074822.21 | F27: 926861.65 | G27: 11538253.04 | H27: 26.05 | I27: 0.03838771593 | J27: 442927.1798 | K27: 410767.8 | L27: 32159.37985
A28: 1845 | B28: Underground Conductors & Devices | C28: 16994270.85 | D28: 5296740 | E28: 11697530.85 | F28: 925863.56 | G28: 12160462.63 | H28: 26.05 | I28: 0.03838771593 | J28: 466812.385 | K28: 464959.01 | L28: 1853.375029
A29: 1850 | B29: Line Transformers | C29: 25866832.86 | D29: 3466624 | E29: 22400208.86 | F29: 1063799.19 | G29: 22932108.45 | H29: 25 | I29: 0.04 | J29: 917284.3382 | K29: 1031084.08 | L29: -113799.7418
A30: 2320 | B30: ARO | C30: 161743 | D30: 0 | E30: 161743 | F30: 0 | G30: 161743 | H30: 16.5 | I30: 0.06060606061 | J30: 9802.606061 | K30: -17794.56 | L30: 27597.16606
A31: 1855 | B31: Services (Overhead & Underground) | C31: 19519437.96 | D31: 0 | E31: 19519437.96 | F31: 705597.21 | G31: 19872236.57 | H31: 25 | I31: 0.04 | J31: 794889.4626 | K31: 826083.28 | L31: -31193.8174
A32: 1860 | B32: Meters | C32: 1077396.4 | D32: 154189 | E32: 923207.4 | F32: 100419.73 | G32: 973417.265 | H32: 26.04 | I32: 0.03840245776 | J32: 37381.6154 | K32: 86525.85 | L32: -49144.2346
A33: 1860 | B33: Meters (Smart Meters) | C33: 0 | E33: 0 | F33: 0 | G33: 0 | J33: 0 | K33: 0 | L33: 0
A34: 1905 | B34: Land | C34: 0 | E34: 0 | F34: 0 | G34: 0 | J34: 0 | K34: 0 | L34: 0
A35: 1908 | B35: Buildings & Fixtures | C35: 0 | E35: 0 | F35: 0 | G35: 0 | J35: 0 | K35: 0 | L35: 0
A36: 1910 | B36: Leasehold Improvements | C36: 0 | E36: 0 | F36: 0 | G36: 0 | J36: 0 | K36: 0 | L36: 0
A37: 1915 | B37: Office Furniture & Equipment (10 years) | C37: 1344490.46 | D37: 930634 | E37: 413856.46 | F37: 84764.28 | G37: 456238.6 | H37: 10 | I37: 0.1 | J37: 45623.86 | K37: 38918.14 | L37: 6705.72
A38: 1915 | B38: Office Furniture & Equipment (5 years) | C38: 0 | E38: 0 | F38: 0 | G38: 0 | H38: 5 | I38: 0.2 | J38: 0 | K38: 0 | L38: 0
A39: 1920 | B39: Computer Equipment - Hardware | C39: 2698324.72 | D39: 2444714 | E39: 253610.72 | F39: 97600.37 | G39: 302410.905 | H39: 5 | I39: 0.2 | J39: 60482.181 | K39: 61074.86 | L39: -592.679
A40: 1920 | B40: Computer Equip.-Hardware(Post Mar. 22/04) | C40: 0 | E40: 0 | F40: 0 | G40: 0 | J40: 0 | K40: 0 | L40: 0
A41: 1920 | B41: Computer Equip.-Hardware(Post Mar. 19/07) | C41: 0 | E41: 0 | F41: 0 | G41: 0 | J41: 0 | K41: 0 | L41: 0
A42: 1930 | B42: Transportation Equipment - 5 year | C42: 1182679.7 | D42: 822221 | E42: 360458.7 | F42: 127726.24 | G42: 424321.82 | H42: 5 | I42: 0.2 | J42: 84864.364 | K42: 79223.24 | L42: 5641.124
B43: Transportation Equipment -8 year | C43: 5036749 | D43: 2383996.56 | E43: 2652752.44 | F43: 271840 | G43: =E43+0.5*F43 -> 2788672.44 | H43: 8 | I43: =IF(H43=0,"",1/H43) -> 0.125 | J43: =IF(H43=0,0,G43/H43) -> 348584.055 | K43: 343040.11 | L43: 5543.945
A44: 1935 | B44: Stores Equipment | C44: 63417.16 | D44: 63417.46 | E44: -0.3 | F44: 0 | G44: -0.3 | H44: 10 | I44: 0.1 | J44: -0.03 | K44: 0 | L44: -0.03
A45: 1940 | B45: Tools, Shop & Garage Equipment | C45: 2441737.86 | D45: 1884715 | E45: 557022.86 | F45: 29425 | G45: 571735.36 | H45: 10 | I45: 0.1 | J45: 57173.536 | K45: 64280.8 | L45: -7107.264
A46: 1945 | B46: Measurement & Testing Equipment | C46: 256824.78 | D46: 6291 | E46: 250533.78 | F46: 13636.65 | G46: 257352.105 | H46: 10 | I46: 0.1 | J46: 25735.2105 | K46: 23528.2 | L46: 2207.0105
A47: 1950 | B47: Power Operated Equipment | C47: 194621.96 | D47: 0 | E47: 194621.96 | F47: 0 | G47: 194621.96 | H47: 10 | I47: 0.1 | J47: 19462.196 | K47: 19176.28 | L47: 285.916
A48: 1955 | B48: Communications Equipment | C48: 186532.82 | D48: 161754 | E48: 24778.82 | F48: 48777.19 | G48: 49167.415 | H48: 5 | I48: 0.2 | J48: 9833.483 | K48: 7293.82 | L48: 2539.663
A49: 1955 | B49: Communication Equipment (Smart Meters) | C49: 0 | E49: 0 | F49: 0 | G49: 0 | J49: 0 | K49: 0 | L49: 0
A50: 1960 | B50: Miscellaneous Equipment | C50: 0 | E50: 0 | F50: 0 | G50: 0 | J50: 0 | K50: 0 | L50: 0
A51: 1975 | B51: Load Management Controls Utility Premises | C51: 0 | E51: 0 | F51: 0 | G51: 0 | J51: 0 | K51: 0 | L51: 0
A52: 1980 | B52: System Supervisor Equipment | C52: 515151.7 | D52: 0 | E52: 515151.7 | F52: 0 | G52: 515151.7 | H52: 15 | I52: 0.06666666667 | J52: 34343.44667 | K52: 34343.4 | L52: 0.04666666667
A53: 1985 | B53: Miscellaneous Fixed Assets | C53: 0 | E53: 0 | F53: 0 | G53: 0 | J53: 0 | K53: 0 | L53: 0
A54: 1995 | B54: Contributions & Grants | C54: -12744351.77 | D54: 0 | E54: -12744351.77 | F54: -2958053.06 | G54: -14223378.3 | H54: 25 | I54: 0.04 | J54: -568935.132 | K54: -628096 | L54: 59160.868
A55: 1996 | B55: Hydro One Current | C55: 1272321 | D55: 0 | E55: 1272321 | F55: 0 | G55: 1272321 | H55: 25 | I55: 0.04 | J55: 50892.84 | K55: 50893 | L55: -0.16
A56: WIP | B56: Work in Progress | C56: 1758058 | D56: 0 | E56: 1758058 | F56: 1192201 | G56: 2354158.5 | J56: 0 | K56: 0 | L56: 0
E57: 0 | F57: 0 | G57: 0 | J57: 0 | K57: 0 | L57: 0
B58: Total | C58: =SUM(C17:C57) -> 147645599.5 | D58: =SUM(D17:D57) -> 25133922.25 | E58: =SUM(E17:E57) -> 122511677.2 | F58: =SUM(F17:F57) -> 7493052.26 | G58: =SUM(G17:G57) -> 126258203.4 | J58: =SUM(J17:J57) -> 5282630.745 | K58: =SUM(K17:K57) -> 5357008.22 | L58: =SUM(L17:L57) -> -74377.4749
A60: Notes:
A61: 1 | B61: Board policy of the "half-year" rule - the applicant must ensure that additions in the year attract a half-year depreciation expense in the first year. Deviations from this standard practice must be supported in the application.
A62: 2 | B62: The applicant must provide an explanation of material variances in evidence
A63: General: | B63: Applicants must provide a breakdown of depreciation and amortization expense in the above format for all relevant accounts. Asset Retirement Obligations (AROs), depreciation and accretion expense should be disclosed separately consistent with the Notes of historical Audited Financial Statements.

Sheet App.2-CF_CGAAP_DepExp_2012
K1: File Number: | L1: ='LDC Info'!$E$18 -> EB-2012-0167
K2: Exhibit:
K3: Tab:
K4: Schedule:
K5: Page:
K7: Date: | L7: 2012-11-08
A9: Table 4-2.26 - Amortization Expense for 2012 Bridge Year (CGAAP)
A10: Appendix 2-CF
A11: Depreciation and Amortization Expense
A12: Assumes the applicant adopted IFRS for financial reporting purposes January 1, 2013 (Note Thunder Bay Hydro adopting IFRS effective January 1, 2014)
C13: Year | D13: 2012 | E13: CGAAP
A15: Account | B15: Description | C15: Opening Regulatory Gross PP&E as at Jan 1, 2012 | D15: Less Fully Depreciated | E15: Net for Depreciation | F15: Additions | G15: Total for Depreciation | H15: Years | I15: Depreciation Rate | J15: 2012 Depreciation Expense | K15: 2012 Depreciation Expense per Appendix 2-B Fixed Assets, Column K (l) | L15: Variance 2
C16: (a) | D16: (b) | E16: (c) | F16: (d) | G16: (e) = (c) + ½ x (d) 1 | H16: (f) | I16: (g) = 1 / (f) | J16: (h) = (e) / (f) | L16: (m) = (h) - (l)
A17: 1611 | B17: Computer Software (Formally known as Account 1925) | C17: 1136031.5 | D17: 683529.7 | E17: =C17-D17 -> 452501.8 | F17: 43501 | G17: =E17+0.5*F17 -> 474252.3 | H17: 5 | I17: =IF(H17=0,0,1/H17) -> 0.2 | J17: =IF(H17=0,0,G17/H17) -> 94850.46 | K17: 93245.16 | L17: =IF(ISERROR(+J17-K17), 0, +J17-K17) -> 1605.3
A18: 1612 | B18: Land Rights (Formally known as Account 1906) | E18: =C18-D18 -> 0 | F18: 0 | G18: =E18+0.5*F18 -> 0 | I18: 0 | J18: 0 | K18: 0 | L18: 0
A19: 1805 | B19: Land | C19: 133037.5 | E19: =C19-D19 -> 133037.5 | G19: 133037.5 | I19: 0 | J19: 0 | K19: 0 | L19: 0
A20: 1808 | B20: Buildings | C20: 3932847.5 | D20: 121307.55 | E20: =C20-D20 -> 3811539.95 | F20: 0 | G20: 3811539.95 | H20: 50 | I20: 0.02 | J20: 76230.799 | K20: 72044 | L20: 4186.799
A21: 1810 | B21: Leasehold Improvements | C21: 2506.55 | D21: 0 | E21: =C21-D21 -> 2506.55 | F21: 73000 | G21: 39006.55 | H21: 10 | I21: 0.1 | J21: 3900.655 | K21: 4004 | L21: -103.345
A22: 1815 | B22: Transformer Station Equipment >50 kV | D22: 0 | E22: =C22-D22 -> 0 | F22: 0 | G22: 0 | I22: 0 | J22: 0 | K22: 0 | L22: 0
A23: 1820 | B23: Distribution Station Equipment <50 kV | C23: 8124041.55 | D23: 2435797.98 | E23: =C23-D23 -> 5688243.57 | F23: 0 | G23: 5688243.57 | H23: 30 | I23: 0.03333333333 | J23: 189608.119 | K23: 169361.4 | L23: 20246.719
A24: 1825 | B24: Storage Battery Equipment | D24: 0 | E24: =C24-D24 -> 0 | G24: 0 | I24: 0 | J24: 0 | K24: 0 | L24: 0
A25: 1830 | B25: Poles, Towers & Fixtures | C25: 29146085.69 | D25: 3813071 | E25: =C25-D25 -> 25333014.69 | F25: 4076236.58 | G25: 27371132.98 | H25: 25 | I25: 0.04 | J25: 1094845.319 | K25: 1050123 | L25: 44722.3192
A26: 1835 | B26: Overhead Conductors & Devices | C26: 29835513.79 | D26: 450523 | E26: =C26-D26 -> 29384990.79 | F26: 3582044.92 | G26: 31176013.25 | H26: 25 | I26: 0.04 | J26: 1247040.53 | K26: 1236676 | L26: 10364.53
A27: 1840 | B27: Underground Conduit | C27: 13614954.86 | D27: 2162333 | E27: 11452621.86 | F27: 288024.67 | G27: 11596634.2 | H27: 26 | I27: 0.03846153846 | J27: 446024.3921 | K27: 406911 | L27: 39113.39212
A28: 1845 | B28: Underground Conductors & Devices | C28: 17920134.41 | D28: 5821959 | E28: 12098175.41 | F28: 1263181.51 | G28: 12729766.17 | H28: 26 | I28: 0.03846153846 | J28: 489606.391 | K28: 480425 | L28: 9181.390962
A29: 1850 | B29: Line Transformers | C29: 26930632.05 | D29: 4492949 | E29: 22437683.05 | F29: 1409099.82 | G29: 23142232.96 | H29: 25 | I29: 0.04 | J29: 925689.3184 | K29: 1008025.2 | L29: -82335.8816
A30: 2320 | B30: ARO | C30: 161743 | D30: 0 | E30: 161743 | F30: 0 | G30: 161743 | H30: 16.5 | I30: 0.06060606061 | J30: 9802.606061 | K30: 9751.8 | L30: 50.80606061
A31: 1855 | B31: Services (Overhead & Underground) | C31: 20225035.17 | D31: 0 | E31: 20225035.17 | F31: 644876.93 | G31: 20547473.64 | H31: 25 | I31: 0.04 | J31: 821898.9454 | K31: 818041 | L31: 3857.9454
A32: 1860 | B32: Meters | C32: 1177816.13 | D32: 273770 | E32: 904046.13 | F32: 61902.7272 | G32: 934997.4936 | H32: 26 | I32: 0.03846153846 | J32: 35961.44206 | K32: 93666.64 | L32: -57705.19794
A33: 1860 | B33: Meters (Smart Meters) *** | C33: 7786915 | E33: 7786915 | F33: 185709.3928 | G33: 7879769.696 | H33: 15 | I33: 0.06666666667 | J33: 525317.9798 | K33: 519127.36 | L33: 6190.61976
A34: 1905 | B34: Land | E34: 0 | F34: 0 | G34: 0 | I34: 0 | J34: 0 | K34: 0 | L34: 0
A35: 1908 | B35: Buildings & Fixtures | E35: 0 | F35: 0 | G35: 0 | I35: 0 | J35: 0 | K35: 0 | L35: 0
A36: 1910 | B36: Leasehold Improvements | E36: 0 | F36: 0 | G36: 0 | I36: 0 | J36: 0 | K36: 0 | L36: 0
A37: 1915 | B37: Office Furniture & Equipment (10 years) | C37: 1429254.74 | D37: 1019519 | E37: 409735.74 | F37: 71352 | G37: 445411.74 | H37: 10 | I37: 0.1 | J37: 44541.174 | K37: 43707 | L37: 834.174
A38: 1915 | B38: Office Furniture & Equipment (5 years) | E38: 0 | F38: 0 | G38: 0 | H38: 5 | I38: 0.2 | J38: 0 | K38: 0 | L38: 0
A39: 1920 | B39: Computer Equipment - Hardware | C39: 2733154.09 | D39: 2351291.32 | E39: 381862.77 | F39: 222408 | G39: 493066.77 | H39: 5 | I39: 0.2 | J39: 98613.354 | K39: 95718.48 | L39: 2894.874
A40: 1920 | B40: Computer Equip.-Hardware(Post Mar. 22/04) | E40: 0 | F40: 0 | G40: 0 | I40: 0 | J40: 0 | K40: 0 | L40: 0
A41: 1920 | B41: Computer Equip.-Hardware(Post Mar. 19/07) | E41: 0 | F41: 0 | G41: 0 | I41: 0 | J41: 0 | K41: 0 | L41: 0
A42: 1930 | B42: Transportation Equipment - 5 year | C42: 1310405.94 | D42: 936677 | E42: 373728.94 | F42: 280114 | G42: 513785.94 | H42: 5 | I42: 0.2 | J42: 102757.188 | K42: 102774 | L42: -16.812
B43: Transportation Equipment - 8 yr | C43: 5226589 | D43: 2427764 | E43: 2798825 | F43: 184609 | G43: 2891129.5 | H43: 8 | I43: 0.125 | J43: 361391.1875 | K43: 348512 | L43: 12879.1875
A44: 1935 | B44: Stores Equipment | C44: 63417.16 | D44: 63417.46 | E44: -0.3 | F44: 0 | G44: -0.3 | H44: 10 | I44: 0.1 | J44: -0.03 | K44: 582 | L44: -582.03
A45: 1940 | B45: Tools, Shop & Garage Equipment | C45: 2464871.86 | D45: 1868816 | E45: 596055.86 | F45: 51585 | G45: 621848.36 | H45: 10 | I45: 0.1 | J45: 62184.836 | K45: 63211.8 | L45: -1026.964
A46: 1945 | B46: Measurement & Testing Equipment | C46: 270461.43 | D46: 66143 | E46: 204318.43 | F46: 23873 | G46: 216254.93 | H46: 10 | I46: 0.1 | J46: 21625.493 | K46: 23177.66 | L46: -1552.167
A47: 1950 | B47: Power Operated Equipment | C47: 194621.96 | D47: 0 | E47: 194621.96 | F47: 0 | G47: 194621.96 | H47: 10 | I47: 0.1 | J47: 19462.196 | K47: 18963.54 | L47: 498.656
A48: 1955 | B48: Communications Equipment | C48: 212476.77 | D48: 138920.96 | E48: 73555.81 | F48: 28012 | G48: 87561.81 | H48: 5 | I48: 0.2 | J48: 17512.362 | K48: 15012 | L48: 2500.362
A49: 1955 | B49: Communication Equipment (Smart Meters) | E49: 0 | F49: 0 | G49: 0 | I49: 0 | J49: 0 | K49: 0 | L49: 0
A50: 1960 | B50: Miscellaneous Equipment | E50: 0 | F50: 0 | G50: 0 | H50: 10 | I50: 0.1 | J50: 0 | K50: 0 | L50: 0
A51: 1975 | B51: Load Management Controls Utility Premises | E51: 0 | F51: 0 | G51: 0 | I51: 0 | J51: 0 | K51: 0 | L51: 0
A52: 1980 | B52: System Supervisor Equipment | C52: 515151.7 | D52: 0 | E52: 515151.7 | F52: 51474 | G52: 540888.7 | H52: 15 | I52: 0.06666666667 | J52: 36059.24667 | K52: 34343 | L52: 1716.246667
A53: 1985 | B53: Miscellaneous Fixed Assets | E53: 0 | F53: 0 | G53: 0 | I53: 0 | J53: 0 | K53: 0 | L53: 0
A54: 1995 | B54: Contributions & Grants | C54: -15702404.83 | D54: 0 | E54: -15702404.83 | F54: -2022925 | G54: -16713867.33 | H54: 25 | I54: 0.04 | J54: -668554.6932 | K54: -668555 | L54: 0.3068
A55: 1996 | B55: Hydro One Current | C55: 1272321 | D55: 0 | E55: 1272321 | F55: 0 | G55: 1272321 | H55: 25 | I55: 0.04 | J55: 50892.84 | K55: 50893 | L55: -0.16
A56: WIP | B56: Work in Progress | C56: 2950259 | D56: 0 | E56: 2950259 | F56: -1681465 | G56: 2109526.5 | H56: 0 | I56: =IF(H56=0,"",1/H56) ->  | J56: =IF(H56=0,0,G56/H56) -> 0 | K56: 0 | L56: =IF(ISERROR(+J56-K56), "", +J56-K56) -> 0
E57: 0 | F57: 0 | G57: 0 | J57: 0 | K57: 0 | L57: 0
B58: Total | C58: =SUM(C17:C57) -> 163067874.5 | D58: =SUM(D17:D57) -> 29127788.97 | E58: =SUM(E17:E57) -> 133940085.6 | F58: =SUM(F17:F57) -> 8836614.55 | G58: =SUM(G17:G57) -> 138358392.8 | J58: =SUM(J17:J57) -> 6107262.111 | K58: =SUM(K17:K57) -> 6089741.04 | L58: =SUM(L17:L57) -> 17521.07093
A60: Notes:
A61: 1 | B61: Board policy of the "half-year" rule - the applicant must ensure that additions in the year attract a half-year depreciation expense in the first year. Deviations from this standard practice must be supported in the application.
A62: 2 | B62: The applicant must provide an explanation of material variances in evidence
A64: General: | B64: Applicants must provide a breakdown of depreciation and amortization expense in the above format for all relevant accounts. Asset Retirement Obligations (AROs), depreciation and accretion expense should be disclosed separately consistent with the Notes of historical Audited Financial Statements.

Sheet App.2-CF_CGAAP_DepExp_2013
K1: File Number: | L1: ='LDC Info'!$E$18 -> EB-2012-0167
K2: Exhibit:
K3: Tab:
K4: Schedule:
K5: Page:
K7: Date: | L7: 2012-11-08
A9: Appendix 2-CF
A10: Depreciation and Amortization Expense
A11: Assumes the applicant adopted IFRS for financial reporting purposes January 1, 2013 (Note Thunder Bay Hydro adopting IFRS effective January 1, 2014)
C12: Year | D12: 2013 | E12: CGAAP
A14: Account | B14: Description | C14: Opening Regulatory Gross PP&E as at Jan 1, 2013 | D14: Less Fully Depreciated | E14: Net for Depreciation | F14: Additions | G14: Total for Depreciation | H14: Years | I14: Depreciation Rate | J14: 2012 Depreciation Expense | K14: 2012 Depreciation Expense per Appendix 2-B Fixed Assets, Column K (l) | L14: Variance 2
C15: (a) | D15: (b) | E15: (c) | F15: (d) | G15: (e) = (c) + ½ x (d) 1 | H15: (f) | I15: (g) = 1 / (f) | J15: (h) = (e) / (f) | L15: (m) = (h) - (l)
A16: 1611 | B16: Computer Software (Formally known as Account 1925) | C16: 1179532.5 | D16: 762801 | E16: =C16-D16 -> 416731.5 | F16: 77200 | G16: =E16+0.5*F16 -> 455331.5 | H16: 5 | I16: =IF(H16=0,0,1/H16) -> 0.2 | J16: =IF(H16=0,0,G16/H16) -> 91066.3 | K16: 97864.82 | L16: =IF(ISERROR(+J16-K16), 0, +J16-K16) -> -6798.52
A17: 1612 | B17: Land Rights (Formally known as Account 1906) | E17: =C17-D17 -> 0 | G17: =E17+0.5*F17 -> 0 | I17: 0 | J17: 0 | K17: 0 | L17: 0
A18: 1805 | B18: Land | C18: 133037.5 | E18: =C18-D18 -> 133037.5 | F18: 0 | G18: 133037.5 | I18: 0 | J18: 0 | K18: 0 | L18: 0
A19: 1808 | B19: Buildings | C19: 3932847.5 | D19: 121307.55 | E19: =C19-D19 -> 3811539.95 | F19: 3303500 | G19: 5463289.95 | H19: 50 | I19: 0.02 | J19: 109265.799 | K19: 97294 | L19: 11971.799
A20: 1808 | B20: Garage | C20: 0 | D20: 0 | F20: 0 | G20: 0 | H20: 50 | I20: 0.02 | J20: 0 | K20: 0 | L20: 0
A21: 1810 | B21: Leasehold Improvements | C21: 75506.55 | D21: 0 | E21: =C21-D21 -> 75506.55 | F21: 0 | G21: 75506.55 | H21: 10 | I21: 0.1 | J21: 7550.655 | K21: 8399 | L21: -848.345
A22: 1820 | B22: Distribution Equipment - ARO | D22: 0 | E22: =C22-D22 -> 0 | F22: 0 | G22: 0 | H22: 30 | I22: 0.03333333333 | J22: 0 | K22: 0 | L22: 0
A23: 1820 | B23: Distribution Station Equipment Normally Primary below 50kv | C23: 8124041.55 | D23: 2435797.98 | E23: =C23-D23 -> 5688243.57 | F23: 0 | G23: 5688243.57 | H23: 30 | I23: 0.03333333333 | J23: 189608.119 | K23: 169361.1 | L23: 20247.019
A24: 1825 | B24: Storage Battery Equipment | D24: 0 | E24: =C24-D24 -> 0 | G24: 0 | I24: 0 | J24: 0 | K24: 0 | L24: 0
A25: 1830 | B25: Poles, Towers & Fixtures | C25: 33222320.27 | D25: 4826692 | E25: =C25-D25 -> 28395628.27 | F25: 3355911 | G25: 30073583.77 | H25: 25 | I25: 0.04 | J25: 1202943.351 | K25: 1115044.129 | L25: 87899.22134
A26: 1835 | B26: Overhead Conductors & Devices | C26: 33417558.71 | D26: 889688 | E26: =C26-D26 -> 32527870.71 | F26: 3395046 | G26: 34225393.71 | H26: 25 | I26: 0.04 | J26: 1369015.748 | K26: 1302012.464 | L26: 67003.28428
A27: 1840 | B27: Underground Conduit | C27: 13902979.53 | D27: 2862333 | E27: 11040646.53 | F27: 246571 | G27: 11163932.03 | H27: 25.94 | I27: 0.03855050116 | J27: 430375.1746 | K27: 411032.3041 | L27: 19342.87048
A28: 1845 | B28: Underground Conductors & Devices | C28: 19183315.92 | D28: 6723119 | E28: 12460196.92 | F28: 604296 | G28: 12762344.92 | H28: 25.94 | I28: 0.03855050116 | J28: 491994.7926 | K28: 504693.9753 | L28: -12699.18268
A29: 1850 | B29: Line Transformers | C29: 28339731.87 | D29: 5740734 | E29: 22598997.87 | F29: 1240223 | G29: 23219109.37 | H29: 25 | I29: 0.04 | J29: 928764.3748 | K29: 1030779.813 | L29: -102015.4381
A30: 2320 | B30: ARO | C30: 161743 | D30: 0 | E30: 161743 | F30: 0 | G30: 161743 | H30: 16.5 | I30: 0.06060606061 | J30: 9802.606061 | K30: 9751.8 | L30: 50.80606061
A31: 1855 | B31: Services (Overhead & Underground) | C31: 20869912.1 | E31: 20869912.1 | F31: 924514 | G31: 21332169.1 | H31: 25 | I31: 0.04 | J31: 853286.764 | K31: 834886.0996 | L31: 18400.66441
A32: 1860 | B32: Meters | C32: 1192672.857 | D32: 424033 | E32: 768639.8572 | F32: 10989.06 | G32: 774134.3872 | H32: 25.26 | I32: 0.03958828187 | J32: 30646.65032 | K32: 37122.17907 | L32: -6475.528743
A33: 1860 | B33: Meters (Smart Meters) *** | C33: 8019670.393 | E33: 8019670.393 | F33: 172161.94 | G33: 8105751.363 | H33: 15 | I33: 0.06666666667 | J33: 540383.4242 | K33: 575984.8054 | L33: -35601.38121
A34: 1905 | B34: Land | E34: 0 | G34: 0 | I34: 0 | J34: 0 | K34: 0 | L34: 0
A35: 1908 | B35: Buildings & Fixtures | E35: 0 | G35: 0 | I35: 0 | J35: 0 | K35: 0 | L35: 0
A36: 1910 | B36: Leasehold Improvements | E36: 0 | G36: 0 | I36: 0 | J36: 0 | K36: 0 | L36: 0
A37: 1915 | B37: Office Furniture & Equipment (10 years) | C37: 1420038.71 | D37: 1073892 | E37: 346146.71 | F37: 36050 | G37: 364171.71 | H37: 10 | I37: 0.1 | J37: 36417.171 | K37: 42182 | L37: -5764.829
A38: 1915 | B38: Office Furniture & Equipment (5 years) | E38: 0 | G38: 0 | H38: 5 | I38: 0.2 | J38: 0 | K38: 0 | L38: 0
A39: 1920 | B39: Computer Equipment - Hardware | C39: 2955562.09 | D39: 2354291.32 | E39: 601270.77 | F39: 81600 | G39: 642070.77 | H39: 5 | I39: 0.2 | J39: 128414.154 | K39: 117338.23 | L39: 11075.924
A40: 1920 | B40: Computer Equip.-Hardware(Post Mar. 22/04) | E40: 0 | G40: 0 | I40: 0 | J40: 0 | K40: 0 | L40: 0
A41: 1920 | B41: Computer Equip.-Hardware(Post Mar. 19/07) | E41: 0 | G41: 0 | I41: 0 | J41: 0 | K41: 0 | L41: 0
A42: 1930 | B42: Transportation Equipment 5yr | C42: 1423108.96 | D42: 772444.21 | E42: 650664.75 | F42: 135000 | G42: 718164.75 | H42: 5 | I42: 0.2 | J42: 143632.95 | K42: 130434 | L42: 13198.95
A43: 1930 | B43: Transportation Equipment 8yr | C43: 5120740 | D43: 2361310.06 | E43: 2759429.94 | F43: 825345 | G43: 3172102.44 | H43: 8 | I43: 0.125 | J43: =IF(H43=0,0,G43/H43) -> 396512.805 | K43: 387513 | L43: 8999.805
A44: 1935 | B44: Stores Equipment | C44: 63417.16 | D44: 63417.46 | E44: -0.3 | F44: 0 | G44: -0.3 | H44: 10 | I44: 0.1 | J44: -0.03 | K44: 0 | L44: -0.03
A45: 1940 | B45: Tools, Shop & Garage Equipment | C45: 2516456.86 | D45: 1528794.9 | E45: 987661.96 | F45: 73700 | G45: 1024511.96 | H45: 10 | I45: 0.1 | J45: 102451.196 | K45: 115323 | L45: -12871.804
A46: 1945 | B46: Measurement & Testing Equipment | C46: 294334.43 | D46: 298143 | E46: -3808.57 | F46: 22940 | G46: 7661.43 | H46: 10 | I46: 0.1 | J46: 766.143 | K46: 0 | L46: 766.143
A47: 1950 | B47: Power Operated Equipment | C47: 194621.96 | D47: 199142 | E47: -4520.04 | F47: 13400 | G47: 2179.96 | H47: 10 | I47: 0.1 | J47: 217.996 | K47: 0 | L47: 217.996
A48: 1955 | B48: Communications Equipment | C48: 240488.77 | D48: 162129.23 | E48: 78359.54 | F48: 104756 | G48: 130737.54 | H48: 5 | I48: 0.2 | J48: 26147.508 | K48: 19622 | L48: 6525.508
A49: 1955 | B49: Communication Equipment (Smart Meters) | E49: 0 | G49: 0 | I49: 0 | J49: 0 | K49: 0 | L49: 0
A50: 1960 | B50: Miscellaneous Equipment | E50: 0 | G50: 0 | H50: 10 | I50: 0.1 | J50: 0 | K50: 0 | L50: 0
A51: 1975 | B51: Load Management Controls Utility Premises | D51: 0 | E51: 0 | G51: 0 | I51: 0 | J51: 0 | K51: 0 | L51: 0
A52: 1980 | B52: System Supervisor Equipment | C52: 566625.7 | E52: 566625.7 | F52: 2077 | G52: 567664.2 | H52: 15 | I52: 0.06666666667 | J52: 37844.28 | K52: 34343.4 | L52: 3500.88
A53: 1985 | B53: Miscellaneous Fixed Assets | E53: 0 | G53: 0 | I53: 0 | J53: 0 | K53: 0 | L53: 0
A54: 2440 | B54: Deferred Revenue | F54: 0 | G54: 0 | H54: 25 | I54: 0.04 | J54: 0 | K54: 0 | L54: 0
A55: 1995 | B55: Contributions & Grants | C55: -17725329.83 | D55: 0 | E55: -17725329.83 | F55: -1044834 | G55: -18247746.83 | H55: 25 | I55: 0.04 | J55: -729909.8732 | K55: -729900 | L55: -9.8732
A56: 1996 | B56: Hydro One Current | C56: 1272321 | D56: 0 | E56: 1272321 | F56: 0 | G56: 1272321 | H56: 25 | I56: 0.04 | J56: 50892.84 | K56: 50893 | L56: -0.16
A57: WIP | B57: Work in Progress | C57: 1268794 | E57: 1268794 | F57: -190812 | G57: 1173388 | H57: 0 | I57: =IF(H57=0,"",1/H57) ->  | J57: 0 | K57: 0 | L57: 0
E58: 0 | F58: 0 | G58: 0 | J58: 0 | L58: 0
B59: Total | C59: =SUM(C16:C58) -> 171366050.1 | D59: =SUM(D16:D58) -> 33600069.71 | E59: =SUM(E16:E58) -> 137765980.4 | F59: =SUM(F16:F58) -> 13389634 | G59: =SUM(G16:G58) -> 144460797.4 | J59: =SUM(J16:J58) -> 6448090.899 | K59: =SUM(K16:K58) -> 6361975.12 | L59: =SUM(L16:L58) -> 86115.7786
A61: Notes:
A62: 1 | B62: Board policy of the "half-year" rule - the applicant must ensure that additions in the year attract a half-year depreciation expense in the first year. Deviations from this standard practice must be supported in the application.
A63: 2 | B63: The applicant must provide an explanation of material variances in evidence
A65: General: | B65: Applicants must provide a breakdown of depreciation and amortization expense in the above format for all relevant accounts. Asset Retirement Obligations (AROs), depreciation and accretion expense should be disclosed separately consistent with the Notes of historical Audited Financial Statements.

Sheet App.2-CG_MCGAAP_DepExp_2013
K1: File Number: | L1: ='LDC Info'!$E$18 -> EB-2012-0167
K2: Exhibit:
K3: Tab:
K4: Schedule:
K5: Page:
K7: Date: | L7: 2012-11-08
A9: Appendix 2-CG
A10: Depreciation and Amortization Expense
A11: Assumes the applicant adopted IFRS for financial reporting purposes January 1, 2013 (Note Thunder Bay Hydro adopting IFRS effective January 1, 2014)
C12: Year | D12: 2013 | E12: MCGAAP
A14: Account | B14: Description | C14: Opening NBV as at Jan 1, 2013 5 | D14: Additions | E14: Average Remaining Life of Opening NBV 4 | F14: Years (new additions only) 3 | G14: Depreciation Rate on New Additions | H14: Depreciation Expense on Opening NBV | I14: Depreciation Expense on Additions 1 | J14: 2013 Depreciation Expense | K14: 2013 Depreciation Expense per Appendix 2-B Fixed Assets, Column K (l) | L14: Variance 2 | M14: Depreciation Expense on 2013 Full Year Additions | N14: Less Depreciation Expense on Assets Fully Depreciated during the year (o) | O14: 2013 Full Year Depreciation 6
C15: (a) | D15: (d) | E15: (i) | F15: (f) | G15: (g) = 1 / (f) | H15: (j) = (a) / (i) | I15: (h)=((d)*0.5)/(f) | J15: (k) = (j) + (h) | L15: (m) = (k) - (l) | M15: (n)=((d))/(f) | O15: (p) = (j) + (n) - (o)
A16: 1611 | B16: Computer Software (Formally known as Account 1925) | C16: 192933.26 | D16: 77200 | E16: 5 | F16: 3 | G16: =IF(F16=0,0,1/F16) -> 0.3333333333 | H16: =IF(E16=0,0,+C16/E16) -> 38586.652 | I16: =IF(F16=0,0,+(D16*0.5)/F16) -> 12866.66667 | J16: =IF(ISERROR(+H16+I16), 0, +H16+I16) -> 51453.31867 | K16: 51925.75 | L16: =IF(ISERROR(+J16-K16), 0, +J16-K16) -> -472.4313333 | M16: =IF(F16=0,0,+(D16)/F16) -> 25733.33333 | N16: 0 | O16: =IF(ISERROR(+M16+H16-N16), 0, +M16+H16-N16) -> 64319.98533
A17: 1612 | B17: Land Rights (Formally known as Account 1906) | C17: 0 | D17: 0 | G17: 0 | H17: 0 | I17: 0 | J17: 0 | K17: 0 | L17: 0 | M17: 0 | O17: =IF(ISERROR(+M17+H17-N17), 0, +M17+H17-N17) -> 0
A18: 1805 | B18: Land | C18: 133037.5 | D18: 0 | G18: 0 | H18: 0 | I18: 0 | J18: 0 | K18: 0 | L18: 0 | M18: 0 | O18: 0
A19: 1808 | B19: Buildings | C19: 2070381.42 | D19: 3500 | E19: 29 | F19: 50 | G19: 0.02 | H19: 71392.46276 | I19: 35 | J19: =IF(ISERROR(+H19+I19), 0, +H19+I19) -> 71427.46276 | K19: 72044 | L19: -616.5372414 | M19: 70 | N19: 0 | O19: 71462.46276
A20: 1808 | B20: Garage | C20: 0 | D20: 3300000 | E20: 0 | F20: 72 | G20: 0.01388888889 | H20: 0 | I20: 22916.66667 | J20: 22916.66667 | K20: 25250 | L20: -2333.333333 | M20: 45833.33333 | O20: 45833.33333
A21: 1810 | B21: Leasehold Improvements | C21: 71056.9 | D21: 0 | E21: 8.5 | F21: 15 | G21: 0.06666666667 | H21: 8359.635294 | I21: 0 | J21: 8359.635294 | K21: 8399 | L21: -39.36470588 | M21: 0 | N21: 0 | O21: 8359.635294
A22: 1815 | B22: Distribution Equipment - ARO | C22: 0 | D22: 45124.53 | F22: 3 | G22: 0.3333333333 | H22: 0 | I22: =IF(F22=0,0,+(D22*0.5)/F22) -> 7520.755 | J22: 7520.755 | K22: 7386.47 | L22: 134.285 | M22: 15041.51 | N22: 0 | O22: 15041.51
A23: 1820 | B23: Distribution Station Equipment normally Primary below 50 kV | C23: 2248171.6 | D23: 1879 | E23: 7 | F23: 50 | G23: 0.02 | H23: 321167.3714 | I23: 18.79 | J23: 321186.1614 | K23: 319826.9634 | L23: 1359.198049 | M23: 37.58 | N23: 0 | O23: 321204.9514
A24: 1825 | B24: Storage Battery Equipment | C24: 0 | D24: 0 | E24: 0 | F24: 40 | G24: 0.025 | H24: 0 | I24: 0 | J24: 0 | K24: 0 | L24: 0 | M24: 0 | N24: 0 | O24: 0
A25: 1830 | B25: Poles, Towers & Fixtures | C25: 21743863.4 | D25: 0 | E25: 32 | F25: 0 | G25: 0 | H25: =IF(E25=0,0,+C25/E25) -> 679495.7313 | I25: 0 | J25: 679495.7313 | K25: 688942.2226 | L25: -9446.491399 | M25: 0 | N25: 0 | O25: 679495.7313
B26: Poles, Towers & Fixtures - New Additions Rate | D26: 3062513 | E26: 0 | F26: 40 | G26: 0.025 | H26: 0 | I26: 38281.4125 | J26: 38281.4125 | K26: 36516.49 | L26: 1764.9225 | M26: 76562.825 | O26: 76562.825
B27: Steel Cross Arms | C27: 95862.82 | E27: 61.57 | F27: 0 | G27: 0 | H27: 1556.972876 | I27: 0 | J27: 1556.972876 | K27: 1533.25 | L27: 23.7228764 | M27: 0 | O27: 1556.972876
B28: Steel Cross Arms - New Additions Rate | D28: 6105 | F28: 70 | G28: 0.01428571429 | H28: 0 | I28: 43.60714286 | J28: 43.60714286 | K28: 43.61 | L28: -0.002857142857 | M28: 87.21428571 | O28: 87.21428571
B29: Fibre Glass Cross Arms | C29: 9536.13 | D29: 0 | E29: 73.93 | G29: 0 | H29: 128.9886379 | I29: 0 | J29: 128.9886379 | K29: 129.89 | L29: -0.9013620993 | M29: 0 | O29: 128.9886379
B30: Fibre Glass Cross Arms - New Addition Rate | D30: 1274 | F30: 80 | G30: 0.0125 | H30: =IF(E30=0,0,+C30/E30) -> 0 | I30: =IF(F30=0,0,+(D30*0.5)/F30) -> 7.9625 | J30: =IF(ISERROR(+H30+I30), 0, +H30+I30) -> 7.9625 | K30: 7.96 | L30: 0.0025 | M30: 15.925 | O30: 15.925
A31: 1835 | B31: O/H Conductors & Devices - Switches | C31: 1052092.21 | D31: 0 | E31: 17.14 | F31: 0 | G31: 0 | H31: 61382.27596 | I31: 0 | J31: 61382.27596 | K31: 55775.52375 | L31: 5606.752211 | M31: 0 | N31: 0 | O31: 61382.27596
B32: O/H Conductors & Devices - Switches - New Addition Rate | D32: 125032 | F32: 40 | G32: 0.025 | H32: 0 | I32: 1562.9 | J32: 1562.9 | K32: 1550 | L32: 12.9 | M32: =IF(F32=0,0,+(D32)/F32) -> 3125.8 | N32: 0 | O32: 3125.8
B33: O/H Conductors & Devices - Primary & Neutral Cables | C33: 13604114.35 | D33: 0 | E33: 44 | F33: 0 | G33: 0 | H33: 309184.417 | I33: 0 | J33: 309184.417 | K33: 308197.49 | L33: 986.9270455 | M33: 0 | O33: 309184.417
B34: O/H Conductors & Devices - Primary & Neutral Cables - New Addition Rate | D34: 2018226 | F34: 60 | G34: 0.01666666667 | H34: =IF(E34=0,0,+C34/E34) -> 0 | I34: =IF(F34=0,0,+(D34*0.5)/F34) -> 16818.55 | J34: =IF(ISERROR(+H34+I34), 0, +H34+I34) -> 16818.55 | K34: 16818.55 | L34: =IF(ISERROR(+J34-K34), 0, +J34-K34) -> 0 | M34: =IF(F34=0,0,+(D34)/F34) -> 33637.1 | O34: 33637.1
B35: O/H Conductors & Devices - Secondary Cables | C35: 2210169.37 | D35: 0 | E35: 37 | F35: 0 | G35: 0 | H35: 59734.3073 | I35: 0 | J35: 59734.3073 | K35: 46208.8 | L35: 13525.5073 | M35: 0 | O35: 59734.3073
B36: O/H Conductors & Devices - Secondary Cables - New Addition Rate | D36: 569243 | F36: 60 | G36: 0.01666666667 | H36: =IF(E36=0,0,+C36/E36) -> 0 | I36: =IF(F36=0,0,+(D36*0.5)/F36) -> 4743.691667 | J36: =IF(ISERROR(+H36+I36), 0, +H36+I36) -> 4743.691667 | K36: 4743.69 | L36: =IF(ISERROR(+J36-K36), 0, +J36-K36) -> 0.001666666667 | M36: =IF(F36=0,0,+(D36)/F36) -> 9487.383333 | O36: 9487.383333
B37: O/H Conductors & Devices - Reclosures | C37: 643194.59 | D37: 0 | E37: 26.4 | F37: 0 | G37: 0 | H37: 24363.43144 | I37: 0 | J37: 24363.43144 | K37: 20778.03 | L37: 3585.401439 | M37: 0 | O37: 24363.43144
B38: O/H Conductors & Devices - Reclosures - New Addition Rate | D38: 144678 | F38: 40 | G38: 0.025 | H38: =IF(E38=0,0,+C38/E38) -> 0 | I38: =IF(F38=0,0,+(D38*0.5)/F38) -> 1808.475 | J38: =IF(ISERROR(+H38+I38), 0, +H38+I38) -> 1808.475 | K38: 1808.48 | L38: -0.005 | M38: =IF(ISERROR(+K38-L38), 0, +K38-L38) -> 1808.485 | N38: 0 | O38: 1808.485
A39: 1840 | B39: U/G Conduit - Trenches | C39: 138311.93 | D39: 0 | E39: 11.06 | F39: 0 | G39: 0 | H39: 12505.59946 | I39: 0 | J39: 12505.59946 | K39: 14462.68642 | L39: -1957.086965 | M39: 0 | N39: 0 | O39: 12505.59946
B40: U/G Conduit - Conduits | C40: 4807157.49 | D40: 0 | E40: 64 | F40: 0 | G40: 0 | H40: 75111.83578 | I40: 0 | J40: 75111.83578 | K40: 72294.66 | L40: 2817.175781 | M40: 0 | O40: 75111.83578
B41: U/G Conduit - Conduits - New Addition Rate | D41: 163913 | F41: 80 | G41: 0.0125 | H41: 0 | I41: 1024.45625 | J41: 1024.45625 | K41: 1024.46 | L41: =IF(ISERROR(+J41-K41), 0, +J41-K41) -> -0.00375 | M41: =IF(F41=0,0,+(D41)/F41) -> 2048.9125 | O41: =IF(ISERROR(+M41+H41-N41), 0, +M41+H41-N41) -> 2048.9125
B42: U/G Conduit - Foundations | C42: 924864.13 | D42: 0 | E42: 46.37 | F42: 0 | G42: 0 | H42: 19945.31227 | I42: 0 | J42: 19945.31227 | K42: 19780.48 | L42: 164.8322709 | M42: 0 | O42: 19945.31227
B43: U/G Conduit - Foundations - New Addition Rates | D43: 42221 | F43: 55 | G43: 0.01818181818 | H43: =IF(E43=0,0,+C43/E43) -> 0 | I43: =IF(F43=0,0,+(D43*0.5)/F43) -> 383.8272727 | J43: =IF(ISERROR(+H43+I43), 0, +H43+I43) -> 383.8272727 | K43: 383.83 | L43: =IF(ISERROR(+J43-K43), 0, +J43-K43) -> -0.002727272727 | M43: =IF(F43=0,0,+(D43)/F43) -> 767.6545455 | O43: =IF(ISERROR(+M43+H43-N43), 0, +M43+H43-N43) -> 767.6545455
A44: 1845 | B44: U/G Conductors & Devices - Primary Cables in Duct | C44: 8021228.53 | D44: 0 | E44: 32 | F44: 0 | G44: 0 | H44: 250663.3916 | I44: 0 | J44: 250663.3916 | K44: 243219.5336 | L44: 7443.857925 | M44: 0 | N44: 0 | O44: 250663.3916
B45: U/G Conductors & Devices - Primary Cables in Duct - New Addition Rates | D45: 465825 | F45: 40 | G45: 0.025 | H45: =IF(E45=0,0,+C45/E45) -> 0 | I45: =IF(F45=0,0,+(D45*0.5)/F45) -> 5822.8125 | J45: =IF(ISERROR(+H45+I45), 0, +H45+I45) -> 5822.8125 | K45: 5822.81 | L45: =IF(ISERROR(+J45-K45), 0, +J45-K45) -> 0.0025 | M45: =IF(F45=0,0,+(D45)/F45) -> 11645.625 | N45: 0 | O45: =IF(ISERROR(+M45+H45-N45), 0, +M45+H45-N45) -> 11645.625
B46: U/G Conductors & Devices - Primary Cables Direct Buried | C46: 516660.33 | D46: 0 | E46: 8 | F46: 0 | G46: 0 | H46: 64582.54125 | I46: 0 | J46: 64582.54125 | K46: 58711.35 | L46: 5871.19125 | M46: 0 | O46: 64582.54125
B47: U/G Conductors & Devices - Secondary Cables in Duct | C47: 567939.13 | D47: 0 | E47: 24.53 | F47: 0 | G47: 0 | H47: 23152.83857 | I47: 0 | J47: 23152.83857 | K47: 19440.89 | L47: 3711.948565 | M47: 0 | O47: 23152.83857
B48: U/G Conductors & Devices - Secondary Cables Direct Buried | C48: 93825.88 | D48: 0 | E48: 10.73 | F48: 0 | G48: 0 | H48: 8744.257223 | I48: 0 | J48: 8744.257223 | K48: 7215.45 | L48: 1528.807223 | M48: 0 | O48: 8744.257223
B49: U/G Conductors & Devices - UG Switchgear | C49: 496075.02 | D49: 0 | E49: 22.17 | F49: 0 | G49: 0 | H49: 22375.9594 | I49: 0 | J49: 22375.9594 | K49: 19938.58 | L49: 2437.379405 | M49: 0 | O49: 22375.9594
B50: U/G Conductors & Devices - UG Switchgear - New Addition Rate | D50: 50000 | F50: 30 | G50: 0.03333333333 | H50: =IF(E50=0,0,+C50/E50) -> 0 | I50: =IF(F50=0,0,+(D50*0.5)/F50) -> 833.3333333 | J50: =IF(ISERROR(+H50+I50), 0, +H50+I50) -> 833.3333333 | K50: 833.33 | L50: =IF(ISERROR(+J50-K50), 0, +J50-K50) -> 0.003333333333 | M50: =IF(F50=0,0,+(D50)/F50) -> 1666.666667 | O50: =IF(ISERROR(+M50+H50-N50), 0, +M50+H50-N50) -> 1666.666667
A51: 1850 | B51: Line Transformers - Vault | C51: 63515.52 | D51: 0 | E51: 9.71 | F51: 0 | G51: 0 | H51: 6541.248198 | I51: 0 | J51: 6541.248198 | K51: 11081.54144 | L51: -4540.293241 | M51: 0 | N51: 0 | O51: 6541.248198
B52: Line Transformers - Enclosure | C52: 58610.73 | D52: 0 | E52: 9.99 | F52: 0 | G52: 0 | H52: 5866.93994 | I52: 0 | J52: 5866.93994 | K52: 5522.25 | L52: 344.6899399 | M52: 0 | O52: 5866.93994
B53: Line Transformers - Pole Top | C53: 7726676.19 | D53: 0 | E53: 24 | F53: 0 | G53: 0 | H53: 321944.8412 | I53: 0 | J53: 321944.8412 | K53: 317973.48 | L53: 3971.36125 | M53: 0 | O53: 321944.8412
B54: Line Transformers - Pole Top - New Addition Rate | D54: 1132505 | F54: 40 | G54: 0.025 | H54: =IF(E54=0,0,+C54/E54) -> 0 | I54: =IF(F54=0,0,+(D54*0.5)/F54) -> 14156.3125 | J54: =IF(ISERROR(+H54+I54), 0, +H54+I54) -> 14156.3125 | K54: 14156.31 | L54: =IF(ISERROR(+J54-K54), 0, +J54-K54) -> 0.002500000001 | M54: =IF(F54=0,0,+(D54)/F54) -> 28312.625 | O54: =IF(ISERROR(+M54+H54-N54), 0, +M54+H54-N54) -> 28312.625
B55: Line Transformers - Pad Mount Transformer Single Phase | C55: 2322316.16 | D55: 0 | E55: 20.42 | F55: 0 | G55: 0 | H55: 113727.5299 | I55: 0 | J55: 113727.5299 | K55: 105095.86 | L55: 8631.669873 | M55: 0 | O55: 113727.5299
B56: Line Transformers - Pad Mount Transformer 3 Phase | C56: 2222363.58 | D56: 0 | E56: 22 | F56: 0 | G56: 0 | H56: 101016.5264 | I56: 0 | J56: 101016.5264 | K56: 94509.59 | L56: 6506.936364 | M56: 0 | O56: 101016.5264
A57: 2320 | B57: ARO | C57: 82077.31 | D57: 0 | E57: 11.5 | F57: 0 | G57: 0 | H57: 7137.157391 | I57: 0 | J57: 7137.157391 | K57: 9751.8 | L57: -2614.642609 | M57: 0 | N57: 0 | O57: 7137.157391
A58: 1855 | B58: Services (O/H & U/G) - O/H Conductors | C58: 3869113.67 | D58: 0 | E58: 37.39 | F58: 0 | G58: 0 | H58: 103479.9056 | I58: 0 | J58: 103479.9056 | K58: 96446.68407 | L58: 7033.221518 | M58: 0 | N58: 0 | O58: 103479.9056
B59: Services (O/H & U/G) - O/H Conductors - New Addition Rate | D59: 508923 | F59: 60 | G59: 0.01666666667 | H59: =IF(E59=0,0,+C59/E59) -> 0 | I59: =IF(F59=0,0,+(D59*0.5)/F59) -> 4241.025 | J59: =IF(ISERROR(+H59+I59), 0, +H59+I59) -> 4241.025 | K59: 4241.03 | L59: =IF(ISERROR(+J59-K59), 0, +J59-K59) -> -0.005 | M59: =IF(F59=0,0,+(D59)/F59) -> 8482.05 | N59: 0 | O59: =IF(ISERROR(+M59+H59-N59), 0, +M59+H59-N59) -> 8482.05
B60: Services (O/H & U/G) - U/G in Duct | C60: 2406431.79 | E60: 21.11 | F60: 0 | G60: 0 | H60: 113994.874 | I60: 0 | J60: 113994.874 | K60: 101192.28 | L60: 12802.59399 | M60: 0 | O60: 113994.874
D61: 253088 | F61: 40 | G61: 0.025 | H61: =IF(E61=0,0,+C61/E61) -> 0 | I61: =IF(F61=0,0,+(D61*0.5)/F61) -> 3163.6 | J61: =IF(ISERROR(+H61+I61), 0, +H61+I61) -> 3163.6 | K61: 3163.6 | L61: =IF(ISERROR(+J61-K61), 0, +J61-K61) -> 0 | M61: =IF(F61=0,0,+(D61)/F61) -> 6327.2 | O61: =IF(ISERROR(+M61+H61-N61), 0, +M61+H61-N61) -> 6327.2
B62: Services (O/H & U/G) -U/G Direct Buried | C62: 278022.31 | D62: 0 | E62: 10.73 | F62: 40 | G62: 0.025 | H62: 25910.74651 | I62: 0 | J62: 25910.74651 | K62: 34772.21 | L62: -8861.463495 | M62: 0 | O62: 25910.74651
A63: 1860 | B63: Meters - Industrial/Commercial Energy Meters | C63: 29497.6772 | D63: 0 | E63: 27.48 | F63: 35 | G63: 0.02857142857 | H63: 1073.423479 | I63: 0 | J63: 1073.423479 | K63: 2254.47 | L63: -1181.046521 | M63: 0 | N63: 0 | O63: 1073.423479
B64: Meters - CT & PT | C64: 107128.92 | D64: 0 | E64: 25.99 | F64: 50 | G64: 0.02 | H64: 4121.928434 | I64: 0 | J64: 4121.928434 | K64: 4313.52 | L64: -191.591566 | M64: 0 | O64: 4121.928434
B65: Meters - Primary | C65: 217803.71 | E65: 26.02 | F65: 0 | G65: 0 | H65: 8370.626826 | I65: 0 | J65: 8370.626826 | K65: 8118.96 | L65: 251.6668255 | M65: 0 | O65: 8370.626826
B66: Meters - Primary - New Addition Rate | D66: 25000 | F66: 50 | G66: 0.02 | H66: =IF(E66=0,0,+C66/E66) -> 0 | I66: =IF(F66=0,0,+(D66*0.5)/F66) -> 250 | J66: =IF(ISERROR(+H66+I66), 0, +H66+I66) -> 250 | K66: 250 | L66: =IF(ISERROR(+J66-K66), 0, +J66-K66) -> 0 | M66: =IF(F66=0,0,+(D66)/F66) -> 500 | O66: =IF(ISERROR(+M66+H66-N66), 0, +M66+H66-N66) -> 500
C67: 0 | D67: 0 | F67: 0 | G67: 0 | H67: 0 | I67: 0 | J67: 0 | K67: 0 | L67: 0 | M67: 0 | O67: 0
D68: 0 | G68: 0 | H68: =IF(E68=0,0,+C68/E68) -> 0 | I68: =IF(F68=0,0,+(D68*0.5)/F68) -> 0 | J68: =IF(ISERROR(+H68+I68), 0, +H68+I68) -> 0 | L68: =IF(ISERROR(+J68-K68), 0, +J68-K68) -> 0 | M68: =IF(F68=0,0,+(D68)/F68) -> 0 | O68: =IF(ISERROR(+M68+H68-N68), 0, +M68+H68-N68) -> 0
A69: 1860 | B69: Meters (Smart Meters) - Phase 1 | C69: 4484153.063 | D69: 118374 | E69: 11.6 | F69: 15 | G69: 0.06666666667 | H69: 386564.9192 | I69: 3945.8 | J69: 390510.7192 | K69: 391533.42 | L69: -1022.700793 | M69: 7891.6 | O69: 394456.5192
B70: Meters (Smart Meters) - Phase 2 | C70: 424135.98 | D70: 0 | E70: 11.5 | F70: 15 | G70: 0.06666666667 | H70: 36881.38957 | I70: 0 | J70: 36881.38957 | K70: 37319.19 | L70: -437.8004348 | M70: 0 | O70: 36881.38957
B71: Meters (Smart Meters) - Phase 3 | C71: 977656.8 | D71: 0 | E71: 12.11 | F71: 15 | G71: 0.06666666667 | H71: 80731.36251 | I71: 0 | J71: 80731.36251 | K71: 81630.4 | L71: -899.0374897 | M71: 0 | O71: 80731.36251
B72: Meters (Smart Meters) - Repeaters Data Coll | C72: 312071.19 | D72: 0 | E72: 11.95 | F72: 15 | G72: 0.06666666667 | H72: 26114.74393 | I72: 0 | J72: 26114.74393 | K72: 26755.69 | L72: -640.9460669 | M72: 0 | O72: 26114.74393
A73: 1905 | B73: Land | C73: 0 | D73: 0 | F73: 0 | G73: 0 | H73: 0 | I73: 0 | J73: 0 | K73: 0 | L73: 0 | M73: 0 | O73: 0
A74: 1908 | B74: Buildings & Fixtures | C74: 0 | D74: 0 | F74: 0 | G74: 0 | H74: 0 | I74: 0 | J74: 0 | K74: 0 | L74: 0 | M74: 0 | O74: 0
A75: 1910 | B75: Leasehold Improvements | C75: 0 | D75: 0 | F75: 0 | G75: 0 | H75: 0 | I75: 0 | J75: 0 | K75: 0 | L75: 0 | M75: 0 | O75: 0
A76: 1915 | B76: Office Furniture & Equipment (10 years) | C76: 249891.59 | D76: 36050 | E76: 6.1 | F76: 10 | G76: 0.1 | H76: 40965.83443 | I76: 1802.5 | J76: 42768.33443 | K76: 42182 | L76: 586.3344262 | M76: 3605 | N76: 0 | O76: 44570.83443
A77: 1915 | B77: Office Furniture & Equipment (5 years) | C77: 0 | D77: 0 | F77: 5 | G77: 0.2 | H77: 0 | I77: 0 | J77: 0 | K77: 0 | L77: 0 | M77: 0 | O77: 0
A78: 1920 | B78: Computer Equipment - Hardware | C78: 312212.07 | D78: 81600 | E78: 1.85 | F78: 3 | G78: 0.3333333333 | H78: 168763.2811 | I78: 13600 | J78: 182363.2811 | K78: 182002.31 | L78: 360.9710811 | M78: 27200 | N78: 0 | O78: 195963.2811
A79: 1920 | B79: Computer Equip.-Hardware(Post Mar. 22/04) | C79: 0 | D79: 0 | G79: 0 | H79: 0 | I79: 0 | J79: 0 | K79: 0 | L79: 0 | M79: 0 | O79: 0
A80: 1920 | B80: Computer Equip.-Hardware(Post Mar. 19/07) | C80: 0 | D80: 0 | G80: 0 | H80: 0 | I80: 0 | J80: 0 | K80: 0 | L80: 0 | M80: 0 | O80: 0
A81: 1930 | B81: Transportation Equipment - Trailers | E81: 0 | F81: 20 | G81: 0.05 | H81: 0 | I81: 0 | J81: 0 | L81: 0 | M81: 0 | N81: 0 | O81: 0
B82: Transportation Equipment - Buckets and Heavy Equipment | C82: 1636989.23 | D82: 825345 | E82: 9.9 | F82: 15 | G82: 0.06666666667 | H82: =IF(E82=0,0,+C82/E82) -> 165352.4475 | I82: =IF(F82=0,0,+(D82*0.5)/F82) -> 27511.5 | J82: =IF(ISERROR(+H82+I82), 0, +H82+I82) -> 192863.9475 | K82: 191875.16 | L82: =IF(ISERROR(+J82-K82), 0, +J82-K82) -> 988.7874747 | M82: =IF(F82=0,0,+(D82)/F82) -> 55023 | N82: 0 | O82: =IF(ISERROR(+M82+H82-N82), 0, +M82+H82-N82) -> 220375.4475
B83: Transportation Equipment - Light Vehicles | C83: 381827.8 | D83: 135000 | E83: 12 | F83: 12 | G83: 0.08333333333 | H83: 31818.98333 | I83: 5625 | J83: 37443.98333 | K83: 37358.1 | L83: 85.88333333 | M83: 11250 | N83: 0 | O83: 43068.98333
A84: 1935 | B84: Stores Equipment | C84: -0.29 | D84: 0 | F84: 10 | G84: 0.1 | H84: 0 | I84: 0 | J84: 0 | K84: 0 | L84: 0 | M84: 0 | N84: 0 | O84: 0
A85: 1940 | B85: Tools, Shop & Garage Equipment | C85: 246897.35 | D85: 73700 | E85: 3.75 | F85: 10 | G85: 0.1 | H85: 65839.29333 | I85: 3685 | J85: 69524.29333 | K85: 69193.8 | L85: 330.4933333 | M85: 7370 | N85: 0 | O85: 73209.29333
A86: 1945 | B86: Measurement & Testing Equipment | C86: 136923.85 | D86: 22940 | E86: 5.6 | F86: 10 | G86: 0.1 | H86: 24450.6875 | I86: 1147 | J86: 25597.6875 | K86: 25371.06 | L86: 226.6275 | M86: 2294 | N86: 0 | O86: 26744.6875
A87: 1950 | B87: Power Operated Equipment | C87: 135137 | D87: 13400 | E87: 6.7 | F87: 10 | G87: 0.1 | H87: 20169.70149 | I87: 670 | J87: 20839.70149 | K87: 20758.14 | L87: 81.56149254 | M87: 1340 | N87: 0 | O87: 21509.70149
A88: 1955 | B88: Communications Equipment | C88: 78032.92 | D88: 104756 | E88: 0 | F88: 5 | G88: 0.2 | H88: 0 | I88: 10475.6 | J88: 10475.6 | K88: 9446 | L88: 1029.6 | M88: 20951.2 | N88: 0 | O88: 20951.2
A89: 1955 | B89: Communication Equipment (Smart Meters) | C89: 0 | D89: 0 | F89: 5 | G89: 0.2 | H89: 0 | I89: 0 | J89: 0 | K89: 0 | L89: 0 | M89: 0 | N89: 0 | O89: 0
A90: 1960 | B90: Miscellaneous Equipment | C90: 0 | D90: 0 | F90: 10 | G90: 0.1 | H90: 0 | I90: 0 | J90: 0 | K90: 0 | L90: 0 | M90: 0 | N90: 0 | O90: 0
A91: 1975 | B91: Load Management Controls Utility Premises | C91: 0 | D91: 0 | G91: 0 | H91: 0 | I91: 0 | J91: 0 | K91: 0 | L91: 0 | M91: 0 | N91: 0 | O91: 0
A92: 1980 | B92: System Supervisor Equipment | C92: 187729.7 | D92: 0 | E92: 6.17 | F92: 50 | G92: 0.02 | H92: 30426.20746 | I92: 0 | J92: 30426.20746 | K92: 34343 | L92: -3916.792545 | M92: 0 | N92: 0 | O92: =IF(ISERROR(+M92+H92-N92), 0, +M92+H92-N92) -> 30426.20746
A93: 1985 | B93: Miscellaneous Fixed Assets | C93: 0 | D93: 0 | F93: 40 | G93: 0.025 | H93: 0 | I93: 0 | J93: 0 | K93: 0 | L93: 0 | M93: 0 | N93: 0 | O93: 0
A94: 2440 | B94: Deferred Revenue | C94: 0 | D94: -989984.66 | F94: 40 | G94: 0.025 | H94: 0 | I94: -12374.80825 | J94: -12374.80825 | K94: -12712.22 | L94: 337.41175 | M94: -24749.6165 | N94: 0 | O94: -24749.6165
A95: 1995 | B95: Contributions & Grants | C95: -13989346.83 | D95: 0 | E95: 30.6 | F95: 25 | G95: 0.04 | H95: -457168.1971 | I95: 0 | J95: -457168.1971 | K95: -456958.57 | L95: -209.6270588 | M95: 0 | N95: 0 | O95: -457168.1971
A96: 1996 | B96: Hydro One Current | C96: 1135295 | D96: 0 | E96: 26.5 | F96: 25 | G96: 0.04 | H96: 42841.32075 | I96: 0 | J96: 42841.32075 | K96: 42411 | L96: 430.3207547 | M96: 0 | N96: 0 | O96: 42841.32075
A97: WIP | B97: Work in Progress | C97: 1268794 | D97: -285238 | E97: 0 | F97: 0 | G97: =E97+0.5*F97 -> 0 | H97: 0 | I97: 0 | J97: 0 | K97: 0 | L97: 0 | M97: 0 | N97: 0 | O97: 0
C98: 0 | G98: 0 | H98: 0 | I98: 0 | J98: 0 | K98: 0 | L98: 0 | M98: 0 | O98: 0
B99: Total | C99: =SUM(C16:C98) -> 77002433.98 | D99: =SUM(D16:D98) -> 12132191.87 | H99: =SUM(H16:H98) -> 3529371.704 | I99: 192587.4357 | J99: 3721959.14 | K99: 3666366.295 | L99: =SUM(L16:L98) -> 55592.84475 | M99: 383366.4065 | N99: =SUM(N16:N98) -> 0 | O99: 3912738.111
A101: Notes:
A103: 1 | B103: Board policy of the "half-year" rule - the applicant must ensure that additions in the year attract a half-year depreciation expense in the first year. Deviations from this standard practice must be supported in the application.
A104: 2 | B104: The applicant must provide an explanation of material variances in evidence
A105: 3 | B105: The applicant should ensure that the years for new additions of assets are the asset useful lives determined by management in accordance with IFRS.
A106: 4 | B106: A recalculation should be performed to determine the average remaining life of opening balance of assets (i.e. excluding 2012 additions) under IFRS. For example, Asset A had a useful life of 20 years under CGAAP. On January 1, 2012, the date of transition, Asset A was 3 years depreciated. As a result, Asset A would have a remaining service life of 17 years (20 years less 3 years) under CGAAP as of January 1, 2012. Due to the transition to IFRS, management re-assessed the asset useful lives under IFRS principles and concluded that the revised useful life of Asset A is now 30 years. Therefore, the average remaining useful life of opening balance of Asset A is determined to be 27 years (30 years less 3 years) under IFRS as of January 1, 2012.
A107: 5 | B107: NBV must exclude assets still on the books but which have been fully amortized or depreciated.
A108: 6 | B108: This column refers to the calculated full year depreciation but excludes the depreciation expense on assets fully depreciated during the year. This column is used for the purpose of calculating depreciation expense in the following year on the next worksheet.
A110: General: | B110: Applicants must provide a breakdown of depreciation and amortization expense in the above format for all relevant accounts. Asset Retirement Obligations (AROs), depreciation and accretion expense should be disclosed separately consistent with the Notes of historical Audited Financial Statements.

Sheet App.2-CI_AltAccStd_DepExp (hidden)
K1: File Number: | L1: ='LDC Info'!$E$18 -> EB-2012-0167
K2: Exhibit:
K3: Tab:
K4: Schedule:
K5: Page:
K7: Date:
A9: Appendix 2-CI
A10: Depreciation and Amortization Expense
A11: Assumes the applicant adopted an alternate accounting standard other than IFRS for financial reporting purposes. For applicants adopting an Alternate Accounting Standard for financial reporting purposes January 1, 2012, applicants must complete 4 versions of the table below (2011 CGAAP, 2011 Alternate Accounting Standard, 2012 Alternate Accounting Standard and 2013 Alternate Accounting Standard). For applicants adopting an Alternate Accounting Standard for financial reporting purposes January 1, 2013, applicants must complete 4 versions of the table below (2011 CGAAP, 2012 CGAAP, 2012 Alternate Accounting Standard and 2013 Alternate Accounting Standard).
B12: Year | E12: Accounting Standard
A14: Account | B14: Description | C14: Opening Regulatory Gross PP&E | D14: Less Fully Depreciated | E14: Net for Depreciation | F14: Additions | G14: Total for Depreciation | H14: Years | I14: Depreciation Rate | J14: Depreciation Expense | K14: Depreciation Expense per Appendix 2-B Fixed Assets, Column K (l) | L14: Variance 2
C15: (a) | D15: (b) | E15: (c) | F15: (d) | G15: (e) = (c) + ½ x (d) 1 | H15: (f) | I15: (g) = 1 / (f) | J15: (h) = (e) / (f) | L15: (m) = (h) - (l)
A16: 1611 | B16: Computer Software (Formally known as Account 1925) | E16: =C16-D16 -> 0 | G16: =E16+0.5*F16 -> 0 | I16: =IF(H16=0,0,1/H16) -> 0 | J16: =IF(H16=0,0,G16/H16) -> 0 | L16: =IF(ISERROR(+J16-K16), 0, +J16-K16) -> 0
A17: 1612 | B17: Land Rights (Formally known as Account 1906) | E17: =C17-D17 -> 0 | G17: =E17+0.5*F17 -> 0 | I17: 0 | J17: 0 | L17: 0
A18: 1805 | B18: Land | E18: 0 | G18: 0 | I18: 0 | J18: 0 | L18: 0
A19: 1808 | B19: Buildings | E19: 0 | G19: 0 | I19: 0 | J19: 0 | L19: 0
A20: 1810 | B20: Leasehold Improvements | E20: 0 | G20: 0 | I20: 0 | J20: 0 | L20: 0
A21: 1815 | B21: Transformer Station Equipment >50 kV | E21: 0 | G21: 0 | I21: 0 | J21: 0 | L21: 0
A22: 1820 | B22: Distribution Station Equipment <50 kV | E22: 0 | G22: 0 | I22: 0 | J22: 0 | L22: 0
A23: 1825 | B23: Storage Battery Equipment | E23: 0 | G23: 0 | I23: 0 | J23: 0 | L23: 0
A24: 1830 | B24: Poles, Towers & Fixtures | E24: 0 | G24: 0 | I24: 0 | J24: 0 | L24: 0
A25: 1835 | B25: Overhead Conductors & Devices | E25: 0 | G25: 0 | I25: 0 | J25: 0 | L25: 0
A26: 1840 | B26: Underground Conduit | E26: 0 | G26: 0 | I26: 0 | J26: 0 | L26: 0
A27: 1845 | B27: Underground Conductors & Devices | E27: 0 | G27: 0 | I27: 0 | J27: 0 | L27: 0
A28: 1850 | B28: Line Transformers | E28: 0 | G28: 0 | I28: 0 | J28: 0 | L28: 0
A29: 1855 | B29: Services (Overhead & Underground) | E29: 0 | G29: 0 | I29: 0 | J29: 0 | L29: 0
A30: 1860 | B30: Meters | E30: 0 | G30: 0 | I30: 0 | J30: 0 | L30: 0
A31: 1860 | B31: Meters (Smart Meters) | E31: 0 | G31: 0 | I31: 0 | J31: 0 | L31: 0
A32: 1905 | B32: Land | E32: 0 | G32: 0 | I32: 0 | J32: 0 | L32: 0
A33: 1908 | B33: Buildings & Fixtures | E33: 0 | G33: 0 | I33: 0 | J33: 0 | L33: 0
A34: 1910 | B34: Leasehold Improvements | E34: 0 | G34: 0 | I34: 0 | J34: 0 | L34: 0
A35: 1915 | B35: Office Furniture & Equipment (10 years) | E35: 0 | G35: 0 | I35: 0 | J35: 0 | L35: 0
A36: 1915 | B36: Office Furniture & Equipment (5 years) | E36: 0 | G36: 0 | I36: 0 | J36: 0 | L36: 0
A37: 1920 | B37: Computer Equipment - Hardware | E37: 0 | G37: 0 | I37: 0 | J37: 0 | L37: 0
A38: 1920 | B38: Computer Equip.-Hardware(Post Mar. 22/04) | E38: 0 | G38: 0 | I38: 0 | J38: 0 | L38: 0
A39: 1920 | B39: Computer Equip.-Hardware(Post Mar. 19/07) | E39: 0 | G39: 0 | I39: 0 | J39: 0 | L39: 0
A40: 1930 | B40: Transportation Equipment | E40: 0 | G40: 0 | I40: 0 | J40: 0 | L40: 0
A41: 1935 | B41: Stores Equipment | E41: 0 | G41: 0 | I41: 0 | J41: 0 | L41: 0
A42: 1940 | B42: Tools, Shop & Garage Equipment | E42: 0 | G42: 0 | I42: 0 | J42: 0 | L42: 0
A43: 1945 | B43: Measurement & Testing Equipment | E43: 0 | G43: 0 | I43: 0 | J43: 0 | L43: 0
A44: 1950 | B44: Power Operated Equipment | E44: 0 | G44: 0 | I44: 0 | J44: 0 | L44: 0
A45: 1955 | B45: Communications Equipment | E45: 0 | G45: 0 | I45: 0 | J45: 0 | L45: 0
A46: 1955 | B46: Communication Equipment (Smart Meters) | E46: 0 | G46: 0 | I46: 0 | J46: 0 | L46: 0
A47: 1960 | B47: Miscellaneous Equipment | E47: 0 | G47: 0 | I47: 0 | J47: 0 | L47: 0
A48: 1975 | B48: Load Management Controls Utility Premises | E48: 0 | G48: 0 | I48: 0 | J48: 0 | L48: 0
A49: 1980 | B49: System Supervisor Equipment | E49: 0 | G49: 0 | I49: 0 | J49: 0 | L49: 0
A50: 1985 | B50: Miscellaneous Fixed Assets | E50: 0 | G50: 0 | I50: 0 | J50: 0 | L50: 0
A51: 1995 | B51: Contributions & Grants | E51: 0 | G51: 0 | I51: 0 | J51: 0 | L51: 0
A52: etc. | E52: 0 | G52: 0 | I52: 0 | J52: 0 | L52: 0
E53: 0 | G53: 0 | I53: 0 | J53: 0 | L53: 0
B54: Total | C54: =SUM(C16:C53) -> 0 | D54: =SUM(D16:D53) -> 0 | E54: =SUM(E16:E53) -> 0 | F54: 0 | G54: 0 | J54: =SUM(J16:J53) -> 0 | K54: =SUM(K16:K53) -> 0 | L54: =SUM(L16:L53) -> 0
A56: Notes:
A58: 1 | B58: Board policy of the "half-year" rule - the applicant must ensure that additions in the year attract a half-year depreciation expense in the first year. Deviations from this standard practice must be supported in the application.
A59: 2 | B59: The applicant must provide an explanation of material variances in evidence
A62: General: | B62: Applicants must provide a breakdown of depreciation and amortization expense in the above format for all relevant accounts. Asset Retirement Obligations (AROs), depreciation and accretion expense should be disclosed separately consistent with the Notes of historical Audited Financial Statements.

Sheet App.2-D_Overhead
L1: File Number: | M1: ='LDC Info'!$E$18 -> EB-2012-0167
L2: Exhibit:
L3: Tab:
L4: Schedule:
L5: Page:
L7: Date: | M7: 2012-11-08
A9: Appendix 2-D
A10: Overhead Expense
A11: (Note Thunder Bay Hydro Modified CGAAP to be more in line with IFRS effective January 1, 2013)
A12: The following table should be completed based on the information requested below. An explanation should be provided for any blank entries. The entries should include overhead costs that are currently capitalized on self-constructed assets under MIFRS or an alternate accounting standard.
E13: (A) 1 | F13: (B) | G13: (C) | H13: (D) | I13: (E) 1 | J13: (F) | K13: (G)
A14: Nature of the Overhead Costs | E14: Dollar | F14: Dollar | G14: Dollar | H14: Dollar Impact - | I14: Dollar Impact - | J14: Directly | K14: Reasons why the overhead costs are allowed to be
E15: Impact on PP&E | F15: Impact on PP&E | G15: Impact on PP&E | H15: PP&E Variance | I15: PP&E Variance | J15: Attributable? | K15: capitalized under MIFRS or an alternate accounting
E16: Historic Year | F16: Bridge Year | G16: Test Year | H16: Test versus Bridge | I16: Test versus Historic | J16: (Y/N) | K16: standard given limitations on capitalized overhead
A17: employee benefits (Downtime) | G17: 265115 | I17: =+G17-E17 -> 265115 | J17: Y | K17: Relates to Statutory Holidays, Vacation and Sick Time which are eligible for capital
A18: costs of site preparation | H18: =+G18-F18 -> 0 | I18: =+G18-E18 -> 0 | K18: If costs incurred, directly charged to the project
A19: initial delivery and handling costs | H19: 0 | I19: 0 | K19: If costs incurred, directly charged to the project
A20: costs of testing whether the asset is functioning properly | H20: 0 | I20: 0 | K20: If costs incurred, directly charged to the project
A21: professional fees | H21: 0 | I21: 0 | K21: If costs incurred, directly charged to the project
H22: 0 | I22: 0
A23: costs of opening a new facility | H23: 0 | I23: 0 | K23: Not applicable
A24: costs of introducing a new product or service (including costs of advertising and promotional activities) | H24: 0 | I24: 0 | K24: Not applicable
A25: costs of conducting business in a new location or with a new class of customer (including costs of staff training) | H25: 0 | I25: 0 | K25: Not applicable
A26: administration and other general overhead costs | H26: 0 | I26: 0 | K26: See below
A27: Stores Overhead | G27: 75399 | I27: 75399 | J27: Y | K27: Represents Stores Department direct labour and benefit costs directly attributable to capital
A28: Engineering Overhead | G28: 963744 | I28: 963744 | J28: Y | K28: Represents Engineering Department labour and benefits costs directly attributale to capital
A29: Supervisory Overhead | G29: 283860 | I29: 283860 | J29: Y | K29: Represents Supervisory Department labour and benefit costs directly attributable to capital
A30: Fleet Maintenance Overhead | G30: 391509 | I30: 391509 | J30: Y | K30: Represents Fleet Department costs directly attributable to capital such as fuel, misc. parts, and depreciation of fleet.
A31: Insert description of additional item(s) and new rows if needed. | H31: 0 | I31: 0
A32: Total | E32: =SUM(E17:E31) -> 0 | F32: =SUM(F17:F31) -> 0 | G32: =SUM(G17:G31) -> 1979627 | H32: =SUM(H17:H31) -> 0 | I32: =SUM(I17:I31) -> 1979627
A35: The following table should be completed based on the information requested below. An explanation should be provided for any blank entries. The entries should include overhead costs that were capitalized on self-constructed assets under CGAAP but are no longer capitalized under MIFRS or an alternate accounting standard and are included in OM&A.
E36: (A) 1 | F36: (B) | G36: (C) | H36: (D) | I36: (E) 1 | J36: (F) | K36: (G)
A37: Nature of the Overhead Costs | E37: Dollar | F37: Dollar | G37: Dollar | H37: Dollar Impact - | I37: Dollar Impact - | J37: Directly | K37: Reasons why the overhead costs are not allowed to be
E38: Impact on OM&A | F38: Impact on OM&A | G38: Impact on OM&A | H38: OM&A Variance | I38: OM&A Variance | J38: Attributable? | K38: capitalized under MIFRS or an alternate accounting
E39: Historic Year | F39: Bridge Year | G39: Test Year | H39: Test versus Bridge | I39: Test versus Historic | J39: (Y/N) | K39: standard given limitations on capitalized overhead
A40: employee benefits (Downtime) | G40: 298374 | I40: =+G40-E40 -> 298374 | J40: N | K40: Includes benefits not directly related to capital such as safety training and education expenses
A41: costs of site preparation | H41: =+G41-F41 -> 0 | I41: =+G41-E41 -> 0 | K41: If costs incurred, direclty charged to the project
A42: initial delivery and handling costs | H42: =+G42-F42 -> 0 | I42: =+G42-E42 -> 0 | K42: If costs incurred, direclty charged to the project
A43: costs of testing whether the asset is functioning properly | H43: =+G43-F43 -> 0 | I43: =+G43-E43 -> 0 | K43: If costs incurred, direclty charged to the project
A44: professional fees | H44: =+G44-F44 -> 0 | I44: =+G44-E44 -> 0 | K44: If costs incurred, direclty charged to the project
A46: costs of opening a new facility | H46: =+G46-F46 -> 0 | I46: =+G46-E46 -> 0 | K46: Not applicable
A47: costs of introducing a new product or service (including costs of advertising and promotional activities) | H47: 0 | I47: 0 | K47: Not applicable
A48: costs of conducting business in a new location or with a new class of customer (including costs of staff training) | H48: 0 | I48: 0 | K48: Not applicable
A49: administration and other general overhead costs | H49: 0 | I49: 0 | K49: See below
A50: Stores Overhead | G50: 340509 | I50: 340509 | J50: N | K50: Removal of the Purchasing Department, supervisory labour and other misc. department charges
A51: Engineering Overhead | G51: 232599 | I51: 232599 | J51: N | K51: Removal of supervisory and admin. Labour, and other misc. department charges.
A52: Supervisory Overhead | G52: 323194 | I52: 323194 | J52: N | K52: Removal of Superindents and admin labour, and other misc. department charges.
H54: 0 | I54: 0
A55: Fleet Maintenance Overhead | G55: 502399 | I55: 502399 | J55: N | K55: Removal of wages and benefits of mechanics and other misc. department charges
H56: 0 | I56: 0
A57: Insert description of additional item(s) and new rows if needed. | H57: 0 | I57: 0
A58: Total | E58: =SUM(E40:E57) -> 0 | F58: =SUM(F40:F57) -> 0 | G58: =SUM(G40:G57) -> 1697075 | H58: =SUM(H40:H57) -> 0 | I58: =SUM(I40:I57) -> 1697075
A60: Notes:
A61: 1 | B61: If the applicant chooses to adopt IFRS or an alternate accounting standard for financial reporting purposes in 2013, the applicant does not need to complete Columns A, E. If the applicant adopts IFRS or an alternate accounting standard for financial reporting purposes in 2012, the applicant must complete all columns.
A65: *

Sheet App.2-EA_PP&E Deferral Account (hidden)
H1: File Number: | I1: ='LDC Info'!$E$18 -> EB-2012-0167
H2: Exhibit:
H3: Tab:
H4: Schedule:
H5: Page:
H7: Date:
A9: Appendix 2-EA
A10: IFRS-CGAAP Transitional PP&E Amounts
A11: 2012 Adopters of IFRS for Financial Reporting Purposes
A13: For applicants that adopt IFRS on January 1, 2012 for financial reporting purposes
A15: Note: this sheet should be filled out if the applicant adopts IFRS for its financial reporting purpose as of January 1, 2012.
B17: 2009 Rebasing Year | C17: 2010 | D17: 2011 | E17: 2012 | F17: 2013 Rebasing Year | G17: 2014 | H17: 2015 | I17: 2016
A18: Reporting Basis | B18: CGAAP | C18: IRM | D18: IRM | E18: IRM | F18: MIFRS | G18: IRM | H18: IRM | I18: IRM
A19: Forecast vs. Actual Used in Rebasing Year | B19: Forecast | C19: Actual | D19: Actual | E19: Forecast | F19: Forecast
D20: $ | E20: $
A21: PP&E Values under CGAAP
A22: Opening net PP&E - Note 1
A23: Additions
A24: Depreciation (amounts should be negative)
A25: Closing net PP&E (1) | D25: =D22+D23+D24 -> 0 | E25: =E22+E23+E24 -> 0
A27: PP&E Values under MIFRS (Starts from 2011, the transition year)
A28: Opening net PP&E - Note 1
A29: Additions
A30: Depreciation (amounts should be negative)
A31: Closing net PP&E (2) | D31: =SUM(D28:D30) -> 0 | E31: =SUM(E28:E30) -> 0
A33: Difference in Closing net PP&E, CGAAP vs. MIFRS (Shown as adjustment to rate base on rebasing) | D33: =D25-D31 -> 0 | E33: =E25-E31 -> 0
A35: Account 1575 - IFRS-CGAAP Transitional PP&E Amounts
A36: Opening balance | D36: 0 | E36: =D40 -> 0 | F36: =E40 -> 0 | G36: =F40 -> 0 | H36: =G40 -> 0 | I36: =H40 -> 0
A37: Amounts added in the year | D37: =D33 -> 0 | E37: =E33-D33 -> 0
A38: Sub-total | D38: =D36+D37 -> 0 | E38: 0 | F38: 0 | G38: 0 | H38: 0 | I38: 0
A39: Amount of amortization, included in depreciation expense - Note 2 | F39: =IF(ISERROR(-E33/I44), 0, -E33/I44) -> 0 | G39: =+F39 -> 0 | H39: =+F39 -> 0 | I39: =+F39 -> 0
A40: Closing balance in deferral account | D40: =D38+D39 -> 0 | E40: 0 | F40: =IF(ISERROR(F38+F39), 0, F38+F39) -> 0 | G40: 0 | H40: 0 | I40: 0
A42: Effect on Revenue Requirement
A43: Amortization of deferred balance as above - Note 2 | F43: =IF(ISERROR(E33/I44), 0, E33/I44) -> 0 | H43: WACC
A44: Return on Rate Base Associated with deferred PP&E balance at WACC - Note 3 | F44: =E33*I43 -> 0 | H44: Disposition Period - Note 4 | I44: 4 | J44: Years
A45: Amount included in Revenue Requirement on rebasing | F45: =F43+F44 -> 0
A47: Notes:
A48: 1 For an applicant that adopts IFRS on January 1, 2012, the PP&E values as of January 1, 2011 under both CGAAP and MIFRS should be the same.
A49: 2 Amortization of the deferred balance in Account 1575 will start from the rebasing year.
A50: Assume the utility requests for a certain disposition period, the amortization that should be included in the depreciation expense is calculated as:
A51: the opening balance of Account 1575 / the approved disposition period
A52: 3 Return on rate base associated with deferred balance is calculated as:
A53: the deferred account opening balance as of 2013 rebasing year x WACC
A54: * Please note that the calculation should be adjusted once WACC is updated and finalized in the rate application.
A55: 4 Consistent with the 4 year normal rate cycle, the model is using a 4 year amortization period as a default selection to "clear" the PP&E deferral account through a one-time adjustment to ratebase to capture and remove the impact of the accounting policy changes as caused by the transition from CGAAP to MIFRS.

Sheet App.2-F_Other_Oper_Rev
H1: File Number: | I1: ='LDC Info'!$E$18 -> EB-2012-0167
H2: Exhibit: | I2: 3
H3: Tab: | I3: 1
H4: Schedule: | I4: 1
H5: Page: | I5: 2
H7: Date: | I7: 2012-11-08
A9: Appendix 2-F
A10: Table 3-1.1 - Other Operating Revenue
A12: USoA # | B12: USoA Description | C12: =G13-3 & " Actual" -> 2009 Actual | D12: =G13-2 & " Actual" -> 2010 Actual | E12: =G13-1 & " Actual"& CHAR(178) -> 2011 Actual² | F12: =G13-1 & " Actual"& CHAR(178) -> 2011 Actual² | G12: ="Bridge Year" & CHAR(179) -> Bridge Year³ | H12: ="Bridge Year" & CHAR(179) -> Bridge Year³ | I12: Test Year | J12: Test Year
G13: ='LDC Info'!E26 -> 2012 | H13: ='LDC Info'!E26 -> 2012 | I13: ='LDC Info'!E28 -> 2013 | J13: 2013
B14: Reporting Basis | C14: CGAAP | D14: CGAAP | E14: CGAAP | G14: CGAAP | H14: CGAAP | I14: CGAAP | J14: MCGAAP
A15: 4235 | B15: Specific Service Charges | C15: -320631.17 | D15: -322428.24 | E15: -270470.56 | G15: -274216 | H15: -274216 | I15: -267807 | J15: -267807
A16: 4225 | B16: Late Payment Charges | C16: -289447.36 | D16: -261868.21 | E16: -297478.23 | G16: -297000 | H16: -297000 | I16: -297000 | J16: -297000
A17: 4080-2 | B17: SSS Revenue | C17: -128694 | D17: -127920 | E17: -131704 | G17: -131340 | H17: -131340 | I17: -131340 | J17: -131340
A18: 4082 | B18: RS Rev | C18: -75266 | D18: -66688 | E18: -55953.6 | G18: -59150 | H18: -59150 | I18: -59150 | J18: -59150
A19: 4084 | B19: Serv Tx Requests | C19: -1680.5 | D19: -5628.5 | E19: -1785.5 | G19: -1900 | H19: -1900 | I19: -1900 | J19: -1900
A20: 4090 | B20: Electric Services Incidental to Energy Sales
A21: 4205 | B21: Interdepartmental Rents | I21: 0 | J21: 0
A22: 4210 | B22: Rent from Electric Property | C22: -460834.98 | D22: -462179.14 | E22: -477107.77 | G22: -471000 | H22: -471000 | I22: -471000 | J22: -471000
A23: 4215 | B23: Other Utility Operating Income | I23: 0 | J23: 0
A24: 4220 | B24: Other Electric Revenues | C24: -93336.98 | D24: -139302.39 | E24: -202430.57 | G24: -168726 | H24: -168726 | I24: -180818 | J24: -180818
A25: 4240 | B25: Provision for Rate Refunds | C25: 361129 | D25: 0 | E25: 0 | G25: 0 | H25: 0 | I25: 0 | J25: 0
A26: 4245 | B26: Government Assistance Directly Credited to Income | G26: 0 | H26: 0 | I26: 0 | J26: -12712.22
A27: 4305 | B27: Regulatory Debits | I27: 0 | J27: 0
A28: 4310 | B28: Regulatory Credits | I28: 0 | J28: 0
A29: 4315 | B29: Revenues from Electric Plant Leased to Others | I29: 0 | J29: 0
A30: 4324 | B30: SPC Recovery | D30: -224891 | E30: -164329 | I30: 0 | J30: 0
A31: 4325 | B31: Revenues from Merchandise, Jobbing, Etc. | I31: 0 | J31: 0
A32: 4330 | B32: Costs and Expenses of Merchandising, Jobbing, Etc | I32: 0 | J32: 0
A33: 4335 | B33: Profits and Losses from Financial Instrument Hedges | I33: 0 | J33: 0
A34: 4340 | B34: Profits and Losses from Financial Instrument Investments | I34: 0 | J34: 0
A35: 4345 | B35: Gains from Disposition of Future Use Utility Plant | I35: 0 | J35: 0
A36: 4350 | B36: Losses from Disposition of Future Use Utility Plant | I36: 0 | J36: 0
A37: 4355 | B37: Gain on Disposition of Utility and Other Property | C37: -14336 | D37: -400 | E37: -26513.13 | G37: 12200 | H37: 12200 | I37: -49850 | J37: 14119.74
A38: 4360 | B38: Loss on Disposition of Utility and Other Property
A39: 4362 | B39: Loss from Retirement of Utility and Other Property | I39: 30000 | J39: 30000
A40: 4365 | B40: Gains from Disposition of Allowances for Emission | I40: 0 | J40: 0
A41: 4370 | B41: Losses from Disposition of Allowances for Emission | I41: 0 | J41: 0
A42: 4375 | B42: Revenues from Non-Utility Operations | C42: -680002.31 | D42: -656246.22 | E42: -739783.29 | G42: -879343.03 | H42: -879343.03 | I42: -668839 | J42: -668839
A43: 4380 | B43: Expenses of Non-Utility Operations | C43: 646324.11 | D43: 658682.41 | E43: 739003.34 | G43: 890954.21 | H43: 890954.21 | I43: 677223.95 | J43: 677100.95
A44: 4385 | B44: Expenses of Non-Utility Operations | I44: 0 | J44: 0
A45: 4390 | B45: Miscellaneous Non-Operating Income | C45: -182055.89 | D45: -251895.89 | E45: -277307.17 | G45: -278000 | H45: -278000 | I45: -272000 | J45: -272000
A46: 4395 | B46: Rate-Payer Benefit Including Interest | I46: 0 | J46: 0
A47: 4398 | B47: Foreign Exchange Gains and Losses, Including Amortization | I47: 0 | J47: 0
A48: 4405 | B48: Interest and Dividend Income | C48: -159335.34 | D48: -178369.08 | E48: -747158.18 | G48: 99807 | H48: 99807 | I48: -110390 | J48: -110390
A49: 4415 | B49: Equity in Earnings of Subsidiary Companies | I49: 0 | J49: 0
A51: Specific Service Charges | C51: =C15 -> -320631.17 | D51: -322428.24 | E51: -270470.56 | F51: 0 | G51: -274216 | H51: -274216 | I51: -267807 | J51: =J15 -> -267807
A52: Late Payment Charges | C52: -289447.36 | D52: -261868.21 | E52: -297478.23 | F52: 0 | G52: -297000 | H52: -297000 | I52: -297000 | J52: =J16 -> -297000
A53: Other Operating Revenues | C53: =SUM(C17:C26) -> -398683.46 | D53: =SUM(D17:D26) -> -801718.03 | E53: -868981.44 | F53: 0 | G53: -832116 | H53: -832116 | I53: -844208 | J53: =SUM(J17:J26) -> -856920.22
A54: Other Income or Deductions | C54: =SUM(C27:C49) -> -389405.43 | D54: =SUM(D27:D49) -> -653119.78 | E54: -1216087.43 | F54: 0 | G54: -154381.82 | H54: -154381.82 | I54: -393855.05 | J54: =SUM(J27:J49) -> -330008.31
A55: Total | C55: =SUM(C51:C54) -> -1398167.42 | D55: -2039134.26 | E55: -2653017.66 | F55: 0 | G55: -1557713.82 | H55: -1557713.82 | I55: -1802870.05 | J55: =SUM(J51:J54) -> -1751735.53
A57: Description | C57: Account(s)
A58: Specific Service Charges: | C58: 4235
A59: Late Payment Charges: | C59: 4225
A60: Other Distribution Revenues: | C60: 4080, 4082, 4084, 4090, 4205, 4210, 4215, 4220, 4240, 4245
A61: Other Income and Expenses: | C61: 4305, 4310, 4315, 4320, 4325, 4330, 4335, 4340, 4345, 4350, 4355, 4360, 4365, 4370, 4375, 4380, 4385, 4390, 4395, 4398, 4405, 4415
A64: Note: Add all applicable accounts listed above to the table and include all relevant information.
A65: The above table assumes adoption of MIFRS as of January 1, 2013. If the adoption year differs, please adjust the table accordingly.
A68: Account Breakdown Details
A70: For each "Other Operating Revenue" and "Other Income or Deductions" Account, a detailed breakdown of the account components is required. See the example below for Account 4405, Interest and Dividend Income.
A73: Account 4080 - 2 - Distribution Service Revenue - SSS Administrative Fee
C74: =C12 -> 2009 Actual | D74: =D12 -> 2010 Actual | E74: =E12 -> 2011 Actual² | F74: =F12 -> 2011 Actual² | G74: Bridge Year | H74: Bridge Year | I74: Test Year | J74: Test Year
H75: 2012 | I75: 2013 | J75: 2013
A76: Reporting Basis | C76: CGAAP | D76: CGAAP | E76: CGAAP | G76: =IF(ISBLANK(#REF!), "",#REF!) ->  | H76: CGAAP | I76: CGAAP | J76: MCGAAP
A77: Distribution Service Revenue - SSS Admin Fee | C77: -128693.97 | D77: -127920.44 | E77: -131703.73 | H77: -131340 | I77: -131340 | J77: -131340
A78: Total | C78: =SUM(C77:C77) -> -128693.97 | D78: -127920.44 | E78: -131703.73 | F78: 0 | G78: 0 | H78: -131340 | I78: -131340 | J78: -131340
A80: Account 4082 - Retail Service Revenue
C81: 2009 Actual | D81: 2010 Actual | E81: 2011 Actual | F81: =F23 -> 0 | G81: Bridge Year | H81: Bridge Year | I81: Test Year | J81: Test Year
H82: 2012 | I82: 2013 | J82: 2013
A83: Reporting Basis | C83: CGAAP | D83: CGAAP | E83: CGAAP | G83: =IF(ISBLANK(#REF!), "",#REF!) ->  | H83: CGAAP | I83: CGAAP | J83: MCGAAP
A84: Retailer Charges / Service Agreement | C84: -135 | D84: -300 | E84: -200 | H84: -150 | I84: -150 | J84: -150
A85: Retailer Charges / Service Agreement Fixed Charge | C85: -3480 | D85: -3660 | E85: -4000 | H85: -4000 | I85: -4000 | J85: -4000
A86: Retailer Charges / Service Agrmnt Variable Charge | C86: -44781.5 | D86: -39205 | E86: -32346 | H86: -34000 | I86: -34000 | J86: -34000
A87: Billing Charges / LDC Bill Ready Charges | C87: -26868.9 | D87: -23523 | E87: -19407 | H87: -21000 | I87: -21000 | J87: -21000
A88: Total | C88: =SUM(C84:C87) -> -75265.4 | D88: -66688 | E88: -55953 | F88: 0 | G88: 0 | H88: -59150 | I88: -59150 | J88: -59150
A90: Account 4084 Service Transaction Request (STR) Revenues
C91: 2009 Actual | D91: 2010 Actual | E91: 2011 Actual | F91: =F34 -> 0 | G91: Bridge Year | H91: Bridge Year | I91: Test Year | J91: Test Year
H92: 2012 | I92: 2013 | J92: 2013
A93: Reporting Basis | C93: CGAAP | D93: CGAAP | E93: CGAAP | G93: =IF(ISBLANK(#REF!), "",#REF!) ->  | H93: CGAAP | I93: CGAAP | J93: MCGAAP
A94: Retailer Service Costs / STR- Request Fee | C94: -735 | D94: -1824 | E94: -676.5 | H94: -700 | I94: -700 | J94: -700
A95: Retailer Service Costs / STR- Process Fee | C95: -945.5 | D95: -3739.5 | E95: -1109 | H95: -1200 | I95: -1200 | J95: -1200
A96: Retailer Service Costs / STR- Information | C96: 0 | D96: -65 | E96: 0 | H96: 0 | I96: 0 | J96: 0
A97: Retailer Service Costs / STR- Other Costs | C97: 0 | E97: 0 | H97: 0 | I97: 0 | J97: 0
A98: Total | C98: =SUM(C94:C97) -> -1680.5 | D98: -5628.5 | E98: -1785.5 | F98: 0 | G98: 0 | H98: -1900 | I98: -1900 | J98: -1900
A100: Account 4210 - Rent From Electricity Property
C101: 2009 Actual | D101: 2010 Actual | E101: 2011 Actual | F101: =F45 -> 0 | G101: Bridge Year | H101: Bridge Year | I101: Test Year | J101: Test Year
H102: 2012 | I102: 2013 | J102: 2013
A103: Reporting Basis | C103: CGAAP | D103: CGAAP | E103: CGAAP | G103: =IF(ISBLANK(#REF!), "",#REF!) ->  | H103: CGAAP | I103: CGAAP | J103: MCGAAP
A104: Sundry Earnings / Transformer/Meter Rentals | C104: -8776.82 | D104: -7797.11 | E104: -12406.88 | H104: -12000 | I104: -12000 | J104: -12000
A105: Sundry Earnings / Pole Line Rentals | C105: -452058.16 | D105: -454382.03 | E105: -464700.89 | H105: -459000 | I105: -459000 | J105: -459000
A106: Total | C106: =SUM(C104:C105) -> -460834.98 | D106: -462179.14 | E106: -477107.77 | F106: 0 | G106: 0 | H106: -471000 | I106: -471000 | J106: -471000
A108: Account 4220 - Other Electricity Revenue
C109: 2009 Actual | D109: 2010 Actual | E109: 2011 Actual | F109: =F56 -> 0 | G109: Bridge Year | H109: Bridge Year | I109: Test Year | J109: Test Year
H110: 2012 | I110: 2013 | J110: 2013
A111: Reporting Basis | C111: CGAAP | D111: CGAAP | E111: CGAAP | G111: =IF(ISBLANK(#REF!), "",#REF!) ->  | H111: CGAAP | I111: CGAAP | J111: MCGAAP
A112: Sundry Earnings / Utility Billing | C112: -129750.05 | D112: -175169.71 | E112: -229504.06 | H112: -168726 | I112: -180818 | J112: -180818
A113: Employee Benefits Expense / Affiliate Allocated Costs | C113: 7722.08 | D113: =1023.86+6703.55+24489.93 -> 32217.34 | E113: =41.51+5285.32+21248.54 -> 26575.37 | H113: 0 | I113: 0 | J113: 0
A114: Salary / Wages / Affiliate Allocated Costs | C114: 28690.99 | D114: 3649.98 | E114: 162.23 | H114: 0 | I114: 0 | J114: 0
A115: Salary / Wages - OT / Affiliate Allocated Costs | E115: 335.89 | H115: 0 | I115: 0 | J115: 0
A116: Total | C116: =SUM(C112:C115) -> -93336.98 | D116: -139302.39 | E116: -202430.57 | F116: 0 | G116: 0 | H116: -168726 | I116: -180818 | J116: -180818
A118: Account 4240 - Provision for Rate Refunds
C119: 2009 Actual | D119: 2010 Actual | E119: 2011 Actual | F119: =F67 -> 0 | G119: Bridge Year | H119: Bridge Year | I119: Test Year | J119: Test Year
H120: 2012 | I120: 2013 | J120: 2013
A121: Reporting Basis | C121: CGAAP | D121: CGAAP | E121: CGAAP | G121: =IF(ISBLANK(#REF!), "",#REF!) ->  | H121: CGAAP | I121: CGAAP | J121: MCGAAP
A122: Adjustments | C122: 361129 | D122: 0 | E122: 0 | H122: 0 | I122: 0 | J122: 0
A123: Total | C123: =SUM(C122:C122) -> 361129 | D123: 0 | E123: 0 | F123: 0 | G123: 0 | H123: 0 | I123: 0 | J123: 0
A125: Account 4245 - Government Assistance Directly Credited to Income
C126: 2009 Actual | D126: 2010 Actual | E126: 2011 Actual | F126: =#REF! ->  | G126: Bridge Year | H126: Bridge Year | I126: Test Year | J126: Test Year
H127: 2012 | I127: 2013 | J127: 2013
A128: Reporting Basis | C128: CGAAP | D128: CGAAP | E128: CGAAP | G128: =IF(ISBLANK(#REF!), "",#REF!) ->  | H128: CGAAP | I128: CGAAP | J128: MCGAAP
A129: Amortization of Deferred | C129: 0 | D129: 0 | E129: 0 | H129: 0 | I129: 0 | J129: -12712.22
A130: Total | C130: =SUM(C129:C129) -> 0 | D130: 0 | E130: 0 | F130: 0 | G130: 0 | H130: 0 | I130: 0 | J130: -12712.22
A132: Account 4324 - SPC Recovery
C133: 2009 Actual | D133: 2010 Actual | E133: 2011 Actual | F133: =F80 -> 0 | G133: Bridge Year | H133: Bridge Year | I133: Test Year | J133: Test Year
H134: 2012 | I134: 2013 | J134: 2013
A135: Reporting Basis | C135: CGAAP | D135: CGAAP | E135: CGAAP | G135: =IF(ISBLANK(#REF!), "",#REF!) ->  | H135: CGAAP | I135: CGAAP | J135: MCGAAP
A136: SPC Recovery | D136: =-59083.28-2203.67-32.84-26941.78-58021.05-38056.14 -> -184338.76 | E136: =-68474.39-2505.39-24.09-24292.43-49939.63-27455.26 -> -172691.19
A137: SPC Recovery / Unbilled | D137: =-18768.34-872.36-4613.12-10214.71-6084.02 -> -40552.55 | E137: =-13421.66+872.36+4613.12+10214.71+6084.02 -> 8362.55
A138: Total | C138: =SUM(C136:C137) -> 0 | D138: -224891.31 | E138: -164328.64 | F138: 0 | G138: 0 | H138: 0 | I138: 0 | J138: 0
A140: Account 4355 - Gain on Disposition of Utility and Other Property
C141: 2009 Actual | D141: 2010 Actual | E141: 2011 Actual | F141: =F85 -> 0 | G141: Bridge Year | H141: Bridge Year | I141: Test Year | J141: Test Year
H142: 2012 | I142: 2013 | J142: 2013
A143: Reporting Basis | C143: CGAAP | D143: CGAAP | E143: CGAAP | G143: =IF(ISBLANK(#REF!), "",#REF!) ->  | H143: CGAAP | I143: CGAAP | J143: MCGAAP
A144: Gain/Loss Disposal Assets / Equipment | C144: 0 | E144: -6513.13 | H144: 27200 | I144: 22650 | J144: 86619.74
A145: Gain/Loss Disposal Assets / Rolling Stock | C145: -1400 | E145: -20000
A146: Gain/Loss Disposal Assets / Surpl Sale | C146: -12936 | D146: -400 | H146: -15000 | I146: -72500 | J146: -72500
A147: Total | C147: =SUM(C144:C146) -> -14336 | D147: -400 | E147: -26513.13 | F147: 0 | G147: 0 | H147: 12200 | I147: -49850 | J147: 14119.74
A149: Account 4362 - Loss from Retirement of Utility and Other Property
C150: 2009 Actual | D150: 2010 Actual | E150: 2011 Actual | F150: =F97 -> 0 | G150: Bridge Year | H150: Bridge Year | I150: Test Year | J150: Test Year
H151: 2012 | I151: 2013 | J151: 2013
A152: Reporting Basis | C152: CGAAP | D152: CGAAP | E152: CGAAP | G152: =IF(ISBLANK(#REF!), "",#REF!) ->  | H152: CGAAP | I152: CGAAP | J152: MCGAAP
A153: Loss from retirement of utility and other property | I153: 30000 | J153: 30000
A154: Total | C154: =SUM(C153:C153) -> 0 | D154: 0 | E154: 0 | F154: 0 | G154: 0 | H154: 0 | I154: 30000 | J154: 30000
A156: Account 4375 - Revenues from Non-Utility Operations
C157: 2009 Actual | D157: 2010 Actual | E157: 2011 Actual | F157: =F95 -> 0 | G157: Bridge Year | H157: Bridge Year | I157: Test Year | J157: Test Year
H158: 2012 | I158: 2013 | J158: 2013
A159: Reporting Basis | C159: CGAAP | D159: CGAAP | E159: CGAAP | G159: =IF(ISBLANK(#REF!), "",#REF!) ->  | H159: CGAAP | I159: CGAAP | J159: MCGAAP
A160: Sundry Earnings / Meter Service Provider | C160: -36047.22 | D160: =-56707.54 -> -56707.54 | E160: -44332.69 | H160: -32500 | I160: -16250 | J160: -16250
A161: Sundry Earnings / Water Heater Operation | C161: -47441.57 | D161: -1271 | E161: 0 | H161: 0 | I161: 0 | J161: 0
A162: Sundry Earnings / Renewable Power | C162: -128511.44 | D162: -83947.14 | E162: -84101.34 | H162: -86720 | I162: -88895 | J162: -88895
A163: Sundry Earnings / TB Hydro Corp | C163: 0 | E163: -1624.87 | H163: -1500 | I163: -1500 | J163: -1500
A164: Recoveries / All Other - OPA Conservation Programs | C164: -468002.08 | D164: -514320.54 | E164: =-577527.63-32196.76 -> -609724.39 | H164: =-160702-6000-591921.03 -> -758623.03 | I164: =-161580-6000-394614 -> -562194 | J164: =-161580-6000-394614 -> -562194
A165: Total | C165: =SUM(C160:C164) -> -680002.31 | D165: -656246.22 | E165: -739783.29 | F165: 0 | G165: 0 | H165: -879343.03 | I165: -668839 | J165: -668839
A167: Account 4380 - Expenses Non-Utility Operations
C168: 2009 Actual | D168: 2010 Actual | E168: 2011 Actual | F168: =F105 -> 0 | G168: Bridge Year | H168: Bridge Year | I168: Test Year | J168: Test Year
H169: 2012 | I169: 2013 | J169: 2013
A170: Reporting Basis | C170: CGAAP | D170: CGAAP | E170: CGAAP | G170: =IF(ISBLANK(#REF!), "",#REF!) ->  | H170: CGAAP | I170: CGAAP | J170: MCGAAP
A171: Employee Benefits | C171: 29548.81 | D171: 26067.69 | E171: 63367.97 | F171: 0 | G171: 0 | H171: 87586.5 | I171: 90868.5 | J171: 90868.5
A172: Outside Services | C172: 389939.82 | D172: 390874.81 | E172: 339909.76 | F172: 0 | G172: 0 | H172: 709345.21 | I172: 511355.45 | J172: 511355.45
A173: Salary / Wages | C173: 75790.99 | D173: 91060.36 | E173: 115970.72 | F173: 0 | G173: 0 | H173: 88390 | I173: 69231.5 | J173: 69231.5
A174: Administrative & Other Miscellaneous Expenses | C174: 18484 | D174: 8035 | E174: 49343 | F174: 0 | G174: 0 | H174: 0 | I174: 0 | J174: 0
A175: Promotion Of Business | C175: 122732.96 | D175: 112657.59 | E175: 151137.76 | F175: 0 | G175: 0 | H175: 1832.5 | I175: 1968.5 | J175: 1968.5
A176: Supplies | C176: 2183.96 | D176: 21179.57 | E176: 5554.52 | F176: 0 | G176: 0 | H176: 0 | I176: 0 | J176: 0
A177: Conferences & Seminars | C177: 7643.29 | D177: 8807.27 | E177: 13720.04 | F177: 0 | G177: 0 | H177: 3800 | I177: 3800 | J177: 3800
A178: Total | C178: =SUM(C171:C177) -> 646323.83 | D178: 658682.29 | E178: 739003.77 | F178: 0 | G178: 0 | H178: 890954.21 | I178: 677223.95 | J178: 677223.95
A180: Account 4390 - Miscellaneous Non-Operating Income
C181: 2009 Actual | D181: 2010 Actual | E181: 2011 Actual | F181: =F113 -> 0 | G181: Bridge Year | H181: Bridge Year | I181: Test Year | J181: Test Year
H182: 2012 | I182: 2013 | J182: 2013
A183: Reporting Basis | C183: CGAAP | D183: CGAAP | E183: CGAAP | G183: =IF(ISBLANK(#REF!), "",#REF!) ->  | H183: CGAAP | I183: CGAAP | J183: MCGAAP
A184: Sundry Earnings / Sales Tax Commission | C184: -269.51 | D184: -579.08 | E184: 0
A185: Sundry Earnings / Sale of Scrapped Material | C185: -76698.59 | D185: -124967.31 | E185: -265925.91 | H185: -266000 | I185: -266000 | J185: -266000
A186: Sundry Earnings / Miscellaneous | C186: -20457.18 | D186: -10666.83 | E186: 18819.68 | H186: -12000 | I186: -6000 | J186: -6000
A187: Sundry Earnings / Water Heater Rentals | C187: -0.37 | D187: -2.09 | E187: 0
A188: Sundry Earnings / OPA Incentive Fees | C188: -84625.6 | D188: -113476.34 | E188: -29901.78
A189: Sundry Earnings / Discounts Taken | C189: -4.64 | D189: -2204.24 | E189: -299.16
A190: Total | C190: =SUM(C184:C189) -> -182055.89 | D190: -251895.89 | E190: -277307.17 | F190: 0 | G190: 0 | H190: -278000 | I190: -272000 | J190: -272000
A192: Account 4405 - Interest and Dividend Income
C193: 2009 Actual | D193: 2010 Actual | E193: 2011 Actual | F193: =#REF! ->  | G193: Bridge Year | H193: Bridge Year | I193: Test Year | J193: Test Year
H194: 2012 | I194: 2013 | J194: 2013
A195: Reporting Basis | C195: CGAAP | D195: CGAAP | E195: CGAAP | G195: =IF(ISBLANK(#REF!), "",#REF!) ->  | H195: CGAAP | I195: CGAAP | J195: MCGAAP
A196: Short-term Investment Interest | C196: 0 | D196: 0
A197: Bank Deposit Interest | C197: -118871.1 | D197: -101403.6 | E197: -429218.94 | G197: -99870 | H197: -99870 | I197: -77898.6 | J197: -77898.6
A198: Miscellaneous Interest Revenue | C198: -1302.68 | D198: 239.66 | E198: -715.59 | G198: -130 | H198: -130 | I198: -101.4 | J198: -101.4
A199: Sundry Earnings / Interest Revenue Variance Accounts | C199: -39075.67 | D199: -77205.14 | E199: -317223.65 | H199: 199807 | I199: -32390 | J199: -32390
A200: Adjustments | C200: -85.89 | D200: 0 | E200: 0
A201: Total | C201: =SUM(C196:C200) -> -159335.34 | D201: =SUM(D196:D200) -> -178369.08 | E201: =SUM(E196:E200) -> -747158.18 | F201: =SUM(F196:F199) -> 0 | G201: =SUM(G196:G199) -> -100000 | H201: =SUM(H196:H199) -> 99807 | I201: =SUM(I196:I199) -> -110390 | J201: =SUM(J196:J199) -> -110390
A203: Notes:
A204: 1 | B204: List and specify any other interest revenue
A205: 2 | B205: If the applicant is adopting IFRS or an alternate accounting standard as of January 1, 2012 for financial reporting purposes, 2011 must be presented on both a CGAAP and MIFRS (or alternate accounting standard) basis.
A206: 3 | B206: If the applicant is adopting IFRS or an alternate accounting standard as of January 1, 2013 for financial reporting purposes, 2012 must be presented on both a CGAAP and MIFRS (or alternate accounting standard) basis.

Sheet App.2-G_Detailed_OM&A_Expenses
G1: File Number: | I1: ='LDC Info'!$E$18 -> EB-2012-0167
G2: Exhibit:
G3: Tab:
G4: Schedule:
G5: Page:
G7: Date: | I7: 2012-11-08
A9: Appendix 2-G
A10: Detailed, Account by Account, OM&A Expense Table
A11: (excluding Depreciation and Amortization)
A14: Account | B14: Description | C14: ="Last Rebasing Year (" & 'LDC Info'!E30 & " Actuals)" -> Last Rebasing Year (2009 Actuals) | D14: ='LDC Info'!E26-2 & " Actual" -> 2010 Actual | E14: ='LDC Info'!E26-1 & " Actual" & CHAR(178) -> 2011 Actual² | F14: ='LDC Info'!E26-1 & " Actual"& CHAR(178) -> 2011 Actual² | G14: ="Bridge Year " & 'LDC Info'!E26& CHAR(179) -> Bridge Year 2012³ | H14: ="Test Year " & 'LDC Info'!E28 -> Test Year 2013 | I14: ="Test Year " & 'LDC Info'!E28 -> Test Year 2013
A15: Reporting Basis | C15: CGAAP | D15: CGAAP | E15: CGAAP | G15: CGAAP | H15: CGAAP | I15: MCGAAP
A16: Operations
A17: 5005 | B17: Operation Supervision and Engineering | C17: 287832.92 | D17: 318228.47 | E17: 317703.97 | G17: 319363.28 | H17: 399374 | I17: 580787.97
A18: 5010 | B18: Load Dispatching | C18: 724641.79 | D18: 709933.82 | E18: 782901.44 | G18: 770384 | H18: 785185 | I18: 785902
A19: 5012 | B19: Station Buildings and Fixtures Expense | C19: 298805.18 | D19: 346493.3 | E19: 289462.32 | G19: 337791.48 | H19: 334662.7 | I19: 339979.44
A20: 5014 | B20: Transformer Station Equipment - Operation Labour | C20: 0 | D20: 0 | E20: 0 | G20: 0 | H20: 0
A21: 5015 | B21: Transformer Station Equipment - Operation Supplies and Expenses | C21: 0 | D21: 0 | E21: 0 | G21: 0 | H21: 0
A22: 5016 | B22: Distribution Station Equipment - Operation Labour | C22: 0 | D22: 0 | E22: 0 | G22: 0 | H22: 0
A23: 5017 | B23: Distribution Station Equipment - Operation Supplies and Expenses | C23: 71615.35 | D23: 70285.54 | E23: 162502.3 | G23: 191755.28 | H23: 101002.14 | I23: 86125.56
A24: 5020 | B24: Overhead Distribution Lines and Feeders - Operation Labour | C24: 169646.44 | D24: 214288.71 | E24: 177801.14 | G24: 122232 | H24: 217165 | I24: 273101
A25: 5025 | B25: Overhead Distribution Lines and Feeders - Operation Supplies and Expenses | C25: 570912.18 | D25: 529364.09 | E25: 694569.59 | G25: 643937 | H25: 732558.92 | I25: 778604.92
A26: 5030 | B26: Overhead Sub-transmission Feeders - Operation | C26: 0 | D26: 0 | E26: 0 | G26: 0 | H26: 0
A27: 5035 | B27: Overhead Distribution Transformers - Operation | C27: 207869.37 | D27: 216401.44 | E27: 191683.02 | G27: 151597 | H27: 216160 | I27: 200782
A28: 5040 | B28: Underground Distribution Lines and Feeders - Operation Labour | C28: 1324.97 | D28: 14084.54 | E28: 25014.25 | G28: 24260 | H28: 36287 | I28: 44699
A29: 5045 | B29: Underground Distribution Lines and Feeders - Operation Supplies and Expenses | C29: 6529.66 | D29: 7457.41 | E29: 23479.72 | G29: 10377 | H29: 19742 | I29: 24150
A30: 5050 | B30: Underground Sub-transmission Feeders - Operation | C30: 0 | D30: 0 | E30: 0 | G30: 0 | H30: 0
A31: 5055 | B31: Underground Distribution Transformers - Operation | C31: 174497.85 | D31: 147516.22 | E31: 254700.74 | G31: 190708 | H31: 229184 | I31: 186171
A32: 5060 | B32: Street Lighting and Signal System Expense | C32: 0 | D32: 0 | E32: 0 | G32: 0 | H32: 0
A33: 5065 | B33: Meter Expense | C33: 173658.97 | D33: 212561.98 | E33: 241431.35 | G33: 270936 | H33: 222282 | I33: 232948
A34: 5070 | B34: Customer Premises - Operation Labour | C34: 45.54 | D34: -1010.49 | E34: -921.12 | G34: -921 | H34: 1355 | I34: 1355
A35: 5075 | B35: Customer Premises - Operation Materials and Expenses | C35: 16006.97 | D35: 15802.71 | E35: 14651.37 | G35: 13687.37 | H35: 13229 | I35: 13572
A36: 5085 | B36: Miscellaneous Distribution Expenses | C36: 0 | D36: 65208.21 | E36: 9813.72 | G36: 11452.24 | H36: 11346.16 | I36: 11526
A37: 5090 | B37: Underground Distribution Lines and Feeders - Rental Paid | C37: 0 | D37: 0 | E37: 0 | G37: 0 | H37: 0
A38: 5095 | B38: Overhead Distribution Lines and Feeders - Rental Paid | C38: 0 | D38: 0 | E38: 0 | G38: 0 | H38: 0
A39: 5096 | B39: Other Rent | C39: 0 | D39: 0 | E39: 0 | G39: 0 | H39: 0
A40: Total - Operations | C40: =SUM(C17:C39) -> 2703387.19 | D40: =SUM(D17:D39) -> 2866615.95 | E40: =SUM(E17:E39) -> 3184793.81 | F40: =SUM(F17:F39) -> 0 | G40: 3057559.65 | H40: 3319532.92 | I40: =SUM(I17:I39) -> 3559703.89
A41: Account | B41: Description | C41: =C14 -> Last Rebasing Year (2009 Actuals) | D41: 2010 Actual | E41: 2011 Actual² | F41: 2011 Actual² | G41: Bridge Year 2012³ | H41: Test Year 2013 | I41: Test Year 2013
A42: Maintenance
A43: 5105 | B43: Maintenance Supervision and Engineering | C43: 637241.43 | D43: 639571.81 | E43: 505469.11 | G43: 679578.27 | H43: 574448 | I43: 957979.18
A44: 5110 | B44: Maintenance of Buildings and Fixtures - Distribution Stations | C44: 4202.71 | D44: 14214.79 | E44: 13780.08 | G44: 16808.83 | H44: 15931.88 | I44: 16184.99
A45: 5112 | B45: Maintenance of Transformer Station Equipment | C45: 0 | D45: 0 | E45: 0 | G45: 0 | H45: 0
A46: 5114 | B46: Maintenance of Distribution Station Equipment | C46: 113481.59 | D46: 115203.3 | E46: 135788.53 | G46: 147168.17 | H46: 215841.14 | I46: 236785.03
A47: 5120 | B47: Maintenance of Poles, Towers and Fixtures | C47: 282335.08 | D47: 542205.14 | E47: 177170.42 | G47: 231209 | H47: 162736 | I47: 202530
A48: 5125 | B48: Maintenance of Overhead Conductors and Devices | C48: 747502.48 | D48: 560747.01 | E48: 631804.33 | G48: 687512 | H48: 741432.79 | I48: 961648.79
A49: 5130 | B49: Maintenance of Overhead Services | C49: 293618 | D49: 337541.54 | E49: 345824.98 | G49: 375517 | H49: 282619.27 | I49: 358829.27
A50: 5135 | B50: Overhead Distribution Lines and Feeders - Right of Way | C50: 752169.08 | D50: 674875.57 | E50: 631765.59 | G50: 700172 | H50: 738489 | I50: 744289
A51: 5145 | B51: Maintenance of Underground Conduit | C51: 32845.15 | D51: 28306.43 | E51: 37679.14 | G51: 37576 | H51: 25338 | I51: 29729
A52: 5150 | B52: Maintenance of Underground Conductors and Devices | C52: 129202.77 | D52: 202082.17 | E52: 100913.3 | G52: 153642 | H52: 108066 | I52: 137629
A53: 5155 | B53: Maintenance of Underground Services | C53: 108480.55 | D53: 91432.71 | E53: 120082.08 | G53: 100218 | H53: 143969 | I53: 179003
A54: 5160 | B54: Maintenance of Line Transformers | C54: 76481.47 | D54: 93133.63 | E54: 86236.92 | G54: 147481 | H54: 100820 | I54: 127355
A55: 5165 | B55: Maintenance of Street Lighting and Signal Systems | C55: 0 | D55: 0 | E55: 0 | G55: 0 | H55: 0
A56: 5170 | B56: Sentinel Lights - Labour | C56: 0 | D56: 0 | E56: 0 | G56: 0 | H56: 0
A57: 5172 | B57: Sentinel Lights - Materials and Expenses | C57: 0 | D57: 0 | E57: 0 | G57: 0 | H57: 0
A58: 5175 | B58: Maintenance of Meters | C58: 189.53 | D58: 795.73 | E58: 0 | G58: 608695 | H58: 0 | I58: 0
A59: 5178 | B59: Customer Installations Expenses - Leased Property | C59: 0 | D59: 0 | E59: 0 | G59: 0 | H59: 0
A60: 5195 | B60: Maintenance of Other Installations on Customer Premises | C60: 0 | D60: 0 | E60: 0 | G60: 0 | H60: 0
A61: Total - Maintenance | C61: =SUM(C43:C60) -> 3177749.84 | D61: =SUM(D43:D60) -> 3300109.83 | E61: =SUM(E43:E60) -> 2786514.48 | F61: =SUM(F43:F60) -> 0 | G61: 3885577.27 | H61: 3109691.08 | I61: =SUM(I43:I60) -> 3951962.26
A62: Account | B62: Description | C62: =C41 -> Last Rebasing Year (2009 Actuals) | D62: =D41 -> 2010 Actual | E62: =E41 -> 2011 Actual² | F62: =F41 -> 2011 Actual² | G62: Bridge Year 2012³ | H62: Test Year 2013 | I62: =I41 -> Test Year 2013
A63: Billing and Collecting
A64: 5305 | B64: Supervision | C64: 0 | D64: 0 | E64: 0 | G64: 0 | H64: 0
A65: 5310 | B65: Meter Reading Expense | C65: 206922.85 | D65: 245439.38 | E65: 286137.13 | G65: 352233 | H65: 293296 | I65: 293296
A66: 5315 | B66: Customer Billing | C66: 1124238.54 | D66: 1235341.11 | E66: 1075646 | G66: 1178041 | H66: 1197594.87 | I66: 1197594.87
A67: 5320 | B67: Collecting | C67: 554934.76 | D67: 555423.03 | E67: 499472.92 | G67: 536861.16 | H67: 511926.9 | I67: 513802.9
A68: 5325 | B68: Collecting - Cash Over and Short | C68: 20.03 | D68: -0.5 | E68: 0 | G68: 0 | H68: 0
A69: 5330 | B69: Collection Charges | C69: 0 | D69: 0 | E69: 0 | G69: 0 | H69: 0
A70: 5335 | B70: Bad Debt Expense | C70: 110203.37 | D70: 31790.34 | E70: 84355.97 | G70: 130000 | H70: 130000 | I70: 130000
A71: 5340 | B71: Miscellaneous Customer Accounts Expenses | C71: 0 | D71: 0 | E71: 0 | G71: 0 | H71: 0
A72: Total - Billing and Collecting | C72: =SUM(C64:C71) -> 1996319.55 | D72: =SUM(D64:D71) -> 2067993.36 | E72: =SUM(E64:E71) -> 1945612.02 | F72: =SUM(F64:F71) -> 0 | G72: 2197135.16 | H72: 2132817.77 | I72: =SUM(I64:I71) -> 2134693.77
A73: Account | B73: Description | C73: =C62 -> Last Rebasing Year (2009 Actuals) | D73: =D62 -> 2010 Actual | E73: =E62 -> 2011 Actual² | F73: =F62 -> 2011 Actual² | G73: Bridge Year 2012³ | H73: Test Year 2013 | I73: =I62 -> Test Year 2013
A74: Community Relations
A75: 5405 | B75: Supervision | C75: 0 | D75: 0 | E75: 0 | G75: 0 | H75: 0
A76: 5410 | B76: Community Relations - Sundry | C76: 0 | D76: 0 | E76: 0 | G76: 0 | H76: 0 | I76: 0
A77: 5415 | B77: Energy Conservation | C77: 139824.33 | D77: 172610.93 | E77: 95148.68 | G77: 112519 | H77: 110062 | I77: 110062
A78: 5420 | B78: Community Safety Program | C78: 11952.88 | D78: 15987.42 | E78: 11901.82 | G78: 16800 | H78: 31800 | I78: 31800
A79: 5425 | B79: Miscellaneous Customer Service and Informational Expenses | C79: 0 | D79: 0 | E79: 0 | G79: 0 | H79: 0
A80: 5505 | B80: Supervision | C80: 0 | D80: 0 | E80: 0 | G80: 0 | H80: 0
A81: 5510 | B81: Demonstrating and Selling Expense | C81: 0 | D81: 0 | E81: 0 | G81: 0 | H81: 0
A82: 5515 | B82: Advertising Expenses | C82: 115135.68 | D82: 106168.24 | E82: 90312.91 | G82: 99955 | H82: 120271 | I82: 120271
A83: 5520 | B83: Miscellaneous Sales Expense | C83: 0 | D83: 0 | E83: 0 | G83: 0 | H83: 0
A84: Total - Community Relations | C84: =SUM(C75:C83) -> 266912.89 | D84: =SUM(D75:D83) -> 294766.59 | E84: =SUM(E75:E83) -> 197363.41 | F84: =SUM(F75:F83) -> 0 | G84: 229274 | H84: 262133 | I84: =SUM(I75:I83) -> 262133
A85: Account | B85: Description | C85: =C73 -> Last Rebasing Year (2009 Actuals) | D85: =D73 -> 2010 Actual | E85: =E73 -> 2011 Actual² | F85: =F73 -> 2011 Actual² | G85: Bridge Year 2012³ | H85: Test Year 2013 | I85: =I73 -> Test Year 2013
A86: Administrative and General Expenses
A87: 5605 | B87: Executive Salaries and Expenses | C87: 828942.22 | D87: 830636.51 | E87: 816360.86 | G87: 879590 | H87: 914411 | I87: 914411
A88: 5610 | B88: Management Salaries and Expenses | C88: 0 | D88: 0 | E88: 0 | G88: 0 | H88: 0
A89: 5615 | B89: General Administrative Salaries and Expenses | C89: 1083416.49 | D89: 1100281.94 | E89: 1168190.37 | G89: 1238491.38 | H89: 1264599.13 | I89: 1414365.12
A90: 5620 | B90: Office Supplies and Expenses | C90: 210297.67 | D90: 230581.04 | E90: 254572.58 | G90: 281790 | H90: 295708 | I90: 296300
A91: 5625 | B91: Administrative Expense Transferred - Credit | C91: 0 | D91: 0 | E91: 0 | G91: 0 | H91: 0
A92: 5630 | B92: Outside Services Employed | C92: 154820.29 | D92: 160592.83 | E92: 171944.42 | G92: 299305 | H92: 208800 | I92: 208800
A93: 5635 | B93: Property Insurance | C93: 27817 | D93: 29445.63 | E93: 31238.59 | G93: 31291 | H93: 31328 | I93: 31328
A94: 5640 | B94: Injuries and Damages | C94: 186303.53 | D94: 176557.46 | E94: 218934.07 | G94: 239492 | H94: 278247 | I94: 281747
A95: 5645 | B95: OMERS Pensions and Benefits | C95: 727143.82 | D95: 734263.81 | E95: 745946.23 | G95: 728593 | H95: 871080 | I95: 897374
A96: 5646 | B96: Employee Pensions and OPEB
A97: 5647 | B97: Employee Sick Leave
A98: 5650 | B98: Franchise Requirements | C98: 0 | D98: 0 | E98: 0 | G98: 0
A99: 5655 | B99: Regulatory Expenses | C99: 173454 | D99: 143331.76 | E99: 145953.53 | G99: 202340 | H99: 181350 | I99: 181300
A100: 5660 | B100: General Advertising Expenses | C100: 0 | D100: 0 | E100: 0 | G100: 0
A101: 5665 | B101: Miscellaneous General Expenses | C101: 82645.92 | D101: 84819.85 | E101: 117190.6 | G101: 111167 | H101: 145972 | I101: 145972
A102: 5670 | B102: Rent | C102: 278560 | D102: 273564.92 | E102: 286746.15 | G102: 281677.99 | H102: 291905 | I102: 291905.01
A103: 5672 | B103: Lease Payment Charge
A104: 5675 | B104: Maintenance of General Plant | C104: 79252.99 | D104: 73036.88 | E104: 73514.3 | G104: 105680 | H104: 86220 | I104: 86220
A105: 5680 | B105: Electrical Safety Authority Fees | C105: 0 | D105: 0 | E105: 0 | G105: 0 | H105: 0
A106: 5681 | B106: Special Purpose Charge Expense | C106: 0 | D106: 224891.55 | E106: 164327.45 | G106: 0 | H106: 0
A107: 5685 | B107: Independent Electricity System Operator Fees and Penalties | C107: 0 | D107: 0 | E107: 0 | G107: 0 | H107: 0
A108: 5695 | B108: OM&A Contra Account | C108: -12050 | D108: -134967.92 | E108: -249232.64 | G108: 0 | H108: 0
A109: 6205 | B109: Donations | C109: 0 | D109: 1000 | E109: 40806 | G109: 16500 | H109: 24200 | I109: 24200
A110: 6205 | B110: Donations, Sub-account LEAP Funding
A111: Total - Administrative and General Expenses | C111: =SUM(C87:C110) -> 3820603.93 | D111: =SUM(D87:D110) -> 3928036.26 | E111: 3986492.51 | F111: 0 | G111: 4415917.37 | H111: 4593820.13 | I111: 4773922.13
A112: Total OM&A | C112: =C40+C61+C72+C84+C111 -> 11964973.4 | D112: =D40+D61+D72+D84+D111 -> 12457521.99 | E112: =E40+E61+E72+E84+E111 -> 12100776.23 | F112: =F40+F61+F72+F84+F111 -> 0 | G112: 13785463.45 | H112: 13417994.9 | I112: =I40+I61+I72+I84+I111 -> 14682415.05
A113: Adjustments for non-recoverable items
A114: 5681 | B114: Special Purpose Charge Expense | C114: 0 | D114: 224891.55 | E114: 164327.45 | G114: 0 | H114: 0 | I114: 0
A115: 6205 | B115: Donations1 | C115: 0 | D115: 1000 | E115: 40806 | H115: 24200 | I115: 24200
A119: Total Recoverable OM&A | C119: =C112-SUM(C114:C118) -> 11964973.4 | D119: =D112-SUM(D114:D118) -> 12231630.44 | E119: 11895642.78 | F119: =F112-SUM(F114:F118) -> 0 | G119: 13785463.45 | H119: 13393794.9 | I119: 14658215.05
A121: 1 Account 6205 - Donations is generally non-recoverable. However, the sub-account LEAP funding of account 6205 is generally recoverable.
A123: Note:
A124: 1 | B124: If it has been more than three years since the applicant last filed a cost of service application, additional years of historical actuals should be incorporated into the table, as necessary, to go back to the last cost of service application. If the applicant last filed a cost of service application less than three years ago, a minimum of three years of actual information is required.
A125: 2 | B125: If the applicant is adopting IFRS or an alternate accounting standard as of January 1, 2012 for financial reporting purposes, 2011 must be presented on both a CGAAP and MIFRS (or alternate accounting standard) basis.
A126: 3 | B126: If the applicant is adopting IFRS or an alternate accounting standard as of January 1, 2013 for financial reporting purposes, 2012 must be presented on both a CGAAP and MIFRS (or alternate accounting standard) basis.

Sheet App.2-H_OM&A_Detailed_Analysis
H1: File Number: | I1: ='LDC Info'!$E$18 -> EB-2012-0167
H2: Exhibit: | I2: 4
H3: Tab: | I3: 2
H4: Schedule: | I4: 2
H5: Page: | I5: 1
H7: Date: | I7: 2012-11-08
A9: Appendix 2-H
A10: OM&A Detailed Variance Analysis
A11: (excluding Depreciation and Amortization)
A14: Table 4-2.3 - Detailed Variance Analysis- Operation Expenses
A15: Account | B15: Description | C15: ="Last Board-approved Rebasing Year ("&'LDC Info'!E30&" Year)" -> Last Board-approved Rebasing Year (2009 Year) | D15: Most Current Actuals Year 2011 | E15: ="Test Year " & 'LDC Info'!E28 -> Test Year 2013 | F15: Test Year Versus Last Rebasing | H15: Test Year Versus Most Current Actuals
F16: Variance ($) | G16: Percentage Change (%) | H16: Variance ($) | I16: Percentage Change (%)
A17: Reporting Basis | C17: CGAAP | D17: CGAAP | E17: MCGAAP
A18: Operations
A19: 5005 | B19: Operation Supervision and Engineering | C19: 264373.28 | D19: 317703.97 | E19: 580787.97 | F19: =E19-C19 -> 316414.69 | G19: =IF(C19=0,"",(E19/C19)-1) -> 1.196848222 | H19: =E19-D19 -> 263084 | I19: =IF(D19=0,"",(E19/D19)-1) -> 0.8280790448
A20: 5010 | B20: Load Dispatching | C20: 816699 | D20: 782901.44 | E20: 785902 | F20: =E20-C20 -> -30797 | G20: =IF(C20=0,"",(E20/C20)-1) -> -0.03770911927 | H20: =E20-D20 -> 3000.56 | I20: =IF(D20=0,"",(E20/D20)-1) -> 0.003832615252
A21: 5012 | B21: Station Buildings and Fixtures Expense | C21: 309836.4 | D21: 289462.32 | E21: 339979.44 | F21: 30143.04 | G21: 0.09728695531 | H21: 50517.12 | I21: 0.1745205386
A22: 5014 | B22: Transformer Station Equipment - Operation Labour | C22: 0 | D22: 0 | E22: 0 | F22: 0 | H22: 0
A23: 5015 | B23: Transformer Station Equipment - Operation Supplies and Expenses | C23: 0 | D23: 0 | E23: 0 | F23: 0 | H23: 0
A24: 5016 | B24: Distribution Station Equipment - Operation Labour | C24: 0 | D24: 0 | E24: 0 | F24: 0 | H24: 0
A25: 5017 | B25: Distribution Station Equipment - Operation Supplies and Expenses | C25: 93129.6 | D25: 162502.3 | E25: 86125.56 | F25: -7004.04 | G25: -0.07520745284 | H25: -76376.74 | I25: -0.4700040553
A26: 5020 | B26: Overhead Distribution Lines and Feeders - Operation Labour | C26: 106084 | D26: 177801.14 | E26: 273101 | F26: 167017 | G26: 1.57438445 | H26: 95299.86 | I26: 0.5359912765
A27: 5025 | B27: Overhead Distribution Lines and Feeders - Operation Supplies and Expenses | C27: 414815 | D27: 694569.59 | E27: 778604.92 | F27: 363789.92 | G27: 0.8769931656 | H27: 84035.33 | I27: 0.1209890718
A28: 5030 | B28: Overhead Sub-transmission Feeders - Operation | C28: 0 | D28: 0 | E28: 0 | F28: 0 | H28: 0
A29: 5035 | B29: Overhead Distribution Transformers - Operation | C29: 253459 | D29: 191683.02 | E29: 200782 | F29: -52677 | G29: -0.2078324305 | H29: 9098.98 | I29: 0.047468889
A30: 5040 | B30: Underground Distribution Lines and Feeders - Operation Labour | C30: 10287 | D30: 25014.25 | E30: 44699 | F30: 34412 | G30: 3.345192962 | H30: 19684.75 | I30: 0.7869414434
A31: 5045 | B31: Underground Distribution Lines and Feeders - Operation Supplies and Expenses | C31: 5809 | D31: 23479.72 | E31: 24150 | F31: 18341 | G31: 3.157342055 | H31: 670.28 | I31: 0.02854718881
A32: 5050 | B32: Underground Sub-transmission Feeders - Operation | C32: 0 | D32: 0 | E32: 0 | F32: 0 | H32: 0
A33: 5055 | B33: Underground Distribution Transformers - Operation | C33: 71865 | D33: 254700.74 | E33: 186171 | F33: 114306 | G33: 1.590565644 | H33: -68529.74 | I33: -0.2690598386
A34: 5060 | B34: Street Lighting and Signal System Expense | C34: 0 | D34: 0 | E34: 0 | F34: 0 | H34: 0
A35: 5065 | B35: Meter Expense | C35: 396762 | D35: 241431.35 | E35: 232948 | F35: -163814 | G35: -0.4128772413 | H35: -8483.35 | I35: -0.0351377317
A36: 5070 | B36: Customer Premises - Operation Labour | C36: 8773 | D36: -921.12 | E36: 1355 | F36: -7418 | G36: -0.845548843 | H36: 2276.12 | I36: -2.471035261
A37: 5075 | B37: Customer Premises - Operation Materials and Expenses | C37: 37465 | D37: 14651.37 | E37: 13572 | F37: -23893 | G37: -0.6377418924 | H37: -1079.37 | I37: -0.07367024381
A38: 5085 | B38: Miscellaneous Distribution Expenses | C38: 0 | D38: 9813.72 | E38: 11526 | F38: 11526 | H38: 1712.28 | I38: 0.1744781795
A39: 5090 | B39: Underground Distribution Lines and Feeders - Rental Paid | C39: 0 | D39: 0 | E39: 0 | F39: 0 | H39: 0
A40: 5095 | B40: Overhead Distribution Lines and Feeders - Rental Paid | C40: 0 | D40: 0 | E40: 0 | F40: 0 | H40: 0
A41: 5096 | B41: Other Rent | C41: 0 | D41: 0 | E41: 0 | F41: 0 | H41: 0
A42: Total - Operations | C42: =SUM(C19:C41) -> 2789357.28 | D42: =SUM(D19:D41) -> 3184793.81 | E42: =SUM(E19:E41) -> 3559703.89 | F42: 770346.61 | G42: 0.2761735169 | H42: 374910.08 | I42: 0.117718792
A45: Table 4-2.4 - Detailed Variance Analysis- Maintenance Expenses
A46: Account | B46: Description | C46: ="Last Board-approved Rebasing Year ("&'LDC Info'!E61&" Year)" -> Last Board-approved Rebasing Year ( Year) | D46: Most Current Actuals Year 2011 | E46: ="Test Year " & 'LDC Info'!E59 -> Test Year | F46: Test Year Versus Last Rebasing | H46: Test Year Versus Most Current Actuals
F47: Variance ($) | G47: Percentage Change (%) | H47: Variance ($) | I47: Percentage Change (%)
A48: Maintenance | C48: CGAAP | D48: CGAAP | E48: MCGAAP
A49: 5105 | B49: Maintenance Supervision and Engineering | C49: 548396.26 | D49: 505469.11 | E49: 957979.18 | F49: =E49-C49 -> 409582.92 | G49: =IF(C49=0,"",(E49/C49)-1) -> 0.7468740214 | H49: =E49-D49 -> 452510.07 | I49: =IF(D49=0,"",(E49/D49)-1) -> 0.8952279398
A50: 5110 | B50: Maintenance of Buildings and Fixtures - Distribution Stations | C50: 12498.59 | D50: 13780.08 | E50: 16184.99 | F50: 3686.4 | G50: 0.2949452698 | H50: 2404.91 | I50: 0.1745207575
A51: 5112 | B51: Maintenance of Transformer Station Equipment | C51: 0 | D51: 0 | E51: 0 | F51: 0 | H51: 0
A52: 5114 | B52: Maintenance of Distribution Station Equipment | C52: 286238.41 | D52: 135788.53 | E52: 236785.03 | F52: -49453.38 | G52: -0.1727698949 | H52: 100996.5 | I52: 0.7437778434
A53: 5120 | B53: Maintenance of Poles, Towers and Fixtures | C53: 133991 | D53: 177170.42 | E53: 202530 | F53: 68539 | G53: 0.5115194304 | H53: 25359.58 | I53: 0.1431366478
A54: 5125 | B54: Maintenance of Overhead Conductors and Devices | C54: 686177 | D54: 631804.33 | E54: 961648.79 | F54: 275471.79 | G54: 0.4014587927 | H54: 329844.46 | I54: 0.5220674255
A55: 5130 | B55: Maintenance of Overhead Services | C55: 344777 | D55: 345824.98 | E55: 358829.27 | F55: 14052.27 | G55: 0.04075756213 | H55: 13004.29 | I55: 0.03760367455
A56: 5135 | B56: Overhead Distribution Lines and Feeders - Right of Way | C56: 716115 | D56: 631765.59 | E56: 744289 | F56: 28174 | G56: 0.03934284298 | H56: 112523.41 | I56: 0.1781094314
A57: 5145 | B57: Maintenance of Underground Conduit | C57: 17669 | D57: 37679.14 | E57: 29729 | F57: 12060 | G57: 0.6825513611 | H57: -7950.14 | I57: -0.2109957924
A58: 5150 | B58: Maintenance of Underground Conductors and Devices | C58: 164495 | D58: 100913.3 | E58: 137629 | F58: -26866 | G58: -0.1633241132 | H58: 36715.7 | I58: 0.3638341031
A59: 5155 | B59: Maintenance of Underground Services | C59: 74510 | D59: 120082.08 | E59: 179003 | F59: 104493 | G59: 1.402402362 | H59: 58920.92 | I59: 0.490672047
A60: 5160 | B60: Maintenance of Line Transformers | C60: 64866 | D60: 86236.92 | E60: 127355 | F60: 62489 | G60: 0.9633552246 | H60: 41118.08 | I60: 0.4768036706
A61: 5165 | B61: Maintenance of Street Lighting and Signal Systems | C61: 0 | D61: 0 | E61: 0 | F61: 0 | H61: 0
A62: 5170 | B62: Sentinel Lights - Labour | C62: 0 | D62: 0 | E62: 0 | F62: 0 | H62: 0
A63: 5172 | B63: Sentinel Lights - Materials and Expenses | C63: 0 | D63: 0 | E63: 0 | F63: 0 | H63: 0
A64: 5175 | B64: Maintenance of Meters | C64: 0 | D64: 0 | E64: 0 | F64: 0 | H64: 0
A65: 5178 | B65: Customer Installations Expenses - Leased Property | C65: 0 | D65: 0 | E65: 0 | F65: 0 | H65: 0
A66: 5195 | B66: Maintenance of Other Installations on Customer Premises | C66: 0 | D66: 0 | E66: 0 | F66: 0 | H66: 0
A67: Total - Maintenance | C67: =SUM(C49:C66) -> 3049733.26 | D67: =SUM(D49:D66) -> 2786514.48 | E67: =SUM(E49:E66) -> 3951962.26 | F67: 902229 | G67: 0.2958386597 | H67: 1165447.78 | I67: 0.418245729
A69: Table 4-2.5 - Detailed Variance Analysis- Billing & Collecting Expenses
A70: Account | B70: Description | C70: ="Last Board-approved Rebasing Year ("&'LDC Info'!E85&" Year)" -> Last Board-approved Rebasing Year ( Year) | D70: Most Current Actuals Year 2011 | E70: ="Test Year " & 'LDC Info'!E83 -> Test Year | F70: Test Year Versus Last Rebasing | H70: Test Year Versus Most Current Actuals
F71: Variance ($) | G71: Percentage Change (%) | H71: Variance ($) | I71: Percentage Change (%)
A72: Billing and Collecting | C72: CGAAP | D72: CGAAP | E72: MCGAAP
A73: 5305 | B73: Supervision | C73: 0 | D73: 0 | E73: 0 | F73: =E73-C73 -> 0 | G73: =IF(C73=0,"",(E73/C73)-1) ->  | H73: =E73-D73 -> 0 | I73: =IF(D73=0,"",(E73/D73)-1) -> 
A74: 5310 | B74: Meter Reading Expense | C74: 133816 | D74: 286137.13 | E74: 293296 | F74: 159480 | G74: 1.191785736 | H74: 7158.87 | I74: 0.02501901798
A75: 5315 | B75: Customer Billing | C75: 1271382.19 | D75: 1075646 | E75: 1197594.87 | F75: -73787.32 | G75: -0.05803708797 | H75: 121948.87 | I75: 0.1133726802
A76: 5320 | B76: Collecting | C76: 679307.84 | D76: 499472.92 | E76: 513802.9 | F76: -165504.94 | G76: -0.2436376121 | H76: 14329.98 | I76: 0.02869020407
A77: 5325 | B77: Collecting - Cash Over and Short | C77: 0 | D77: 0 | E77: 0 | F77: 0 | H77: 0
A78: 5330 | B78: Collection Charges | C78: 0 | D78: 0 | E78: 0 | F78: 0 | H78: 0
A79: 5335 | B79: Bad Debt Expense | C79: 160000 | D79: 84355.97 | E79: 130000 | F79: -30000 | G79: -0.1875 | H79: 45644.03 | I79: 0.5410883189
A80: 5340 | B80: Miscellaneous Customer Accounts Expenses | C80: 0 | D80: 0 | E80: 0 | F80: 0 | H80: 0
A81: Total - Billing and Collecting | C81: =SUM(C73:C80) -> 2244506.03 | D81: =SUM(D73:D80) -> 1945612.02 | E81: =SUM(E73:E80) -> 2134693.77 | F81: -109812.26 | G81: -0.048924912 | H81: 189081.75 | I81: 0.09718368722
A83: Table 4-2.6 - Detailed Variance Analysis- Community Relations Expenses
A84: Account | B84: Description | C84: ="Last Board-approved Rebasing Year ("&'LDC Info'!E99&" Year)" -> Last Board-approved Rebasing Year ( Year) | D84: Most Current Actuals Year 2011 | E84: ="Test Year " & 'LDC Info'!E97 -> Test Year | F84: Test Year Versus Last Rebasing | H84: Test Year Versus Most Current Actuals
F85: Variance ($) | G85: Percentage Change (%) | H85: Variance ($) | I85: Percentage Change (%)
A86: Community Relations | C86: CGAAP | D86: CGAAP | E86: MCGAAP
A87: 5405 | B87: Supervision | C87: 0 | D87: 0 | E87: 0 | F87: =E87-C87 -> 0 | G87: =IF(C87=0,"",(E87/C87)-1) ->  | H87: =E87-D87 -> 0 | I87: =IF(D87=0,"",(E87/D87)-1) -> 
A88: 5410 | B88: Community Relations - Sundry | C88: 0 | D88: 0 | E88: 0 | F88: 0 | H88: 0
A89: 5415 | B89: Energy Conservation | C89: 78732 | D89: 95148.68 | E89: 110062 | F89: 31330 | G89: 0.3979322258 | H89: 14913.32 | I89: 0.1567370141
A90: 5420 | B90: Community Safety Program | C90: 14892 | D90: 11901.82 | E90: 31800 | F90: 16908 | G90: 1.135374698 | H90: 19898.18 | I90: 1.67186027
A91: 5425 | B91: Miscellaneous Customer Service and Informational Expenses | C91: 0 | D91: 0 | E91: 0 | F91: 0 | H91: 0
A92: 5505 | B92: Supervision | C92: 0 | D92: 0 | E92: 0 | F92: 0 | H92: 0
A93: 5510 | B93: Demonstrating and Selling Expense | C93: 0 | D93: 0 | E93: 0 | F93: 0 | H93: 0
A94: 5515 | B94: Advertising Expenses | C94: 134715 | D94: 90312.91 | E94: 120271 | F94: -14444 | G94: -0.1072189437 | H94: 29958.09 | I94: 0.3317143695
A95: 5520 | B95: Miscellaneous Sales Expense | C95: 0 | D95: 0 | E95: 0 | F95: 0 | H95: 0
A96: Total - Community Relations | C96: =SUM(C87:C95) -> 228339 | D96: =SUM(D87:D95) -> 197363.41 | E96: =SUM(E87:E95) -> 262133 | F96: 33794 | G96: 0.1479992467 | H96: 64769.59 | I96: 0.3281742548
A98: Table 4-2.7 - Detailed Variance Analysis- General & Administrative Expenses
A99: Account | B99: Description | C99: ="Last Board-approved Rebasing Year ("&'LDC Info'!E114&" Year)" -> Last Board-approved Rebasing Year ( Year) | D99: Most Current Actuals Year 2011 | E99: ="Test Year " & 'LDC Info'!E112 -> Test Year | F99: Test Year Versus Last Rebasing | H99: Test Year Versus Most Current Actuals
F100: Variance ($) | G100: Percentage Change (%) | H100: Variance ($) | I100: Percentage Change (%)
A101: Administrative and General Expenses | C101: CGAAP | D101: CGAAP | E101: MCGAAP
A102: 5605 | B102: Executive Salaries and Expenses | C102: 951809 | D102: 816360.86 | E102: 914411 | F102: =E102-C102 -> -37398 | G102: =IF(C102=0,"",(E102/C102)-1) -> -0.03929149651 | H102: =E102-D102 -> 98050.14 | I102: =IF(D102=0,"",(E102/D102)-1) -> 0.1201063706
A103: 5610 | B103: Management Salaries and Expenses | C103: 0 | D103: 0 | E103: 0 | F103: 0 | H103: 0
A104: 5615 | B104: General Administrative Salaries and Expenses (1) | C104: 1236519.43 | D104: 1168190.37 | E104: 1414365.12 | F104: 177845.69 | G104: 0.143827655 | H104: 246174.75 | I104: 0.2107317063
A105: 5620 | B105: Office Supplies and Expenses (1) | C105: 213361 | D105: 254572.58 | E105: 296300 | F105: 82939 | G105: 0.3887261496 | H105: 41727.42 | I105: 0.1639116829
A106: 5625 | B106: Administrative Expense Transferred - Credit | C106: 0 | D106: 0 | E106: 0 | F106: 0 | H106: 0
A107: 5630 | B107: Outside Services Employed | C107: 230899 | D107: 171944.42 | E107: 208800 | F107: -22099 | G107: -0.09570851325 | H107: 36855.58 | I107: 0.2143458915
A108: 5635 | B108: Property Insurance | C108: 32550 | D108: 31238.59 | E108: 31328 | F108: -1222 | G108: -0.0375422427 | H108: 89.41 | I108: 0.002862165034
A109: 5640 | B109: Injuries and Damages | C109: 315652 | D109: 218934.07 | E109: 281747 | F109: -33905 | G109: -0.1074125936 | H109: 62812.93 | I109: 0.2869034043
A110: 5645 | B110: OMERS Pensions and Benefits | C110: 0 | D110: 745946.23 | E110: 897374 | F110: 897374 | H110: 151427.77 | I110: 0.2030009187
A111: 5646 | B111: Employee Pensions and OPEB | D111: 0 | E111: 0 | F111: =E111-C111 -> 0 | G111: =IF(C111=0,"",(E111/C111)-1) ->  | H111: =E111-D111 -> 0 | I111: =IF(D111=0,"",(E111/D111)-1) -> 
A112: 5647 | B112: Employee Sick Leave | D112: 0 | E112: 0 | F112: 0 | H112: 0
A113: 5650 | B113: Franchise Requirements | C113: 0 | D113: 0 | E113: 0 | F113: 0 | H113: 0
A114: 5655 | B114: Regulatory Expenses | C114: 0 | D114: 145953.53 | E114: 181300 | F114: 181300 | H114: 35346.47 | I114: 0.2421761913
A115: 5660 | B115: General Advertising Expenses | C115: 0 | D115: 0 | E115: 0 | F115: 0 | H115: 0
A116: 5665 | B116: Miscellaneous General Expenses | C116: 258406 | D116: 117190.6 | E116: 145972 | F116: -112434 | G116: -0.435105996 | H116: 28781.4 | I116: 0.2455947832
A117: 5670 | B117: Rent | C117: 308288 | D117: 286746.15 | E117: 291905.01 | F117: =E117-C117 -> -16382.99 | G117: =IF(C117=0,"",(E117/C117)-1) -> -0.05314183491 | H117: =E117-D117 -> 5158.86 | I117: 0.01799103493
A118: 5672 | B118: Lease Payment Charge | D118: 0 | E118: 0 | F118: 0 | H118: 0
A119: 5675 | B119: Maintenance of General Plant | C119: 75643 | D119: 73514.3 | E119: 86220 | F119: 10577 | G119: 0.1398278757 | H119: 12705.7 | I119: 0.1728330406
A120: 5680 | B120: Electrical Safety Authority Fees | C120: 0 | D120: 0 | E120: 0 | F120: 0 | H120: 0
A121: 5681 | B121: Special Purpose Charge Expense | C121: 0 | D121: 164327.45 | E121: 0 | F121: 0 | H121: -164327.45
A122: 5685 | B122: Independent Electricity System Operator Fees and Penalties | C122: 0 | D122: 0 | E122: 0 | F122: 0 | H122: 0
A123: 5695 | B123: OM&A Contra Account | C123: 0 | D123: -249232.64 | E123: 0 | F123: 0 | H123: 249232.64 | I123: -1
A124: 6205 | B124: Donations | C124: 0 | D124: 40806 | E124: 24200 | F124: =E124-C124 -> 24200 | G124: =IF(C124=0,"",(E124/C124)-1) ->  | H124: =E124-D124 -> -16606 | I124: =IF(D124=0,"",(E124/D124)-1) -> -0.4069499583
A125: 6205 | B125: Donations, Sub-account LEAP Funding | D125: 0 | E125: 0 | F125: 0 | H125: 0
A126: Total - Administrative and General Expenses | C126: =SUM(C102:C125) -> 3623127.43 | D126: =SUM(D102:D125) -> 3986492.51 | E126: =SUM(E102:E125) -> 4773922.13 | F126: 1150794.7 | G126: 0.3176246826 | H126: 787429.62 | I126: 0.1975244198
A127: Total OM&A | C127: =C126+C96+C81+C67+C42 -> 11935063 | D127: =D126+D96+D81+D67+D42 -> 12100776.23 | E127: =E126+E96+E81+E67+E42 -> 14682415.05 | F127: 2747352.05 | G127: 0.2301916672 | H127: 2581638.82 | I127: 0.2133448938
A128: Adjustments for non-recoverable items
A129: 5681 | B129: Special Purpose Charge Expense | C129: 0 | D129: 164327.45 | E129: 0 | F129: =E129-C129 -> 0 | G129: =IF(C129=0,"",(E129/C129)-1) ->  | H129: =E129-D129 -> -164327.45 | I129: =IF(D129=0,"",(E129/D129)-1) -> -1
A130: 6205 | B130: Donations1 | C130: 0 | D130: 40806 | E130: 24200 | F130: =E130-C130 -> 24200 | G130: =IF(C130=0,"",(E130/C130)-1) ->  | H130: =E130-D130 -> -16606 | I130: =IF(D130=0,"",(E130/D130)-1) -> -0.4069499583
F131: =E131-C131 -> 0 | G131: =IF(C131=0,"",(E131/C131)-1) ->  | H131: =E131-D131 -> 0 | I131: =IF(D131=0,"",(E131/D131)-1) -> 
C132: 0 | F132: =E132-C132 -> 0 | G132: =IF(C132=0,"",(E132/C132)-1) ->  | H132: =E132-D132 -> 0 | I132: =IF(D132=0,"",(E132/D132)-1) -> 
C133: 0 | F133: =E133-C133 -> 0 | G133: =IF(C133=0,"",(E133/C133)-1) ->  | H133: =E133-D133 -> 0 | I133: =IF(D133=0,"",(E133/D133)-1) -> 
A134: Total Recoverable OM&A | C134: =C127-SUM(C129:C133) -> 11935063 | D134: =D127-SUM(D129:D133) -> 11895642.78 | E134: 14658215.05 | F134: 2723152.05 | G134: =IF(C134=0,"",(E134/C134)-1) -> 0.2281640281 | H134: 2762572.27 | I134: =IF(D134=0,"",(E134/D134)-1) -> 0.2322339634
A136: 1 Account 6205 - Donations is generally non-recoverable. However, the sub-account LEAP funding of account 6205 is generally recoverable.
A138: 1 | B138: If the applicant is adopting IFRS or an alternate accounting standard as of January 1, 2013 for financial reporting purposes, Column D "Most Current Actual Year" must be provided on CGAAP.
A139: 2 | B139: If the applicant is adopting IFRS or an alternate accounting standard as of January 1, 2012 for financial reporting purposes, Column D "Most Current Actual Year" must be provided on that standard.
